Workbook

Sheet PI vs y
A1: Measurement | B1: Hall
A2: Type | B2: Off-axis
A4: PS type | B4: HXR
A5: PS serial no | B5: 16322
A7: Measurement date | B7: ='DF raw data'!B2 -> 26. sep 2017
C11: Nominal gap [mm] | D11: Encoder [counts] | E11: Encoder [mm] | F11: PI [T^2mm^3] | G11: y [mm] | H11: Encoder offset
C12: 10 | D12: =' 10 y=-0.2'!B3 -> 17889677 | E12: =(D12-$H$12)*-0.00025+10 -> 9.99925 | F12: =' 10 y=-0.2'!Q3 -> 690.5878102 | G12: -0.2 | H12: 17889674
C13: 10 | D13: ='10 y=-0.1'!B3 -> 17889677 | E13: =(D13-$H$12)*-0.00025+10 -> 9.99925 | F13: ='10 y=-0.1'!Q3 -> 690.1293412 | G13: -0.1
C14: 10 | D14: ='10 y=0'!B3 -> 17889674 | E14: 10 | F14: ='10 y=0'!Q3 -> 690.0235705 | G14: 0
C15: 10 | D15: ='10 y=0.1'!B3 -> 17889675 | E15: 9.99975 | F15: ='10 y=0.1'!Q3 -> 690.0598782 | G15: 0.1
C16: 10 | D16: ='10 y=0.2'!B3 -> 17889676 | E16: 9.9995 | F16: ='10 y=0.2'!Q3 -> 690.3546275 | G16: 0.2
A41: Measuring series at 10 mm gap:
A42: Reference magnet
A43: Tref | B43: 20.935 | C43: degC
A44: Hall ref field | B44: 0.50535 | C44: T
A45: NMR ref field | B45: 0.5064885 | C45: T
A53: Offset from Faro | B53: 0.489

Sheet 10 y=-0.2
A1: dz | B1: ='DF raw data'!B7 -> 0.50035 | C1: mm | F1: T_coeff | G1: -0.0008 | H1: /degC | L1: Hallref | M1: ='PI vs y'!B44 -> 0.50535 | N1: T | P1: IBy total | Q1: =L1203*1000 -> 5.148786803 | R1: muTm | X1: DF ref | Y1: 18
A2: Tref | B2: ='DF raw data'!B8 -> 21.9 | C2: degC | F2: Tcorr | G2: 20 | H2: degC | L2: NMRref | M2: ='PI vs y'!B45 -> 0.5064885 | N2: T | P2: JBy total | Q2: =M1203 -> 2.522125587 | R2: muTm^2
A3: Encoder | B3: ='DF raw data'!B9 -> 17889677 | P3: PI total | Q3: =N1203 -> 690.5878102 | R3: T^2mm^3
A5: z [mm] | B5: Bx | C5: By | D5: Bz | F5: Bx_corr | G5: By_corr | H5: Bz_corr | J5: Ix | K5: Jx | L5: Iy | M5: Jy | N5: PI
A6: ='PI vs y'!B53 -> 0.489 | B6: ='DF raw data'!A11 -> 4.967023e-06 | C6: ='DF raw data'!B11 -> -1.2526001e-05 | D6: ='DF raw data'!C11 -> -5.2640498e-06 | F6: =(1-$G$1*($B$2-$G$2))*B6 -> 4.974572875e-06 | G6: =(1-$G$1*($B$2-$G$2))*C6*$M$2/$M$1 -> -1.257330317e-05 | H6: =(1-$G$1*($B$2-$G$2))*D6 -> -5.272051156e-06 | J6: =F6*$B$1 -> 2.489027538e-06 | K6: =J6*$B$1 -> 1.245384929e-06 | L6: =G6*$B$1 -> -6.29105224e-06 | M6: =L6*$B$1 -> -3.147727988e-06 | N6: =(J6^2+L6^2)*$B$1 -> 2.29023186e-11
A7: =A6+$B$1 -> 0.98935 | B7: ='DF raw data'!A12 -> 4.574063e-06 | C7: ='DF raw data'!B12 -> -2.5145605e-06 | D7: ='DF raw data'!C12 -> -9.1130605e-06 | F7: =(1-$G$1*($B$2-$G$2))*B7 -> 4.581015576e-06 | G7: =(1-$G$1*($B$2-$G$2))*C7*$M$2/$M$1 -> -2.524056281e-06 | H7: =(1-$G$1*($B$2-$G$2))*D7 -> -9.126912352e-06 | J7: =F7*$B$1+J6 -> 4.781138681e-06 | K7: =J7*$B$1+K6 -> 3.637627668e-06 | L7: =G7*$B$1+L6 -> -7.553963801e-06 | M7: =L7*$B$1+M6 -> -6.927353776e-06 | N7: =(J7^2+L7^2)*$B$1+N6 -> 6.289111927e-11
A8: =A7+$B$1 -> 1.4897 | B8: ='DF raw data'!A13 -> 4.3041978e-06 | C8: ='DF raw data'!B13 -> 6.3787606e-06 | D8: ='DF raw data'!C13 -> 9.4404459e-07 | F8: 4.310740181e-06 | G8: 6.402848831e-06 | H8: 9.454795378e-07 | J8: =F8*$B$1+J7 -> 6.938017531e-06 | K8: =J8*$B$1+K7 -> 7.109064739e-06 | L8: =G8*$B$1+L7 -> -4.350298388e-06 | M8: =L8*$B$1+M7 -> -9.104025574e-06 | N8: =(J8^2+L8^2)*$B$1+N7 -> 9.644518235e-11
A9: 1.99005 | B9: ='DF raw data'!A14 -> 4.4416261e-06 | C9: ='DF raw data'!B14 -> 4.5186525e-06 | D9: ='DF raw data'!C14 -> 1.2904817e-05 | F9: 4.448377372e-06 | G9: 4.535716371e-06 | H9: 1.292443232e-05 | J9: 9.163763149e-06 | K9: 1.169415363e-05 | L9: -2.080852702e-06 | M9: -1.014518022e-05 | N9: 1.406283404e-10
A10: 2.4904 | B10: ='DF raw data'!A15 -> 4.7127719e-06 | C10: ='DF raw data'!B15 -> -3.3148567e-06 | D10: ='DF raw data'!C15 -> 1.0239721e-05 | F10: 4.719935313e-06 | G10: -3.327374654e-06 | H10: 1.025528538e-05 | J10: 1.152538278e-05 | K10: 1.746087891e-05 | L10: -3.74570461e-06 | M10: -1.201934353e-05 | N10: 2.141121187e-10
A11: 2.99075 | B11: ='DF raw data'!A16 -> 4.3800278e-06 | C11: ='DF raw data'!B16 -> 4.7350713e-06 | D11: ='DF raw data'!C16 -> 3.8920589e-06 | F11: =(1-$G$1*($B$2-$G$2))*B11 -> 4.386685442e-06 | G11: 4.752952437e-06 | H11: =(1-$G$1*($B$2-$G$2))*D11 -> 3.89797483e-06 | J11: 1.372026084e-05 | K11: 2.432581142e-05 | L11: -1.367564858e-06 | M11: -1.27036046e-05 | N11: 3.092365549e-10
A12: 3.4911 | B12: ='DF raw data'!A17 -> 4.2995848e-06 | C12: ='DF raw data'!B17 -> 6.5144559e-06 | D12: ='DF raw data'!C17 -> 1.6926533e-06 | F12: 4.306120169e-06 | G12: 6.53905656e-06 | H12: 1.695226133e-06 | J12: 1.587482807e-05 | K12: 3.226878164e-05 | L12: 1.904252091e-06 | M12: -1.175081207e-05 | N12: 4.371441988e-10
A13: 3.99145 | B13: ='DF raw data'!A18 -> 4.4452349e-06 | C13: ='DF raw data'!B18 -> 2.204225e-06 | D13: ='DF raw data'!C18 -> 1.8373612e-07 | F13: 4.451991657e-06 | G13: 2.212548855e-06 | H13: 1.840153989e-07 | J13: 1.81023821e-05 | K13: 4.132630853e-05 | L13: 3.011300911e-06 | M13: -1.024410766e-05 | N13: 6.056441516e-10
A14: 4.4918 | B14: ='DF raw data'!A19 -> 4.4549847e-06 | C14: ='DF raw data'!B19 -> 3.028538e-06 | D14: ='DF raw data'!C19 -> 6.748236e-06 | F14: 4.461756277e-06 | G14: 3.039974724e-06 | H14: 6.758493319e-06 | J14: 2.033482185e-05 | K14: 5.150083664e-05 | L14: 4.532352264e-06 | M14: -7.976345202e-06 | N14: 8.228196664e-10
A15: 4.99215 | B15: ='DF raw data'!A20 -> 4.9640835e-06 | C15: ='DF raw data'!B20 -> -1.0771034e-05 | D15: ='DF raw data'!C20 -> 6.4334927e-06 | F15: 4.971628907e-06 | G15: -1.081170885e-05 | H15: 6.443271609e-06 | J15: 2.282237637e-05 | K15: 6.292001266e-05 | L15: -8.772862608e-07 | M15: -8.415295383e-06 | N15: 1.083817484e-09
A16: 5.4925 | B16: ='DF raw data'!A21 -> 4.5243391e-06 | C16: ='DF raw data'!B21 -> -2.9740127e-07 | D16: ='DF raw data'!C21 -> -3.6113743e-06 | F16: 4.531216095e-06 | G16: -2.985243519e-07 | H16: -3.616863589e-06 | J16: 2.508957035e-05 | K16: 7.547357918e-05 | L16: -1.02665292e-06 | M16: -8.928981171e-06 | N16: 1.399308452e-09
A17: 5.99285 | B17: ='DF raw data'!A22 -> 4.0152986e-06 | C17: ='DF raw data'!B22 -> 1.3237051e-05 | D17: ='DF raw data'!C22 -> -5.3513613e-06 | F17: 4.021401854e-06 | G17: 1.328703832e-05 | H17: -5.359495369e-06 | J17: 2.710167876e-05 | K17: 8.903390415e-05 | L17: 5.621516703e-06 | M17: -6.116255289e-06 | N17: 1.782627808e-09
A18: 6.4932 | B18: ='DF raw data'!A23 -> 3.854369e-06 | C18: ='DF raw data'!B23 -> 1.7418392e-05 | D18: ='DF raw data'!C23 -> -5.2095384e-06 | F18: 3.860227641e-06 | G18: 1.748416939e-05 | H18: -5.217456898e-06 | J18: 2.903314366e-05 | K18: 0.0001035606376 | L18: 1.436972086e-05 | M18: 1.073634543e-06 | N18: 2.307701257e-09
A19: 6.99355 | B19: ='DF raw data'!A24 -> 4.515186e-06 | C19: ='DF raw data'!B24 -> 3.6199592e-07 | D19: ='DF raw data'!C24 -> 1.3120334e-06 | F19: 4.522049083e-06 | G19: 3.633629319e-07 | H19: 1.314027691e-06 | J19: 3.129575092e-05 | K19: 0.0001192194666 | L19: 1.45515295e-05 | M19: 8.35449233e-06 | N19: 2.903703685e-09
A20: 7.4939 | B20: ='DF raw data'!A25 -> 4.7344543e-06 | C20: ='DF raw data'!B25 -> -5.7338912e-06 | D20: ='DF raw data'!C25 -> 2.6247653e-07 | F20: 4.741650671e-06 | G20: -5.755544199e-06 | H20: 2.628754943e-07 | J20: 3.366823584e-05 | K20: 0.0001360653684 | L20: 1.167174296e-05 | M20: 1.419444892e-05 | N20: 3.539037952e-09
A21: 7.99425 | B21: ='DF raw data'!A26 -> 4.6012897e-06 | C21: ='DF raw data'!B26 -> -2.0343562e-06 | D21: ='DF raw data'!C26 -> 2.4577093e-07 | F21: 4.60828366e-06 | G21: -2.042038577e-06 | H21: 2.461445018e-07 | J21: 3.597399056e-05 | K21: 0.0001540649545 | L21: 1.065000896e-05 | M21: 1.95231809e-05 | N21: 4.243305939e-09
A22: 8.4946 | B22: ='DF raw data'!A27 -> 5.6337044e-06 | C22: ='DF raw data'!B27 -> -6.2178319e-06 | D22: ='DF raw data'!C27 -> 6.2937361e-06 | F22: 5.642267631e-06 | G22: -6.241312413e-06 | H22: 6.303302579e-06 | J22: 3.879709917e-05 | K22: 0.0001734770831 | L22: 7.527168295e-06 | M22: 2.328939956e-05 | N22: 5.024789178e-09
A23: 8.99495 | B23: ='DF raw data'!A28 -> 7.8563353e-06 | C23: ='DF raw data'!B28 -> -1.0068406e-05 | D23: ='DF raw data'!C28 -> 6.0397615e-06 | F23: 7.86827693e-06 | G23: -1.010642751e-05 | H23: 6.048941937e-06 | J23: 4.273399154e-05 | K23: 0.0001948590358 | L23: 2.470417292e-06 | M23: 2.452547285e-05 | N23: 5.941578979e-09
A24: 9.4953 | B24: ='DF raw data'!A29 -> 1.0009611e-05 | C24: ='DF raw data'!B29 -> -7.7601162e-06 | D24: ='DF raw data'!C29 -> 5.2239375e-06 | F24: 1.002482561e-05 | G24: -7.78942087e-06 | H24: 5.231877885e-06 | J24: 4.774991303e-05 | K24: 0.0002187507048 | L24: -1.427019441e-06 | M24: 2.381146368e-05 | N24: 7.083423e-09
A25: 9.99565 | B25: ='DF raw data'!A30 -> 1.2431676e-05 | C25: ='DF raw data'!B30 -> 2.2098288e-06 | D25: ='DF raw data'!C30 -> 8.3620289e-06 | F25: 1.245057215e-05 | G25: 2.218173817e-06 | H25: 8.374739184e-06 | J25: 5.39795568e-05 | K25: 0.000245759376 | L25: -3.171561713e-07 | M25: 2.365277459e-05 | N25: 8.541389433e-09
A26: 10.496 | B26: ='DF raw data'!A31 -> 1.1285392e-05 | C26: ='DF raw data'!B31 -> 4.5766316e-07 | D26: ='DF raw data'!C31 -> 5.2399155e-06 | F26: 1.13025458e-05 | G26: 4.593914418e-07 | H26: 5.247880172e-06 | J26: 5.963478559e-05 | K26: 0.000275597641 | L26: -8.729966334e-08 | M26: 2.36090942e-05 | N26: 1.032079178e-08
A27: 10.99635 | B27: ='DF raw data'!A32 -> 2.1571939e-06 | C27: ='DF raw data'!B32 -> -1.8039274e-06 | D27: ='DF raw data'!C32 -> -9.9691497e-06 | F27: 2.160472835e-06 | G27: -1.810739604e-06 | H27: -9.984302808e-06 | J27: 6.071577817e-05 | K27: 0.0003059767806 | L27: -9.933032244e-07 | M27: 2.311209493e-05 | N27: 1.216577855e-08
A28: 11.4967 | B28: ='DF raw data'!A33 -> -6.4894671e-06 | C28: ='DF raw data'!B33 -> 1.910018e-06 | D28: ='DF raw data'!C33 -> -5.4129305e-06 | F28: -6.49933109e-06 | G28: 1.917230836e-06 | H28: -5.421158154e-06 | J28: 5.746383786e-05 | K28: 0.0003347288119 | L28: -3.401677547e-08 | M28: 2.309507464e-05 | N28: 1.38179812e-08
A29: 11.99705 | B29: ='DF raw data'!A34 -> -6.3457524e-06 | C29: ='DF raw data'!B34 -> 7.2665853e-06 | D29: ='DF raw data'!C34 -> -1.6980739e-06 | F29: -6.355397944e-06 | G29: 7.29402624e-06 | H29: -1.700654972e-06 | J29: 5.42839145e-05 | K29: 0.0003618897685 | L29: 3.615549254e-06 | M29: 2.490411471e-05 | N29: 1.529892492e-08
A30: 12.4974 | B30: ='DF raw data'!A35 -> -1.9244728e-06 | C30: ='DF raw data'!B35 -> -9.1450181e-07 | D30: ='DF raw data'!C35 -> 1.7982711e-06 | F30: -1.927397999e-06 | G30: -9.1795526e-07 | H30: 1.801004472e-06 | J30: 5.331954091e-05 | K30: 0.0003885682008 | L30: 3.156250339e-06 | M30: 2.648334456e-05 | N30: 1.672639112e-08
A31: 12.99775 | B31: ='DF raw data'!A36 -> -4.3141728e-07 | C31: ='DF raw data'!B36 -> 7.087732e-07 | D31: ='DF raw data'!C36 -> 9.8484816e-07 | F31: -4.320730343e-07 | G31: 7.114497533e-07 | H31: 9.863451292e-07 | J31: 5.310335317e-05 | K31: 0.0004151384635 | L31: 3.512224223e-06 | M31: 2.824068595e-05 | N31: 1.814353335e-08
A32: 13.4981 | B32: ='DF raw data'!A37 -> -2.5279408e-06 | C32: ='DF raw data'!B37 -> 7.8882942e-07 | D32: ='DF raw data'!C37 -> -4.5913148e-06 | F32: -2.53178327e-06 | G32: 7.918082911e-07 | H32: -4.598293598e-06 | J32: 5.183657541e-05 | K32: 0.000441074894 | L32: 3.908405502e-06 | M32: 3.019625665e-05 | N32: 1.949563225e-08
A33: 13.99845 | B33: ='DF raw data'!A38 -> -3.3295476e-06 | C33: ='DF raw data'!B38 -> 4.7366725e-06 | D33: ='DF raw data'!C38 -> -2.6118614e-06 | F33: -3.334608512e-06 | G33: 4.754559684e-06 | H33: -2.615831429e-06 | J33: 5.016810404e-05 | K33: 0.0004661765049 | L33: 6.28734944e-06 | M33: 3.334213194e-05 | N33: 2.077471169e-08
A34: 14.4988 | B34: ='DF raw data'!A39 -> -5.8272809e-07 | C34: ='DF raw data'!B39 -> 4.0892842e-06 | D34: ='DF raw data'!C39 -> -9.1433685e-07 | F34: -5.836138367e-07 | G34: 4.104726639e-06 | H34: -9.15726642e-07 | J34: 4.987609286e-05 | K34: 0.000491132008 | L34: 8.341149414e-06 | M34: 3.751562605e-05 | N34: 2.205420641e-08
A35: 14.99915 | B35: ='DF raw data'!A40 -> 3.5329756e-06 | C35: ='DF raw data'!B40 -> 3.5092145e-07 | D35: ='DF raw data'!C40 -> -7.053568e-07 | F35: 3.538345723e-06 | G35: 3.522466411e-07 | H35: -7.064289423e-07 | J35: 5.164650414e-05 | K35: 0.0005169733363 | L35: 8.51739602e-06 | M35: 4.177730515e-05 | N35: 2.342511909e-08
A36: 15.4995 | B36: ='DF raw data'!A41 -> 5.7310276e-06 | C36: ='DF raw data'!B41 -> 2.128972e-06 | D36: ='DF raw data'!C41 -> 4.7254471e-06 | F36: 5.739738762e-06 | G36: 2.137011676e-06 | H36: 4.73262978e-06 | J36: 5.451838243e-05 | K36: 0.000544251609 | L36: 9.586649813e-06 | M36: 4.657398538e-05 | N36: 2.495827049e-08
A37: 15.99985 | B37: ='DF raw data'!A42 -> 2.5479565e-06 | C37: ='DF raw data'!B42 -> -1.1565458e-05 | D37: ='DF raw data'!C42 -> 3.9158949e-06 | F37: 2.551829394e-06 | G37: -1.160913285e-05 | H37: 3.92184706e-06 | J37: 5.579519027e-05 | K37: 0.0005721687324 | L37: 3.77802019e-06 | M37: 4.846431778e-05 | N37: 2.652305342e-08
A38: 16.5002 | B38: ='DF raw data'!A43 -> -4.0004335e-07 | C38: ='DF raw data'!B43 -> -3.6400188e-06 | D38: ='DF raw data'!C43 -> 5.2150317e-06 | F38: -4.006514159e-07 | G38: -3.65376467e-06 | H38: 5.222958548e-06 | J38: 5.559472433e-05 | K38: 0.0005999855527 | L38: 1.949859037e-06 | M38: 4.943992975e-05 | N38: 2.807142418e-08
A39: 17.00055 | B39: ='DF raw data'!A44 -> 9.6945189e-07 | C39: ='DF raw data'!B44 -> -8.7468097e-06 | D39: ='DF raw data'!C44 -> 3.1975687e-06 | F39: 9.709254569e-07 | G39: -8.779840439e-06 | H39: 3.202429004e-06 | J39: 5.608052689e-05 | K39: 0.0006280454444 | L39: -2.443134126e-06 | M39: 4.821750759e-05 | N39: 2.964802423e-08
A40: 17.5009 | B40: ='DF raw data'!A45 -> 1.4387803e-06 | C40: ='DF raw data'!B45 -> -9.4582438e-06 | D40: ='DF raw data'!C45 -> 3.6464808e-06 | F40: 1.440967246e-06 | G40: -9.49396114e-06 | H40: 3.652023451e-06 | J40: 5.680151485e-05 | K40: 0.0006564660823 | L40: -7.193437583e-06 | M40: 4.46182711e-05 | N40: 3.12882504e-08
A41: 18.00125 | B41: ='DF raw data'!A46 -> -3.0708873e-06 | C41: ='DF raw data'!B46 -> 1.9886065e-06 | D41: ='DF raw data'!C46 -> -3.7142709e-06 | F41: -3.075555049e-06 | G41: 1.996116111e-06 | H41: -3.719916592e-06 | J41: 5.526266088e-05 | K41: 0.0006841167547 | L41: -6.194680886e-06 | M41: 4.151876252e-05 | N41: 3.28355006e-08
A42: 18.5016 | B42: ='DF raw data'!A47 -> -6.2822769e-06 | C42: ='DF raw data'!B47 -> 8.3010464e-06 | D42: ='DF raw data'!C47 -> -6.7352921e-06 | F42: -6.291825961e-06 | G42: 8.332393795e-06 | H42: -6.745529744e-06 | J42: 5.211454576e-05 | K42: 0.0007101922676 | L42: -2.025567651e-06 | M42: 4.050526974e-05 | N42: 3.419646701e-08
A43: 19.00195 | B43: ='DF raw data'!A48 -> -4.2614379e-06 | C43: ='DF raw data'!B48 -> -1.7297417e-06 | D43: ='DF raw data'!C48 -> -4.1302374e-06 | F43: -4.267915286e-06 | G43: -1.736273755e-06 | H43: -4.136515361e-06 | J43: 4.997909435e-05 | K43: 0.0007351993075 | L43: -2.894312225e-06 | M43: 3.905710062e-05 | N43: 3.545048767e-08
A44: 19.5023 | B44: ='DF raw data'!A49 -> -2.033001e-06 | C44: ='DF raw data'!B49 -> -2.1753885e-06 | D44: ='DF raw data'!C49 -> 2.5796217e-06 | F44: -2.036091162e-06 | G44: -2.18360346e-06 | H44: 2.583542725e-06 | J44: 4.896033613e-05 | K44: 0.0007596966117 | L44: -3.986878216e-06 | M44: 3.70622661e-05 | N44: 3.665783708e-08
A45: 20.00265 | B45: ='DF raw data'!A50 -> 1.3718269e-06 | C45: ='DF raw data'!B50 -> -9.5078785e-06 | D45: ='DF raw data'!C50 -> 6.2883373e-06 | F45: 1.373912077e-06 | G45: -9.543783277e-06 | H45: 6.297895573e-06 | J45: 4.964777304e-05 | K45: 0.0007845378749 | L45: -8.762110178e-06 | M45: 3.267814428e-05 | N45: 3.792956463e-08
A46: 20.503 | B46: ='DF raw data'!A51 -> 6.0261259e-06 | C46: ='DF raw data'!B51 -> -4.899438e-06 | D46: ='DF raw data'!C51 -> 5.3879376e-06 | F46: 6.035285611e-06 | G46: -4.917939838e-06 | H46: 5.396127265e-06 | J46: 5.26675282e-05 | K46: 0.0008108900727 | L46: -1.122280138e-05 | M46: 2.706281561e-05 | N46: 3.938048947e-08
A47: 21.00335 | B47: ='DF raw data'!A52 -> 8.5555403e-06 | C47: ='DF raw data'!B52 -> -1.3435708e-05 | D47: ='DF raw data'!C52 -> 4.8201655e-06 | F47: 8.568544721e-06 | G47: -1.348644551e-05 | H47: 4.827492152e-06 | J47: 5.695479955e-05 | K47: 0.0008393874066 | L47: -1.797074439e-05 | M47: 1.807115365e-05 | N47: 4.116513627e-08
A48: 21.5037 | B48: ='DF raw data'!A53 -> 4.5765369e-06 | C48: ='DF raw data'!B53 -> 1.3321448e-06 | D48: ='DF raw data'!C53 -> -1.1581251e-06 | F48: 4.583493236e-06 | G48: 1.337175403e-06 | H48: -1.15988545e-06 | J48: 5.924815039e-05 | K48: 0.0008690322187 | L48: -1.730168868e-05 | M48: 9.414253724e-06 | N48: 4.307131554e-08
A49: 22.00405 | B49: ='DF raw data'!A54 -> 2.2057973e-06 | C49: ='DF raw data'!B54 -> 7.0376241e-06 | D49: ='DF raw data'!C54 -> -2.3658758e-06 | F49: 2.209150112e-06 | G49: 7.06420041e-06 | H49: -2.369471931e-06 | J49: 6.035349865e-05 | K49: 0.0008992300917 | L49: -1.3767116e-05 | M49: 2.525877233e-06 | N49: 4.498869591e-08
A50: 22.5044 | B50: ='DF raw data'!A55 -> 3.5736929e-07 | C50: ='DF raw data'!B55 -> 3.2184048e-06 | D50: ='DF raw data'!C55 -> 1.6117156e-06 | F50: 3.579124913e-07 | G50: 3.230558521e-06 | H50: 1.614165408e-06 | J50: 6.053258016e-05 | K50: 0.0009295175682 | L50: -1.215070604e-05 | M50: -3.553728536e-06 | N50: 4.689594651e-08
A51: 23.00475 | B51: ='DF raw data'!A56 -> 5.4922275e-08 | C51: ='DF raw data'!B56 -> -1.0729671e-05 | D51: ='DF raw data'!C56 -> -6.7706424e-08 | F51: 5.500575686e-08 | G51: -1.077018965e-05 | H51: -6.780933776e-08 | J51: 6.056010229e-05 | K51: 0.0009598188154 | L51: -1.753957044e-05 | M51: -1.23296526e-05 | N51: 4.888491908e-08
A52: 23.5051 | B52: ='DF raw data'!A57 -> 1.0923428e-06 | C52: ='DF raw data'!B57 -> 1.3400633e-05 | D52: ='DF raw data'!C57 -> -3.1222226e-07 | F52: 1.094003161e-06 | G52: 1.345123806e-05 | H52: -3.126968378e-07 | J52: 6.110748677e-05 | K52: 0.0009903939464 | L52: -1.080924348e-05 | M52: -1.773805758e-05 | N52: 5.081174926e-08
A53: 24.00545 | B53: ='DF raw data'!A58 -> 7.8225603e-06 | C53: ='DF raw data'!B58 -> 9.402087e-06 | D53: ='DF raw data'!C58 -> 9.9069475e-06 | F53: 7.834450592e-06 | G53: 9.437592274e-06 | H53: 9.92200606e-06 | J53: 6.502745413e-05 | K53: 0.001022930433 | L53: -6.087144181e-06 | M53: -2.078376017e-05 | N53: 5.294605378e-08
A54: 24.5058 | B54: ='DF raw data'!A59 -> 1.299645e-05 | C54: ='DF raw data'!B59 -> 4.00309e-06 | D54: ='DF raw data'!C59 -> 8.7687404e-06 | F54: 1.30162046e-05 | G54: 4.018206943e-06 | H54: 8.782068885e-06 | J54: 7.15401121e-05 | K54: 0.001058725528 | L54: -4.076634338e-06 | M54: -2.282350416e-05 | N54: 5.551515419e-08
A55: 25.00615 | B55: ='DF raw data'!A60 -> 9.2760347e-06 | C55: ='DF raw data'!B60 -> -2.8605987e-07 | D55: ='DF raw data'!C60 -> -4.9427872e-06 | F55: 9.290134273e-06 | G55: -2.871401232e-07 | H55: -4.950300237e-06 | J55: 7.618843078e-05 | K55: 0.001096846409 | L55: -4.220304898e-06 | M55: -2.493513372e-05 | N55: 5.842843604e-08
A56: 25.5065 | B56: ='DF raw data'!A61 -> 4.504112e-06 | C56: ='DF raw data'!B61 -> -7.1523559e-06 | D56: ='DF raw data'!C61 -> -1.0048152e-05 | F56: 4.51095825e-06 | G56: -7.179365473e-06 | H56: -1.006342519e-05 | J56: 7.844548874e-05 | K56: 0.00113609661 | L56: -7.812500413e-06 | M56: -2.88441183e-05 | N56: 6.153797613e-08
A57: 26.00685 | B57: ='DF raw data'!A62 -> 5.4714081e-07 | C57: ='DF raw data'!B62 -> 1.3533598e-06 | D57: ='DF raw data'!C62 -> -6.2844592e-06 | F57: 5.47972464e-07 | G57: 1.358470518e-06 | H57: -6.294011578e-06 | J57: 7.871966677e-05 | K57: 0.001175483995 | L57: -7.132789689e-06 | M57: -3.241300962e-05 | N57: 6.466399412e-08
A58: 26.5072 | B58: ='DF raw data'!A63 -> -7.8158001e-07 | C58: ='DF raw data'!B63 -> 1.4185585e-05 | D58: ='DF raw data'!C63 -> -4.4147419e-06 | F58: -7.827680116e-07 | G58: 1.423915429e-05 | H58: -4.421452308e-06 | J58: 7.832800879e-05 | K58: 0.001214675414 | L58: -8.228842327e-09 | M58: -3.241712692e-05 | N58: 6.773377998e-08
A59: 27.00755 | B59: ='DF raw data'!A64 -> 4.0323243e-06 | C59: ='DF raw data'!B64 -> 1.269547e-05 | D59: ='DF raw data'!C64 -> 3.4131408e-06 | F59: 4.038453433e-06 | G59: 1.274341214e-05 | H59: 3.418328774e-06 | J59: 8.034864897e-05 | K59: 0.001254877861 | L59: 6.367937421e-06 | M59: -2.923092943e-05 | N59: 7.098428175e-08
A60: 27.5079 | B60: ='DF raw data'!A65 -> 9.4159368e-06 | C60: ='DF raw data'!B65 -> -6.717783e-06 | D60: ='DF raw data'!C65 -> 3.292007e-08 | F60: 9.430249024e-06 | G60: -6.743151488e-06 | H60: 3.297010851e-08 | J60: 8.506707407e-05 | K60: 0.001297441171 | L60: 2.994001574e-06 | M60: -2.773288074e-05 | N60: 7.46095032e-08
A61: 28.00825 | B61: ='DF raw data'!A66 -> 1.1441985e-05 | C61: ='DF raw data'!B66 -> -1.0174481e-05 | D61: ='DF raw data'!C66 -> -4.3511209e-06 | F61: 1.145937682e-05 | G61: -1.021290308e-05 | H61: -4.357734604e-06 | J61: 9.080077326e-05 | K61: 0.001342873338 | L61: -2.116024482e-06 | M61: -2.879163359e-05 | N61: 7.873701943e-08
A62: 28.5086 | B62: ='DF raw data'!A67 -> 9.1231086e-06 | C62: ='DF raw data'!B67 -> -8.7536146e-06 | D62: ='DF raw data'!C67 -> -1.5322257e-06 | F62: 9.136975725e-06 | G62: -8.786671036e-06 | H62: -1.534554683e-06 | J62: 9.537245906e-05 | K62: 0.001390592948 | L62: -6.512435335e-06 | M62: -3.205013061e-05 | N62: 8.330937672e-08
A63: 29.00895 | B63: ='DF raw data'!A68 -> 2.3075152e-06 | C63: ='DF raw data'!B68 -> -2.2517092e-06 | D63: ='DF raw data'!C68 -> -1.0236217e-06 | F63: 2.311022623e-06 | G63: -2.260212371e-06 | H63: -1.025177605e-06 | J63: 9.652877923e-05 | K63: 0.001438891123 | L63: -7.643332595e-06 | M63: -3.587447208e-05 | N63: 8.800077128e-08
A64: 29.5093 | B64: ='DF raw data'!A69 -> -3.424266e-06 | C64: ='DF raw data'!B69 -> -4.6818801e-07 | D64: ='DF raw data'!C69 -> 4.2871288e-06 | F64: -3.429470884e-06 | G64: -4.69956037e-07 | H64: 4.293645236e-06 | J64: 9.481284347e-05 | K64: 0.001486330729 | L64: -7.878475098e-06 | M64: -3.981646709e-05 | N64: 9.252971215e-08
A65: 30.00965 | B65: ='DF raw data'!A70 -> -6.001585e-06 | C65: ='DF raw data'!B70 -> 3.442429e-06 | D65: ='DF raw data'!C70 -> 5.5579767e-06 | F65: -6.010707409e-06 | G65: 3.455428708e-06 | H65: 5.566424825e-06 | J65: 9.180538602e-05 | K65: 0.001532265554 | L65: -6.149551344e-06 | M65: -4.289339511e-05 | N65: 9.676569821e-08
A66: 30.51 | B66: ='DF raw data'!A71 -> -1.8059912e-06 | C66: ='DF raw data'!B71 -> 3.1155323e-06 | D66: ='DF raw data'!C71 -> -2.616518e-06 | F66: -1.808736307e-06 | G66: 3.127297542e-06 | H66: -2.620495107e-06 | J66: 9.090038481e-05 | K66: 0.001577747561 | L66: -4.584808019e-06 | M66: -4.51874038e-05 | N66: 1.009105478e-07
A67: 31.01035 | B67: ='DF raw data'!A72 -> 1.49351e-06 | C67: ='DF raw data'!B72 -> 6.4729602e-06 | D67: ='DF raw data'!C72 -> 7.3738374e-06 | F67: 1.495780135e-06 | G67: 6.497404159e-06 | H67: 7.385045633e-06 | J67: 9.16487984e-05 | K67: 0.001623604038 | L67: -1.333831848e-06 | M67: -4.585478657e-05 | N67: 1.051141289e-07
A68: 31.5107 | B68: ='DF raw data'!A73 -> -1.51456e-06 | C68: ='DF raw data'!B73 -> 1.0895271e-05 | D68: ='DF raw data'!C73 -> 1.1080108e-05 | F68: -1.516862131e-06 | G68: 1.093641501e-05 | H68: 1.109694976e-05 | J68: 9.088983643e-05 | K68: 0.001669080767 | L68: 4.138203403e-06 | M68: -4.378423649e-05 | N68: 1.092560698e-07
A69: 32.01105 | B69: ='DF raw data'!A74 -> -2.9363974e-07 | C69: ='DF raw data'!B74 -> 7.7698724e-06 | D69: ='DF raw data'!C74 -> 3.3851866e-06 | F69: -2.940860724e-07 | G69: 7.799213912e-06 | H69: 3.390332084e-06 | J69: 9.074269047e-05 | K69: 0.001714483873 | L69: 8.040540085e-06 | M69: -3.976115226e-05 | N69: 1.134084175e-07
A70: 32.5114 | B70: ='DF raw data'!A75 -> 5.5604792e-06 | C70: ='DF raw data'!B75 -> 1.102603e-05 | D70: ='DF raw data'!C75 -> -4.35326e-06 | F70: 5.568931128e-06 | G70: 1.10676678e-05 | H70: -4.359876955e-06 | J70: 9.352910516e-05 | K70: 0.00176128116 | L70: 1.357824767e-05 | M70: -3.296727604e-05 | N70: 1.178775749e-07
A71: 33.01175 | B71: ='DF raw data'!A76 -> 7.6357283e-06 | C71: ='DF raw data'!B76 -> 1.1801641e-05 | D71: ='DF raw data'!C76 -> -1.83671e-06 | F71: 7.647334607e-06 | G71: =(1-$G$1*($B$2-$G$2))*C71*$M$2/$M$1 -> 1.184620775e-05 | H71: -1.839501799e-06 | J71: 9.735544903e-05 | K71: 0.001809992959 | L71: 1.950549772e-05 | M71: -2.320770026e-05 | N71: 1.228102993e-07
A72: =A71+$B$1 -> 33.5121 | B72: ='DF raw data'!A77 -> -1.7820824e-06 | C72: ='DF raw data'!B77 -> 5.7259017e-06 | D72: ='DF raw data'!C77 -> 3.139332e-06 | F72: -1.784791165e-06 | G72: 5.747524528e-06 | H72: 3.144103785e-06 | J72: =F72*$B$1+J71 -> 9.646242877e-05 | K72: =J72*$B$1+K71 -> 0.001858257935 | L72: =G72*$B$1+L71 -> 2.238127162e-05 | M72: =L72*$B$1+M71 -> -1.2009231e-05 | N72: =(J72^2+L72^2)*$B$1+N71 -> 1.277166921e-07
A73: 34.01245 | B73: ='DF raw data'!A78 -> -1.1330932e-05 | C73: ='DF raw data'!B78 -> -5.8362298e-06 | D73: ='DF raw data'!C78 -> 1.2164564e-06 | F73: -1.134815502e-05 | G73: -5.858269262e-06 | H73: 1.218305414e-06 | J73: 9.078437941e-05 | K73: 0.0019036819 | L73: 1.945008659e-05 | M73: -2.277380179e-06 | N73: 1.320297639e-07
A74: 34.5128 | B74: ='DF raw data'!A79 -> -1.0032523e-05 | C74: ='DF raw data'!B79 -> -1.7021224e-06 | D74: ='DF raw data'!C79 -> -8.0278369e-06 | F74: -1.004777243e-05 | G74: -1.708550156e-06 | H74: -8.040039212e-06 | J74: 8.575697647e-05 | K74: 0.001946590403 | L74: 1.859521352e-05 | M74: 7.026734906e-06 | N74: 1.358824794e-07
A75: 35.01315 | B75: ='DF raw data'!A80 -> -6.4909368e-06 | C75: ='DF raw data'!B80 -> 1.6765205e-06 | D75: ='DF raw data'!C80 -> -9.4619427e-06 | F75: =(1-$G$1*($B$2-$G$2))*B75 -> -6.500803024e-06 | G75: 1.682851575e-06 | H75: =(1-$G$1*($B$2-$G$2))*D75 -> -9.476324853e-06 | J75: 8.250429968e-05 | K75: 0.001987871429 | L75: 1.943722831e-05 | M75: 1.675215209e-05 | N75: 1.394773767e-07
A76: 35.5135 | B76: ='DF raw data'!A81 -> -6.3325392e-06 | C76: ='DF raw data'!B81 -> 1.0148551e-06 | D76: ='DF raw data'!C81 -> -4.7631584e-06 | F76: -6.34216466e-06 | G76: 1.018687516e-06 | H76: -4.770398401e-06 | J76: 7.933099759e-05 | K76: 0.002027564694 | L76: 1.99469286e-05 | M76: 2.673259782e-05 | N76: 1.428253622e-07
A77: 36.01385 | B77: ='DF raw data'!A82 -> -4.4060839e-06 | C77: ='DF raw data'!B82 -> 7.4636569e-06 | D77: ='DF raw data'!C82 -> 3.9885672e-06 | F77: -4.412781148e-06 | G77: 7.491842045e-06 | H77: 3.994629822e-06 | J77: 7.712306254e-05 | K77: 0.002066153218 | L77: 2.369547177e-05 | M77: 3.858862712e-05 | N77: 1.460823616e-07
A78: 36.5142 | B78: ='DF raw data'!A83 -> 6.7429545e-07 | C78: ='DF raw data'!B83 -> 8.7637718e-06 | D78: ='DF raw data'!C83 -> 4.5846282e-06 | F78: 6.753203791e-07 | G78: 8.796866593e-06 | H78: 4.591596835e-06 | J78: 7.746095909e-05 | K78: 0.002104910809 | L78: 2.809698397e-05 | M78: 5.264695305e-05 | N78: 1.494795583e-07
A79: 37.01455 | B79: ='DF raw data'!A84 -> 1.3733548e-06 | C79: ='DF raw data'!B84 -> 1.2831832e-05 | D79: ='DF raw data'!C84 -> -6.465234e-07 | F79: 1.375442299e-06 | G79: 1.288028908e-05 | H79: -6.475061156e-07 | J79: 7.814916165e-05 | K79: 0.002144012742 | L79: 3.454163661e-05 | M79: 6.992986093e-05 | N79: 1.531323215e-07
A80: 37.5149 | B80: ='DF raw data'!A85 -> 1.3204295e-06 | C80: ='DF raw data'!B85 -> -5.0621463e-07 | D80: ='DF raw data'!C85 -> -4.163121e-07 | F80: 1.322436553e-06 | G80: -5.081262576e-07 | H80: -4.169448944e-07 | J80: 7.881084278e-05 | K80: 0.002183445747 | L80: 3.428739564e-05 | M80: 8.708555934e-05 | N80: 1.568282941e-07
A81: 38.01525 | B81: ='DF raw data'!A86 -> 1.4023277e-06 | C81: ='DF raw data'!B86 -> 4.3055693e-06 | D81: ='DF raw data'!C86 -> -8.1283724e-07 | F81: 1.404459238e-06 | G81: 4.321828501e-06 | H81: -8.140727526e-07 | J81: 7.951356396e-05 | K81: 0.002223230359 | L81: 3.644982253e-05 | M81: 0.000105323228 | N81: 1.606564702e-07
A82: 38.5156 | B82: ='DF raw data'!A87 -> -2.7878089e-06 | C82: ='DF raw data'!B87 -> 5.6027484e-06 | D82: ='DF raw data'!C87 -> 5.1438474e-07 | F82: -2.79204637e-06 | G82: 5.623906162e-06 | H82: 5.151666048e-07 | J82: 7.811656355e-05 | K82: 0.002262315982 | L82: 3.926374398e-05 | M82: 0.0001249688423 | N82: 1.644810651e-07
A83: 39.01595 | B83: ='DF raw data'!A88 -> -1.7640672e-06 | C83: ='DF raw data'!B88 -> 2.7373999e-06 | D83: ='DF raw data'!C88 -> 1.5696605e-06 | F83: -1.766748582e-06 | G83: 2.747737194e-06 | H83: 1.572046384e-06 | J83: 7.72325709e-05 | K83: 0.002300959298 | L83: 4.063857428e-05 | M83: 0.000145302353 | N83: 1.682919126e-07
A84: 39.5163 | B84: ='DF raw data'!A89 -> 5.9575718e-06 | C84: ='DF raw data'!B89 -> -9.5356309e-06 | D84: ='DF raw data'!C89 -> -4.5185116e-06 | F84: 5.966627309e-06 | G84: -9.571640479e-06 | H84: -4.525379738e-06 | J84: 8.021797288e-05 | K84: 0.002341096361 | L84: 3.584940397e-05 | M84: 0.0001632396023 | N84: 1.721546662e-07
A85: 40.01665 | B85: ='DF raw data'!A90 -> 4.5843367e-06 | C85: ='DF raw data'!B90 -> -1.2309315e-05 | D85: ='DF raw data'!C90 -> -1.3495992e-06 | F85: 4.591304892e-06 | G85: -1.235579889e-05 | H85: -1.351650591e-06 | J85: 8.251523228e-05 | K85: 0.002382382858 | L85: 2.966718e-05 | M85: 0.0001780835758 | N85: 1.760018098e-07
A86: 40.517 | B86: ='DF raw data'!A91 -> -5.6398522e-07 | C86: ='DF raw data'!B91 -> -4.8482016e-06 | D86: ='DF raw data'!C91 -> -1.3458011e-06 | F86: -5.648424775e-07 | G86: -4.866509953e-06 | H86: -1.347846718e-06 | J86: 8.223261334e-05 | K86: 0.002423527946 | L86: 2.723222174e-05 | M86: 0.0001917092179 | N86: 1.797563345e-07
A87: 41.01735 | B87: ='DF raw data'!A92 -> 5.3498997e-07 | C87: ='DF raw data'!B92 -> 5.5162877e-06 | D87: ='DF raw data'!C92 -> -4.1887361e-06 | F87: 5.358031548e-07 | G87: 5.537118959e-06 | H87: -4.195102979e-06 | J87: 8.250070245e-05 | K87: 0.002464807172 | L87: 3.000271921e-05 | M87: 0.0002067210785 | N87: 1.836122963e-07
A88: 41.5177 | B88: ='DF raw data'!A93 -> 1.2653651e-06 | C88: ='DF raw data'!B93 -> -1.6362093e-06 | D88: ='DF raw data'!C93 -> 9.4018833e-07 | F88: 1.267288455e-06 | G88: -1.642388147e-06 | H88: 9.416174163e-07 | J88: 8.313479023e-05 | K88: 0.002506403664 | L88: 2.91809503e-05 | M88: 0.000221321767 | N88: 1.874964739e-07
A89: 42.01805 | B89: ='DF raw data'!A94 -> 2.0707555e-06 | C89: ='DF raw data'!B94 -> -2.1162805e-06 | D89: ='DF raw data'!C94 -> 9.8831151e-07 | F89: 2.073903048e-06 | G89: -2.124272249e-06 | H89: 9.898137435e-07 | J89: 8.417246762e-05 | K89: 0.002548519359 | L89: 2.811807068e-05 | M89: 0.0002353906436 | N89: 1.914370455e-07
A90: 42.5184 | B90: ='DF raw data'!A95 -> 4.4839576e-06 | C90: ='DF raw data'!B95 -> -3.5669004e-06 | D90: ='DF raw data'!C95 -> 1.1164266e-06 | F90: 4.490773216e-06 | G90: -3.580370152e-06 | H90: 1.118123568e-06 | J90: 8.6419426e-05 | K90: 0.002591759318 | L90: 2.632663248e-05 | M90: 0.0002485631742 | N90: 1.955206064e-07
A91: 43.01875 | B91: ='DF raw data'!A96 -> 4.1612107e-06 | C91: ='DF raw data'!B96 -> -6.6103744e-06 | D91: ='DF raw data'!C96 -> 2.9628063e-07 | F91: 4.16753574e-06 | G91: -6.635337279e-06 | H91: 2.967309766e-07 | J91: 8.850465251e-05 | K91: 0.002636042621 | L91: 2.300664147e-05 | M91: 0.0002600745472 | N91: 1.997047227e-07
A92: 43.5191 | B92: ='DF raw data'!A97 -> 3.8413596e-06 | C92: ='DF raw data'!B97 -> -6.6349253e-06 | D92: ='DF raw data'!C97 -> 9.7953489e-06 | F92: 3.847198467e-06 | G92: -6.659980891e-06 | H92: 9.81023783e-06 | J92: 9.042959826e-05 | K92: 0.002681289071 | L92: 1.967432003e-05 | M92: 0.0002699185933 | N92: 2.039900159e-07
A93: 44.01945 | B93: ='DF raw data'!A98 -> 4.308607e-06 | C93: ='DF raw data'!B98 -> 9.3639989e-07 | D93: ='DF raw data'!C98 -> 1.2641121e-05 | F93: 4.315156083e-06 | G93: 9.399360342e-07 | H93: 1.26603355e-05 | J93: 9.258868661e-05 | K93: 0.00272761582 | L93: 2.014461703e-05 | M93: 0.0002799979524 | N93: 2.084823936e-07
A94: 44.5198 | B94: ='DF raw data'!A99 -> 4.8968682e-06 | C94: ='DF raw data'!B99 -> -4.6987634e-06 | D94: ='DF raw data'!C99 -> 5.6900935e-06 | F94: 4.90431144e-06 | G94: -4.716507427e-06 | H94: 5.698742442e-06 | J94: 9.504255884e-05 | K94: 0.002775170364 | L94: 1.778471253e-05 | M94: 0.0002888965333 | N94: 2.131603579e-07
A95: 45.02015 | B95: ='DF raw data'!A100 -> 5.6682956e-07 | C95: ='DF raw data'!B100 -> -1.5293148e-05 | D95: ='DF raw data'!C100 -> -4.9706687e-06 | F95: 5.676911409e-07 | G95: -1.53508998e-05 | H95: -4.978224116e-06 | J95: 9.53266031e-05 | K95: 0.00282286703 | L95: 1.010388982e-05 | M95: 0.0002939520146 | N95: 2.17758199e-07
A96: 45.5205 | B96: ='DF raw data'!A101 -> -6.7936458e-06 | C96: ='DF raw data'!B101 -> 2.0373075e-06 | D96: ='DF raw data'!C101 -> -5.3678632e-06 | F96: -6.803972142e-06 | G96: 2.045001022e-06 | H96: -5.376022352e-06 | J96: 9.192223564e-05 | K96: 0.002868860321 | L96: 1.112710608e-05 | M96: 0.0002995194621 | N96: 2.220479547e-07
A97: 46.02085 | B97: ='DF raw data'!A102 -> -1.2015716e-05 | C97: ='DF raw data'!B102 -> 5.0033937e-06 | D97: ='DF raw data'!C102 -> 1.1808479e-06 | F97: -1.203397989e-05 | G97: 5.022288108e-06 | H97: 1.182642789e-06 | J97: 8.59010338e-05 | K97: 0.002911840903 | L97: 1.364000794e-05 | M97: 0.0003063442401 | N97: 2.258331212e-07
A98: 46.5212 | B98: ='DF raw data'!A103 -> -1.0134649e-05 | C98: ='DF raw data'!B103 -> 3.8890098e-06 | D98: ='DF raw data'!C103 -> 9.954736e-06 | F98: -1.015005367e-05 | G98: 3.903695939e-06 | H98: 9.969867199e-06 | J98: 8.082245445e-05 | K98: 0.002952280418 | L98: 1.55932222e-05 | M98: 0.0003141463088 | N98: 2.292232014e-07
A99: 47.02155 | B99: ='DF raw data'!A104 -> -1.5124209e-06 | C99: ='DF raw data'!B104 -> 6.1487322e-06 | D99: ='DF raw data'!C104 -> 6.8207046e-06 | F99: -1.51471978e-06 | G99: 6.171951771e-06 | H99: 6.831072071e-06 | J99: 8.006456441e-05 | K99: 0.002992340723 | L99: 1.868135827e-05 | M99: 0.0003234935264 | N99: 2.32605231e-07
A100: 47.5219 | B100: ='DF raw data'!A105 -> 4.5862151e-07 | C100: ='DF raw data'!B105 -> 7.2386988e-06 | D100: ='DF raw data'!C105 -> -5.0198541e-06 | F100: 4.593186147e-07 | G100: 7.266034432e-06 | H100: -5.027484278e-06 | J100: 8.029438447e-05 | K100: 0.003032516018 | L100: 2.23169186e-05 | M100: 0.0003346597966 | N100: 2.360802784e-07
A101: 48.02225 | B101: ='DF raw data'!A106 -> -1.8362301e-06 | C101: ='DF raw data'!B106 -> -1.0137716e-06 | D101: ='DF raw data'!C106 -> -8.4449239e-06 | F101: -1.83902117e-06 | G101: -1.017599924e-06 | H101: -8.457760184e-06 | J101: 7.937423023e-05 | K101: 0.003072230914 | L101: 2.180776247e-05 | M101: 0.0003455713106 | N101: 2.394705734e-07
A102: 48.5226 | B102: ='DF raw data'!A107 -> -6.0959105e-06 | C102: ='DF raw data'!B107 -> 5.8734718e-06 | D102: ='DF raw data'!C107 -> -3.2842618e-06 | F102: -6.105176284e-06 | G102: 5.8956519e-06 | H102: -3.289253878e-06 | J102: 7.631950528e-05 | K102: 0.003110417379 | L102: 2.47576519e-05 | M102: 0.0003579588017 | N102: 2.426916306e-07
A103: 49.02295 | B103: ='DF raw data'!A108 -> -7.0178471e-06 | C103: ='DF raw data'!B108 -> -3.258684e-06 | D103: ='DF raw data'!C108 -> -2.4691071e-06 | F103: -7.028514228e-06 | G103: -3.270989828e-06 | H103: -2.472860143e-06 | J103: 7.280278819e-05 | K103: 0.003146844254 | L103: 2.312101214e-05 | M103: 0.0003695274002 | N103: 2.456110864e-07
A104: 49.5233 | B104: ='DF raw data'!A109 -> -2.1625567e-06 | C104: ='DF raw data'!B109 -> -2.3831349e-06 | D104: ='DF raw data'!C109 -> 1.7182065e-06 | F104: -2.165843786e-06 | G104: -2.392134376e-06 | H104: 1.720818174e-06 | J104: 7.171910825e-05 | K104: 0.00318272891 | L104: 2.192410771e-05 | M104: 0.0003804971274 | N104: 2.484252034e-07
A105: 50.02365 | B105: ='DF raw data'!A110 -> -1.5337104e-06 | C105: ='DF raw data'!B110 -> 7.4060139e-08 | D105: ='DF raw data'!C110 -> 1.172466e-06 | F105: -1.53604164e-06 | G105: 7.433981367e-08 | H105: 1.174248148e-06 | J105: 7.095054981e-05 | K105: 0.003218229017 | L105: 2.196130363e-05 | M105: 0.0003914854657 | N105: 2.511852738e-07
A106: 50.524 | B106: ='DF raw data'!A111 -> -1.1549095e-06 | C106: ='DF raw data'!B111 -> 3.3824583e-07 | D106: ='DF raw data'!C111 -> 1.2191194e-06 | F106: -1.156664962e-06 | G106: 3.39523154e-07 | H106: 1.220972461e-06 | J106: 7.03718125e-05 | K106: 0.003253439554 | L106: 2.213118404e-05 | M106: 0.0004025588037 | N106: 2.539081691e-07
A107: 51.02435 | B107: ='DF raw data'!A112 -> -1.1466294e-06 | C107: ='DF raw data'!B112 -> -3.6885863e-06 | D107: ='DF raw data'!C112 -> 5.2874748e-07 | F107: -1.148372277e-06 | G107: -3.702515576e-06 | H107: 5.295511762e-07 | J107: 6.979722443e-05 | K107: 0.003288362595 | L107: 2.027863037e-05 | M107: 0.0004127052164 | N107: 2.565514558e-07
A108: 51.5247 | B108: ='DF raw data'!A113 -> -4.979051e-06 | C108: ='DF raw data'!B113 -> -6.1479154e-06 | D108: ='DF raw data'!C113 -> -1.170436e-06 | F108: -4.986619158e-06 | G108: -6.171131886e-06 | H108: -1.172215063e-06 | J108: 6.730216953e-05 | K108: 0.003322037236 | L108: 1.719090453e-05 | M108: 0.0004213066854 | N108: 2.589656992e-07
A109: 52.02505 | B109: ='DF raw data'!A114 -> -6.8011109e-06 | C109: ='DF raw data'!B114 -> 2.1215001e-06 | D109: ='DF raw data'!C114 -> -5.135993e-06 | F109: -6.811448589e-06 | G109: 2.12951156e-06 | H109: -5.143799709e-06 | J109: 6.389406123e-05 | K109: 0.003354006629 | L109: 1.825640564e-05 | M109: 0.000430441278 | N109: 2.611751185e-07
A110: 52.5254 | B110: ='DF raw data'!A115 -> -2.1833805e-06 | C110: ='DF raw data'!B115 -> 4.1418543e-06 | D110: ='DF raw data'!C115 -> -6.2941072e-06 | F110: -2.186699238e-06 | G110: 4.157495261e-06 | H110: -6.303674243e-06 | J110: 6.279994627e-05 | K110: 0.003385428582 | L110: 2.03366084e-05 | M110: 0.0004406167 | N110: 2.63355349e-07
A111: 53.02575 | B111: ='DF raw data'!A116 -> 1.091135e-06 | C111: ='DF raw data'!B116 -> -6.3723405e-06 | D111: ='DF raw data'!C116 -> -3.815363e-06 | F111: 1.092793525e-06 | G111: -6.396404487e-06 | H111: -3.821162352e-06 | J111: 6.334672551e-05 | K111: 0.003417124116 | L111: 1.713616741e-05 | M111: 0.0004491907814 | N111: 2.655100842e-07
A112: 53.5261 | B112: ='DF raw data'!A117 -> -5.3761715e-07 | C112: ='DF raw data'!B117 -> -5.7759814e-07 | D112: ='DF raw data'!C117 -> -7.2999937e-06 | F112: -5.384343281e-07 | G112: -5.797793345e-07 | H112: -7.31108969e-06 | J112: 6.307731989e-05 | K112: 0.003448684853 | L112: 1.684607482e-05 | M112: 0.0004576197149 | N112: 2.676428453e-07
A113: 54.02645 | B113: ='DF raw data'!A118 -> -3.1166094e-06 | C113: ='DF raw data'!B118 -> 5.8535306e-07 | D113: ='DF raw data'!C118 -> -6.7360197e-06 | F113: -3.121346646e-06 | G113: 5.875635396e-07 | H113: -6.74625845e-06 | J113: 6.15155541e-05 | K113: 0.003479464161 | L113: 1.714006224e-05 | M113: 0.0004661957451 | N113: 2.696832452e-07
A114: 54.5268 | B114: ='DF raw data'!A119 -> -7.9031561e-06 | C114: ='DF raw data'!B119 -> -1.145338e-05 | D114: ='DF raw data'!C119 -> -5.5378441e-06 | F114: -7.915168897e-06 | G114: -1.149663161e-05 | H114: -5.546261623e-06 | J114: 5.755519934e-05 | K114: 0.003508261905 | L114: 1.138772261e-05 | M114: 0.0004718935921 | N114: 2.714055906e-07
A115: 55.02715 | B115: ='DF raw data'!A120 -> -7.3425877e-06 | C115: ='DF raw data'!B120 -> -1.680648e-05 | D115: ='DF raw data'!C120 -> -7.501334e-06 | F115: -7.353748433e-06 | G115: -1.686994662e-05 | H115: -7.512736028e-06 | J115: 5.387575131e-05 | K115: 0.003535218637 | L115: 2.946844822e-06 | M115: 0.0004733680459 | N115: 2.728622498e-07
A116: 55.5275 | B116: ='DF raw data'!A121 -> -5.2700166e-06 | C116: ='DF raw data'!B121 -> -5.0678227e-06 | D116: ='DF raw data'!C121 -> -1.407574e-06 | F116: -5.278027025e-06 | G116: -5.086960412e-06 | H116: -1.409713512e-06 | J116: 5.123489049e-05 | K116: 0.003560854014 | L116: 4.015841794e-07 | M116: 0.0004735689785 | N116: 2.741757562e-07
A117: 56.02785 | B117: ='DF raw data'!A122 -> -3.7542015e-06 | C117: ='DF raw data'!B122 -> 2.3864864e-06 | D117: ='DF raw data'!C122 -> -8.3028499e-07 | F117: -3.759907886e-06 | G117: 2.395498533e-06 | H117: -8.315470232e-07 | J117: 4.935362058e-05 | K117: 0.003585548098 | L117: 1.60017187e-06 | M117: 0.0004743696245 | N117: 2.753957798e-07
A118: 56.5282 | B118: ='DF raw data'!A123 -> -8.8697954e-07 | C118: ='DF raw data'!B123 -> -2.1837945e-06 | D118: ='DF raw data'!C123 -> -3.7673708e-06 | F118: -8.883277489e-07 | G118: -2.192041203e-06 | H118: -3.773097204e-06 | J118: 4.890914579e-05 | K118: 0.00361001979 | L118: 5.033840541e-07 | M118: 0.0004746214927 | N118: 2.765927961e-07
A119: 57.02855 | B119: ='DF raw data'!A124 -> -2.7447497e-06 | C119: ='DF raw data'!B124 -> 6.0972293e-06 | D119: ='DF raw data'!C124 -> -8.1136932e-06 | F119: -2.74892172e-06 | G119: 6.120254379e-06 | H119: -8.126026014e-06 | J119: 4.753372281e-05 | K119: 0.003633803288 | L119: 3.565653333e-06 | M119: 0.0004764055674 | N119: 2.777296757e-07
A120: 57.5289 | B120: ='DF raw data'!A125 -> -6.1662545e-06 | C120: ='DF raw data'!B125 -> 4.2828869e-06 | D120: ='DF raw data'!C125 -> -3.0623742e-06 | F120: -6.175627207e-06 | G120: 4.299060445e-06 | H120: -3.067029009e-06 | J120: 4.444374773e-05 | K120: 0.003656040717 | L120: 5.716688226e-06 | M120: 0.0004792659123 | N120: 2.787343421e-07
A121: 58.02925 | B121: ='DF raw data'!A126 -> -3.6556851e-06 | C121: ='DF raw data'!B126 -> 6.6094562e-06 | D121: ='DF raw data'!C126 -> 2.2389904e-06 | F121: -3.661241741e-06 | G121: 6.634415611e-06 | H121: 2.242393665e-06 | J121: 4.261184543e-05 | K121: 0.003677361554 | L121: 9.036218077e-06 | M121: 0.000483787184 | N121: 2.796837175e-07
A122: 58.5296 | B122: ='DF raw data'!A127 -> 3.2457499e-06 | C122: ='DF raw data'!B127 -> -4.5104975e-06 | D122: ='DF raw data'!C127 -> 4.2643696e-06 | F122: 3.25068344e-06 | G122: -4.527530575e-06 | H122: 4.270851442e-06 | J122: 4.423832489e-05 | K122: 0.0036994962 | L122: 6.770868154e-06 | M122: 0.0004871749879 | N122: 2.806858556e-07
A123: 59.02995 | B123: ='DF raw data'!A128 -> 8.5600077e-06 | C123: ='DF raw data'!B128 -> 5.0733092e-06 | D123: ='DF raw data'!C128 -> 1.2822555e-05 | F123: 8.573018912e-06 | G123: 5.092467631e-06 | H123: 1.284204528e-05 | J123: 4.85278349e-05 | K123: 0.003723777102 | L123: 9.318884333e-06 | M123: 0.0004918376917 | N123: 2.819076064e-07
A124: 59.5303 | B124: ='DF raw data'!A129 -> 8.0351638e-06 | C124: ='DF raw data'!B129 -> -1.1259777e-05 | D124: ='DF raw data'!C129 -> 1.2670211e-05 | F124: 8.047377249e-06 | G124: -1.13022975e-05 | H124: 1.268946972e-05 | J124: 5.255434011e-05 | K124: 0.003750072666 | L124: 3.663779778e-06 | M124: 0.0004936708639 | N124: 2.832962687e-07
A125: 60.03065 | B125: ='DF raw data'!A130 -> 2.844117e-06 | C125: ='DF raw data'!B130 -> -7.9263664e-06 | D125: ='DF raw data'!C130 -> 7.2617004e-06 | F125: 2.848440058e-06 | G125: -7.956298884e-06 | H125: 7.272738185e-06 | J125: 5.397955709e-05 | K125: 0.003777081337 | L125: -3.171543687e-07 | M125: 0.0004935121757 | N125: 2.847542352e-07
A126: 60.531 | B126: ='DF raw data'!A131 -> -2.423749e-06 | C126: ='DF raw data'!B131 -> 2.7762271e-06 | D126: ='DF raw data'!C131 -> 2.579287e-06 | F126: -2.427433098e-06 | G126: 2.786711018e-06 | H126: 2.583207516e-06 | J126: 5.276499094e-05 | K126: 0.003803482301 | L126: 1.077176489e-06 | M126: 0.000494051141 | N126: 2.861478623e-07
A127: 61.03135 | B127: ='DF raw data'!A132 -> -3.3370127e-06 | C127: ='DF raw data'!B132 -> -7.1769671e-07 | D127: ='DF raw data'!C132 -> 2.2029162e-06 | F127: -3.342084959e-06 | G127: -7.204069613e-07 | H127: 2.206264633e-06 | J127: 5.109277873e-05 | K127: 0.003829046572 | L127: 7.167208658e-07 | M127: 0.0004944097523 | N127: 2.87454269e-07
A128: 61.5317 | B128: ='DF raw data'!A133 -> -2.447716e-06 | C128: ='DF raw data'!B133 -> -6.1093556e-06 | D128: ='DF raw data'!C133 -> -1.2826458e-06 | F128: -2.451436528e-06 | G128: -6.132426472e-06 | H128: -1.284595422e-06 | J128: 4.986620246e-05 | K128: 0.003853997127 | L128: -2.35163872e-06 | M128: 0.0004932331098 | N128: 2.887012255e-07
A129: 62.03205 | B129: ='DF raw data'!A134 -> -7.3732764e-07 | C129: ='DF raw data'!B134 -> 8.1689532e-06 | D129: ='DF raw data'!C134 -> -1.0602478e-05 | F129: -7.38448378e-07 | G129: 8.199801769e-06 | H129: -1.061859377e-05 | J129: 4.949671982e-05 | K129: 0.003878762811 | L129: 1.751132095e-06 | M129: 0.0004941092888 | N129: 2.899285799e-07
A130: 62.5324 | B130: ='DF raw data'!A135 -> 3.1828385e-08 | C130: ='DF raw data'!B135 -> -1.5932459e-06 | D130: ='DF raw data'!C135 -> -4.2383144e-06 | F130: 3.187676415e-08 | G130: -1.599262504e-06 | H130: -4.244756638e-06 | J130: 4.951266936e-05 | K130: 0.003903536475 | L130: 9.509411016e-07 | M130: 0.0004945850922 | N130: 2.911556426e-07
A131: 63.03275 | B131: ='DF raw data'!A136 -> 1.2399283e-06 | C131: ='DF raw data'!B136 -> -4.7145077e-06 | D131: ='DF raw data'!C136 -> 3.5922312e-06 | F131: 1.241812991e-06 | G131: -4.732311182e-06 | H131: 3.597691391e-06 | J131: 5.013401049e-05 | K131: 0.003928621027 | L131: -1.416870799e-06 | M131: 0.0004938761609 | N131: 2.924142362e-07
A132: 63.5331 | B132: ='DF raw data'!A137 -> 2.1901103e-06 | C132: ='DF raw data'!B137 -> -1.230991e-06 | D132: ='DF raw data'!C137 -> 5.6380413e-06 | F132: 2.193439268e-06 | G132: -1.235639614e-06 | H132: 5.646611123e-06 | J132: 5.123149782e-05 | K132: 0.003954254707 | L132: -2.035123079e-06 | M132: 0.000492857887 | N132: 2.937295604e-07
A133: 64.03345 | B133: ='DF raw data'!A138 -> -4.547731e-07 | C133: ='DF raw data'!B138 -> 7.5578564e-06 | D133: ='DF raw data'!C138 -> 7.5222524e-06 | F133: -4.554643551e-07 | G133: 7.586397272e-06 | H133: 7.533686224e-06 | J133: 5.100360623e-05 | K133: 0.003979774361 | L133: 1.760730796e-06 | M133: 0.0004937388687 | N133: 2.95032706e-07
A134: 64.5338 | B134: ='DF raw data'!A139 -> -1.6644739e-06 | C134: ='DF raw data'!B139 -> 4.8060547e-06 | D134: ='DF raw data'!C139 -> 7.1121503e-06 | F134: -1.6670039e-06 | G134: 4.824203893e-06 | H134: 7.122960768e-06 | J134: 5.016952083e-05 | K134: 0.004004876681 | L134: 4.174521214e-06 | M134: 0.0004958275904 | N134: 2.963007967e-07
A135: 65.03415 | B135: ='DF raw data'!A140 -> -2.3074065e-06 | C135: ='DF raw data'!B140 -> 3.5428995e-06 | D135: ='DF raw data'!C140 -> 5.0685376e-06 | F135: -2.310913758e-06 | G135: =(1-$G$1*($B$2-$G$2))*C135*$M$2/$M$1 -> 3.556278617e-06 | H135: 5.076241777e-06 | J135: 4.901325513e-05 | K135: 0.004029400463 | L135: 5.95390522e-06 | M135: 0.0004988066268 | N135: 2.97520524e-07
A136: =A135+$B$1 -> 65.5345 | B136: ='DF raw data'!A141 -> -6.9963539e-06 | C136: ='DF raw data'!B141 -> 5.870003e-06 | D136: ='DF raw data'!C141 -> 1.9417676e-06 | F136: -7.006988358e-06 | G136: 5.892170001e-06 | H136: 1.944719087e-06 | J136: =F136*$B$1+J135 -> 4.550730851e-05 | K136: =J136*$B$1+K135 -> 0.004052170045 | L136: =G136*$B$1+L135 -> 8.902052479e-06 | M136: =L136*$B$1+M135 -> 0.0005032607688 | N136: =(J136^2+L136^2)*$B$1+N135 -> 2.985963574e-07
A137: 66.03485 | B137: ='DF raw data'!A142 -> -1.1443142e-05 | C137: ='DF raw data'!B142 -> -3.620672e-06 | D137: ='DF raw data'!C142 -> 3.379002e-06 | F137: -1.146053558e-05 | G137: -3.63434481e-06 | H137: 3.384138083e-06 | J137: 3.977302953e-05 | K137: 0.00407207048 | L137: 7.083608053e-06 | M137: 0.0005068050521 | N137: 2.994129643e-07
A138: 66.5352 | B138: ='DF raw data'!A143 -> -8.5512838e-06 | C138: ='DF raw data'!B143 -> -2.3068146e-06 | D138: ='DF raw data'!C143 -> 2.3192588e-06 | F138: -8.564281751e-06 | G138: -2.315525866e-06 | H138: 2.322784073e-06 | J138: 3.548789116e-05 | K138: 0.004089826847 | L138: 5.925034686e-06 | M138: 0.0005097696432 | N138: 3.000606656e-07
A139: 67.03555 | B139: ='DF raw data'!A144 -> -5.1978536e-06 | C139: ='DF raw data'!B144 -> -2.7424539e-06 | D139: ='DF raw data'!C144 -> -1.2007877e-07 | F139: =(1-$G$1*($B$2-$G$2))*B139 -> -5.205754337e-06 | G139: -2.752810279e-06 | H139: =(1-$G$1*($B$2-$G$2))*D139 -> -1.202612897e-07 | J139: 3.288319198e-05 | K139: 0.004106279952 | L139: 4.547666063e-06 | M139: 0.0005120450679 | N139: 3.006120441e-07
A140: 67.5359 | B140: ='DF raw data'!A145 -> -4.1541612e-06 | C140: ='DF raw data'!B145 -> -1.7973895e-06 | D140: ='DF raw data'!C145 -> -9.4515781e-07 | F140: -4.160475525e-06 | G140: -1.804177015e-06 | H140: -9.465944499e-07 | J140: 3.080149805e-05 | K140: 0.004121691481 | L140: 3.644946093e-06 | M140: 0.0005138688167 | N140: 3.010933898e-07
A141: 68.03625 | B141: ='DF raw data'!A146 -> 1.0525579e-06 | C141: ='DF raw data'!B146 -> 2.9910448e-06 | D141: ='DF raw data'!C146 -> -5.1488678e-07 | F141: 1.054157788e-06 | G141: 3.002339938e-06 | H141: -5.156694079e-07 | J141: 3.13289459e-05 | K141: 0.004137366919 | L141: 5.147166881e-06 | M141: 0.0005164442016 | N141: 3.015977407e-07
A142: 68.5366 | B142: ='DF raw data'!A147 -> 3.1086417e-06 | C142: ='DF raw data'!B147 -> 6.1537412e-07 | D142: ='DF raw data'!C147 -> 2.5825466e-06 | F142: 3.113366835e-06 | G142: 6.176979686e-07 | H142: 2.586472071e-06 | J142: 3.288671899e-05 | K142: 0.004153821789 | L142: 5.45623206e-06 | M142: 0.0005191742273 | N142: 3.02153783e-07
A143: 69.03695 | B143: ='DF raw data'!A148 -> -1.4353976e-06 | C143: ='DF raw data'!B148 -> -4.9299924e-06 | D143: ='DF raw data'!C148 -> 3.6720339e-06 | F143: -1.437579404e-06 | G143: -4.948609621e-06 | H143: 3.677615392e-06 | J143: 3.216742614e-05 | K143: 0.004169916761 | L143: 2.980195236e-06 | M143: 0.000520665368 | N143: 3.026759607e-07
A144: 69.5373 | B144: ='DF raw data'!A149 -> -3.0873746e-06 | C144: ='DF raw data'!B149 -> -1.268051e-05 | D144: ='DF raw data'!C149 -> -2.3968278e-06 | F144: -3.092067409e-06 | G144: -1.272839564e-05 | H144: -2.400470978e-06 | J144: 3.062031021e-05 | K144: 0.004185237633 | L144: -3.388457524e-06 | M144: 0.0005189699533 | N144: 3.031508354e-07
A145: 70.03765 | B145: ='DF raw data'!A150 -> 1.8428724e-06 | C145: ='DF raw data'!B150 -> -1.5944006e-05 | D145: ='DF raw data'!C150 -> -4.7046597e-06 | F145: 1.845673566e-06 | G145: -1.600421564e-05 | H145: -4.711810783e-06 | J145: 3.154379298e-05 | K145: 0.00420102057 | L145: -1.139616682e-05 | M145: 0.0005132678812 | N145: 3.037136708e-07
A146: 70.538 | B146: ='DF raw data'!A151 -> 4.3993819e-06 | C146: ='DF raw data'!B151 -> -9.5583136e-06 | D146: ='DF raw data'!C151 -> 1.5013102e-06 | F146: 4.40606896e-06 | G146: -9.594408836e-06 | H146: 1.503592192e-06 | J146: 3.374836958e-05 | K146: 0.004217906567 | L146: -1.619672928e-05 | M146: 0.0005051638477 | N146: 3.044148045e-07
A147: 71.03835 | B147: ='DF raw data'!A152 -> -4.2459142e-08 | C147: ='DF raw data'!B152 -> 4.0742066e-06 | D147: ='DF raw data'!C152 -> 5.5187156e-06 | F147: -4.25236799e-08 | G147: 4.089592101e-06 | H147: 5.527104048e-06 | J147: 3.372709286e-05 | K147: 0.004234781917 | L147: -1.415050187e-05 | M147: 0.0004980836441 | N147: 3.050841495e-07
A148: 71.5387 | B148: ='DF raw data'!A153 -> 1.3382277e-07 | C148: ='DF raw data'!B153 -> 1.3576295e-06 | D148: ='DF raw data'!C153 -> -8.4904241e-07 | F148: 1.340261806e-07 | G148: 1.362756341e-06 | H148: -8.503329545e-07 | J148: 3.379415286e-05 | K148: 0.004251690822 | L148: -1.346864674e-05 | M148: 0.0004913446067 | N148: 3.057463373e-07
A149: 72.03905 | B149: ='DF raw data'!A154 -> 3.8806061e-06 | C149: ='DF raw data'!B154 -> -1.0750352e-05 | D149: ='DF raw data'!C154 -> 4.6193963e-07 | F149: 3.886504621e-06 | G149: -1.079094875e-05 | H149: 4.626417782e-07 | J149: 3.573876545e-05 | K149: 0.004269572713 | L149: -1.886789795e-05 | M149: 0.000481904054 | N149: 3.065635374e-07
A150: 72.5394 | B150: ='DF raw data'!A155 -> 3.7070602e-06 | C150: ='DF raw data'!B155 -> -5.5254782e-06 | D150: ='DF raw data'!C155 -> 3.2226562e-06 | F150: 3.712694932e-06 | G150: -5.546344165e-06 | H150: 3.227554637e-06 | J150: 3.759641236e-05 | K150: 0.004288384078 | L150: -2.164301125e-05 | M150: 0.0004710749733 | N150: 3.075051512e-07
A151: 73.03975 | B151: ='DF raw data'!A156 -> 1.2871784e-06 | C151: ='DF raw data'!B156 -> -7.3224021e-07 | D151: ='DF raw data'!C156 -> -1.5270307e-06 | F151: 1.289134911e-06 | G151: -7.350053822e-07 | H151: -1.529351787e-06 | J151: 3.824143101e-05 | K151: 0.004307518178 | L151: -2.201077119e-05 | M151: 0.0004600618839 | N151: 3.084792731e-07
A152: 73.5401 | B152: ='DF raw data'!A157 -> 2.7552932e-07 | C152: ='DF raw data'!B157 -> -6.5505988e-06 | D152: ='DF raw data'!C157 -> -8.1485014e-06 | F152: 2.759481246e-07 | G152: -6.575335947e-06 | H152: -8.160887122e-06 | J152: 3.837950165e-05 | K152: 0.004326721362 | L152: -2.530074053e-05 | M152: 0.0004474026584 | N152: 3.095365695e-07
A153: 74.04045 | B153: ='DF raw data'!A158 -> 3.2301939e-06 | C153: ='DF raw data'!B158 -> -2.1548408e-06 | D153: ='DF raw data'!C158 -> -7.4436939e-06 | F153: 3.235103795e-06 | G153: -2.162978165e-06 | H153: -7.455008315e-06 | J153: 3.999818584e-05 | K153: 0.004346734454 | L153: -2.638298666e-05 | M153: 0.000434201931 | N153: 3.106853315e-07
A154: 74.5408 | B154: ='DF raw data'!A159 -> 5.7385073e-06 | C154: ='DF raw data'!B159 -> 7.5507239e-07 | D154: ='DF raw data'!C159 -> -8.2596489e-06 | F154: 5.747229831e-06 | G154: 7.579237838e-07 | H154: -8.272203566e-06 | J154: 4.287381228e-05 | K154: 0.004368186366 | L154: -2.600375949e-05 | M154: 0.00042119095 | N154: 3.119433912e-07
A155: 75.04115 | B155: ='DF raw data'!A160 -> 1.6527662e-06 | C155: ='DF raw data'!B160 -> -1.3797428e-05 | D155: ='DF raw data'!C160 -> -5.4514639e-06 | F155: 1.655278405e-06 | G155: -1.384953148e-05 | H155: -5.459750125e-06 | J155: 4.370203083e-05 | K155: 0.004390052677 | L155: -3.293337257e-05 | M155: 0.000404712737 | N155: 3.134416765e-07
A156: 75.5415 | B156: ='DF raw data'!A161 -> -1.5918598e-06 | C156: ='DF raw data'!B161 -> -1.1531969e-05 | D156: ='DF raw data'!C161 -> -2.724275e-06 | F156: -1.594279427e-06 | G156: -1.157551739e-05 | H156: -2.728415898e-06 | J156: 4.290433312e-05 | K156: 0.00441151986 | L156: -3.87251827e-05 | M156: 0.0003853365919 | N156: 3.151130565e-07
A157: 76.04185 | B157: ='DF raw data'!A162 -> 2.3774662e-06 | C157: ='DF raw data'!B162 -> 1.3006561e-06 | D157: ='DF raw data'!C162 -> -3.0991032e-06 | F157: 2.381079949e-06 | G157: 1.305567792e-06 | H157: -3.103813837e-06 | J157: 4.409570647e-05 | K157: 0.004433583147 | L157: -3.807194185e-05 | M157: 0.0003662872958 | N157: 3.168111964e-07
A158: 76.5422 | B158: ='DF raw data'!A163 -> 7.6853939e-06 | C158: ='DF raw data'!B163 -> -9.6877384e-06 | D158: ='DF raw data'!C163 -> -5.6308309e-06 | F158: 7.697075699e-06 | G158: -9.724322385e-06 | H158: -5.639389763e-06 | J158: 4.79469383e-05 | K158: 0.004457573398 | L158: -4.293750656e-05 | M158: 0.0003448035143 | N158: 3.188839154e-07
A159: 77.04255 | B159: ='DF raw data'!A164 -> 4.8142279e-06 | C159: ='DF raw data'!B164 -> -1.6894468e-06 | D159: ='DF raw data'!C164 -> -7.4164673e-06 | F159: 4.821545526e-06 | G159: -1.695826689e-06 | H159: -7.42774033e-06 | J159: 5.03593986e-05 | K159: 0.004482770723 | L159: -4.378601344e-05 | M159: 0.0003228951825 | N159: 3.211121161e-07
A160: 77.5429 | B160: ='DF raw data'!A165 -> -7.5201052e-07 | C160: ='DF raw data'!B165 -> 2.3799485e-06 | D160: ='DF raw data'!C165 -> 7.241506e-07 | F160: -7.53153576e-07 | G160: 2.388935943e-06 | H160: 7.252513089e-07 | J160: 4.998255821e-05 | K160: 0.004507779496 | L160: -4.259070934e-05 | M160: 0.0003015849211 | N160: 3.232697377e-07
A161: 78.04325 | B161: ='DF raw data'!A166 -> -1.2165805e-06 | C161: ='DF raw data'!B166 -> 4.7641475e-08 | D161: ='DF raw data'!C166 -> 7.2895273e-07 | F161: -1.218429702e-06 | G161: 4.782138438e-08 | H161: 7.300607381e-07 | J161: 4.937291691e-05 | K161: 0.004532483235 | L161: -4.256678191e-05 | M161: 0.0002802866318 | N161: 3.25396033e-07
A162: 78.5436 | B162: ='DF raw data'!A167 -> -4.7904146e-06 | C162: ='DF raw data'!B167 -> -2.2142158e-06 | D162: ='DF raw data'!C167 -> -5.7693942e-06 | F162: -4.79769603e-06 | G162: -2.222577384e-06 | H162: -5.778163679e-06 | J162: 4.69723897e-05 | K162: 0.00455598587 | L162: -4.367884851e-05 | M162: 0.0002584319199 | N162: 3.274545966e-07
A163: 79.04395 | B163: ='DF raw data'!A168 -> -1.2315762e-05 | C163: ='DF raw data'!B168 -> -7.8320336e-06 | D163: ='DF raw data'!C168 -> -4.0573468e-06 | F163: -1.233448196e-05 | G163: -7.861609853e-06 | H163: -4.063513967e-06 | J163: 4.080083165e-05 | K163: 0.004576400566 | L163: -4.7612405e-05 | M163: 0.0002346090531 | N163: 3.294217971e-07
A164: 79.5443 | B164: ='DF raw data'!A169 -> -1.3832436e-05 | C164: ='DF raw data'!B169 -> -2.5665972e-06 | D164: ='DF raw data'!C169 -> 1.4499892e-07 | F164: -1.38534613e-05 | G164: -2.576289488e-06 | H164: 1.452193184e-07 | J164: 3.386925229e-05 | K164: 0.004593347046 | L164: -4.890145144e-05 | M164: 0.0002101412119 | N164: 3.311922747e-07
A165: 80.04465 | B165: ='DF raw data'!A170 -> -1.2750093e-05 | C165: ='DF raw data'!B170 -> -1.3517428e-06 | D165: ='DF raw data'!C170 -> -2.4456203e-06 | F165: -1.276947314e-05 | G165: -1.356847411e-06 | H165: -2.449337643e-06 | J165: 2.74800464e-05 | K165: 0.004607096687 | L165: -4.958035004e-05 | M165: 0.0001853336837 | N165: 3.328000814e-07
A166: 80.545 | B166: ='DF raw data'!A171 -> -9.6891708e-06 | C166: ='DF raw data'!B171 -> -6.2965541e-06 | D166: ='DF raw data'!C171 -> -3.5760277e-06 | F166: -9.70389834e-06 | G166: -6.320331893e-06 | H166: -3.581463262e-06 | J166: 2.262470087e-05 | K166: 0.004618416957 | L166: -5.274272811e-05 | M166: 0.0001589438597 | N166: 3.344480704e-07
A167: 81.04535 | B167: ='DF raw data'!A172 -> -5.286242e-06 | C167: ='DF raw data'!B172 -> -1.5901576e-05 | D167: ='DF raw data'!C172 -> -8.390427e-06 | F167: -5.294277088e-06 | G167: -1.596162541e-05 | H167: -8.403180449e-06 | J167: 1.997570933e-05 | K167: 0.004628411803 | L167: -6.072912738e-05 | M167: 0.0001285580408 | N167: 3.364930288e-07
A168: 81.5457 | B168: ='DF raw data'!A173 -> -3.2292121e-06 | C168: ='DF raw data'!B173 -> -8.675026e-06 | D168: ='DF raw data'!C173 -> -3.7068203e-06 | F168: -3.234120502e-06 | G168: -8.707785661e-06 | H168: -3.712454667e-06 | J168: 1.835751714e-05 | K168: 0.004637596986 | L168: -6.508606794e-05 | M168: 9.599222672e-05 | N168: 3.387812268e-07
A169: 82.04605 | B169: ='DF raw data'!A174 -> 8.6793779e-07 | C169: ='DF raw data'!B174 -> -8.7869712e-06 | D169: ='DF raw data'!C174 -> -1.6849626e-06 | F169: 8.692570554e-07 | G169: -8.820153601e-06 | H169: -1.687523743e-06 | J169: 1.87924499e-05 | K169: 0.004646999789 | L169: -6.949923179e-05 | M169: 6.12182861e-05 | N169: 3.413746906e-07
A170: 82.5464 | B170: ='DF raw data'!A175 -> 4.7404642e-06 | C170: ='DF raw data'!B175 -> -4.2102865e-06 | D170: ='DF raw data'!C175 -> -3.8902726e-07 | F170: 4.747669706e-06 | G170: -4.226185883e-06 | H170: -3.896185814e-07 | J170: 2.116794644e-05 | K170: 0.004657591171 | L170: -7.16138039e-05 | M170: 2.538631932e-05 | N170: 3.441649519e-07
A171: 83.04675 | B171: ='DF raw data'!A176 -> 5.218189e-06 | C171: ='DF raw data'!B176 -> -1.0447267e-06 | D171: ='DF raw data'!C176 -> -5.1162897e-06 | F171: 5.226120647e-06 | G171: -1.048671921e-06 | H171: -5.12406646e-06 | J171: 2.378283591e-05 | K171: 0.004669490913 | L171: -7.213850689e-05 | M171: -1.070818261e-05 | N171: 3.47051765e-07
A172: 83.5471 | B172: ='DF raw data'!A177 -> 5.5339801e-06 | C172: ='DF raw data'!B177 -> 7.7142331e-06 | D172: ='DF raw data'!C177 -> -7.5291427e-06 | F172: 5.54239175e-06 | G172: 7.743364501e-06 | H172: -7.540586997e-06 | J172: 2.655597162e-05 | K172: 0.004682778193 | L172: -6.826411447e-05 | M172: -4.486413228e-05 | N172: 3.497362473e-07
A173: 84.04745 | B173: ='DF raw data'!A178 -> 7.4939485e-06 | C173: ='DF raw data'!B178 -> -6.4537915e-07 | D173: ='DF raw data'!C178 -> -6.7826732e-06 | F173: 7.505339302e-06 | G173: -6.478163072e-07 | H173: -6.792982863e-06 | J173: 3.031126814e-05 | K173: 0.004697944436 | L173: -6.858824936e-05 | M173: -7.918226285e-05 | N173: 3.525497758e-07
A174: 84.5478 | B174: ='DF raw data'!A179 -> 6.4789524e-06 | C174: ='DF raw data'!B179 -> -1.1917707e-05 | D174: ='DF raw data'!C179 -> -7.1638315e-06 | F174: 6.488800408e-06 | G174: -1.196271206e-05 | H174: -7.174720524e-06 | J174: 3.355793942e-05 | K174: 0.004714735151 | L174: -7.457379233e-05 | M174: -0.0001164952598 | N174: 3.558958093e-07
A175: 85.04815 | B175: ='DF raw data'!A180 -> 4.9073456e-06 | C175: ='DF raw data'!B180 -> -9.0295416e-06 | D175: ='DF raw data'!C180 -> -8.8465131e-06 | F175: 4.914804765e-06 | G175: -9.063640024e-06 | H175: -8.8599598e-06 | J175: 3.601706199e-05 | K175: 0.004732756288 | L175: -7.910878462e-05 | M175: -0.0001560773402 | N175: 3.59676168e-07
A176: 85.5485 | B176: ='DF raw data'!A181 -> 2.1244957e-06 | C176: ='DF raw data'!B181 -> -6.5040326e-06 | D176: ='DF raw data'!C181 -> -6.5645108e-06 | F176: 2.127724933e-06 | G176: -6.528593898e-06 | H176: -6.574488856e-06 | J176: 3.708166916e-05 | K176: 0.004751310101 | L176: -8.237536658e-05 | M176: -0.0001972938549 | N176: 3.637593999e-07
A177: 86.04885 | B177: ='DF raw data'!A182 -> -9.3569935e-07 | C177: ='DF raw data'!B182 -> -1.822607e-06 | D177: ='DF raw data'!C182 -> -1.1220702e-05 | F177: -9.37121613e-07 | G177: -1.829489744e-06 | H177: -1.123775747e-05 | J177: 3.661278036e-05 | K177: 0.004769629306 | L177: -8.329075177e-05 | M177: -0.0002389683825 | N177: 3.679012196e-07
A178: 86.5492 | B178: ='DF raw data'!A183 -> -1.9434194e-06 | C178: ='DF raw data'!B183 -> 2.7664869e-06 | D178: ='DF raw data'!C183 -> -1.4469475e-05 | F178: -1.946373397e-06 | G178: 2.776934035e-06 | H178: -1.44914686e-05 | J178: 3.563891243e-05 | K178: 0.004787461236 | L178: -8.190131282e-05 | M178: -0.0002799477044 | N178: 3.718929905e-07
A179: 87.04955 | B179: ='DF raw data'!A184 -> -3.0517951e-06 | C179: ='DF raw data'!B184 -> -6.7519409e-06 | D179: ='DF raw data'!C184 -> -2.5941663e-06 | F179: -3.056433829e-06 | G179: -6.777438379e-06 | H179: -2.598109433e-06 | J179: 3.410962576e-05 | K179: 0.004804527987 | L179: -8.529240412e-05 | M179: -0.0003226237588 | N179: 3.761150742e-07
A180: 87.5499 | B180: ='DF raw data'!A185 -> -2.5889569e-06 | C180: ='DF raw data'!B185 -> -9.6104841e-06 | D180: ='DF raw data'!C185 -> -1.7682287e-06 | F180: -2.592892114e-06 | G180: -9.646776348e-06 | H180: -1.770916408e-06 | J180: 3.281227219e-05 | K180: 0.004820945607 | L180: -9.011916866e-05 | M180: -0.0003677148849 | N180: 3.807173485e-07
A181: 88.05025 | B181: ='DF raw data'!A186 -> 1.3427813e-06 | C181: ='DF raw data'!B186 -> -1.6854512e-05 | D181: ='DF raw data'!C186 -> -5.5723904e-06 | F181: 1.344822328e-06 | G181: -1.691816e-05 | H181: -5.580860433e-06 | J181: 3.348515404e-05 | K181: 0.004837699904 | L181: -9.858417002e-05 | M181: -0.0004170414743 | N181: 3.861411895e-07
A182: 88.5506 | B182: ='DF raw data'!A187 -> 9.5456528e-07 | C182: ='DF raw data'!B187 -> 7.3412434e-07 | D182: ='DF raw data'!C187 -> -6.5243767e-06 | F182: 9.560162192e-07 | G182: 7.368966273e-07 | H182: -6.534293753e-06 | J182: 3.396349676e-05 | K182: 0.00485469354 | L182: -9.821546379e-05 | M182: -0.0004661835816 | N182: 3.915448677e-07
A183: 89.05095 | B183: ='DF raw data'!A188 -> -1.132223e-06 | C183: ='DF raw data'!B188 -> 7.5928128e-08 | D183: ='DF raw data'!C188 -> -2.5498957e-07 | F183: -1.133943979e-06 | G183: 7.621485679e-08 | H183: -2.553771541e-07 | J183: 3.339612789e-05 | K183: 0.004871403292 | L183: -9.817732969e-05 | M183: -0.0005153066085 | N183: 3.969256763e-07
A184: 89.5513 | B184: ='DF raw data'!A189 -> -2.9229088e-06 | C184: ='DF raw data'!B189 -> -8.6299895e-07 | D184: ='DF raw data'!C189 -> 4.3800428e-06 | F184: -2.927351621e-06 | G184: -8.662579088e-07 | H184: 4.386700465e-06 | J184: 3.193142751e-05 | K184: 0.004887380182 | L184: -9.861076184e-05 | M184: -0.0005646465032 | N184: 4.023012858e-07
A185: 90.05165 | B185: ='DF raw data'!A190 -> -5.0590866e-06 | C185: ='DF raw data'!B190 -> -4.2752654e-06 | D185: ='DF raw data'!C190 -> -2.3355351e-06 | F185: -5.066776412e-06 | G185: -4.291410164e-06 | H185: -2.339085113e-06 | J185: 2.939626593e-05 | K185: 0.004902088604 | L185: -0.0001007579689 | M185: -0.000615060753 | N185: 4.078132959e-07
A186: 90.552 | B186: ='DF raw data'!A191 -> -4.8046318e-06 | C186: ='DF raw data'!B191 -> -5.9089475e-06 | D186: ='DF raw data'!C191 -> -1.6903614e-06 | F186: -4.81193484e-06 | G186: -5.931261567e-06 | H186: -1.692930749e-06 | J186: 2.698861433e-05 | K186: 0.004915592357 | L186: -0.0001037256756 | M186: -0.0006669598948 | N186: 4.135610171e-07
A187: 91.05235 | B187: ='DF raw data'!A192 -> -1.891964e-06 | C187: ='DF raw data'!B192 -> 1.572714e-06 | D187: ='DF raw data'!C192 -> -8.7775661e-06 | F187: -1.894839785e-06 | G187: 1.578653069e-06 | H187: -8.790908e-06 | J187: 2.604053124e-05 | K187: 0.004928621737 | L187: -0.0001029357966 | M187: -0.0007184638206 | N187: 4.192019067e-07
A188: 91.5527 | B188: ='DF raw data'!A193 -> -2.1234412e-06 | C188: ='DF raw data'!B193 -> 4.10236e-06 | D188: ='DF raw data'!C193 -> -3.0863266e-06 | F188: -2.126668831e-06 | G188: 4.117851818e-06 | H188: -3.091017816e-06 | J188: 2.497645249e-05 | K188: 0.004941118705 | L188: -0.0001008754294 | M188: -0.0007689368417 | N188: 4.246055243e-07
A189: 92.05305 | B189: ='DF raw data'!A194 -> -1.2052445e-06 | C189: ='DF raw data'!B194 -> -2.3760631e-06 | D189: ='DF raw data'!C194 -> -1.2899654e-06 | F189: -1.207076472e-06 | G189: -2.385035871e-06 | H189: -1.291926147e-06 | J189: 2.437249178e-05 | K189: 0.004953313481 | L189: -0.0001020687821 | M189: -0.0008200069568 | N189: 4.301154058e-07
A190: 92.5534 | B190: ='DF raw data'!A195 -> 1.5771399e-06 | C190: ='DF raw data'!B195 -> -3.737287e-06 | D190: ='DF raw data'!C195 -> -8.0148311e-08 | F190: 1.579537153e-06 | G190: -3.751400186e-06 | H190: -8.027013643e-08 | J190: 2.51628132e-05 | K190: 0.004965903695 | L190: -0.0001039457952 | M190: -0.0008720162355 | N190: 4.358383568e-07
A191: 93.05375 | B191: ='DF raw data'!A196 -> -2.4203865e-07 | C191: ='DF raw data'!B196 -> -1.5329978e-07 | D191: ='DF raw data'!C196 -> 9.087471e-06 | F191: -2.424065487e-07 | G191: -1.538786888e-07 | H191: 9.101283956e-06 | J191: 2.504152508e-05 | K191: 0.004978433222 | L191: -0.0001040227884 | M191: -0.0009240640376 | N191: 4.415662728e-07
A192: 93.5541 | B192: ='DF raw data'!A197 -> -3.0591439e-06 | C192: ='DF raw data'!B197 -> -1.6985199e-06 | D192: ='DF raw data'!C197 -> 3.1529817e-06 | F192: -3.063793799e-06 | G192: -1.704934052e-06 | H192: 3.157774232e-06 | J192: 2.350855585e-05 | K192: 0.004990195728 | L192: -0.0001048758522 | M192: -0.0009765386703 | N192: 4.473461141e-07
A193: 94.05445 | B193: ='DF raw data'!A198 -> -4.9261257e-06 | C193: ='DF raw data'!B198 -> -1.6459495e-06 | D193: ='DF raw data'!C198 -> -9.2674709e-06 | F193: -4.933613411e-06 | G193: -1.652165129e-06 | H193: -9.281557456e-06 | J193: 2.104002238e-05 | K193: 0.005000723103 | L193: -0.000105702513 | M193: -0.001029426923 | N193: 4.531580315e-07
A194: 94.5548 | B194: ='DF raw data'!A199 -> -5.4722736e-06 | C194: ='DF raw data'!B199 -> 1.9947443e-06 | D194: ='DF raw data'!C199 -> 1.8552419e-06 | F194: -5.480591456e-06 | G194: 2.00227709e-06 | H194: 1.858061868e-06 | J194: 1.829780845e-05 | K194: 0.005009878411 | L194: -0.0001047006736 | M194: -0.001081813905 | N194: 4.588105059e-07
A195: 95.05515 | B195: ='DF raw data'!A200 -> -3.0912454e-06 | C195: ='DF raw data'!B200 -> -5.398382e-07 | D195: ='DF raw data'!C200 -> 3.3637516e-06 | F195: -3.095944093e-06 | G195: -5.418768009e-07 | H195: 3.368864502e-06 | J195: 1.674875282e-05 | K195: 0.00501825865 | L195: -0.0001049718017 | M195: -0.001134336546 | N195: 4.644642607e-07
A196: 95.5555 | B196: ='DF raw data'!A201 -> -1.3925422e-06 | C196: ='DF raw data'!B201 -> -5.8538426e-06 | D196: ='DF raw data'!C201 -> -1.1355001e-05 | F196: -1.394658864e-06 | G196: -5.875948574e-06 | H196: -1.13722606e-05 | J196: 1.605093526e-05 | K196: 0.005026289735 | L196: -0.0001079118326 | M196: -0.001188330231 | N196: 4.704197247e-07
A197: 96.05585 | B197: ='DF raw data'!A202 -> -2.0172413e-06 | C197: ='DF raw data'!B202 -> -5.6543686e-06 | D197: ='DF raw data'!C202 -> -1.1348089e-05 | F197: -2.020307507e-06 | G197: -5.675721296e-06 | H197: -1.13653381e-05 | J197: 1.50400744e-05 | K197: 0.005033815036 | L197: -0.0001107516797 | M197: -0.001243744834 | N197: 4.766701661e-07
A198: 96.5562 | B198: ='DF raw data'!A203 -> -1.2047061e-06 | C198: ='DF raw data'!B203 -> -1.4608665e-05 | D198: ='DF raw data'!C203 -> -7.5628159e-06 | F198: -1.206537253e-06 | G198: -1.466383197e-05 | H198: -7.57431138e-06 | J198: 1.443638348e-05 | K198: 0.005041038281 | L198: -0.000118088728 | M198: -0.001302830529 | N198: 4.837517982e-07
A199: 97.05655 | B199: ='DF raw data'!A204 -> 1.6996961e-06 | C199: ='DF raw data'!B204 -> -2.0417419e-05 | D199: ='DF raw data'!C204 -> -4.9164337e-06 | F199: 1.702279638e-06 | G199: =(1-$G$1*($B$2-$G$2))*C199*$M$2/$M$1 -> -2.049452168e-05 | H199: -4.923906679e-06 | J199: 1.52881191e-05 | K199: 0.005048687691 | L199: -0.000128343162 | M199: -0.00136704703 | N199: 4.921104921e-07
A200: =A199+$B$1 -> 97.5569 | B200: ='DF raw data'!A205 -> 3.2025016e-06 | C200: ='DF raw data'!B205 -> -1.0997459e-05 | D200: ='DF raw data'!C205 -> -8.0595164e-06 | F200: 3.207369402e-06 | G200: -1.103898891e-05 | H200: -8.071766865e-06 | J200: =F200*$B$1+J199 -> 1.689292638e-05 | K200: =J200*$B$1+K199 -> 0.005057140067 | L200: =G200*$B$1+L199 -> -0.0001338665201 | M200: =L200*$B$1+M199 -> -0.001434027143 | N200: =(J200^2+L200^2)*$B$1+N199 -> 5.012196722e-07
A201: 98.05725 | B201: ='DF raw data'!A206 -> -2.9506919e-09 | C201: ='DF raw data'!B206 -> 4.3159766e-06 | D201: ='DF raw data'!C206 -> -8.1807048e-06 | F201: -2.955176952e-09 | G201: 4.332275102e-06 | H201: -8.193139471e-06 | J201: 1.689144776e-05 | K201: 0.005065591703 | L201: -0.0001316988662 | M201: -0.001499922671 | N201: 5.100407988e-07
... 1002 more rows

Sheet 10 y=-0.1
A1: dz | B1: ='DF raw data'!E7 -> 0.5002 | C1: mm | F1: T_coeff | G1: -0.0008 | H1: /degC | L1: Hallref | M1: ='PI vs y'!B44 -> 0.50535 | N1: T | P1: IBy total | Q1: =L1203*1000 -> 4.975998451 | R1: muTm | X1: DF ref | Y1: 19
A2: Tref | B2: ='DF raw data'!E8 -> 21.91 | C2: degC | F2: Tcorr | G2: 20 | H2: degC | L2: NMRref | M2: ='PI vs y'!B45 -> 0.5064885 | N2: T | P2: JBy total | Q2: =M1203 -> 2.457116471 | R2: muTm^2
A3: Encoder | B3: ='DF raw data'!E9 -> 17889677 | P3: PI total | Q3: =N1203 -> 690.1293412 | R3: T^2mm^3
A5: z [mm] | B5: Bx | C5: By | D5: Bz | F5: Bx_corr | G5: By_corr | H5: Bz_corr | J5: Ix | K5: Jx | L5: Iy | M5: Jy | N5: PI
A6: ='PI vs y'!B53 -> 0.489 | B6: ='DF raw data'!D11 -> 2.9091455e-06 | C6: ='DF raw data'!E11 -> 1.2529057e-07 | D6: ='DF raw data'!F11 -> 1.1863951e-06 | F6: =(1-$G$1*($B$2-$G$2))*B6 -> 2.913590674e-06 | G6: =(1-$G$1*($B$2-$G$2))*C6*$M$2/$M$1 -> 1.257647117e-07 | H6: =(1-$G$1*($B$2-$G$2))*D6 -> 1.188207912e-06 | J6: =F6*$B$1 -> 1.457378055e-06 | K6: =J6*$B$1 -> 7.289805033e-07 | L6: =G6*$B$1 -> 6.290750878e-08 | M6: =L6*$B$1 -> 3.146633589e-08 | N6: =(J6^2+L6^2)*$B$1 -> 1.064379657e-12
A7: =A6+$B$1 -> 0.9892 | B7: ='DF raw data'!D12 -> 2.5374168e-06 | C7: ='DF raw data'!E12 -> 9.560059e-06 | D7: ='DF raw data'!F12 -> -2.5402339e-06 | F7: =(1-$G$1*($B$2-$G$2))*B7 -> 2.541293973e-06 | G7: =(1-$G$1*($B$2-$G$2))*C7*$M$2/$M$1 -> 9.59623748e-06 | H7: -2.544115377e-06 | J7: =F7*$B$1+J6 -> 2.728533301e-06 | K7: =J7*$B$1+K6 -> 2.09379286e-06 | L7: =G7*$B$1+L6 -> 4.862945496e-06 | M7: =L7*$B$1+M6 -> 2.463911673e-06 | N7: =(J7^2+L7^2)*$B$1+N6 -> 1.661716472e-11
A8: =A7+$B$1 -> 1.4894 | B8: ='DF raw data'!D13 -> 2.8327188e-06 | C8: ='DF raw data'!E13 -> 2.2382435e-06 | D8: ='DF raw data'!F13 -> 2.5425027e-06 | F8: 2.837047194e-06 | G8: 2.246713766e-06 | H8: 2.546387644e-06 | J8: =F8*$B$1+J7 -> 4.147624307e-06 | K8: =J8*$B$1+K7 -> 4.168434539e-06 | L8: =G8*$B$1+L7 -> 5.986751722e-06 | M8: =L8*$B$1+M7 -> 5.458484885e-06 | N8: =(J8^2+L8^2)*$B$1+N7 -> 4.31497653e-11
A9: 1.9896 | B9: ='DF raw data'!D14 -> 3.0416406e-06 | C9: ='DF raw data'!E14 -> -3.5794478e-06 | D9: ='DF raw data'!F14 -> 1.792235e-06 | F9: 3.046288227e-06 | G9: -3.592993635e-06 | H9: 1.794973535e-06 | J9: 5.671377678e-06 | K9: 7.005257653e-06 | L9: 4.189536306e-06 | M9: 7.554090945e-06 | N9: 6.801807827e-11
A10: 2.4898 | B10: ='DF raw data'!D15 -> 3.0094664e-06 | C10: ='DF raw data'!E15 -> -2.9436674e-06 | D10: ='DF raw data'!F15 -> -1.7124039e-07 | F10: 3.014064865e-06 | G10: -2.954807228e-06 | H10: -1.715020453e-07 | J10: 7.179012923e-06 | K10: 1.059619992e-05 | L10: 2.711541731e-06 | M10: 8.910404118e-06 | N10: 9.747519896e-11
A11: 2.99 | B11: ='DF raw data'!D16 -> 2.9178184e-06 | C11: ='DF raw data'!E16 -> -6.7487196e-07 | D11: ='DF raw data'!F16 -> -1.8187209e-06 | F11: 2.922276827e-06 | G11: -6.774259026e-07 | H11: -1.821499906e-06 | J11: 8.640735792e-06 | K11: 1.491829596e-05 | L11: 2.372693294e-06 | M11: 1.00972253e-05 | N11: 1.376372516e-10
A12: 3.4902 | B12: ='DF raw data'!D17 -> 2.7863273e-06 | C12: ='DF raw data'!E17 -> 3.7155492e-06 | D12: ='DF raw data'!F17 -> 3.2536984e-06 | F12: 2.790584808e-06 | G12: 3.729610088e-06 | H12: 3.258670051e-06 | J12: 1.003658631e-05 | K12: 1.993859643e-05 | L12: 4.23824426e-06 | M12: 1.221719508e-05 | N12: 1.970088804e-10
A13: 3.9904 | B13: ='DF raw data'!D18 -> 2.819171e-06 | C13: ='DF raw data'!E18 -> 2.2930822e-06 | D13: ='DF raw data'!F18 -> 4.879177e-07 | F13: 2.823478693e-06 | G13: 2.301759995e-06 | H13: 4.886632382e-07 | J13: 1.144889036e-05 | K13: 2.566533139e-05 | L13: 5.38958461e-06 | M13: 1.49130653e-05 | N13: 2.771032616e-10
A14: 4.4906 | B14: ='DF raw data'!D19 -> 3.0219519e-06 | C14: ='DF raw data'!E19 -> -3.569708e-06 | D14: ='DF raw data'!F19 -> -1.5300691e-06 | F14: 3.026569443e-06 | G14: -3.583216976e-06 | H14: -1.532407046e-06 | J14: 1.296278039e-05 | K14: 3.214931414e-05 | L14: 3.597259478e-06 | M14: 1.67124145e-05 | N14: 3.67626432e-10
A15: 4.9908 | B15: ='DF raw data'!D20 -> 3.0815565e-06 | C15: ='DF raw data'!E20 -> -3.8077419e-06 | D15: ='DF raw data'!F20 -> 6.4510887e-06 | F15: 3.086265118e-06 | G15: -3.822151676e-06 | H15: 6.460945964e-06 | J15: 1.45065302e-05 | K15: 3.940548055e-05 | L15: 1.68541921e-06 | M15: 1.755546118e-05 | N15: 4.743091163e-10
A16: 5.491 | B16: ='DF raw data'!D21 -> 2.9079376e-06 | C16: ='DF raw data'!E21 -> 2.3587284e-06 | D16: ='DF raw data'!F21 -> 1.4937606e-05 | F16: 2.912380929e-06 | G16: 2.367654622e-06 | H16: 1.496043066e-05 | J16: 1.596330314e-05 | K16: 4.739032478e-05 | L16: 2.869720051e-06 | M16: 1.899089515e-05 | N16: 6.058928989e-10
A17: 5.9912 | B17: ='DF raw data'!D22 -> 3.0062649e-06 | C17: ='DF raw data'!E22 -> -1.9465665e-06 | D17: ='DF raw data'!F22 -> 5.4254988e-06 | F17: 3.010858473e-06 | G17: -1.953932963e-06 | H17: 5.433788962e-06 | J17: 1.746933455e-05 | K17: 5.612848592e-05 | L17: 1.892362784e-06 | M17: 1.993745502e-05 | N17: 7.60333994e-10
A18: 6.4914 | B18: ='DF raw data'!D23 -> 2.9028008e-06 | C18: ='DF raw data'!E23 -> -8.1654953e-08 | D18: ='DF raw data'!F23 -> -1.4481411e-07 | F18: 2.90723628e-06 | G18: -8.196396282e-08 | H18: -1.45035386e-07 | J18: 1.892353414e-05 | K18: 6.55940377e-05 | L18: 1.851364409e-06 | M18: 2.08635075e-05 | N18: 9.411701467e-10
A19: 6.9916 | B19: ='DF raw data'!D24 -> 3.0220247e-06 | C19: ='DF raw data'!E24 -> -3.9949405e-06 | D19: ='DF raw data'!F24 -> -4.1220128e-06 | F19: 3.026642354e-06 | G19: -4.010058699e-06 | H19: -4.128311236e-06 | J19: 2.043746064e-05 | K19: 7.581685551e-05 | L19: -1.544669518e-07 | M19: 2.078624313e-05 | N19: 1.150110518e-09
A20: 7.4918 | B20: ='DF raw data'!D25 -> 2.9997893e-06 | C20: ='DF raw data'!E25 -> -2.963548e-06 | D20: ='DF raw data'!F25 -> -1.8135258e-06 | F20: 3.004372978e-06 | G20: -2.974763063e-06 | H20: -1.816296867e-06 | J20: 2.194024801e-05 | K20: 8.679136757e-05 | L20: -1.642443436e-06 | M20: 1.996469292e-05 | N20: 1.392243384e-09
A21: 7.992 | B21: ='DF raw data'!D26 -> 3.208653e-06 | C21: ='DF raw data'!E26 -> -6.4885603e-06 | D21: ='DF raw data'!F26 -> 1.0855837e-05 | F21: 3.213555822e-06 | G21: -6.513115195e-06 | H21: 1.087242472e-05 | J21: 2.354766863e-05 | K21: 9.856991142e-05 | L21: -4.900303656e-06 | M21: 1.751356103e-05 | N21: 1.681611922e-09
A22: 8.4922 | B22: ='DF raw data'!D27 -> -2.569148e-07 | C22: ='DF raw data'!E27 -> 5.5601799e-06 | D22: ='DF raw data'!F27 -> 9.1047323e-06 | F22: -2.573073658e-07 | G22: 5.581221491e-06 | H22: 9.118644331e-06 | J22: 2.341896349e-05 | K22: 0.000110284077 | L22: -2.108576666e-06 | M22: 1.645885098e-05 | N22: 1.958169474e-09
A23: 8.9924 | B23: ='DF raw data'!D28 -> -5.40563e-06 | C23: ='DF raw data'!E28 -> -5.804613e-06 | D23: ='DF raw data'!F28 -> 1.5255428e-07 | F23: =(1-$G$1*($B$2-$G$2))*B23 -> -5.413889803e-06 | G23: -5.826579609e-06 | H23: 1.527873829e-07 | J23: 2.071093581e-05 | K23: 0.000120643687 | L23: -5.023031787e-06 | M23: 1.394633048e-05 | N23: 2.185347164e-09
A24: 9.4926 | B24: ='DF raw data'!D29 -> -7.0577526e-06 | C24: ='DF raw data'!E29 -> 1.5986312e-05 | D24: ='DF raw data'!F29 -> -5.3992635e-06 | F24: -7.068536846e-06 | G24: 1.604680958e-05 | H24: -5.407513575e-06 | J24: 1.717525368e-05 | K24: 0.0001292347489 | L24: 3.003582367e-06 | M24: 1.544872238e-05 | N24: 2.337413389e-09
A25: 9.9928 | B25: ='DF raw data'!D30 -> -4.973569e-06 | C25: ='DF raw data'!E30 -> 4.7682893e-06 | D25: ='DF raw data'!F30 -> -3.4209449e-06 | F25: -4.981168613e-06 | G25: 4.786334111e-06 | H25: -3.426172104e-06 | J25: 1.468367314e-05 | K25: 0.0001365795222 | L25: 5.397706689e-06 | M25: 1.814865527e-05 | N25: 2.459835085e-09
A26: 10.493 | B26: ='DF raw data'!D31 -> -5.0263044e-08 | C26: ='DF raw data'!E31 -> 5.7916759e-06 | D26: ='DF raw data'!F31 -> -4.73817e-06 | F26: -5.033984593e-08 | G26: 5.81359355e-06 | H26: -4.745409924e-06 | J26: 1.465849314e-05 | K26: 0.0001439117005 | L26: 8.305666183e-06 | M26: 2.230314949e-05 | N26: 2.601819613e-09
A27: 10.9932 | B27: ='DF raw data'!D32 -> 1.4750397e-06 | C27: ='DF raw data'!E32 -> 1.1921987e-05 | D27: ='DF raw data'!F32 -> 6.048379e-06 | F27: 1.477293561e-06 | G27: 1.196710381e-05 | H27: 6.057620923e-06 | J27: 1.539743538e-05 | K27: 0.0001516134977 | L27: 1.429161151e-05 | M27: 2.945181357e-05 | N27: 2.822573467e-09
A28: 11.4934 | B28: ='DF raw data'!D33 -> -3.4751145e-06 | C28: ='DF raw data'!E33 -> 9.7842167e-06 | D28: ='DF raw data'!F33 -> 9.3573099e-06 | F28: -3.480424475e-06 | G28: 9.821243468e-06 | H28: 9.37160787e-06 | J28: 1.365652706e-05 | K28: 0.0001584444925 | L28: 1.920419749e-05 | M28: 3.905775316e-05 | N28: 3.100335493e-09
A29: 11.9936 | B29: ='DF raw data'!D34 -> -7.060692e-06 | C29: ='DF raw data'!E34 -> -3.6418919e-06 | D29: ='DF raw data'!F34 -> -3.9936358e-06 | F29: -7.071480737e-06 | G29: -3.655674044e-06 | H29: -3.999738076e-06 | J29: 1.01193724e-05 | K29: 0.0001635062026 | L29: 1.737562933e-05 | M29: 4.774904295e-05 | N29: 3.302573452e-09
A30: 12.4938 | B30: ='DF raw data'!D35 -> 5.83379e-08 | C30: ='DF raw data'!E35 -> 6.1897111e-07 | D30: ='DF raw data'!F35 -> -1.6112863e-05 | F30: 5.842704031e-08 | G30: 6.213135049e-07 | H30: -1.613748345e-05 | J30: 1.01485976e-05 | K30: 0.0001685825311 | L30: 1.768641035e-05 | M30: 5.659578541e-05 | N30: 3.510558185e-09
A31: 12.994 | B31: ='DF raw data'!D36 -> 4.1346057e-06 | C31: ='DF raw data'!E36 -> -2.818379e-06 | D31: ='DF raw data'!F36 -> -1.8893821e-05 | F31: 4.140923378e-06 | G31: -2.829044694e-06 | H31: -1.892269076e-05 | J31: 1.221988747e-05 | K31: 0.0001746949188 | L31: 1.627132219e-05 | M31: 6.473470077e-05 | N31: 3.717681789e-09
A32: 13.4942 | B32: ='DF raw data'!D37 -> 1.3343954e-06 | C32: ='DF raw data'!E37 -> 5.8254332e-06 | D32: ='DF raw data'!F37 -> -9.1822521e-06 | F32: 1.336434356e-06 | G32: 5.847478599e-06 | H32: -9.196282581e-06 | J32: 1.288837194e-05 | K32: 0.0001811416825 | L32: 1.919623099e-05 | M32: 7.433665551e-05 | N32: 3.985091418e-09
A33: 13.9944 | B33: ='DF raw data'!D38 -> 1.8394778e-06 | C33: ='DF raw data'!E38 -> 4.1836115e-06 | D33: ='DF raw data'!F38 -> 9.6603549e-07 | F33: 1.842288522e-06 | G33: 4.199443694e-06 | H33: 9.675115922e-07 | J33: 1.380988466e-05 | K33: 0.0001880493868 | L33: 2.129679272e-05 | M33: 8.498931123e-05 | N33: 4.307353419e-09
A34: 14.4946 | B34: ='DF raw data'!D39 -> 3.9424913e-06 | C34: ='DF raw data'!E39 -> -8.8410152e-06 | D34: ='DF raw data'!F39 -> -2.8722068e-06 | F34: 3.948515427e-06 | G34: -8.874472576e-06 | H34: -2.876595532e-06 | J34: 1.578493208e-05 | K34: 0.0001959450098 | L34: 1.685778154e-05 | M34: 9.342157356e-05 | N34: 4.574134528e-09
A35: 14.9948 | B35: ='DF raw data'!D40 -> 3.8733406e-06 | C35: ='DF raw data'!E40 -> -1.9475001e-06 | D35: ='DF raw data'!F40 -> 8.8787847e-06 | F35: 3.879259064e-06 | G35: -1.954870096e-06 | H35: 8.892351483e-06 | J35: 1.772533746e-05 | K35: 0.0002048112236 | L35: 1.587995552e-05 | M35: 0.0001013647273 | N35: 4.857428088e-09
A36: 15.495 | B36: ='DF raw data'!D41 -> 2.338172e-06 | C36: ='DF raw data'!E41 -> -1.7968611e-06 | D36: ='DF raw data'!F41 -> 1.2956348e-05 | F36: 2.341744727e-06 | G36: -1.803661027e-06 | H36: 1.29761453e-05 | J36: 1.889667817e-05 | K36: 0.000214263342 | L36: 1.497776427e-05 | M36: 0.000108856605 | N36: 5.148253306e-09
A37: 15.9952 | B37: ='DF raw data'!D42 -> -1.3476601e-07 | C37: ='DF raw data'!E42 -> 6.5325971e-06 | D37: ='DF raw data'!F42 -> 5.3741887e-06 | F37: -1.349719325e-07 | G37: 6.557318645e-06 | H37: 5.38240046e-06 | J37: 1.882916521e-05 | K37: 0.0002236816905 | L37: 1.825773506e-05 | M37: 0.0001179891241 | N37: 5.492332058e-09
A38: 16.4954 | B38: ='DF raw data'!D43 -> 2.6840934e-07 | C38: ='DF raw data'!E43 -> -8.39737e-06 | D38: ='DF raw data'!F43 -> 2.3988753e-06 | F38: 2.688194695e-07 | G38: -8.429148473e-06 | H38: 2.402540781e-06 | J38: 1.896362871e-05 | K38: 0.0002331672975 | L38: 1.404147499e-05 | M38: 0.0001250126699 | N38: 5.770834532e-09
A39: 16.9956 | B39: ='DF raw data'!D44 -> -1.8476639e-07 | C39: ='DF raw data'!E44 -> 2.4968253e-06 | D39: ='DF raw data'!F44 -> 9.3149783e-06 | F39: -1.85048713e-07 | G39: 2.506274127e-06 | H39: 9.329211587e-06 | J39: 1.887106734e-05 | K39: 0.0002426066054 | L39: 1.529511331e-05 | M39: 0.0001326632855 | N39: 6.06598138e-09
A40: 17.4958 | B40: ='DF raw data'!D45 -> -8.7214067e-07 | C40: ='DF raw data'!E45 -> 5.7373709e-06 | D40: ='DF raw data'!F45 -> 1.4243916e-05 | F40: -8.734733009e-07 | G40: 5.759083042e-06 | H40: 1.42656807e-05 | J40: 1.8434156e-05 | K40: 0.0002518273703 | L40: 1.817580665e-05 | M40: 0.000141754824 | N40: 6.401204443e-09
A41: 17.996 | B41: ='DF raw data'!D46 -> 1.1695302e-07 | C41: ='DF raw data'!E46 -> 3.8907632e-07 | D41: ='DF raw data'!F46 -> 6.4447731e-06 | F41: 1.171317242e-07 | G41: 3.905487157e-07 | H41: 6.454620713e-06 | J41: 1.849274529e-05 | K41: 0.0002610774414 | L41: 1.837115912e-05 | M41: 0.0001509440778 | N41: 6.741080897e-09
A42: 18.4962 | B42: ='DF raw data'!D47 -> -2.6336645e-06 | C42: ='DF raw data'!E47 -> 6.1111004e-06 | D42: ='DF raw data'!F47 -> 5.355213e-06 | F42: -2.637688739e-06 | G42: 6.13422686e-06 | H42: 5.363395765e-06 | J42: 1.717337338e-05 | K42: 0.0002696675628 | L42: 2.143949939e-05 | M42: 0.0001616681154 | N42: 7.118520256e-09
A43: 18.9964 | B43: ='DF raw data'!D48 -> -4.1625617e-06 | C43: ='DF raw data'!E48 -> -5.3397304e-07 | D43: ='DF raw data'!F48 -> 8.217633e-06 | F43: -4.168922094e-06 | G43: -5.359937736e-07 | H43: 8.230189543e-06 | J43: 1.508807855e-05 | K43: 0.0002772146197 | L43: 2.117139531e-05 | M43: 0.0001722580474 | N43: 7.456594479e-09
A44: 19.4966 | B44: ='DF raw data'!D49 -> -6.1021719e-06 | C44: ='DF raw data'!E49 -> -3.370234e-06 | D44: ='DF raw data'!F49 -> -2.5458219e-06 | F44: -6.111496019e-06 | G44: -3.382988099e-06 | H44: -2.549711916e-06 | J44: 1.203110824e-05 | K44: 0.00028323258 | L44: 1.947922466e-05 | M44: 0.0001820015555 | N44: 7.718793196e-09
A45: 19.9968 | B45: ='DF raw data'!D50 -> -8.059259e-06 | C45: ='DF raw data'!E50 -> 1.0718874e-05 | D45: ='DF raw data'!F50 -> -5.4912454e-07 | F45: -8.071573548e-06 | G45: 1.075943783e-05 | H45: -5.499636023e-07 | J45: 7.99370715e-06 | K45: 0.0002872310324 | L45: 2.486109546e-05 | M45: 0.0001944370755 | N45: 8.059916301e-09
A46: 20.497 | B46: ='DF raw data'!D51 -> -1.8587023e-06 | C46: ='DF raw data'!E51 -> -8.7821496e-07 | D46: ='DF raw data'!F51 -> 4.3129758e-06 | F46: -1.861542397e-06 | G46: -8.815384209e-07 | H46: 4.319566027e-06 | J46: 7.062563643e-06 | K46: 0.0002907637267 | L46: 2.442014994e-05 | M46: 0.0002066520345 | N46: 8.38315731e-09
A47: 20.9972 | B47: ='DF raw data'!D52 -> 4.4844337e-06 | C47: ='DF raw data'!E52 -> 6.1668729e-06 | D47: ='DF raw data'!F52 -> 5.0925946e-06 | F47: 4.491285915e-06 | G47: 6.190210422e-06 | H47: 5.100376085e-06 | J47: 9.309104858e-06 | K47: 0.0002954201409 | L47: 2.75164932e-05 | M47: 0.0002204157844 | N47: 8.805234489e-09
A48: 21.4974 | B48: ='DF raw data'!D53 -> 6.9639782e-06 | C48: ='DF raw data'!E53 -> 7.1324857e-06 | D48: ='DF raw data'!F53 -> 5.6272902e-06 | F48: 6.974619159e-06 | G48: 7.159477426e-06 | H48: 5.635888699e-06 | J48: 1.279780936e-05 | K48: 0.0003018216052 | L48: 3.10976638e-05 | M48: 0.0002359708358 | N48: 9.370884968e-09
A49: 21.9976 | B49: ='DF raw data'!D54 -> 7.4541886e-06 | C49: ='DF raw data'!E54 -> -5.1937836e-06 | D49: ='DF raw data'!F54 -> 9.1692264e-06 | F49: 7.4655786e-06 | G49: -5.213438625e-06 | H49: 9.183236978e-06 | J49: 1.653209178e-05 | K49: 0.0003100909575 | L49: 2.84899018e-05 | M49: 0.0002502214847 | N49: 9.913594246e-09
A50: 22.4978 | B50: ='DF raw data'!D55 -> 3.4434045e-06 | C50: ='DF raw data'!E55 -> 7.6146912e-06 | D50: ='DF raw data'!F55 -> 3.8913631e-06 | F50: 3.448666022e-06 | G50: 7.643507754e-06 | H50: 3.897309103e-06 | J50: 1.825711452e-05 | K50: 0.0003192231662 | L50: 3.231318438e-05 | M50: 0.0002663845395 | N50: 1.06026018e-08
A51: 22.998 | B51: ='DF raw data'!D56 -> -1.7495047e-06 | C51: ='DF raw data'!E56 -> 2.886058e-07 | D51: ='DF raw data'!F56 -> -5.4712082e-06 | F51: -1.752177943e-06 | G51: 2.896979815e-07 | H51: -5.479568206e-06 | J51: 1.738067511e-05 | K51: 0.0003279169799 | L51: 3.245809131e-05 | M51: 0.0002826200768 | N51: 1.12806807e-08
A52: 23.4982 | B52: ='DF raw data'!D57 -> -6.4209607e-06 | C52: ='DF raw data'!E57 -> -5.8146202e-06 | D52: ='DF raw data'!F57 -> 1.1071309e-06 | F52: -6.430771928e-06 | G52: -5.836624679e-06 | H52: 1.108822596e-06 | J52: 1.4164003e-05 | K52: 0.0003350018142 | L52: 2.953861165e-05 | M52: 0.0002973952903 | N52: 1.181746961e-08
A53: 23.9984 | B53: ='DF raw data'!D58 -> -8.4574867e-06 | C53: ='DF raw data'!E58 -> -2.4430487e-06 | D53: ='DF raw data'!F58 -> 5.4709444e-06 | F53: -8.47040974e-06 | G53: -2.452294018e-06 | H53: 5.479304003e-06 | J53: 9.927104044e-06 | K53: 0.0003399673516 | L53: 2.831197418e-05 | M53: 0.0003115569398 | N53: 1.226770727e-08
A54: 24.4986 | B54: ='DF raw data'!D59 -> -6.0631874e-06 | C54: ='DF raw data'!E59 -> 2.962086e-06 | D54: ='DF raw data'!F59 -> -3.4301121e-07 | F54: -6.07245195e-06 | G54: 2.97329553e-06 | H54: -3.435353311e-07 | J54: 6.889663578e-06 | K54: 0.0003434135613 | L54: 2.97992166e-05 | M54: 0.000326462508 | N54: 1.273562475e-08
A55: 24.9988 | B55: ='DF raw data'!D60 -> -3.2320102e-06 | C55: ='DF raw data'!E60 -> 6.2528002e-06 | D55: ='DF raw data'!F60 -> -2.77922e-06 | F55: -3.236948712e-06 | G55: 6.2764629e-06 | H55: -2.783466648e-06 | J55: 5.270541833e-06 | K55: 0.0003460498864 | L55: 3.293870335e-05 | M55: 0.0003429384474 | N55: 1.329221569e-08
A56: 25.499 | B56: ='DF raw data'!D61 -> -3.4251141e-06 | C56: ='DF raw data'!E61 -> -2.2884064e-06 | D56: ='DF raw data'!F61 -> -6.4829584e-07 | F56: -3.430347674e-06 | G56: -2.2970665e-06 | H56: -6.49286436e-07 | J56: 3.554681926e-06 | K56: 0.0003478279383 | L56: 3.178971068e-05 | M56: 0.0003588396607 | N56: 1.380403107e-08
A57: 25.9992 | B57: ='DF raw data'!D62 -> -3.8384323e-06 | C57: ='DF raw data'!E62 -> 7.9154361e-06 | D57: ='DF raw data'!F62 -> -5.7860672e-07 | F57: -3.844297425e-06 | G57: 7.945390773e-06 | H57: -5.794908311e-07 | J57: 1.631764354e-06 | K57: 0.0003486441468 | L57: 3.576399515e-05 | M57: 0.000376728811 | N57: 1.444515042e-08
A58: 26.4994 | B58: ='DF raw data'!D63 -> -2.7156937e-06 | C58: ='DF raw data'!E63 -> 1.1689423e-05 | D58: ='DF raw data'!F63 -> -2.435271e-06 | F58: -2.71984328e-06 | G58: 1.173365971e-05 | H58: -2.438992094e-06 | J58: 2.712987456e-07 | K58: 0.0003487798504 | L58: 4.163317174e-05 | M58: 0.0003975537235 | N58: 1.531219439e-08
A59: 26.9996 | B59: ='DF raw data'!D64 -> -5.4422862e-06 | C59: ='DF raw data'!E64 -> -1.9603094e-06 | D59: ='DF raw data'!F64 -> 2.7234563e-07 | F59: -5.450602013e-06 | G59: -1.96772787e-06 | H59: 2.727617741e-07 | J59: -2.455092381e-06 | K59: 0.0003475518132 | L59: 4.064891425e-05 | M59: 0.0004178863105 | N59: 1.614170692e-08
A60: 27.4998 | B60: ='DF raw data'!D65 -> -6.2022891e-06 | C60: ='DF raw data'!E65 -> 1.0375166e-05 | D60: ='DF raw data'!F65 -> -4.036302e-06 | F60: -6.211766198e-06 | G60: 1.041442912e-05 | H60: -4.042469469e-06 | J60: -5.562217834e-06 | K60: 0.0003447695918 | L60: 4.58582117e-05 | M60: 0.0004408245879 | N60: 1.720909063e-08
A61: 28 | B61: ='DF raw data'!D66 -> -3.1503739e-06 | C61: ='DF raw data'!E66 -> -1.7113344e-06 | D61: ='DF raw data'!F66 -> -2.054913e-06 | F61: -3.155187671e-06 | G61: -1.717810665e-06 | H61: -2.058052907e-06 | J61: -7.140442707e-06 | K61: 0.0003411979424 | L61: 4.49989628e-05 | M61: 0.0004633330691 | N61: 1.824745209e-08
A62: 28.5002 | B62: ='DF raw data'!D67 -> -3.4855918e-06 | C62: ='DF raw data'!E67 -> -3.9680987e-07 | D62: ='DF raw data'!F67 -> 6.2976824e-06 | F62: -3.490917784e-06 | G62: -3.983115321e-07 | H62: 6.307305259e-06 | J62: -8.886599782e-06 | K62: 0.0003367528652 | L62: 4.479972738e-05 | M62: 0.0004857418928 | N62: 1.92908629e-08
A63: 29.0004 | B63: ='DF raw data'!D68 -> -7.6569568e-06 | C63: ='DF raw data'!E68 -> 6.5919721e-06 | D63: ='DF raw data'!F68 -> 7.4035552e-06 | F63: -7.66865663e-06 | G63: 6.61691834e-06 | H63: 7.414867832e-06 | J63: -1.272246183e-05 | K63: 0.0003303890898 | L63: 4.810950993e-05 | M63: 0.0005098062696 | N63: 2.052955117e-08
A64: 29.5006 | B64: ='DF raw data'!D69 -> -9.0729891e-06 | C64: ='DF raw data'!E69 -> 1.4120623e-06 | D64: ='DF raw data'!F69 -> -2.0501836e-06 | F64: -9.086852627e-06 | G64: 1.417406019e-06 | H64: -2.053316281e-06 | J64: -1.726770551e-05 | K64: 0.0003217517835 | L64: 4.881849642e-05 | M64: 0.0005342252816 | N64: 2.187079708e-08
A65: 30.0008 | B65: ='DF raw data'!D70 -> -4.0777451e-07 | C65: ='DF raw data'!E70 -> 6.7534188e-06 | D65: ='DF raw data'!F70 -> -6.5346039e-06 | F65: -4.083975895e-07 | G65: 6.778976009e-06 | H65: -6.544588775e-06 | J65: -1.747198599e-05 | K65: 0.0003130122961 | L65: 5.220934022e-05 | M65: 0.0005603403935 | N65: 2.338694605e-08
A66: 30.501 | B66: ='DF raw data'!D71 -> 4.3697501e-06 | C66: ='DF raw data'!E71 -> 1.0681381e-05 | D66: ='DF raw data'!F71 -> 1.0715223e-06 | F66: 4.376427078e-06 | G66: 1.072180294e-05 | H66: 1.073159586e-06 | J66: -1.528289716e-05 | K66: 0.0003053677909 | L66: 5.757238605e-05 | M66: 0.000589138101 | N66: 2.516172897e-08
A67: 31.0012 | B67: ='DF raw data'!D72 -> 4.6320192e-06 | C67: ='DF raw data'!E72 -> -1.0169794e-06 | D67: ='DF raw data'!F72 -> 3.0493168e-06 | F67: 4.639096925e-06 | G67: -1.020827992e-06 | H67: 3.053976156e-06 | J67: -1.296242088e-05 | K67: 0.000298883988 | L67: 5.706176789e-05 | M67: 0.0006176803973 | N67: 2.687444863e-08
A68: 31.5014 | B68: ='DF raw data'!D73 -> 3.9484285e-06 | C68: ='DF raw data'!E73 -> -1.7562994e-06 | D68: ='DF raw data'!F73 -> -6.0167449e-06 | F68: 3.954461699e-06 | G68: -1.762945828e-06 | H68: -6.025938486e-06 | J68: -1.098439914e-05 | K68: 0.0002933895916 | L68: 5.617994239e-05 | M68: 0.0006457816045 | N68: 2.851352548e-08
A69: 32.0016 | B69: ='DF raw data'!D74 -> 5.5725823e-06 | C69: ='DF raw data'!E74 -> 7.9658484e-08 | D69: ='DF raw data'!F74 -> 4.8630527e-06 | F69: 5.581097206e-06 | G69: 7.995993851e-08 | H69: 4.870483445e-06 | J69: -8.192734317e-06 | K69: 0.0002892915859 | L69: 5.621993835e-05 | M69: 0.0006739028177 | N69: 3.012807222e-08
A70: 32.5018 | B70: ='DF raw data'!D75 -> 6.8702639e-06 | C70: ='DF raw data'!E75 -> -5.431551e-06 | D70: ='DF raw data'!F75 -> 9.3686895e-06 | F70: 6.880761663e-06 | G70: -5.452105816e-06 | H70: 9.383004858e-06 | J70: -4.750977333e-06 | K70: 0.000286915147 | L70: 5.349279502e-05 | M70: 0.0007006599137 | N70: 3.157067448e-08
A71: 33.002 | B71: ='DF raw data'!D76 -> 5.0701628e-06 | C71: ='DF raw data'!E76 -> 1.9280253e-06 | D71: ='DF raw data'!F76 -> 3.190936e-06 | F71: 5.077910009e-06 | G71: =(1-$G$1*($B$2-$G$2))*C71*$M$2/$M$1 -> 1.935321596e-06 | H71: 3.19581175e-06 | J71: -2.211006746e-06 | K71: 0.0002858092014 | L71: 5.446084288e-05 | M71: 0.0007279012274 | N71: 3.305670464e-08
A72: =A71+$B$1 -> 33.5022 | B72: ='DF raw data'!D77 -> -2.9109725e-07 | C72: ='DF raw data'!E77 -> 8.6747705e-06 | D72: ='DF raw data'!F77 -> -5.4650818e-06 | F72: -2.915420466e-07 | G72: 8.70759875e-06 | H72: -5.473432445e-06 | J72: =F72*$B$1+J71 -> -2.356836078e-06 | K72: =J72*$B$1+K71 -> 0.000284630312 | L72: =G72*$B$1+L71 -> 5.881638378e-05 | M72: =L72*$B$1+M71 -> 0.0007573211825 | N72: =(J72^2+L72^2)*$B$1+N71 -> 3.478985846e-08
A73: 34.0024 | B73: ='DF raw data'!D78 -> -3.6486606e-06 | C73: ='DF raw data'!E78 -> 3.8611183e-06 | D73: ='DF raw data'!F78 -> -8.7067247e-06 | F73: -3.654235753e-06 | G73: 3.875730071e-06 | H73: -8.720028575e-06 | J73: -4.184684802e-06 | K73: 0.0002825371327 | L73: 6.075502396e-05 | M73: 0.0007877108455 | N73: 3.664494246e-08
A74: 34.5026 | B74: ='DF raw data'!D79 -> -2.3892942e-06 | C74: ='DF raw data'!E79 -> 1.0147539e-05 | D74: ='DF raw data'!F79 -> -4.168608e-06 | F74: -2.392945042e-06 | G74: 1.01859407e-05 | H74: -4.174977633e-06 | J74: -5.381635912e-06 | K74: 0.0002798452384 | L74: 6.58500315e-05 | M74: 0.0008206490313 | N74: 3.882840982e-08
A75: 35.0028 | B75: ='DF raw data'!D80 -> 1.7968989e-06 | C75: ='DF raw data'!E80 -> 7.9142355e-06 | D75: ='DF raw data'!F80 -> -5.479852e-06 | F75: 1.799644562e-06 | G75: 7.94418563e-06 | H75: -5.488225214e-06 | J75: -4.481453702e-06 | K75: 0.0002776036153 | L75: 6.982371315e-05 | M75: 0.0008555748526 | N75: 4.127710608e-08
A76: 35.503 | B76: ='DF raw data'!D81 -> 7.727459e-06 | C76: ='DF raw data'!E81 -> -7.4242857e-06 | D76: ='DF raw data'!F81 -> -6.9655443e-06 | F76: 7.739266557e-06 | G76: -7.452381695e-06 | H76: -6.976187652e-06 | J76: -6.102725699e-07 | K76: 0.0002772983569 | L76: 6.609603182e-05 | M76: 0.0008886360877 | N76: 4.346250882e-08
A77: 36.0032 | B77: ='DF raw data'!D82 -> 1.2490359e-05 | C77: ='DF raw data'!E82 -> -2.1899373e-06 | D77: ='DF raw data'!F82 -> -1.5829216e-06 | F77: 1.250944427e-05 | G77: -2.19822476e-06 | H77: -1.585340304e-06 | J77: 5.646951453e-06 | K77: 0.000280122962 | L77: 6.49964798e-05 | M77: 0.0009211473269 | N77: 4.559157533e-08
A78: 36.5034 | B78: ='DF raw data'!D83 -> 9.7221337e-06 | C78: ='DF raw data'!E83 -> -8.21711e-06 | D78: ='DF raw data'!F83 -> -7.0181204e-06 | F78: 9.73698912e-06 | G78: -8.248206309e-06 | H78: -7.028844088e-06 | J78: 1.051739341e-05 | K78: 0.0002853837622 | L78: 6.0870727e-05 | M78: 0.0009515948645 | N78: 4.750026899e-08
A79: 37.0036 | B79: ='DF raw data'!D84 -> 4.5324259e-06 | C79: ='DF raw data'!E84 -> -3.3177971e-06 | D79: ='DF raw data'!F84 -> -4.2195834e-06 | F79: 4.539351447e-06 | G79: -3.330352761e-06 | H79: -4.226030923e-06 | J79: 1.2787977e-05 | K79: 0.0002917803083 | L79: 5.920488455e-05 | M79: 0.0009812091478 | N79: 4.933537809e-08
A80: 37.5038 | B80: ='DF raw data'!D85 -> 6.8418294e-06 | C80: ='DF raw data'!E85 -> -4.1582548e-06 | D80: ='DF raw data'!F85 -> 4.3068494e-06 | F80: 6.852283715e-06 | G80: -4.173991035e-06 | H80: 4.313430266e-06 | J80: 1.621548932e-05 | K80: 0.0002998912961 | L80: 5.711705424e-05 | M80: 0.001009779098 | N80: 5.109873314e-08
A81: 38.004 | B81: ='DF raw data'!D86 -> 6.8782092e-06 | C81: ='DF raw data'!E86 -> -1.8306183e-06 | D81: ='DF raw data'!F86 -> -4.4501294e-06 | F81: 6.888719104e-06 | G81: -1.837545976e-06 | H81: -4.456929198e-06 | J81: 1.966122661e-05 | K81: 0.0003097258416 | L81: 5.619791374e-05 | M81: 0.001037889295 | N81: 5.287182677e-08
A82: 38.5042 | B82: ='DF raw data'!D87 -> 1.1314107e-06 | C82: ='DF raw data'!E87 -> 2.8637501e-06 | D82: ='DF raw data'!F87 -> -7.6265505e-06 | F82: 1.133139496e-06 | G82: 2.874587494e-06 | H82: -7.638203869e-06 | J82: 2.022802299e-05 | K82: 0.0003198438987 | L82: 5.76357824e-05 | M82: 0.001066718713 | N82: 5.473810114e-08
A83: 39.0044 | B83: ='DF raw data'!D88 -> -4.7737858e-06 | C83: ='DF raw data'!E88 -> 3.2400146e-06 | D83: ='DF raw data'!F88 -> -7.3052297e-06 | F83: -4.781080145e-06 | G83: 3.252275905e-06 | H83: -7.316392091e-06 | J83: 1.78365267e-05 | K83: 0.0003287657294 | L83: 5.926257081e-05 | M83: 0.001096361851 | N83: 5.665396417e-08
A84: 39.5046 | B84: ='DF raw data'!D89 -> -1.1359488e-05 | C84: ='DF raw data'!E89 -> 5.0858462e-06 | D84: ='DF raw data'!F89 -> -4.3903647e-06 | F84: -1.13768453e-05 | G84: 5.105092753e-06 | H84: -4.397073177e-06 | J84: 1.214582868e-05 | K84: 0.0003348410729 | L84: 6.181613821e-05 | M84: 0.001127282283 | N84: 5.863913597e-08
A85: 40.0048 | B85: ='DF raw data'!D90 -> -1.1913246e-05 | C85: ='DF raw data'!E90 -> -7.2025291e-06 | D85: ='DF raw data'!F90 -> -5.6803192e-06 | F85: -1.193144944e-05 | G85: -7.229785893e-06 | H85: -5.688998728e-06 | J85: 6.177717674e-06 | K85: 0.0003379311673 | L85: 5.81997993e-05 | M85: 0.001156393823 | N85: 6.035251147e-08
A86: 40.505 | B86: ='DF raw data'!D91 -> -9.3636199e-06 | C86: ='DF raw data'!E91 -> 1.4383698e-07 | D86: ='DF raw data'!F91 -> -8.8494207e-06 | F86: -9.377927511e-06 | G86: 1.443813075e-07 | H86: -8.862942615e-06 | J86: 1.486878333e-06 | K86: 0.0003386749038 | L86: 5.827201883e-05 | M86: 0.001185541487 | N86: 6.205211053e-08
A87: 41.0052 | B87: ='DF raw data'!D92 -> -8.3130444e-06 | C87: ='DF raw data'!E92 -> 6.4999072e-06 | D87: ='DF raw data'!F92 -> -1.040499e-06 | F87: =(1-$G$1*($B$2-$G$2))*B87 -> -8.325746732e-06 | G87: 6.524505036e-06 | H87: -1.042088882e-06 | J87: -2.677660182e-06 | K87: 0.0003373355382 | L87: 6.153557625e-05 | M87: 0.001216321582 | N87: 6.394976779e-08
A88: 41.5054 | B88: ='DF raw data'!D93 -> -5.0270328e-06 | C88: ='DF raw data'!E93 -> -1.6839818e-06 | D88: ='DF raw data'!F93 -> -3.1945166e-07 | F88: -5.034714106e-06 | G88: -1.690354554e-06 | H88: -3.199397821e-07 | J88: -5.196024178e-06 | K88: 0.0003347364869 | L88: 6.06900609e-05 | M88: 0.001246678751 | N88: 6.580565093e-08
A89: 42.0056 | B89: ='DF raw data'!D94 -> 9.7526211e-08 | C89: ='DF raw data'!E94 -> -5.7386757e-07 | D89: ='DF raw data'!F94 -> -5.142364e-06 | F89: 9.767523105e-08 | G89: -5.76039278e-07 | H89: -5.150221532e-06 | J89: -5.147167027e-06 | K89: 0.0003321618739 | L89: 6.040192606e-05 | M89: 0.001276891794 | N89: 6.76438289e-08
A90: 42.5058 | B90: ='DF raw data'!D95 -> 1.293068e-06 | C90: ='DF raw data'!E95 -> -1.9560398e-06 | D90: ='DF raw data'!F95 -> -3.6894132e-06 | F90: 1.295043808e-06 | G90: -1.963442113e-06 | H90: -3.695050623e-06 | J90: -4.499386115e-06 | K90: 0.000329911281 | L90: 5.941981231e-05 | M90: 0.001306613584 | N90: 6.942001838e-08
A91: 43.006 | B91: ='DF raw data'!D96 -> -1.0605152e-06 | C91: ='DF raw data'!E96 -> -5.8658557e-06 | D91: ='DF raw data'!F96 -> -5.9924133e-07 | F91: -1.062135667e-06 | G91: -5.888054072e-06 | H91: -6.001569708e-07 | J91: -5.030666375e-06 | K91: 0.0003273949417 | L91: 5.647460767e-05 | M91: 0.001334862183 | N91: 7.102800578e-08
A92: 43.5062 | B92: ='DF raw data'!D97 -> 1.4231039e-06 | C92: ='DF raw data'!E97 -> -7.3850574e-06 | D92: ='DF raw data'!F97 -> -8.0925029e-06 | F92: 1.425278403e-06 | G92: -7.413004942e-06 | H92: -8.104868244e-06 | J92: -4.317742118e-06 | K92: 0.0003252352071 | L92: 5.276662259e-05 | M92: 0.001361256047 | N92: 7.243004605e-08
A93: 44.0064 | B93: ='DF raw data'!D98 -> 1.455802e-06 | C93: ='DF raw data'!E98 -> 3.6515041e-06 | D93: ='DF raw data'!F98 -> 6.0631492e-06 | F93: 1.458026465e-06 | G93: 3.66532262e-06 | H93: 6.072413692e-06 | J93: -3.58843728e-06 | K93: 0.0003234402708 | L93: 5.460001697e-05 | M93: 0.001388566976 | N93: 7.392766422e-08
A94: 44.5066 | B94: ='DF raw data'!D99 -> 9.4163914e-07 | C94: ='DF raw data'!E99 -> 1.0031457e-05 | D94: ='DF raw data'!F99 -> 5.2674941e-06 | F94: 9.430779646e-07 | G94: 1.006941941e-05 | H94: 5.275542831e-06 | J94: -3.116709682e-06 | K94: 0.0003218812926 | L94: 5.963674056e-05 | M94: 0.001418397274 | N94: 7.571150482e-08
A95: 45.0068 | B95: ='DF raw data'!D100 -> 3.0348303e-06 | C95: ='DF raw data'!E100 -> -8.4192294e-07 | D95: ='DF raw data'!F100 -> -2.0448722e-06 | F95: 3.039467521e-06 | G95: -8.451090597e-07 | H95: -2.047996765e-06 | J95: -1.596368028e-06 | K95: 0.0003210827893 | L95: 5.921401701e-05 | M95: 0.001448016125 | N95: 7.746663069e-08
A96: 45.507 | B96: ='DF raw data'!D101 -> 1.5189573e-06 | C96: ='DF raw data'!E101 -> -1.0140062e-05 | D96: ='DF raw data'!F101 -> 6.0945667e-06 | F96: 1.521278267e-06 | G96: -1.017843541e-05 | H96: 6.103879198e-06 | J96: -8.354246394e-07 | K96: 0.0003206649099 | L96: 5.412276362e-05 | M96: 0.001475088331 | N96: 7.893220243e-08
A97: 46.0072 | B97: ='DF raw data'!D102 -> 6.2783211e-06 | C97: ='DF raw data'!E102 -> -3.7050027e-06 | D97: ='DF raw data'!F102 -> 4.4799008e-06 | F97: 6.287914375e-06 | G97: -3.719023677e-06 | H97: 4.486746088e-06 | J97: 2.309790131e-06 | K97: 0.0003218202669 | L97: 5.226250797e-05 | M97: 0.001501230038 | N97: 8.03011022e-08
A98: 46.5074 | B98: ='DF raw data'!D103 -> 1.1821742e-05 | C98: ='DF raw data'!E103 -> -3.1028462e-06 | D98: ='DF raw data'!F103 -> 2.4167159e-06 | F98: 1.183980562e-05 | G98: -3.114588414e-06 | H98: 2.420408642e-06 | J98: 8.232060903e-06 | K98: 0.0003259379438 | L98: 5.070459085e-05 | M98: 0.001526592474 | N98: 8.162099113e-08
A99: 47.0076 | B99: ='DF raw data'!D104 -> 9.4394481e-06 | C99: ='DF raw data'!E104 -> -3.6852322e-07 | D99: ='DF raw data'!F104 -> 3.6239288e-07 | F99: 9.453871577e-06 | G99: -3.699178359e-07 | H99: 3.629466163e-07 | J99: 1.296088747e-05 | K99: 0.0003324209797 | L99: 5.051955795e-05 | M99: 0.001551862357 | N99: 8.298164034e-08
A100: 47.5078 | B100: ='DF raw data'!D105 -> 4.6340128e-06 | C100: ='DF raw data'!E105 -> 1.6290149e-06 | D100: ='DF raw data'!F105 -> -4.2495312e-06 | F100: 4.641093572e-06 | G100: 1.63517964e-06 | H100: -4.256024484e-06 | J100: 1.528236247e-05 | K100: 0.0003400652174 | L100: 5.13374748e-05 | M100: 0.001577541362 | N100: 8.441675762e-08
A101: 48.008 | B101: ='DF raw data'!D106 -> 4.1103622e-06 | C101: ='DF raw data'!E106 -> -1.3398732e-06 | D101: ='DF raw data'!F106 -> 1.6047627e-06 | F101: 4.116642833e-06 | G101: -1.344943731e-06 | H101: 1.607214777e-06 | J101: 1.734150722e-05 | K101: 0.0003487394393 | L101: 5.066473395e-05 | M101: 0.001602883862 | N101: 8.585115272e-08
A102: 48.5082 | B102: ='DF raw data'!D107 -> 8.4618359e-06 | C102: ='DF raw data'!E107 -> -8.3378387e-07 | D102: ='DF raw data'!F107 -> 5.8133073e-06 | F102: 8.474765585e-06 | G102: -8.369391887e-07 | H102: 5.822190034e-06 | J102: 2.158058496e-05 | K102: 0.0003595340479 | L102: 5.024609697e-05 | M102: 0.001628016959 | N102: 8.734694675e-08
A103: 49.0084 | B103: ='DF raw data'!D108 -> 9.8554292e-06 | C103: ='DF raw data'!E108 -> -9.6861431e-06 | D103: ='DF raw data'!F108 -> 6.8074942e-06 | F103: 9.870488296e-06 | G103: -9.722798724e-06 | H103: 6.817896051e-06 | J103: 2.651780321e-05 | K103: 0.0003727982531 | L103: 4.538275304e-05 | M103: 0.001650717413 | N103: 8.872889339e-08
A104: 49.5086 | B104: ='DF raw data'!D109 -> 3.3551617e-06 | C104: ='DF raw data'!E109 -> -2.9447125e-07 | D104: ='DF raw data'!F109 -> 3.1803568e-06 | F104: 3.360288387e-06 | G104: -2.955856283e-07 | H104: 3.185216385e-06 | J104: 2.819861946e-05 | K104: 0.0003869032025 | L104: 4.523490111e-05 | M104: 0.00167334391 | N104: 9.015014087e-08
A105: 50.0088 | B105: ='DF raw data'!D110 -> 1.6912957e-06 | C105: ='DF raw data'!E110 -> -1.1667804e-05 | D105: ='DF raw data'!F110 -> 3.841712e-06 | F105: 1.69388e-06 | G105: -1.17119589e-05 | H105: 3.847582136e-06 | J105: 2.904589823e-05 | K105: 0.0004014319608 | L105: 3.937657927e-05 | M105: 0.001693040075 | N105: 9.13477093e-08
A106: 50.509 | B106: ='DF raw data'!D111 -> 1.497988e-06 | C106: ='DF raw data'!E111 -> -2.5666027e-06 | D106: ='DF raw data'!F111 -> 3.5713667e-06 | F106: 1.500276926e-06 | G106: -2.576315588e-06 | H106: 3.576823748e-06 | J106: 2.979633675e-05 | K106: 0.0004163360884 | L106: 3.808790622e-05 | M106: 0.001712091646 | N106: 9.251743215e-08
A107: 51.0092 | B107: ='DF raw data'!D112 -> -3.170863e-06 | C107: ='DF raw data'!E112 -> 3.2063911e-06 | D107: ='DF raw data'!F112 -> 5.6692005e-07 | F107: -3.175708079e-06 | G107: 3.218525163e-06 | H107: 5.677863038e-07 | J107: 2.820784757e-05 | K107: 0.0004304456538 | L107: 3.96978125e-05 | M107: 0.001731948492 | N107: 9.370370596e-08
A108: 51.5094 | B108: ='DF raw data'!D113 -> -3.6933059e-06 | C108: ='DF raw data'!E113 -> -2.6620023e-06 | D108: ='DF raw data'!F113 -> -2.3313848e-06 | F108: -3.698949271e-06 | G108: -2.672076212e-06 | H108: -2.334947156e-06 | J108: 2.635763315e-05 | K108: 0.0004436297419 | L108: 3.836123998e-05 | M108: 0.001751136784 | N108: 9.4787294e-08
A109: 52.0096 | B109: ='DF raw data'!D114 -> 1.3156314e-07 | C109: ='DF raw data'!E114 -> 3.3215388e-06 | D109: ='DF raw data'!F114 -> -2.1267267e-06 | F109: 1.317641685e-07 | G109: 3.33410862e-06 | H109: -2.129976338e-06 | J109: 2.642354158e-05 | K109: 0.0004568467974 | L109: 4.002896111e-05 | M109: 0.00177115927 | N109: 9.593801474e-08
A110: 52.5098 | B110: ='DF raw data'!D115 -> 7.7548166e-06 | C110: ='DF raw data'!E115 -> 2.6581388e-06 | D110: ='DF raw data'!F115 -> 5.9547374e-06 | F110: 7.76666596e-06 | G110: 2.668198092e-06 | H110: 5.963836239e-06 | J110: 3.03084279e-05 | K110: 0.000472007073 | L110: 4.13635938e-05 | M110: 0.00179184934 | N110: 9.72533145e-08
A111: 53.01 | B111: ='DF raw data'!D116 -> 6.9330699e-06 | C111: ='DF raw data'!E116 -> -7.0900501e-06 | D111: ='DF raw data'!F116 -> -5.9478845e-07 | F111: 6.943663631e-06 | G111: -7.116881235e-06 | H111: -5.956972868e-07 | J111: 3.378164844e-05 | K111: 0.0004889046536 | L111: 3.78037298e-05 | M111: 0.001810758765 | N111: 9.853898944e-08
A112: 53.5102 | B112: ='DF raw data'!D117 -> 1.0306824e-06 | C112: ='DF raw data'!E117 -> -1.7203831e-05 | D112: ='DF raw data'!F117 -> -4.8927113e-06 | F112: 1.032257283e-06 | G112: -1.726893608e-05 | H112: -4.900187363e-06 | J112: 3.429798354e-05 | K112: 0.000506060505 | L112: 2.916580797e-05 | M112: 0.001825347503 | N112: 9.955289285e-08
A113: 54.0104 | B113: ='DF raw data'!D118 -> -1.1490199e-06 | C113: ='DF raw data'!E118 -> 4.8410075e-06 | D113: ='DF raw data'!F118 -> 5.2243622e-06 | F113: -1.150775602e-06 | G113: 4.859327501e-06 | H113: 5.232345025e-06 | J113: 3.372236558e-05 | K113: 0.0005229284322 | L113: 3.159644359e-05 | M113: 0.001841152044 | N113: 1.006210866e-07
A114: 54.5106 | B114: ='DF raw data'!D119 -> -7.0146126e-07 | C114: ='DF raw data'!E119 -> -2.6984285e-06 | D114: ='DF raw data'!F119 -> 7.2343746e-06 | F114: -7.025330928e-07 | G114: -2.708640261e-06 | H114: 7.245428724e-06 | J114: 3.337095853e-05 | K114: 0.0005396205857 | L114: 3.024158173e-05 | M114: 0.001856278883 | N114: 1.016355793e-07
A115: 55.0108 | B115: ='DF raw data'!D120 -> -2.9162773e-06 | C115: ='DF raw data'!E120 -> 1.4491551e-06 | D115: ='DF raw data'!F120 -> 1.237516e-06 | F115: -2.920733372e-06 | G115: 1.45463919e-06 | H115: 1.239406924e-06 | J115: 3.191000769e-05 | K115: 0.0005555819715 | L115: 3.096919225e-05 | M115: 0.001871769673 | N115: 1.026246445e-07
A116: 55.511 | B116: ='DF raw data'!D121 -> -5.9135355e-06 | C116: ='DF raw data'!E121 -> -4.6081718e-06 | D116: ='DF raw data'!F121 -> 7.4438203e-06 | F116: -5.922571382e-06 | G116: -4.625610673e-06 | H116: 7.455194457e-06 | J116: 2.894753749e-05 | K116: 0.0005700615298 | L116: 2.86554618e-05 | M116: 0.001886103135 | N116: 1.03454524e-07
A117: 56.0112 | B117: ='DF raw data'!D122 -> -9.6943559e-06 | C117: ='DF raw data'!E122 -> -1.6186024e-06 | D117: ='DF raw data'!F122 -> 3.4417819e-06 | F117: -9.709168876e-06 | G117: -1.624727736e-06 | H117: 3.447040943e-06 | J117: 2.409101122e-05 | K117: 0.0005821118536 | L117: 2.784277298e-05 | M117: 0.00190003009 | N117: 1.041325935e-07
A118: 56.5114 | B118: ='DF raw data'!D123 -> -9.8404716e-06 | C118: ='DF raw data'!E123 -> 8.9897912e-06 | D118: ='DF raw data'!F123 -> -4.8377188e-07 | F118: -9.855507841e-06 | G118: 9.023811595e-06 | H118: -4.845110834e-07 | J118: 1.91612862e-05 | K118: 0.0005916963289 | L118: 3.235648354e-05 | M118: 0.001916214803 | N118: 1.048399248e-07
A119: 57.0116 | B119: ='DF raw data'!D124 -> -5.2431724e-06 | C119: ='DF raw data'!E124 -> -8.0096306e-06 | D119: ='DF raw data'!F124 -> -2.894966e-06 | F119: -5.251183967e-06 | G119: -8.039941737e-06 | H119: -2.899389508e-06 | J119: 1.653464398e-05 | K119: 0.0005999669579 | L119: 2.833490469e-05 | M119: 0.001930387922 | N119: 1.053782707e-07
A120: 57.5118 | B120: ='DF raw data'!D125 -> -2.5360066e-06 | C120: ='DF raw data'!E125 -> -9.9623376e-06 | D120: ='DF raw data'!F125 -> -4.1287358e-06 | F120: -2.539881618e-06 | G120: -1.000003844e-05 | H120: -4.135044508e-06 | J120: 1.526419519e-05 | K120: 0.0006076021083 | L120: 2.333288546e-05 | M120: 0.001942059031 | N120: 1.057671358e-07
A121: 58.012 | B121: ='DF raw data'!D126 -> -1.555898e-07 | C121: ='DF raw data'!E126 -> -8.9965915e-06 | D121: ='DF raw data'!F126 -> -1.5830526e-06 | F121: -1.558275412e-07 | G121: -9.030637629e-06 | H121: -1.585471504e-06 | J121: 1.518625025e-05 | K121: 0.0006151982707 | L121: 1.881576052e-05 | M121: 0.001951470675 | N121: 1.060595802e-07
A122: 58.5122 | B122: ='DF raw data'!D127 -> 2.8446659e-06 | C122: ='DF raw data'!E127 -> -3.2761677e-06 | D122: ='DF raw data'!F127 -> -6.5213617e-06 | F122: 2.849012549e-06 | G122: -3.288565821e-06 | H122: -6.531326341e-06 | J122: 1.661132633e-05 | K122: 0.0006235072561 | L122: 1.717081989e-05 | M122: 0.001960059519 | N122: 1.06345081e-07
A123: 59.0124 | B123: ='DF raw data'!D128 -> 1.4486716e-06 | C123: ='DF raw data'!E128 -> -4.7402641e-06 | D123: ='DF raw data'!F128 -> -9.0645271e-06 | F123: 1.45088517e-06 | G123: -4.758202854e-06 | H123: -9.078377697e-06 | J123: 1.733705909e-05 | K123: 0.0006321792531 | L123: 1.479076683e-05 | M123: 0.001967457861 | N123: 1.066048551e-07
A124: 59.5126 | B124: ='DF raw data'!D129 -> -3.5770943e-06 | C124: ='DF raw data'!E129 -> -9.3114795e-06 | D124: ='DF raw data'!F129 -> -4.8153097e-06 | F124: -3.5825601e-06 | G124: -9.346717271e-06 | H124: -4.822667493e-06 | J124: 1.554506253e-05 | K124: 0.0006399548933 | L124: 1.011553885e-05 | M124: 0.001972517653 | N124: 1.067769104e-07
A125: 60.0128 | B125: ='DF raw data'!D130 -> -1.7194695e-06 | C125: ='DF raw data'!E130 -> -9.396339e-06 | D125: ='DF raw data'!F130 -> -6.2987319e-06 | F125: -1.722096849e-06 | G125: -9.431897908e-06 | H125: -6.308356362e-06 | J125: 1.468366969e-05 | K125: 0.0006472996649 | L125: 5.397703513e-06 | M125: 0.001975217584 | N125: 1.06899332e-07
A126: 60.513 | B126: ='DF raw data'!D131 -> 3.2848759e-06 | C126: ='DF raw data'!E131 -> -6.8708291e-06 | D126: ='DF raw data'!F131 -> -2.8009169e-06 | F126: 3.28989519e-06 | G126: -6.896830629e-06 | H126: -2.805196701e-06 | J126: 1.632927526e-05 | K126: 0.0006554675684 | L126: 1.947908832e-06 | M126: 0.001976191928 | N126: 1.070346059e-07
A127: 61.0132 | B127: ='DF raw data'!D132 -> 8.4128396e-06 | C127: ='DF raw data'!E132 -> -9.48131e-07 | D127: ='DF raw data'!F132 -> -2.9596487e-07 | F127: 8.425694419e-06 | G127: -9.517190467e-07 | H127: -2.964171043e-07 | J127: 2.054380761e-05 | K127: 0.000665743581 | L127: 1.471858965e-06 | M127: 0.001976928152 | N127: 1.072467979e-07
A128: 61.5134 | B128: ='DF raw data'!D133 -> 1.1163646e-05 | C128: ='DF raw data'!E133 -> -4.2812749e-06 | D128: ='DF raw data'!F133 -> -1.0299505e-05 | F128: 1.118070405e-05 | G128: -4.297476685e-06 | H128: -1.031524264e-05 | J128: 2.613639578e-05 | K128: 0.0006788170061 | L128: -6.777388725e-07 | M128: 0.001976589147 | N128: 1.075887199e-07
A129: 62.0136 | B129: ='DF raw data'!D134 -> 6.8159852e-06 | C129: ='DF raw data'!E134 -> -1.4388384e-05 | D129: ='DF raw data'!F134 -> -3.6686477e-06 | F129: 6.826400025e-06 | G129: -1.444283449e-05 | H129: -3.674253394e-06 | J129: 2.955096107e-05 | K129: 0.0006935983969 | L129: -7.902044682e-06 | M129: 0.001972636545 | N129: 1.080567579e-07
A130: 62.5138 | B130: ='DF raw data'!D135 -> 2.3359019e-06 | C130: ='DF raw data'!E135 -> -1.5680225e-05 | D130: ='DF raw data'!F135 -> 3.6111662e-06 | F130: 2.339471158e-06 | G130: -1.573956425e-05 | H130: 3.616684062e-06 | J130: 3.072116454e-05 | K130: 0.0007089651234 | L130: -1.577497472e-05 | M130: 0.001964745902 | N130: 1.086533163e-07
A131: 63.014 | B131: ='DF raw data'!D136 -> 4.0820732e-06 | C131: ='DF raw data'!E136 -> 2.392085e-06 | D131: ='DF raw data'!F136 -> 1.0985756e-05 | F131: 4.088310608e-06 | G131: 2.401137454e-06 | H131: 1.100254224e-05 | J131: 3.276613751e-05 | K131: 0.0007253547453 | L131: -1.457392576e-05 | M131: 0.001957456024 | N131: 1.09296583e-07
A132: 63.5142 | B132: ='DF raw data'!D137 -> 1.1180206e-05 | C132: ='DF raw data'!E137 -> 4.926801e-06 | D132: ='DF raw data'!F137 -> 6.5465347e-06 | F132: 1.119728935e-05 | G132: 4.945445673e-06 | H132: 6.556537805e-06 | J132: 3.836702164e-05 | K132: 0.0007445459296 | L132: -1.210021384e-05 | M132: 0.001951403498 | N132: 1.101061285e-07
A133: 64.0144 | B133: ='DF raw data'!D138 -> 1.2606105e-05 | C133: ='DF raw data'!E138 -> -5.2595628e-06 | D133: ='DF raw data'!F138 -> -1.4907353e-06 | F133: 1.262536713e-05 | G133: -5.279466755e-06 | H133: -1.493013144e-06 | J133: 4.468223028e-05 | K133: 0.0007668959812 | L133: -1.474100311e-05 | M133: 0.001944030048 | N133: 1.112134707e-07
A134: 64.5146 | B134: ='DF raw data'!D139 -> 5.3682588e-06 | C134: ='DF raw data'!E139 -> -4.8383331e-06 | D134: ='DF raw data'!F139 -> -4.8893935e-06 | F134: 5.376461499e-06 | G134: -4.85664298e-06 | H134: -4.896864493e-06 | J134: 4.737153632e-05 | K134: 0.0007905912236 | L134: -1.717029593e-05 | M134: 0.001935441466 | N134: 1.124834192e-07
A135: 65.0148 | B135: ='DF raw data'!D140 -> 2.8241041e-06 | C135: ='DF raw data'!E140 -> -3.8119884e-07 | D135: ='DF raw data'!F140 -> -6.0894899e-06 | F135: 2.828419331e-06 | G135: =(1-$G$1*($B$2-$G$2))*C135*$M$2/$M$1 -> -3.826414247e-07 | H135: -6.098794641e-06 | J135: 4.878631167e-05 | K135: 0.0008149941367 | L135: -1.736169317e-05 | M135: 0.001926757147 | N135: 1.138247218e-07
A136: =A135+$B$1 -> 65.515 | B136: ='DF raw data'!D141 -> 4.4876577e-07 | C136: ='DF raw data'!E141 -> -1.2426045e-06 | D136: ='DF raw data'!F141 -> -2.2332758e-06 | F136: 4.494514841e-07 | G136: -1.247306934e-06 | H136: -2.236688245e-06 | J136: =F136*$B$1+J135 -> 4.90111273e-05 | K136: =J136*$B$1+K135 -> 0.0008395095026 | L136: =G136*$B$1+L135 -> -1.79855961e-05 | M136: =L136*$B$1+M135 -> 0.001917760752 | N136: =(J136^2+L136^2)*$B$1+N135 -> 1.151880531e-07
A137: 66.0152 | B137: ='DF raw data'!D142 -> -7.135518e-06 | C137: ='DF raw data'!E142 -> -5.1716347e-06 | D137: ='DF raw data'!F142 -> -5.708942e-07 | F137: -7.146421072e-06 | G137: -5.191205906e-06 | H137: -5.717665263e-07 | J137: 4.543648748e-05 | K137: 0.0008622368336 | L137: -2.058223729e-05 | M137: 0.001907465517 | N137: 1.164326021e-07
A138: 66.5154 | B138: ='DF raw data'!D143 -> -7.686861e-06 | C138: ='DF raw data'!E143 -> -2.1137507e-06 | D138: ='DF raw data'!F143 -> 7.9713135e-07 | F138: -7.698606524e-06 | G138: -2.121749844e-06 | H138: 7.983493667e-07 | J138: 4.15856445e-05 | K138: 0.000883037973 | L138: -2.164353656e-05 | M138: 0.00189663942 | N138: 1.175319459e-07
A139: 67.0156 | B139: ='DF raw data'!D144 -> 3.0687363e-06 | C139: ='DF raw data'!E144 -> -5.3624132e-07 | D139: ='DF raw data'!F144 -> 2.8101852e-06 | F139: 3.073425329e-06 | G139: -5.382706376e-07 | H139: 2.814479163e-06 | J139: 4.312297185e-05 | K139: 0.0009046080835 | L139: -2.191277954e-05 | M139: 0.001885678647 | N139: 1.187022942e-07
A140: 67.5158 | B140: ='DF raw data'!D145 -> 8.4370686e-06 | C140: ='DF raw data'!E145 -> -1.2036062e-05 | D140: ='DF raw data'!F145 -> 2.1132357e-06 | F140: 8.449960441e-06 | G140: -1.208161051e-05 | H140: 2.116464724e-06 | J140: 4.734964206e-05 | K140: 0.0009282923745 | L140: -2.795600111e-05 | M140: 0.001871695055 | N140: 1.202146622e-07
A141: 68.016 | B141: ='DF raw data'!D146 -> 4.029599e-06 | C141: ='DF raw data'!E146 -> -1.2438346e-05 | D141: ='DF raw data'!F146 -> 1.1657751e-06 | F141: 4.035756227e-06 | G141: -1.248541689e-05 | H141: 1.167556404e-06 | J141: 4.936832733e-05 | K141: 0.0009529864118 | L141: -3.420120664e-05 | M141: 0.001854587612 | N141: 1.220188607e-07
A142: 68.5162 | B142: ='DF raw data'!D147 -> 5.0418594e-06 | C142: ='DF raw data'!E147 -> -7.1576983e-06 | D142: ='DF raw data'!F147 -> 4.895518e-06 | F142: 5.049563361e-06 | G142: -7.184785439e-06 | H142: 4.902998352e-06 | J142: 5.189411892e-05 | K142: 0.0009789438501 | L142: -3.779503632e-05 | M142: 0.001835682535 | N142: 1.240804172e-07
A143: 69.0164 | B143: ='DF raw data'!D148 -> 8.5827769e-06 | C143: ='DF raw data'!E148 -> -1.1423632e-05 | D143: ='DF raw data'!F148 -> 2.605396e-06 | F143: 8.595891383e-06 | G143: -1.146686287e-05 | H143: 2.609377045e-06 | J143: 5.619378379e-05 | K143: 0.001007051981 | L143: -4.353076112e-05 | M143: 0.001813908448 | N143: 1.26607762e-07
A144: 69.5166 | B144: ='DF raw data'!D149 -> 8.6325153e-06 | C144: ='DF raw data'!E149 -> -1.8409879e-05 | D144: ='DF raw data'!F149 -> -4.619179e-06 | F144: 8.645705783e-06 | G144: -1.847954818e-05 | H144: -4.626237106e-06 | J144: 6.051836582e-05 | K144: 0.001037323267 | L144: -5.277423112e-05 | M144: 0.001787510778 | N144: 1.298328475e-07
A145: 70.0168 | B145: ='DF raw data'!D150 -> 6.6672792e-06 | C145: ='DF raw data'!E150 -> -2.0141229e-05 | D145: ='DF raw data'!F150 -> -4.8145093e-06 | F145: 6.677466803e-06 | G145: -2.021745019e-05 | H145: -4.82186587e-06 | J145: 6.385843472e-05 | K145: 0.001069265256 | L145: -6.28869997e-05 | M145: 0.0017560547 | N145: 1.338507913e-07
A146: 70.517 | B146: ='DF raw data'!D151 -> 4.0722507e-06 | C146: ='DF raw data'!E151 -> -9.3517747e-06 | D146: ='DF raw data'!F151 -> -2.9281734e-06 | F146: 4.078473099e-06 | G146: -9.387164962e-06 | H146: -2.932647649e-06 | J146: 6.589848696e-05 | K146: 0.00110222768 | L146: -6.758245962e-05 | M146: 0.001722249954 | N146: 1.38307573e-07
A147: 71.0172 | B147: ='DF raw data'!D152 -> 8.2235709e-07 | C147: ='DF raw data'!E152 -> -4.3742734e-06 | D147: ='DF raw data'!F152 -> -8.2280103e-06 | F147: 8.236136516e-07 | G147: -4.390827122e-06 | H147: -8.2405827e-06 | J147: 6.631045851e-05 | K147: 0.001135396171 | L147: -6.977875134e-05 | M147: 0.001687346623 | N147: 1.429425017e-07
A148: 71.5174 | B148: ='DF raw data'!D153 -> 5.3398255e-09 | C148: ='DF raw data'!E153 -> -1.4444801e-06 | D148: ='DF raw data'!F153 -> -7.7222585e-06 | F148: 5.347984753e-09 | G148: -1.449946499e-06 | H148: -7.734058111e-06 | J148: 6.631313357e-05 | K148: 0.001168566 | L148: -7.050401458e-05 | M148: 0.001652080515 | N148: 1.476284993e-07
A149: 72.0176 | B149: ='DF raw data'!D154 -> 2.2821034e-06 | C149: ='DF raw data'!E154 -> -1.9049372e-06 | D149: ='DF raw data'!F154 -> -6.0922839e-06 | F149: 2.285590454e-06 | G149: -1.912146123e-06 | H149: -6.10159291e-06 | J149: 6.745638592e-05 | K149: 0.001202307685 | L149: -7.146047007e-05 | M149: 0.001616335987 | N149: 1.524589121e-07
A150: 72.5178 | B150: ='DF raw data'!D155 -> 1.5620747e-06 | C150: ='DF raw data'!E155 -> 6.8942103e-07 | D150: ='DF raw data'!F155 -> -1.1761157e-05 | F150: 1.56446155e-06 | G150: 6.920300311e-07 | H150: -1.177912805e-05 | J150: 6.823892959e-05 | K150: 0.001236440797 | L150: -7.111431665e-05 | M150: 0.001580764606 | N150: 1.573177536e-07
A151: 73.018 | B151: ='DF raw data'!D156 -> 3.2028468e-06 | C151: ='DF raw data'!E156 -> -1.6499577e-06 | D151: ='DF raw data'!F156 -> -6.9614116e-06 | F151: =(1-$G$1*($B$2-$G$2))*B151 -> 3.20774075e-06 | G151: -1.656201695e-06 | H151: -6.972048637e-06 | J151: 6.984344151e-05 | K151: 0.001271376487 | L151: -7.194274874e-05 | M151: 0.001544778843 | N151: 1.623466971e-07
A152: 73.5182 | B152: ='DF raw data'!D157 -> 8.2681936e-06 | C152: ='DF raw data'!E157 -> -7.1247409e-06 | D152: ='DF raw data'!F157 -> -1.0292504e-06 | F152: 8.2808274e-06 | G152: -7.151703317e-06 | H152: -1.030823095e-06 | J152: 7.398551137e-05 | K152: 0.001308384039 | L152: -7.552003074e-05 | M152: 0.001507003724 | N152: 1.67937498e-07
A153: 74.0184 | B153: ='DF raw data'!D158 -> 8.8571969e-06 | C153: ='DF raw data'!E158 -> -3.3544898e-06 | D153: ='DF raw data'!F158 -> 2.3930982e-06 | F153: 8.870730697e-06 | G153: -3.367184318e-06 | H153: 2.396754854e-06 | J153: 7.842265087e-05 | K153: 0.001347611049 | L153: -7.720429633e-05 | M153: 0.001468386135 | N153: 1.739952279e-07
A154: 74.5186 | B154: ='DF raw data'!D159 -> 3.4472171e-06 | C154: ='DF raw data'!E159 -> -2.2052814e-06 | D154: ='DF raw data'!F159 -> -8.1120376e-08 | F154: 3.452484448e-06 | G154: -2.213626927e-06 | H154: -8.124432793e-08 | J154: 8.014958359e-05 | K154: 0.001387701871 | L154: -7.831155252e-05 | M154: 0.001429214696 | N154: 1.802760667e-07
A155: 75.0188 | B155: ='DF raw data'!D160 -> -3.5104174e-06 | C155: ='DF raw data'!E160 -> -8.1306489e-06 | D155: ='DF raw data'!F160 -> -3.3015465e-06 | F155: -3.515781318e-06 | G155: -8.161418011e-06 | H155: -3.306591263e-06 | J155: 7.839098977e-05 | K155: 0.001426913044 | L155: -8.239389381e-05 | M155: 0.001388001271 | N155: 1.86745604e-07
A156: 75.519 | B156: ='DF raw data'!D161 -> -8.3972855e-06 | C156: ='DF raw data'!E161 -> -8.5273286e-06 | D156: ='DF raw data'!F161 -> 7.6607833e-08 | F156: -8.410116552e-06 | G156: -8.55959888e-06 | H156: 7.672488977e-08 | J156: 7.418424948e-05 | K156: 0.001464020006 | L156: -8.667540517e-05 | M156: 0.001344646233 | N156: 1.932561715e-07
A157: 76.0192 | B157: ='DF raw data'!D162 -> -1.0456905e-05 | C157: ='DF raw data'!E162 -> -2.8312985e-07 | D157: ='DF raw data'!F162 -> 6.5382837e-06 | F157: -1.047288315e-05 | G157: -2.842013086e-07 | H157: 6.548274197e-06 | J157: 6.894571332e-05 | K157: 0.001498506652 | L157: -8.681756267e-05 | M157: 0.001301220088 | N157: 1.9940403e-07
A158: 76.5194 | B158: ='DF raw data'!D163 -> -8.2031775e-06 | C158: ='DF raw data'!E163 -> -3.8604453e-06 | D158: ='DF raw data'!F163 -> 7.1685417e-06 | F158: -8.215711955e-06 | G158: -3.875054524e-06 | H158: 7.179495232e-06 | J158: 6.48362142e-05 | K158: 0.001530937726 | L158: -8.875586494e-05 | M158: 0.001256824405 | N158: 2.054471154e-07
A159: 77.0196 | B159: ='DF raw data'!D164 -> -3.1778546e-07 | C159: ='DF raw data'!E164 -> -1.9944291e-05 | D159: ='DF raw data'!F164 -> 3.7903876e-06 | F159: -3.182710362e-07 | G159: -2.001976691e-05 | H159: 3.796179312e-06 | J159: 6.467701503e-05 | K159: 0.001563289169 | L159: -9.876975235e-05 | M159: 0.001207419774 | N159: 2.124191932e-07
A160: 77.5198 | B160: ='DF raw data'!D165 -> 6.6343046e-06 | C160: ='DF raw data'!E165 -> -1.5514375e-05 | D160: ='DF raw data'!F165 -> 4.9529544e-06 | F160: 6.644441817e-06 | G160: -1.557308661e-05 | H160: 4.960522514e-06 | J160: 6.800056483e-05 | K160: 0.001597303051 | L160: -0.0001065594103 | M160: 0.001154118757 | N160: 2.204118814e-07
A161: 78.02 | B161: ='DF raw data'!D166 -> 6.5269696e-06 | C161: ='DF raw data'!E166 -> -8.0904874e-06 | D161: ='DF raw data'!F166 -> 5.2074674e-06 | F161: 6.53694281e-06 | G161: -8.121104526e-06 | H161: 5.21542441e-06 | J161: 7.127034362e-05 | K161: 0.001632952477 | L161: -0.0001106215868 | M161: 0.00109878584 | N161: 2.290736434e-07
A162: 78.5202 | B162: ='DF raw data'!D167 -> 8.6413193e-06 | C162: ='DF raw data'!E167 -> -9.8775865e-07 | D162: ='DF raw data'!F167 -> 6.0951351e-07 | F162: 8.654523236e-06 | G162: -9.914966611e-07 | H162: 6.104448466e-07 | J162: 7.559933614e-05 | K162: 0.001670767265 | L162: -0.0001111175334 | M162: 0.001043204849 | N162: 2.381084388e-07
A163: 79.0204 | B163: ='DF raw data'!D168 -> 5.9940348e-06 | C163: ='DF raw data'!E168 -> 3.218533e-06 | D163: ='DF raw data'!F168 -> -6.1570399e-06 | F163: 6.003193685e-06 | G163: 3.230713012e-06 | H163: -6.166447857e-06 | J163: 7.860213363e-05 | K163: 0.001710084052 | L163: -0.0001095015307 | M163: 0.0009884321838 | N163: 2.471965129e-07
A164: 79.5206 | B164: ='DF raw data'!D169 -> -5.7778389e-06 | C164: ='DF raw data'!E169 -> 9.1344504e-07 | D164: ='DF raw data'!F169 -> -9.6115336e-06 | F164: -5.786667438e-06 | G164: 9.169018234e-07 | H164: -9.626220023e-06 | J164: 7.570764257e-05 | K164: 0.001747953015 | L164: -0.0001090428964 | M164: 0.000933888927 | N164: 2.560110375e-07
A165: 80.0208 | B165: ='DF raw data'!D170 -> -8.6923837e-06 | C165: ='DF raw data'!E170 -> 2.5449926e-06 | D165: ='DF raw data'!F170 -> -9.0767071e-06 | F165: -8.705665662e-06 | G165: 2.554623708e-06 | H165: -9.090576308e-06 | J165: 7.135306861e-05 | K165: 0.00178364382 | L165: -0.0001077650737 | M165: 0.0008799848372 | N165: 2.643666641e-07
A166: 80.521 | B166: ='DF raw data'!D171 -> -4.001894e-06 | C166: ='DF raw data'!E171 -> 2.6910952e-06 | D166: ='DF raw data'!F171 -> -3.2837058e-06 | F166: -4.008008894e-06 | G166: 2.70127921e-06 | H166: -3.288723302e-06 | J166: 6.934826256e-05 | K166: 0.001818331821 | L166: -0.0001064138938 | M166: 0.0008267566075 | N166: 2.724364399e-07
A167: 81.0212 | B167: ='DF raw data'!D172 -> -1.4879777e-06 | C167: ='DF raw data'!E172 -> -2.5831247e-07 | D167: ='DF raw data'!F172 -> 3.368775e-06 | F167: -1.49025133e-06 | G167: -2.592900113e-07 | H167: 3.373922488e-06 | J167: 6.860283884e-05 | K167: 0.001852646961 | L167: -0.0001065435907 | M167: 0.0007734635034 | N167: 2.804685946e-07
A168: 81.5214 | B168: ='DF raw data'!D173 -> 3.1146039e-06 | C168: ='DF raw data'!E173 -> -6.5798245e-06 | D168: ='DF raw data'!F173 -> 5.0839362e-06 | F168: 3.119363015e-06 | G168: -6.60472477e-06 | H168: 5.091704455e-06 | J168: 7.016314422e-05 | K168: 0.001887742566 | L168: -0.000109847274 | M168: 0.000718517897 | N168: 2.889666376e-07
A169: 82.0216 | B169: ='DF raw data'!D174 -> 3.8125283e-06 | C169: ='DF raw data'!E174 -> -8.3395962e-06 | D169: ='DF raw data'!F174 -> -6.9616881e-06 | F169: 3.818353843e-06 | G169: -8.371156038e-06 | H169: -6.972325559e-06 | J169: 7.207308482e-05 | K169: 0.001923793523 | L169: -0.0001140345262 | M169: 0.000661477827 | N169: 2.980694787e-07
A170: 82.5218 | B170: ='DF raw data'!D175 -> 4.0190861e-07 | C170: ='DF raw data'!E175 -> -5.6706517e-06 | D170: ='DF raw data'!F175 -> -1.3182894e-05 | F170: 4.025227264e-07 | G170: -5.692111354e-06 | H170: -1.320303746e-05 | J170: 7.227442668e-05 | K170: 0.001959945191 | L170: -0.0001168817203 | M170: 0.0006030135904 | N170: 3.075157203e-07
A171: 83.022 | B171: ='DF raw data'!D176 -> 6.5410134e-08 | C171: ='DF raw data'!E176 -> -2.6305138e-06 | D171: ='DF raw data'!F176 -> -1.3007456e-05 | F171: 6.551008068e-08 | G171: -2.640468549e-06 | H171: -1.302733139e-05 | J171: 7.230719483e-05 | K171: 0.00199611325 | L171: -0.0001182024827 | M171: 0.0005438887086 | N171: 3.17119639e-07
A172: 83.5222 | B172: ='DF raw data'!D177 -> 5.4470866e-06 | C172: ='DF raw data'!E177 -> -4.0045466e-06 | D172: ='DF raw data'!F177 -> -1.1292222e-05 | F172: 5.455409748e-06 | G172: -4.019701152e-06 | H172: -1.130947652e-05 | J172: 7.503599078e-05 | K172: 0.002033646252 | L172: -0.0001202131372 | M172: 0.0004837580973 | N172: 3.271644545e-07
A173: 84.0224 | B173: ='DF raw data'!D178 -> 1.0464383e-05 | C173: ='DF raw data'!E178 -> -4.8750258e-06 | D173: ='DF raw data'!F178 -> -4.8319571e-06 | F173: 1.048037258e-05 | G173: -4.893474538e-06 | H173: -4.83934033e-06 | J173: 8.027827315e-05 | K173: 0.002073801445 | L173: -0.0001226608532 | M173: 0.0004224031386 | N173: 3.379138956e-07
A174: 84.5226 | B174: ='DF raw data'!D179 -> 9.606053e-06 | C174: ='DF raw data'!E179 -> -3.9657193e-06 | D174: ='DF raw data'!F179 -> 1.2321173e-06 | F174: 9.620731049e-06 | G174: -3.980726916e-06 | H174: 1.233999975e-06 | J174: 8.509056282e-05 | K174: 0.002116363744 | L174: -0.0001246520128 | M174: 0.0003600522018 | N174: 3.493077154e-07
A175: 85.0228 | B175: ='DF raw data'!D180 -> 5.0997905e-06 | C175: ='DF raw data'!E180 -> 6.988384e-06 | D175: ='DF raw data'!F180 -> 1.5180333e-06 | F175: 5.10758298e-06 | G175: 7.014830396e-06 | H175: 1.520352855e-06 | J175: 8.764537582e-05 | K175: 0.002160203961 | L175: -0.0001211431946 | M175: 0.0002994563758 | N175: 3.604908796e-07
A176: 85.523 | B176: ='DF raw data'!D181 -> 4.592438e-06 | C176: ='DF raw data'!E181 -> 5.9108265e-06 | D176: ='DF raw data'!F181 -> 3.3979952e-06 | F176: 4.599455245e-06 | G176: 5.933195056e-06 | H176: 3.403187337e-06 | J176: 8.994602334e-05 | K176: 0.002205194962 | L176: -0.0001181754105 | M176: 0.0002403450355 | N176: 3.715231481e-07
A177: 86.0232 | B177: ='DF raw data'!D182 -> 9.1547545e-06 | C177: ='DF raw data'!E182 -> 5.1370821e-06 | D177: ='DF raw data'!F182 -> 6.5043341e-06 | F177: 9.168742965e-06 | G177: 5.156522547e-06 | H177: 6.514272723e-06 | J177: 9.453222857e-05 | K177: 0.002252479983 | L177: -0.0001155961179 | M177: 0.0001825238573 | N177: 3.826770102e-07
A178: 86.5234 | B178: ='DF raw data'!D183 -> 1.0146118e-05 | C178: ='DF raw data'!E183 -> -8.5517459e-06 | D178: ='DF raw data'!F183 -> -3.8334338e-06 | F178: 1.016162127e-05 | G178: -8.584108584e-06 | H178: -3.839291287e-06 | J178: 9.961507153e-05 | K178: 0.002302307442 | L178: -0.000119889889 | M178: 0.0001225549348 | N178: 3.948302436e-07
A179: 87.0236 | B179: ='DF raw data'!D184 -> 5.8624128e-06 | C179: ='DF raw data'!E184 -> -1.4779858e-05 | D179: ='DF raw data'!F184 -> -3.4605407e-06 | F179: 5.871370567e-06 | G179: -1.483578996e-05 | H179: -3.465828406e-06 | J179: 0.0001025519311 | K179: 0.002353603918 | L179: -0.0001273107511 | M179: 5.887409712e-05 | N179: 4.081980515e-07
A180: 87.5238 | B180: ='DF raw data'!D185 -> -6.1676911e-07 | C180: ='DF raw data'!E185 -> 6.0768098e-06 | D180: ='DF raw data'!F185 -> 9.2855689e-06 | F180: -6.177115332e-07 | G180: 6.099806493e-06 | H180: 9.299757249e-06 | J180: 0.0001022429518 | K180: 0.002404745842 | L180: -0.0001242596279 | M180: -3.280568769e-06 | N180: 4.211502685e-07
A181: 88.024 | B181: ='DF raw data'!D186 -> 4.4843108e-07 | C181: ='DF raw data'!E186 -> 1.8829268e-06 | D181: ='DF raw data'!F186 -> 5.6456547e-06 | F181: 4.491162827e-07 | G181: 1.890052429e-06 | H181: 5.65428126e-06 | J181: 0.0001024675997 | K181: 0.002456000135 | L181: -0.0001233142237 | M181: -6.496234347e-05 | N181: 4.340084131e-07
A182: 88.5242 | B182: ='DF raw data'!D187 -> 4.6230116e-06 | C182: ='DF raw data'!E187 -> -1.0472297e-05 | D182: ='DF raw data'!F187 -> -4.3519622e-06 | F182: 4.630075562e-06 | G182: -1.05119277e-05 | H182: -4.358611998e-06 | J182: 0.0001047835635 | K182: 0.002508412874 | L182: -0.0001285722899 | M182: -0.0001292742029 | N182: 4.477691296e-07
A183: 89.0244 | B183: ='DF raw data'!D188 -> 1.5676189e-06 | C183: ='DF raw data'!E188 -> -1.823924e-07 | D183: ='DF raw data'!F188 -> -7.1517652e-06 | F183: 1.570014222e-06 | G183: -1.830826342e-07 | H183: -7.162693097e-06 | J183: 0.0001055688846 | K183: 0.00256121843 | L183: -0.0001286638679 | M183: -0.0001936318696 | N183: 4.616242596e-07
A184: 89.5246 | B184: ='DF raw data'!D189 -> -2.6798523e-06 | C184: ='DF raw data'!E189 -> 7.0832507e-06 | D184: ='DF raw data'!F189 -> -3.6632634e-06 | F184: -2.683947114e-06 | G184: 7.110056104e-06 | H184: -3.668860866e-06 | J184: 0.0001042263743 | K184: 0.002613352462 | L184: -0.0001251074178 | M184: -0.0002562106 | N184: 4.748870642e-07
A185: 90.0248 | B185: ='DF raw data'!D190 -> -3.2946125e-06 | C185: ='DF raw data'!E190 -> 2.9372684e-06 | D185: ='DF raw data'!F190 -> -7.7637314e-06 | F185: -3.299646668e-06 | G185: 2.948384012e-06 | H185: -7.775594382e-06 | J185: 0.000102575891 | K185: 0.002664660923 | L185: -0.0001236326361 | M185: -0.0003180516446 | N185: 4.877956466e-07
A186: 90.525 | B186: ='DF raw data'!D191 -> -4.4876952e-06 | C186: ='DF raw data'!E191 -> -2.9658163e-06 | D186: ='DF raw data'!F191 -> -6.6440481e-07 | F186: -4.494552398e-06 | G186: -2.977039947e-06 | H186: -6.654200205e-07 | J186: 0.0001003277159 | K186: 0.002714844847 | L186: -0.0001251217515 | M186: -0.0003806375447 | N186: 5.006613425e-07
A187: 91.0252 | B187: ='DF raw data'!D192 -> -5.9063177e-06 | C187: ='DF raw data'!E192 -> 2.9268613e-06 | D187: ='DF raw data'!F192 -> 2.4235699e-06 | F187: -5.915342553e-06 | G187: 2.937937528e-06 | H187: 2.427273115e-06 | J187: 9.736886158e-05 | K187: 0.002763548751 | L187: -0.0001236521952 | M187: -0.0004424883727 | N187: 5.130515769e-07
A188: 91.5254 | B188: ='DF raw data'!D193 -> -8.2842025e-06 | C188: ='DF raw data'!E193 -> -3.2876193e-07 | D188: ='DF raw data'!F193 -> 5.4428592e-06 | F188: -8.296860761e-06 | G188: -3.300060758e-07 | H188: 5.451175889e-06 | J188: 9.321877183e-05 | K188: 0.002810176781 | L188: -0.0001238172642 | M188: -0.0005044217683 | N188: 5.250666081e-07
A189: 92.0256 | B189: ='DF raw data'!D194 -> -7.0592223e-06 | C189: ='DF raw data'!E194 -> 1.5865852e-06 | D189: ='DF raw data'!F194 -> 3.1124139e-06 | F189: -7.070008792e-06 | G189: 1.592589372e-06 | H189: 3.117169668e-06 | J189: 8.968235343e-05 | K189: 0.002855035894 | L189: -0.000123020651 | M189: -0.0005659566979 | N189: 5.366597461e-07
A190: 92.5258 | B190: ='DF raw data'!D195 -> -1.8962673e-07 | C190: ='DF raw data'!E195 -> -9.6796057e-06 | D190: ='DF raw data'!F195 -> 5.0859298e-06 | F190: -1.899164796e-07 | G190: -9.716236585e-06 | H190: 5.093701101e-06 | J190: 8.958735721e-05 | K190: 0.00289984749 | L190: -0.0001278807125 | M190: -0.0006299226303 | N190: 5.488543075e-07
A191: 93.026 | B191: ='DF raw data'!D196 -> 4.8222564e-06 | C191: ='DF raw data'!E196 -> -9.9227091e-06 | D191: ='DF raw data'!F196 -> 8.8042498e-06 | F191: 4.829624808e-06 | G191: -9.96025997e-06 | H191: 8.817702694e-06 | J191: 9.200313554e-05 | K191: 0.002945867459 | L191: -0.0001328628346 | M191: -0.0006963806201 | N191: 5.619180858e-07
A192: 93.5262 | B192: ='DF raw data'!D197 -> 4.0303994e-06 | C192: ='DF raw data'!E197 -> -3.2050516e-06 | D192: ='DF raw data'!F197 -> 1.6910847e-06 | F192: 4.03655785e-06 | G192: -3.217180594e-06 | H192: 1.693668677e-06 | J192: 9.402222178e-05 | K192: 0.002992897374 | L192: -0.0001344720683 | M192: -0.0007636435487 | N192: 5.753849281e-07
A193: 94.0264 | B193: ='DF raw data'!D198 -> 3.4887337e-06 | C193: ='DF raw data'!E198 -> -1.425976e-05 | D193: ='DF raw data'!F198 -> -5.3922058e-06 | F193: 3.494064485e-06 | G193: -1.431372373e-05 | H193: -5.40044509e-06 | J193: 9.576995283e-05 | K193: 0.003040801504 | L193: -0.0001416317929 | M193: -0.0008344877715 | N193: 5.900064987e-07
A194: 94.5266 | B194: ='DF raw data'!D199 -> 5.6120325e-06 | C194: ='DF raw data'!E199 -> -6.4769524e-06 | D194: ='DF raw data'!F199 -> -3.2428441e-06 | F194: 5.620607686e-06 | G194: -6.501463367e-06 | H194: -3.247799166e-06 | J194: 9.85813808e-05 | K194: 0.003090111911 | L194: -0.0001448838249 | M194: -0.0009069586607 | N194: 6.053674463e-07
A195: 95.0268 | B195: ='DF raw data'!D200 -> 3.5334517e-06 | C195: ='DF raw data'!E200 -> -3.7882614e-06 | D195: ='DF raw data'!F200 -> -3.7575744e-06 | F195: 3.538850814e-06 | G195: -3.802597456e-06 | H195: -3.763315974e-06 | J195: 0.000100351514 | K195: 0.003140307738 | L195: -0.0001467858841 | M195: -0.00098038096 | N195: 6.211820307e-07
A196: 95.527 | B196: ='DF raw data'!D201 -> -5.8852385e-07 | C196: ='DF raw data'!E201 -> -1.7205031e-05 | D196: ='DF raw data'!F201 -> -6.1994442e-06 | F196: -5.894231144e-07 | G196: -1.727014063e-05 | H196: -6.208916951e-06 | J196: 0.0001000566845 | K196: 0.003190356092 | L196: -0.0001554244085 | M196: -0.001058124249 | N196: 6.382729077e-07
A197: 96.0272 | B197: ='DF raw data'!D202 -> -3.3081021e-06 | C197: ='DF raw data'!E202 -> -8.134919e-06 | D197: ='DF raw data'!F202 -> 2.0808868e-06 | F197: -3.31315688e-06 | G197: -8.165704271e-06 | H197: 2.084066395e-06 | J197: 9.839944346e-05 | K197: 0.003239575493 | L197: -0.0001595088938 | M197: -0.001137910598 | N197: 6.558427017e-07
A198: 96.5274 | B198: ='DF raw data'!D203 -> -4.2942565e-06 | C198: ='DF raw data'!E203 -> -1.5250699e-06 | D198: ='DF raw data'!F203 -> 7.2835455e-06 | F198: -4.300818124e-06 | G198: -1.530841278e-06 | H198: 7.294674758e-06 | J198: 9.624817424e-05 | K198: 0.00328771883 | L198: -0.0001602746206 | M198: -0.001218079963 | N198: 6.733255245e-07
A199: 97.0276 | B199: ='DF raw data'!D204 -> -4.7593649e-06 | C199: ='DF raw data'!E204 -> -1.4995854e-06 | D199: ='DF raw data'!F204 -> 2.2324305e-06 | F199: -4.76663721e-06 | G199: =(1-$G$1*($B$2-$G$2))*C199*$M$2/$M$1 -> -1.505260336e-06 | H199: 2.235841654e-06 | J199: 9.38639023e-05 | K199: 0.003334669554 | L199: -0.0001610275518 | M199: -0.001298625944 | N199: 6.907026249e-07
A200: =A199+$B$1 -> 97.5278 | B200: ='DF raw data'!D205 -> -4.5128554e-06 | C200: ='DF raw data'!E205 -> -9.0774483e-06 | D200: ='DF raw data'!F205 -> -9.7136881e-06 | F200: -4.519751043e-06 | G200: -9.111800419e-06 | H200: -9.728530615e-06 | J200: =F200*$B$1+J199 -> 9.160312283e-05 | K200: =J200*$B$1+K199 -> 0.003380489436 | L200: =G200*$B$1+L199 -> -0.0001655852743 | M200: =L200*$B$1+M199 -> -0.001381451699 | N200: =(J200^2+L200^2)*$B$1+N199 -> 7.086145944e-07
A201: 98.028 | B201: ='DF raw data'!D206 -> -4.3186164e-06 | C201: ='DF raw data'!E206 -> -4.8937059e-06 | D201: ='DF raw data'!F206 -> -1.12465e-05 | F201: -4.325215246e-06 | G201: -4.91222533e-06 | H201: -1.126368465e-05 | J201: 8.943965017e-05 | K201: 0.003425227149 | L201: -0.0001680423695 | M201: -0.001465506492 | N201: 7.267406864e-07
... 1002 more rows

Sheet 10 y=0
A1: dz | B1: ='DF raw data'!H7 -> 0.50019 | C1: mm | F1: T_coeff | G1: -0.0008 | H1: /degC | L1: Hallref | M1: ='PI vs y'!B44 -> 0.50535 | N1: T | P1: IBy total | Q1: =L1203*1000 -> 7.837929472 | R1: muTm | X1: DF ref | Y1: 20
A2: Tref | B2: ='DF raw data'!H8 -> 21.9 | C2: degC | F2: Tcorr | G2: 20 | H2: degC | L2: NMRref | M2: ='PI vs y'!B45 -> 0.5064885 | N2: T | P2: JBy total | Q2: =M1203 -> 3.174512727 | R2: muTm^2
A3: Encoder | B3: ='DF raw data'!H9 -> 17889674 | P3: PI total | Q3: =N1203 -> 690.0235705 | R3: T^2mm^3
A5: z [mm] | B5: Bx | C5: By | D5: Bz | F5: Bx_corr | G5: By_corr | H5: Bz_corr | J5: Ix | K5: Jx | L5: Iy | M5: Jy | N5: PI
A6: ='PI vs y'!B53 -> 0.489 | B6: ='DF raw data'!G11 -> -2.8877062e-06 | C6: ='DF raw data'!H11 -> 8.7582401e-07 | D6: ='DF raw data'!I11 -> -2.821032e-06 | F6: =(1-$G$1*($B$2-$G$2))*B6 -> -2.892095513e-06 | G6: =(1-$G$1*($B$2-$G$2))*C6*$M$2/$M$1 -> 8.791314004e-07 | H6: =(1-$G$1*($B$2-$G$2))*D6 -> -2.825319969e-06 | J6: =F6*$B$1 -> -1.446597255e-06 | K6: =J6*$B$1 -> -7.235734809e-07 | L6: =G6*$B$1 -> 4.397327351e-07 | M6: =L6*$B$1 -> 2.199499168e-07 | N6: =(J6^2+L6^2)*$B$1 -> 1.14343859e-12
A7: =A6+$B$1 -> 0.98919 | B7: ='DF raw data'!G12 -> -2.6279108e-06 | C7: ='DF raw data'!H12 -> -7.4935283e-06 | D7: ='DF raw data'!I12 -> -1.1054099e-05 | F7: =(1-$G$1*($B$2-$G$2))*B7 -> -2.631905224e-06 | G7: =(1-$G$1*($B$2-$G$2))*C7*$M$2/$M$1 -> -7.521826249e-06 | H7: -1.107090123e-05 | J7: =F7*$B$1+J6 -> -2.763049929e-06 | K7: =J7*$B$1+K6 -> -2.105623425e-06 | L7: =G7*$B$1+L6 -> -3.322609536e-06 | M7: =L7*$B$1+M6 -> -1.441986147e-06 | N7: =(J7^2+L7^2)*$B$1+N6 -> 1.04840762e-11
A8: =A7+$B$1 -> 1.48938 | B8: ='DF raw data'!G13 -> -3.0255419e-06 | C8: ='DF raw data'!H13 -> 4.152128e-06 | D8: ='DF raw data'!I13 -> -6.9932989e-06 | F8: -3.030140724e-06 | G8: 4.167807758e-06 | H8: -7.003928714e-06 | J8: =F8*$B$1+J7 -> -4.278696018e-06 | K8: =J8*$B$1+K7 -> -4.245784386e-06 | L8: =G8*$B$1+L7 -> -1.237913774e-06 | M8: =L8*$B$1+M7 -> -2.061178238e-06 | N8: =(J8^2+L8^2)*$B$1+N7 -> 2.04076808e-11
A9: 1.98957 | B9: ='DF raw data'!G14 -> -3.3811179e-06 | C9: ='DF raw data'!H14 -> 1.4724096e-05 | D9: ='DF raw data'!I14 -> -1.3647638e-06 | F9: -3.386257199e-06 | G9: 1.477969888e-05 | H9: -1.366838241e-06 | J9: -5.972468006e-06 | K9: -7.233153158e-06 | L9: 6.154743806e-06 | M9: 1.017363067e-06 | N9: 5.719727824e-11
A10: 2.48976 | B10: ='DF raw data'!G15 -> -3.3732454e-06 | C10: ='DF raw data'!H15 -> 1.3518048e-05 | D10: ='DF raw data'!I15 -> -6.2487647e-06 | F10: -3.378372733e-06 | G10: 1.356909645e-05 | H10: -6.258262822e-06 | J10: -7.662296263e-06 | K10: -1.106575713e-05 | L10: 1.294187016e-05 | M10: 7.490757103e-06 | N10: 1.703416504e-10
A11: 2.98995 | B11: ='DF raw data'!G16 -> -3.0520409e-06 | C11: ='DF raw data'!H16 -> 5.3529725e-06 | D11: ='DF raw data'!I16 -> -2.210259e-06 | F11: -3.056680002e-06 | G11: 5.373187029e-06 | H11: -2.213618594e-06 | J11: -9.191217034e-06 | K11: -1.566311197e-05 | L11: 1.562948458e-05 | M11: 1.5308469e-05 | N11: 3.347837441e-10
A12: 3.49014 | B12: ='DF raw data'!G17 -> -2.8830932e-06 | C12: ='DF raw data'!H17 -> 7.2325463e-08 | D12: ='DF raw data'!I17 -> -6.495216e-06 | F12: -2.887475502e-06 | G12: 7.259858698e-08 | H12: -6.505088728e-06 | J12: -1.06355034e-05 | K12: -2.098288442e-05 | L12: 1.566579767e-05 | M12: 2.314434433e-05 | N12: 5.141174397e-10
A13: 3.99033 | B13: ='DF raw data'!G18 -> -2.9254829e-06 | C13: ='DF raw data'!H18 -> 1.8035432e-06 | D13: ='DF raw data'!I18 -> -3.4971576e-06 | F13: -2.929929634e-06 | G13: 1.810353953e-06 | H13: -3.50247328e-06 | J13: -1.210102491e-05 | K13: -2.703569607e-05 | L13: 1.657131861e-05 | M13: 3.143315219e-05 | N13: 7.247191401e-10
A14: 4.49052 | B14: ='DF raw data'!G19 -> -2.8555319e-06 | C14: ='DF raw data'!H19 -> 4.1563334e-07 | D14: ='DF raw data'!I19 -> -8.1649125e-07 | F14: -2.859872308e-06 | G14: 4.172029038e-07 | H14: -8.177323167e-07 | J14: -1.353150444e-05 | K14: -3.380401928e-05 | L14: 1.677999933e-05 | M14: 3.982634005e-05 | N14: 9.571424224e-10
A15: 4.99071 | B15: ='DF raw data'!G20 -> -2.8827585e-06 | C15: ='DF raw data'!H20 -> 1.6128758e-06 | D15: ='DF raw data'!I20 -> 1.4521378e-06 | F15: -2.887140293e-06 | G15: 1.618966533e-06 | H15: 1.454345049e-06 | J15: -1.497562314e-05 | K15: -4.129467622e-05 | L15: 1.75897902e-05 | M15: 4.862457722e-05 | N15: 1.224078824e-09
A16: 5.4909 | B16: ='DF raw data'!G21 -> -3.1300683e-06 | C16: ='DF raw data'!H21 -> 7.6874148e-06 | D16: ='DF raw data'!I21 -> -2.5058957e-06 | F16: -3.134826004e-06 | G16: 7.716444926e-06 | H16: -2.509704661e-06 | J16: -1.654363176e-05 | K16: -4.956963539e-05 | L16: 2.144947879e-05 | M16: 5.935339201e-05 | N16: 1.591104186e-09
A17: 5.99109 | B17: ='DF raw data'!G22 -> -3.5404469e-06 | C17: ='DF raw data'!H22 -> 1.9416597e-05 | D17: ='DF raw data'!I22 -> 1.3872508e-06 | F17: -3.545828379e-06 | G17: 1.948992025e-05 | H17: 1.389359421e-06 | J17: -1.831721966e-05 | K17: -5.873172549e-05 | L17: 3.1198142e-05 | M17: 7.495839066e-05 | N17: 2.245775167e-09
A18: 6.49128 | B18: ='DF raw data'!G23 -> -2.9031894e-06 | C18: ='DF raw data'!H23 -> 1.3346801e-06 | D18: ='DF raw data'!I23 -> -2.3335137e-06 | F18: -2.907602248e-06 | G18: 1.339720277e-06 | H18: -2.337060641e-06 | J18: -1.977157323e-05 | K18: -6.86212687e-05 | L18: 3.186825669e-05 | M18: 9.089857397e-05 | N18: 2.949292848e-09
A19: 6.99147 | B19: ='DF raw data'!G24 -> -3.1919431e-06 | C19: ='DF raw data'!H24 -> 7.9625415e-06 | D19: ='DF raw data'!I24 -> -9.9845765e-06 | F19: -3.196794854e-06 | G19: 7.992610592e-06 | H19: -9.999753056e-06 | J19: -2.137057804e-05 | K19: -7.931061813e-05 | L19: 3.586608058e-05 | M19: 0.0001088384288 | N19: 3.821162704e-09
A20: 7.49166 | B20: ='DF raw data'!G25 -> -3.0275501e-06 | C20: ='DF raw data'!H25 -> 3.6527101e-06 | D20: ='DF raw data'!I25 -> -9.2850223e-06 | F20: -3.032151976e-06 | G20: 3.666503896e-06 | H20: -9.299135534e-06 | J20: -2.288723014e-05 | K20: -9.075858177e-05 | L20: 3.770002916e-05 | M20: 0.0001276956064 | N20: 4.794091028e-09
A21: 7.99185 | B21: ='DF raw data'!G26 -> -3.1109762e-06 | C21: ='DF raw data'!H26 -> 5.937517e-06 | D21: ='DF raw data'!I26 -> -9.3864492e-06 | F21: -3.115704884e-06 | G21: 5.959938955e-06 | H21: -9.400716603e-06 | J21: -2.444567457e-05 | K21: -0.0001029860637 | L21: 4.068113103e-05 | M21: 0.0001480439013 | N21: 5.920791725e-09
A22: 8.49204 | B22: ='DF raw data'!G27 -> -3.8916864e-06 | C22: ='DF raw data'!H27 -> 8.9046707e-06 | D22: ='DF raw data'!I27 -> -7.6102565e-06 | F22: -3.897601763e-06 | G22: 8.938297572e-06 | H22: -7.62182409e-06 | J22: -2.639521599e-05 | K22: -0.0001161886868 | L22: 4.515197809e-05 | M22: 0.0001706284693 | N22: 7.289015729e-09
A23: 8.99223 | B23: ='DF raw data'!G28 -> -5.1046613e-06 | C23: ='DF raw data'!H28 -> 8.9539053e-06 | D23: ='DF raw data'!I28 -> -5.4152456e-06 | F23: =(1-$G$1*($B$2-$G$2))*B23 -> -5.112420385e-06 | G23: 8.987718098e-06 | H23: -5.423476773e-06 | J23: -2.895239754e-05 | K23: -0.0001306703866 | L23: 4.964754481e-05 | M23: 0.0001954616747 | N23: 8.941203336e-09
A24: 9.49242 | B24: ='DF raw data'!G29 -> -1.9134263e-06 | C24: ='DF raw data'!H29 -> 2.5842253e-06 | D24: ='DF raw data'!I29 -> -3.4851087e-06 | F24: -1.916334708e-06 | G24: 2.593984158e-06 | H24: -3.490406065e-06 | J24: -2.9910929e-05 | K24: -0.0001456315341 | L24: 5.094502974e-05 | M24: 0.0002209438691 | N24: 1.068689631e-08
A25: 9.99261 | B25: ='DF raw data'!G30 -> 6.7979759e-06 | C25: ='DF raw data'!H30 -> -4.2359047e-06 | D25: ='DF raw data'!I30 -> -3.4113013e-06 | F25: 6.808308823e-06 | G25: -4.251900825e-06 | H25: -3.416486478e-06 | J25: -2.650548101e-05 | K25: -0.0001588893107 | L25: 4.881827147e-05 | M25: 0.0002453622803 | N25: 1.223036468e-08
A26: 10.4928 | B26: ='DF raw data'!G31 -> 1.0683934e-05 | C26: ='DF raw data'!H31 -> 3.0488872e-07 | D26: ='DF raw data'!I31 -> 5.1572738e-06 | F26: 1.070017358e-05 | G26: 3.060400769e-07 | H26: 5.165112856e-06 | J26: -2.115336119e-05 | K26: -0.0001694700104 | L26: 4.897134966e-05 | M26: 0.0002698572597 | N26: 1.365373425e-08
A27: 10.99299 | B27: ='DF raw data'!G32 -> 6.3067032e-06 | C27: ='DF raw data'!H32 -> 8.703534e-07 | D27: ='DF raw data'!I32 -> 5.9756881e-06 | F27: 6.316289389e-06 | G27: 8.736401316e-07 | H27: 5.984771146e-06 | J27: -1.79940164e-05 | K27: -0.0001784704375 | L27: 4.940833571e-05 | M27: 0.0002945708152 | N27: 1.503674372e-08
A28: 11.49318 | B28: ='DF raw data'!G33 -> 5.5051109e-06 | C28: ='DF raw data'!H33 -> -1.1090992e-05 | D28: ='DF raw data'!I33 -> 4.4051777e-07 | F28: 5.513478669e-06 | G28: -1.113287512e-05 | H28: 4.41187357e-07 | J28: -1.52362295e-05 | K28: -0.0001860914471 | L28: 4.383978291e-05 | M28: 0.0003164990362 | N28: 1.611418762e-08
A29: 11.99337 | B29: ='DF raw data'!G34 -> 7.7745262e-06 | C29: ='DF raw data'!H34 -> 6.3875668e-06 | D29: ='DF raw data'!I34 -> 1.5121062e-06 | F29: 7.78634348e-06 | G29: 6.411688286e-06 | H29: 1.514404601e-06 | J29: -1.134157836e-05 | K29: -0.0001917643912 | L29: 4.704684527e-05 | M29: 0.0003400313977 | N29: 1.728565114e-08
A30: 12.49356 | B30: ='DF raw data'!G35 -> 5.9908393e-06 | C30: ='DF raw data'!H35 -> 5.6777344e-06 | D30: ='DF raw data'!I35 -> 6.3583016e-06 | F30: 5.999945376e-06 | G30: 5.699175333e-06 | H30: 6.367966218e-06 | J30: -8.340465682e-06 | K30: -0.0001959362087 | L30: 4.989751578e-05 | M30: 0.0003649896361 | N30: 1.856580013e-08
A31: 12.99375 | B31: ='DF raw data'!G36 -> 3.7959157e-06 | C31: ='DF raw data'!H36 -> 2.1587264e-06 | D31: ='DF raw data'!I36 -> 6.3450011e-06 | F31: 3.801685492e-06 | G31: 2.166878438e-06 | H31: 6.354645502e-06 | J31: -6.438900616e-06 | K31: -0.0001991568824 | L31: 5.098136671e-05 | M31: 0.0003904900059 | N31: 1.988658143e-08
A32: 13.49394 | B32: ='DF raw data'!G37 -> 5.9964564e-06 | C32: ='DF raw data'!H37 -> -3.3974477e-06 | D32: ='DF raw data'!I37 -> -2.184313e-06 | F32: 6.005571014e-06 | G32: -3.410277544e-06 | H32: -2.187633156e-06 | J32: -3.43497405e-06 | K32: -0.0002008750221 | L32: 4.927557998e-05 | M32: 0.0004151371583 | N32: 2.110698593e-08
A33: 13.99413 | B33: ='DF raw data'!G38 -> 3.7870391e-06 | C33: ='DF raw data'!H38 -> -6.8921722e-06 | D33: ='DF raw data'!I38 -> 2.1311303e-06 | F33: 3.792795399e-06 | G33: -6.918199237e-06 | H33: 2.134369618e-06 | J33: -1.53785572e-06 | K33: -0.0002016442421 | L33: 4.581516591e-05 | M33: 0.0004380534461 | N33: 2.215808241e-08
A34: 14.49432 | B34: ='DF raw data'!G39 -> -8.1613905e-07 | C34: ='DF raw data'!H39 -> -8.9995802e-07 | D34: ='DF raw data'!I39 -> 3.7696905e-06 | F34: -8.173795814e-07 | G34: -9.033565481e-07 | H34: 3.77542043e-06 | J34: -1.946700812e-06 | K34: -0.0002026179624 | L34: 4.536331599e-05 | M34: 0.0004607437231 | N34: 2.318928415e-08
A35: 14.99451 | B35: ='DF raw data'!G40 -> -1.9554086e-06 | C35: ='DF raw data'!H40 -> -6.6638781e-06 | D35: ='DF raw data'!I40 -> -4.8677734e-06 | F35: -1.958380821e-06 | G35: -6.689043026e-06 | H35: -4.875172416e-06 | J35: -2.926263315e-06 | K35: -0.0002040816501 | L35: 4.201752356e-05 | M35: 0.0004817604683 | N35: 2.407663887e-08
A36: 15.4947 | B36: ='DF raw data'!G41 -> -3.7015802e-06 | C36: ='DF raw data'!H41 -> 5.6318354e-06 | D36: ='DF raw data'!I41 -> 1.8366285e-06 | F36: -3.707206602e-06 | G36: 5.653103004e-06 | H36: 1.839420175e-06 | J36: -4.780570986e-06 | K36: -0.0002064728439 | L36: 4.484514916e-05 | M36: 0.0005041915634 | N36: 2.509399595e-08
A37: 15.99489 | B37: ='DF raw data'!G42 -> 1.1535813e-07 | C37: ='DF raw data'!H42 -> 2.7105809e-06 | D37: ='DF raw data'!I42 -> -1.8973514e-08 | F37: 1.155334744e-07 | G37: 2.720816917e-06 | H37: -1.900235374e-08 | J37: -4.722782297e-06 | K37: -0.0002088351323 | L37: 4.620607457e-05 | M37: 0.0005273033799 | N37: 2.617305884e-08
A38: 16.49508 | B38: ='DF raw data'!G43 -> 4.0773352e-06 | C38: ='DF raw data'!H43 -> -3.3117879e-06 | D38: ='DF raw data'!I43 -> -1.0028431e-06 | F38: 4.08353275e-06 | G38: -3.324294266e-06 | H38: -1.004367422e-06 | J38: -2.680240051e-06 | K38: -0.0002101757616 | L38: 4.454329582e-05 | M38: 0.000549583491 | N38: 2.716908163e-08
A39: 16.99527 | B39: ='DF raw data'!G44 -> 2.9940616e-06 | C39: ='DF raw data'!H44 -> 7.3966767e-06 | D39: ='DF raw data'!I44 -> 1.9772583e-06 | F39: 2.998612574e-06 | G39: 7.424608907e-06 | H39: 1.980263733e-06 | J39: -1.180364028e-06 | K39: -0.0002107661679 | L39: 4.825701095e-05 | M39: 0.0005737211653 | N39: 2.833459054e-08
A40: 17.49546 | B40: ='DF raw data'!G45 -> 3.4647142e-06 | C40: ='DF raw data'!H45 -> 1.9934822e-07 | D40: ='DF raw data'!I45 -> 2.1281908e-06 | F40: 3.469980566e-06 | G40: 2.001010224e-07 | H40: 2.13142565e-06 | J40: 5.552855513e-07 | K40: -0.0002104884196 | L40: 4.835709948e-05 | M40: 0.0005979089029 | N40: 2.95043936e-08
A41: 17.99565 | B41: ='DF raw data'!G46 -> 2.1857172e-06 | C41: ='DF raw data'!H46 -> 7.9872252e-06 | D41: ='DF raw data'!I46 -> -1.4689118e-06 | F41: 2.18903949e-06 | G41: 8.017387506e-06 | H41: -1.471144546e-06 | J41: 1.650221214e-06 | K41: -0.0002096629955 | L41: 5.236731654e-05 | M41: 0.0006241025109 | N41: 3.08774447e-08
A42: 18.49584 | B42: ='DF raw data'!G47 -> -2.0921821e-06 | C42: ='DF raw data'!H47 -> 4.5537436e-06 | D42: ='DF raw data'!I47 -> 7.5079367e-07 | F42: -2.095362217e-06 | G42: 4.570939986e-06 | H42: 7.519348764e-07 | J42: 6.021419866e-07 | K42: -0.0002093618101 | L42: 5.465365501e-05 | M42: 0.0006514397226 | N42: 3.237170459e-08
A43: 18.99603 | B43: ='DF raw data'!G48 -> -2.4331334e-06 | C43: ='DF raw data'!H48 -> -1.4658228e-06 | D43: ='DF raw data'!I48 -> 1.0241873e-05 | F43: -2.436831763e-06 | G43: -1.471358214e-06 | H43: 1.025744065e-05 | J43: -6.167368928e-07 | K43: -0.0002096702957 | L43: 5.391769634e-05 | M43: 0.0006784088152 | N43: 3.382600619e-08
A44: 19.49622 | B44: ='DF raw data'!G49 -> 2.7480178e-06 | C44: ='DF raw data'!H49 -> -7.7186843e-07 | D44: ='DF raw data'!I49 -> 1.2499719e-05 | F44: 2.752194787e-06 | G44: -7.74783251e-07 | H44: 1.251871857e-05 | J44: 7.598834178e-07 | K44: -0.0002092902096 | L44: 5.353015751e-05 | M44: 0.0007051840647 | N44: 3.525957833e-08
A45: 19.99641 | B45: ='DF raw data'!G50 -> 5.8439232e-06 | C45: ='DF raw data'!H50 -> 8.3913765e-06 | D45: ='DF raw data'!I50 -> 8.4998774e-06 | F45: 5.852805963e-06 | G45: 8.42306501e-06 | H45: 8.512797214e-06 | J45: 3.687398433e-06 | K45: -0.0002074458098 | L45: 5.77432904e-05 | M45: 0.0007340666811 | N45: 3.693415667e-08
A46: 20.4966 | B46: ='DF raw data'!G51 -> 6.3536913e-06 | C46: ='DF raw data'!H51 -> 4.1245085e-06 | D46: ='DF raw data'!I51 -> 7.2559947e-06 | F46: 6.363348911e-06 | G46: 4.140083957e-06 | H46: 7.267023812e-06 | J46: 6.870281924e-06 | K46: -0.0002040093635 | L46: 5.981411899e-05 | M46: 0.0007639851053 | N46: 3.874731021e-08
A47: 20.99679 | B47: ='DF raw data'!G52 -> 8.9958996e-07 | C47: ='DF raw data'!H52 -> 1.4458577e-05 | D47: ='DF raw data'!I52 -> 5.5582664e-06 | F47: 9.009573367e-07 | G47: 1.451317719e-05 | H47: 5.566714965e-06 | J47: 7.320931774e-06 | K47: -0.0002003475066 | L47: 6.707346509e-05 | M47: 0.0007975345818 | N47: 4.102439806e-08
A48: 21.49698 | B48: ='DF raw data'!G53 -> -4.7447343e-06 | C48: ='DF raw data'!H53 -> 7.4721966e-06 | D48: ='DF raw data'!I53 -> 2.1264009e-06 | F48: -4.751946296e-06 | G48: 7.500413994e-06 | H48: 2.129633029e-06 | J48: 4.944055757e-06 | K48: -0.0001978745394 | L48: 7.082509716e-05 | M48: 0.0008329605871 | N48: 4.354567482e-08
A49: 21.99717 | B49: ='DF raw data'!G54 -> -4.6161099e-06 | C49: ='DF raw data'!H54 -> 4.9386813e-06 | D49: ='DF raw data'!I54 -> 4.1158369e-06 | F49: -4.623126387e-06 | G49: 4.957331333e-06 | H49: 4.122092972e-06 | J49: 2.631614169e-06 | K49: -0.0001965582323 | L49: 7.330470472e-05 | M49: 0.0008696268674 | N49: 4.623694968e-08
A50: 22.49736 | B50: ='DF raw data'!G55 -> -2.158728e-06 | C50: ='DF raw data'!H55 -> 3.0081235e-06 | D50: ='DF raw data'!I55 -> 1.1031974e-06 | F50: -2.162009267e-06 | G50: 3.019483132e-06 | H50: 1.10487426e-06 | J50: 1.550198754e-06 | K50: -0.0001957828384 | L50: 7.481501999e-05 | M50: 0.0009070485922 | N50: 4.903785878e-08
A51: 22.99755 | B51: ='DF raw data'!G56 -> 1.0913697e-06 | C51: ='DF raw data'!H56 -> -4.4045569e-06 | D51: ='DF raw data'!I56 -> 2.8191594e-06 | F51: 1.093028582e-06 | G51: -4.421189909e-06 | H51: 2.823444522e-06 | J51: 2.09692072e-06 | K51: -0.0001947339796 | L51: 7.260358501e-05 | M51: 0.0009433641794 | N51: 5.167669998e-08
A52: 23.49774 | B52: ='DF raw data'!G57 -> 7.8724918e-07 | C52: ='DF raw data'!H57 -> -2.5178963e-06 | D52: ='DF raw data'!I57 -> -1.2060897e-06 | F52: 7.884457988e-07 | G52: -2.527404678e-06 | H52: -1.207922956e-06 | J52: 2.491293425e-06 | K52: -0.0001934878595 | L52: 7.133940247e-05 | M52: 0.0009790474351 | N52: 5.422542657e-08
A53: 23.99793 | B53: ='DF raw data'!G58 -> -2.5952709e-06 | C53: ='DF raw data'!H58 -> 2.4510653e-06 | D53: ='DF raw data'!I58 -> 7.9976035e-06 | F53: -2.599215712e-06 | G53: 2.460321303e-06 | H53: 8.009759857e-06 | J53: 1.191191718e-06 | K53: -0.0001928920373 | L53: 7.257003058e-05 | M53: 0.001015346239 | N53: 5.68603416e-08
A54: 24.49812 | B54: ='DF raw data'!G59 -> -4.5873408e-06 | C54: ='DF raw data'!H59 -> -7.6839287e-06 | D54: ='DF raw data'!I59 -> 8.8454999e-06 | F54: -4.594313558e-06 | G54: -7.712945662e-06 | H54: 8.85894506e-06 | J54: -1.106837981e-06 | K54: -0.0001934456666 | L54: 6.871209229e-05 | M54: 0.00104971534 | N54: 5.922252724e-08
A55: 24.99831 | B55: ='DF raw data'!G60 -> 1.3041623e-06 | C55: ='DF raw data'!H60 -> -6.3866169e-06 | D55: ='DF raw data'!I60 -> 5.3072895e-06 | F55: 1.306144627e-06 | G55: -6.410734799e-06 | H55: 5.31535658e-06 | J55: -4.535175001e-07 | K55: -0.0001936725115 | L55: 6.550550685e-05 | M55: 0.00108248054 | N55: 6.136893112e-08
A56: 25.4985 | B56: ='DF raw data'!G61 -> 2.8825211e-06 | C56: ='DF raw data'!H61 -> -8.9195265e-07 | D56: ='DF raw data'!I61 -> 4.8491224e-06 | F56: 2.886902532e-06 | G56: -8.953209472e-07 | H56: 4.856493066e-06 | J56: 9.904822774e-07 | K56: -0.0001931770822 | L56: 6.505767626e-05 | M56: 0.001115021739 | N56: 6.348647663e-08
A57: 25.99869 | B57: ='DF raw data'!G62 -> 5.7566433e-07 | C57: ='DF raw data'!H62 -> -2.372861e-06 | D57: ='DF raw data'!I62 -> 1.6800935e-06 | F57: 5.765393398e-07 | G57: -2.381821679e-06 | H57: 1.682647242e-06 | J57: 1.27886149e-06 | K57: -0.0001925374085 | L57: 6.386631288e-05 | M57: 0.00114696703 | N57: 6.552752264e-08
A58: 26.49888 | B58: ='DF raw data'!G63 -> 1.991682e-06 | C58: ='DF raw data'!H63 -> -6.9961129e-06 | D58: ='DF raw data'!I63 -> 5.0070544e-06 | F58: 1.994709357e-06 | G58: -7.02253245e-06 | H58: 5.014665123e-06 | J58: 2.276595163e-06 | K58: -0.0001913986783 | L58: 6.035371237e-05 | M58: 0.001177155353 | N58: 6.735209245e-08
A59: 26.99907 | B59: ='DF raw data'!G64 -> -1.2853219e-06 | C59: ='DF raw data'!H64 -> -4.1645212e-06 | D59: ='DF raw data'!I64 -> 6.5042912e-07 | F59: -1.287275589e-06 | G59: -4.180247758e-06 | H59: 6.514177723e-07 | J59: 1.632712786e-06 | K59: -0.0001905820117 | L59: 5.826279425e-05 | M59: 0.00120629782 | N59: 6.90513474e-08
A60: 27.49926 | B60: ='DF raw data'!G65 -> -7.1549971e-06 | C60: ='DF raw data'!H65 -> -4.2076176e-06 | D60: ='DF raw data'!I65 -> -7.0702349e-06 | F60: -7.165872696e-06 | G60: -4.223506904e-06 | H60: -7.080981657e-06 | J60: -1.951585078e-06 | K60: -0.0001915581751 | L60: 5.615023833e-05 | M60: 0.001234383608 | N60: 7.063027613e-08
A61: 27.99945 | B61: ='DF raw data'!G66 -> -5.9130639e-06 | C61: ='DF raw data'!H66 -> -3.2425389e-06 | D61: ='DF raw data'!I66 -> 4.4034118e-06 | F61: -5.922051757e-06 | G61: -3.254783759e-06 | H61: 4.410104986e-06 | J61: -4.913736146e-06 | K61: -0.0001940159768 | L61: 5.452222804e-05 | M61: 0.001261655081 | N61: 7.212925461e-08
A62: 28.49964 | B62: ='DF raw data'!G67 -> -2.4350106e-06 | C62: ='DF raw data'!H67 -> -2.18633e-06 | D62: ='DF raw data'!I67 -> 1.3418701e-05 | F62: -2.438711816e-06 | G62: -2.194586278e-06 | H62: 1.343909743e-05 | J62: -6.133555409e-06 | K62: -0.0001970839198 | L62: 5.342451793e-05 | M62: 0.001288377491 | N62: 7.357570386e-08
A63: 28.99983 | B63: ='DF raw data'!G68 -> -5.8704704e-06 | C63: ='DF raw data'!H68 -> 7.1197582e-07 | D63: ='DF raw data'!I68 -> 1.1392929e-05 | F63: -5.879393515e-06 | G63: 7.146644674e-07 | H63: 1.141024625e-05 | J63: -9.074369252e-06 | K63: -0.0002016228286 | L63: 5.378198595e-05 | M63: 0.001315278702 | N63: 7.506369217e-08
A64: 29.50002 | B64: ='DF raw data'!G69 -> -2.9075259e-06 | C64: ='DF raw data'!H69 -> -3.8142746e-06 | D64: ='DF raw data'!I69 -> 1.7071164e-06 | F64: -2.911945339e-06 | G64: -3.828678515e-06 | H64: 1.709711217e-06 | J64: -1.053089519e-05 | K64: -0.0002068902771 | L64: 5.186691924e-05 | M64: 0.001341222017 | N64: 7.646476291e-08
A65: 30.00021 | B65: ='DF raw data'!G70 -> 6.3368111e-06 | C65: ='DF raw data'!H70 -> 1.8360521e-05 | D65: ='DF raw data'!I70 -> -8.9108635e-06 | F65: 6.346443053e-06 | G65: 1.842985617e-05 | H65: -8.924408013e-06 | J65: -7.35646784e-06 | K65: -0.0002105699087 | L65: 6.1085349e-05 | M65: 0.001371776297 | N65: 7.83582509e-08
A66: 30.5004 | B66: ='DF raw data'!G71 -> 7.9702932e-06 | C66: ='DF raw data'!H71 -> 1.1780026e-05 | D66: ='DF raw data'!I71 -> -7.2781527e-06 | F66: 7.982408046e-06 | G66: 1.182451113e-05 | H66: -7.289215492e-06 | J66: -3.36374716e-06 | K66: -0.0002122524214 | L66: 6.699985122e-05 | M66: 0.001405288953 | N66: 8.060925339e-08
A67: 31.00059 | B67: ='DF raw data'!G72 -> 5.7391348e-06 | C67: ='DF raw data'!H72 -> 6.3921034e-06 | D67: ='DF raw data'!I72 -> -3.7063509e-07 | F67: 5.747858285e-06 | G67: 6.416242018e-06 | H67: -3.711984553e-07 | J67: -4.887259245e-07 | K67: -0.0002124968772 | L67: 7.020919132e-05 | M67: 0.001440406888 | N67: 8.307497471e-08
A68: 31.50078 | B68: ='DF raw data'!G73 -> 5.8098863e-06 | C68: ='DF raw data'!H73 -> -1.986856e-06 | D68: ='DF raw data'!I73 -> 3.0970282e-06 | F68: 5.818717327e-06 | G68: -1.994359001e-06 | H68: 3.101735683e-06 | J68: 2.421738295e-06 | K68: -0.0002112855479 | L68: 6.921163289e-05 | M68: 0.001475025855 | N68: 8.547394344e-08
A69: 32.00097 | B69: ='DF raw data'!G74 -> 5.7514167e-06 | C69: ='DF raw data'!H74 -> -2.9473296e-07 | D69: ='DF raw data'!I74 -> 2.0923203e-06 | F69: 5.760158853e-06 | G69: -2.958459655e-07 | H69: 2.095500627e-06 | J69: 5.302912152e-06 | K69: -0.0002086330843 | L69: 6.90636537e-05 | M69: 0.001509570804 | N69: 8.787380961e-08
A70: 32.50116 | B70: ='DF raw data'!G75 -> 8.1405069e-06 | C70: ='DF raw data'!H75 -> -2.5097572e-06 | D70: ='DF raw data'!I75 -> -5.0498616e-06 | F70: 8.15288047e-06 | G70: -2.519234842e-06 | H70: -5.05753739e-06 | J70: 9.380901435e-06 | K70: -0.0002039408512 | L70: 6.780355762e-05 | M70: 0.001543485465 | N70: 9.021736169e-08
A71: 33.00135 | B71: ='DF raw data'!G76 -> 8.1036615e-06 | C71: ='DF raw data'!H76 -> -1.3318292e-05 | D71: ='DF raw data'!I76 -> -4.5421161e-06 | F71: 8.115979065e-06 | G71: =(1-$G$1*($B$2-$G$2))*C71*$M$2/$M$1 -> -1.336858611e-05 | H71: -4.549020116e-06 | J71: 1.3440433e-05 | K71: -0.000197218081 | L71: 6.111672453e-05 | M71: 0.00157405544 | N71: 9.217605534e-08
A72: =A71+$B$1 -> 33.50154 | B72: ='DF raw data'!G77 -> 2.7864639e-06 | C72: ='DF raw data'!H77 -> -1.4804803e-05 | D72: ='DF raw data'!I77 -> 6.6946302e-07 | F72: 2.790699325e-06 | G72: -1.486071065e-05 | H72: 6.704806038e-07 | J72: =F72*$B$1+J71 -> 1.48363129e-05 | K72: =J72*$B$1+K71 -> -0.0001897971057 | L72: =G72*$B$1+L71 -> 5.368354567e-05 | M72: =L72*$B$1+M71 -> 0.001600907413 | N72: =(J72^2+L72^2)*$B$1+N71 -> 9.372766436e-08
A73: 34.00173 | B73: ='DF raw data'!G78 -> 7.273826e-07 | C73: ='DF raw data'!H78 -> -2.0623759e-06 | D73: ='DF raw data'!I78 -> 9.701638e-07 | F73: 7.284882216e-07 | G73: -2.070164088e-06 | H73: 9.71638449e-07 | J73: 1.520069542e-05 | K73: -0.0001821938699 | L73: 5.26480703e-05 | M73: 0.001627241451 | N73: 9.522967513e-08
A74: 34.50192 | B74: ='DF raw data'!G79 -> 3.9577913e-06 | C74: ='DF raw data'!H79 -> 2.146184e-06 | D74: ='DF raw data'!I79 -> -8.8447105e-06 | F74: 3.963807143e-06 | G74: 2.154288674e-06 | H74: -8.85815446e-06 | J74: 1.718335212e-05 | K74: -0.000173598929 | L74: 5.372562395e-05 | M74: 0.001654114471 | N74: 9.682113478e-08
A75: 35.00211 | B75: ='DF raw data'!G80 -> 5.5419564e-06 | C75: ='DF raw data'!H80 -> 9.364e-07 | D75: ='DF raw data'!I80 -> -3.4509699e-06 | F75: 5.550380174e-06 | G75: 9.399361446e-07 | H75: -3.456215374e-06 | J75: 1.995959678e-05 | K75: -0.0001636153382 | L75: 5.419577061e-05 | M75: 0.001681222653 | N75: 9.848955207e-08
A76: 35.5023 | B76: ='DF raw data'!G81 -> 3.2959701e-06 | C76: ='DF raw data'!H81 -> -5.3086592e-06 | D76: ='DF raw data'!I81 -> 6.4971414e-06 | F76: 3.300979975e-06 | G76: -5.328706388e-06 | H76: 6.507017055e-06 | J76: 2.161071395e-05 | K76: -0.0001528058752 | L76: 5.153040496e-05 | M76: 0.001706997646 | N76: 1.000513481e-07
A77: 36.00249 | B77: ='DF raw data'!G82 -> 3.9916972e-06 | C77: ='DF raw data'!H82 -> -9.0348794e-06 | D77: ='DF raw data'!I82 -> 4.1691405e-06 | F77: 3.99776458e-06 | G77: -9.068997982e-06 | H77: 4.175477594e-06 | J77: 2.361035581e-05 | K77: -0.0001409962114 | L77: 4.699418286e-05 | M77: 0.001730503667 | N77: 1.014348247e-07
A78: 36.50268 | B78: ='DF raw data'!G83 -> 3.3940937e-06 | C78: ='DF raw data'!H83 -> 3.1850479e-06 | D78: ='DF raw data'!I83 -> 6.4537476e-06 | F78: 3.399252722e-06 | G78: 3.197075655e-06 | H78: 6.463557296e-06 | J78: 2.531062803e-05 | K78: -0.0001283360883 | L78: 4.859332813e-05 | M78: 0.001754809564 | N78: 1.029363648e-07
A79: 37.00287 | B79: ='DF raw data'!G84 -> -3.2058983e-06 | C79: ='DF raw data'!H84 -> -9.5176192e-06 | D79: ='DF raw data'!I84 -> 9.7486354e-06 | F79: -3.210771265e-06 | G79: -9.553560761e-06 | H79: 9.763453326e-06 | J79: 2.370463235e-05 | K79: -0.0001164792683 | L79: 4.381473258e-05 | M79: 0.001776725255 | N79: 1.041776565e-07
A80: 37.50306 | B80: ='DF raw data'!G85 -> -7.8560061e-06 | C80: ='DF raw data'!H85 -> -7.1084573e-06 | D80: ='DF raw data'!I85 -> -3.9866208e-07 | F80: -7.867947229e-06 | G80: -7.135301098e-06 | H80: -3.992680464e-07 | J80: 1.976916383e-05 | K80: -0.0001065909302 | L80: 4.024572632e-05 | M80: 0.001796855765 | N80: 1.051833077e-07
A81: 38.00325 | B81: ='DF raw data'!G86 -> -3.6122751e-06 | C81: ='DF raw data'!H86 -> 4.6463424e-06 | D81: ='DF raw data'!I86 -> 2.8152354e-07 | F81: -3.617765758e-06 | G81: 4.663888468e-06 | H81: 2.819514558e-07 | J81: 1.795959358e-05 | K81: -9.76077211e-05 | L81: 4.257855669e-05 | M81: 0.001818153133 | N81: 1.062514536e-07
A82: 38.50344 | B82: ='DF raw data'!G87 -> -1.3136108e-06 | C82: ='DF raw data'!H87 -> 1.0008514e-05 | D82: ='DF raw data'!I87 -> 3.9431202e-06 | F82: -1.315607488e-06 | G82: 1.004630934e-05 | H82: 3.949113743e-06 | J82: 1.730153987e-05 | K82: -8.895366387e-05 | L82: 4.760362016e-05 | M82: 0.001841963988 | N82: 1.07534665e-07
A83: 39.00363 | B83: ='DF raw data'!G88 -> -2.4881397e-06 | C83: ='DF raw data'!H88 -> 7.9908277e-06 | D83: ='DF raw data'!I88 -> 9.3318104e-06 | F83: -2.491921672e-06 | G83: 8.02100361e-06 | H83: 9.345994752e-06 | J83: 1.605510556e-05 | K83: -8.092306062e-05 | L83: 5.161564595e-05 | M83: 0.001867781618 | N83: 1.089961909e-07
A84: 39.50382 | B84: ='DF raw data'!G89 -> -6.7824681e-06 | C84: ='DF raw data'!H89 -> 8.4522189e-06 | D84: ='DF raw data'!I89 -> 1.0299644e-05 | F84: -6.792777452e-06 | G84: 8.48413717e-06 | H84: 1.031529946e-05 | J84: 1.265742621e-05 | K84: -7.459194261e-05 | L84: 5.585932653e-05 | M84: 0.001895721894 | N84: 1.106370516e-07
A85: 40.00401 | B85: ='DF raw data'!G90 -> -6.8561008e-06 | C85: ='DF raw data'!H90 -> -3.1595475e-06 | D85: ='DF raw data'!I90 -> 4.6232476e-06 | F85: -6.866522073e-06 | G85: -3.171478957e-06 | H85: 4.630274936e-06 | J85: 9.222860536e-06 | K85: -6.997875999e-05 | L85: 5.427298447e-05 | M85: 0.001922868698 | N85: 1.121529364e-07
A86: 40.5042 | B86: ='DF raw data'!G91 -> -3.0343458e-06 | C86: ='DF raw data'!H91 -> 8.1287917e-06 | D86: ='DF raw data'!I91 -> 6.6864909e-06 | F86: -3.038958006e-06 | G86: 8.159488606e-06 | H86: 6.696654366e-06 | J86: 7.702804131e-06 | K86: -6.61258944e-05 | L86: 5.835427907e-05 | M86: 0.001952056925 | N86: 1.138858722e-07
A87: 41.00439 | B87: ='DF raw data'!G92 -> 5.5169733e-07 | C87: ='DF raw data'!H92 -> 7.4633904e-06 | D87: ='DF raw data'!I92 -> 3.1827535e-06 | F87: =(1-$G$1*($B$2-$G$2))*B87 -> 5.525359099e-07 | G87: 7.491574539e-06 | H87: 3.187591285e-06 | J87: 7.979177068e-06 | K87: -6.213478982e-05 | L87: 6.210148974e-05 | M87: 0.001983119469 | N87: 1.158467482e-07
A88: 41.50458 | B88: ='DF raw data'!G93 -> -9.559684e-07 | C88: ='DF raw data'!H93 -> 3.0481517e-06 | D88: ='DF raw data'!I93 -> -2.4493906e-06 | F88: -9.57421472e-07 | G88: 3.059662491e-06 | H88: -2.453113674e-06 | J88: 7.500284421e-06 | K88: -5.838322255e-05 | L88: 6.363190232e-05 | M88: 0.00201494751 | N88: 1.179001648e-07
A89: 42.00477 | B89: ='DF raw data'!G94 -> 9.9544343e-07 | C89: ='DF raw data'!H94 -> 4.5912366e-06 | D89: ='DF raw data'!I94 -> -1.6982646e-06 | F89: 9.96956504e-07 | G89: 4.608574571e-06 | H89: -1.700845962e-06 | J89: 7.998952095e-06 | K89: -5.438222671e-05 | L89: 6.593706524e-05 | M89: 0.002047928571 | N89: 1.201068429e-07
A90: 42.50496 | B90: ='DF raw data'!G95 -> 5.3774761e-06 | C90: ='DF raw data'!H95 -> 2.5415286e-06 | D90: ='DF raw data'!I95 -> 6.6028076e-07 | F90: 5.385649864e-06 | G90: 2.551126221e-06 | H90: 6.612843868e-07 | J90: 1.06928003e-05 | K90: -4.903379492e-05 | L90: 6.721311306e-05 | M90: 0.002081547898 | N90: 1.224236923e-07
A91: 43.00515 | B91: ='DF raw data'!G96 -> 3.3084557e-06 | C91: ='DF raw data'!H96 -> 1.5023774e-05 | D91: ='DF raw data'!I96 -> 7.0853491e-07 | F91: 3.313484553e-06 | G91: 1.508050855e-05 | H91: 7.096118831e-07 | J91: 1.235017214e-05 | K91: -4.285636232e-05 | L91: 7.475623264e-05 | M91: 0.002118940218 | N91: 1.252952936e-07
A92: 43.50534 | B92: ='DF raw data'!G97 -> -1.4089404e-06 | C92: ='DF raw data'!H97 -> 8.9629784e-06 | D92: ='DF raw data'!I97 -> -5.9429417e-06 | F92: -1.411081989e-06 | G92: 8.996825461e-06 | H92: -5.951974971e-06 | J92: 1.164436304e-05 | K92: -3.703196837e-05 | L92: 7.925635476e-05 | M92: 0.002158583454 | N92: 1.285050934e-07
A93: 44.00553 | B93: ='DF raw data'!G98 -> -2.174022e-06 | C93: ='DF raw data'!H98 -> 5.5843352e-06 | D93: ='DF raw data'!I98 -> -4.4760941e-06 | F93: -2.177326513e-06 | G93: 5.605423428e-06 | H93: -4.482897763e-06 | J93: 1.055528609e-05 | K93: -3.175231982e-05 | L93: 8.206013151e-05 | M93: 0.002199629111 | N93: 1.319290336e-07
A94: 44.50572 | B94: ='DF raw data'!G99 -> 2.251943e-06 | C94: ='DF raw data'!H99 -> -2.1097424e-06 | D94: ='DF raw data'!I99 -> -4.3848536e-06 | F94: 2.255365953e-06 | G94: -2.117709459e-06 | H94: -4.391518577e-06 | J94: 1.168339759e-05 | K94: -2.590840118e-05 | L94: 8.100087441e-05 | M94: 0.002240144939 | N94: 1.352791278e-07
A95: 45.00591 | B95: ='DF raw data'!G100 -> 6.9780704e-06 | C95: ='DF raw data'!H100 -> -8.4618086e-06 | D95: ='DF raw data'!I100 -> -7.5806433e-06 | F95: 6.988677067e-06 | G95: -8.493763084e-06 | H95: -7.592165878e-06 | J95: 1.517906397e-05 | K95: -1.831598518e-05 | L95: 7.675237906e-05 | M95: 0.002278535711 | N95: 1.383409567e-07
A96: 45.5061 | B96: ='DF raw data'!G101 -> 6.0765501e-06 | C96: ='DF raw data'!H101 -> -8.968299e-06 | D96: ='DF raw data'!I101 -> -2.3428997e-06 | F96: 6.085786456e-06 | G96: -9.002166153e-06 | H96: -2.346460908e-06 | J96: 1.82231135e-05 | K96: -9.200966039e-06 | L96: 7.224958557e-05 | M96: 0.002314674231 | N96: 1.411180539e-07
A97: 46.00629 | B97: ='DF raw data'!G102 -> 1.252634e-06 | C97: ='DF raw data'!H102 -> -9.0965232e-06 | D97: ='DF raw data'!I102 -> -2.1924911e-06 | F97: 1.254538004e-06 | G97: -9.130874568e-06 | H97: -2.195823686e-06 | J97: 1.885062086e-05 | K97: 2.279260091e-07 | L97: 6.768241342e-05 | M97: 0.002348528298 | N97: 1.435871193e-07
A98: 46.50648 | B98: ='DF raw data'!G103 -> -1.6562502e-06 | C98: ='DF raw data'!H103 -> 8.9290251e-07 | D98: ='DF raw data'!I103 -> -1.8055413e-06 | F98: -1.6587677e-06 | G98: 8.962743942e-07 | H98: -1.808285723e-06 | J98: 1.802092184e-05 | K98: 9.241810906e-06 | L98: 6.813072091e-05 | M98: 0.002382606603 | N98: 1.460713373e-07
A99: 47.00667 | B99: ='DF raw data'!G104 -> -1.9257809e-06 | C99: ='DF raw data'!H104 -> -4.2114875e-06 | D99: ='DF raw data'!I104 -> -2.3837761e-06 | F99: -1.928708087e-06 | G99: -4.227391418e-06 | H99: -2.38739944e-06 | J99: 1.705620135e-05 | K99: 1.777315226e-05 | L99: 6.601622199e-05 | M99: 0.002415627257 | N99: 1.483967484e-07
A100: 47.50686 | B100: ='DF raw data'!G105 -> -4.9094765e-06 | C100: ='DF raw data'!H105 -> -5.1378724e-06 | D100: ='DF raw data'!I105 -> -4.1004655e-06 | F100: -4.916938904e-06 | G100: -5.157274642e-06 | H100: -4.106698208e-06 | J100: 1.459679768e-05 | K100: 2.507432449e-05 | L100: 6.343660479e-05 | M100: 0.002447357612 | N100: 1.505161881e-07
A101: 48.00705 | B101: ='DF raw data'!G106 -> -8.6425807e-06 | C101: ='DF raw data'!H106 -> -2.017144e-06 | D101: ='DF raw data'!I106 -> -7.97957e-06 | F101: -8.655717423e-06 | G101: -2.024761378e-06 | H101: -7.991698946e-06 | J101: 1.026729438e-05 | K101: 3.020992246e-05 | L101: 6.24238394e-05 | M101: 0.002478581393 | N101: 1.525180251e-07
A102: 48.50724 | B102: ='DF raw data'!G107 -> -7.8327666e-06 | C102: ='DF raw data'!H107 -> 2.3555315e-06 | D102: ='DF raw data'!I107 -> -6.1414735e-06 | F102: -7.844672405e-06 | G102: 2.364426737e-06 | H102: -6.15080854e-06 | J102: 6.343467687e-06 | K102: 3.338286156e-05 | L102: 6.360650201e-05 | M102: 0.002510396729 | N102: 1.545618148e-07
A103: 49.00743 | B103: ='DF raw data'!G108 -> -4.3503192e-06 | C103: ='DF raw data'!H108 -> 2.2205029e-06 | D103: ='DF raw data'!I108 -> -6.1752921e-06 | F103: -4.356931685e-06 | G103: 2.228888226e-06 | H103: -6.184678544e-06 | J103: 4.164174028e-06 | K103: 3.546573977e-05 | L103: 6.472136961e-05 | M103: 0.002542769711 | N103: 1.566657119e-07
A104: 49.50762 | B104: ='DF raw data'!G109 -> -2.6353905e-06 | C104: ='DF raw data'!H109 -> -1.3261718e-05 | D104: ='DF raw data'!I109 -> -4.0385762e-06 | F104: -2.639396294e-06 | G104: -1.331179847e-05 | H104: -4.044714836e-06 | J104: 2.843974396e-06 | K104: 3.688826732e-05 | L104: 5.806294113e-05 | M104: 0.002571812213 | N104: 1.583560507e-07
A105: 50.00781 | B105: ='DF raw data'!G110 -> -6.0543048e-06 | C105: ='DF raw data'!H110 -> -1.566694e-06 | D105: ='DF raw data'!I110 -> 3.4999537e-08 | F105: -6.063507343e-06 | G105: -1.572610335e-06 | H105: 3.50527363e-08 | J105: -1.889313425e-07 | K105: 3.679376576e-05 | L105: 5.727633717e-05 | M105: 0.002600461264 | N105: 1.599969813e-07
A106: 50.508 | B106: ='DF raw data'!G111 -> -5.5205696e-06 | C106: ='DF raw data'!H111 -> -3.5524902e-06 | D106: ='DF raw data'!I111 -> -3.0315786e-07 | F106: -5.528960866e-06 | G106: -3.565905534e-06 | H106: -3.036186599e-07 | J106: -2.954462278e-06 | K106: 3.531597327e-05 | L106: 5.549270688e-05 | M106: 0.002628218161 | N106: 1.615416527e-07
A107: 51.00819 | B107: ='DF raw data'!G112 -> -2.9836906e-06 | C107: ='DF raw data'!H112 -> -8.8989173e-06 | D107: ='DF raw data'!I112 -> -5.2024675e-06 | F107: -2.98822581e-06 | G107: -8.932522445e-06 | H107: -5.210375251e-06 | J107: -4.449142946e-06 | K107: 3.309055646e-05 | L107: 5.102474848e-05 | M107: 0.00265374023 | N107: 1.62853811e-07
A108: 51.50838 | B108: ='DF raw data'!G113 -> -3.298012e-06 | C108: ='DF raw data'!H113 -> -4.8824927e-06 | D108: ='DF raw data'!I113 -> -2.94548e-06 | F108: -3.303024978e-06 | G108: -4.900930547e-06 | H108: -2.94995713e-06 | J108: -6.10128301e-06 | K108: 3.003875571e-05 | L108: 4.857335203e-05 | M108: 0.002678036135 | N108: 1.640525645e-07
A109: 52.00857 | B109: ='DF raw data'!G114 -> -4.4547269e-07 | C109: ='DF raw data'!H114 -> 4.560015e-06 | D109: ='DF raw data'!I114 -> 4.7286035e-06 | F109: -4.461498085e-07 | G109: 4.577235069e-06 | H109: 4.735790977e-06 | J109: -6.324442682e-06 | K109: 2.687533272e-05 | L109: 5.086283924e-05 | M109: 0.002703477219 | N109: 1.653665771e-07
A110: 52.50876 | B110: ='DF raw data'!G115 -> 5.6683834e-06 | C110: ='DF raw data'!H115 -> 6.2387958e-06 | D110: ='DF raw data'!I115 -> 3.5153812e-06 | F110: 5.676999343e-06 | G110: 6.26235548e-06 | H110: 3.520724579e-06 | J110: -3.484864381e-06 | K110: 2.513223841e-05 | L110: 5.399520682e-05 | M110: 0.002730485081 | N110: 1.668309467e-07
A111: 53.00895 | B111: ='DF raw data'!G116 -> 7.6416236e-06 | C111: ='DF raw data'!H116 -> 4.4298639e-07 | D111: ='DF raw data'!I116 -> -4.132276e-06 | F111: 7.653238868e-06 | G111: 4.446592477e-07 | H111: -4.13855706e-06 | J111: 3.432091683e-07 | K111: 2.53039082e-05 | L111: 5.421762093e-05 | M111: 0.002757604193 | N111: 1.683013393e-07
A112: 53.50914 | B112: ='DF raw data'!G117 -> -1.3688935e-06 | C112: ='DF raw data'!H117 -> 3.3103363e-06 | D112: ='DF raw data'!I117 -> -8.1362452e-07 | F112: -1.370974218e-06 | G112: 3.322837184e-06 | H112: -8.148612293e-07 | J112: -3.425384259e-07 | K112: 2.513257391e-05 | L112: 5.587967086e-05 | M112: 0.002785554646 | N112: 1.698632601e-07
A113: 54.00933 | B113: ='DF raw data'!G118 -> -1.107032e-05 | C113: ='DF raw data'!H118 -> 7.0109386e-06 | D113: ='DF raw data'!I118 -> -6.1302637e-07 | F113: -1.108714689e-05 | G113: 7.037414137e-06 | H113: -6.139581701e-07 | J113: -5.888218427e-06 | K113: 2.218734593e-05 | L113: 5.939971504e-05 | M113: 0.002815265789 | N113: 1.716454357e-07
A114: 54.50952 | B114: ='DF raw data'!G119 -> -4.8722964e-06 | C114: ='DF raw data'!H119 -> 8.6778446e-06 | D114: ='DF raw data'!I119 -> -9.6912681e-06 | F114: -4.879702291e-06 | G114: 8.710614905e-06 | H114: -9.705998828e-06 | J114: -8.328996716e-06 | K114: 1.802126507e-05 | L114: 6.375667751e-05 | M114: 0.002847156242 | N114: 1.737133643e-07
A115: 55.00971 | B115: ='DF raw data'!G120 -> 3.472252e-06 | C115: ='DF raw data'!H120 -> -4.5788124e-06 | D115: ='DF raw data'!I120 -> -1.1789989e-05 | F115: 3.477529823e-06 | G115: -4.596103454e-06 | H115: -1.180790978e-05 | J115: -6.589571074e-06 | K115: 1.472522751e-05 | L115: 6.145775252e-05 | M115: 0.002877896795 | N115: 1.756243291e-07
A116: 55.5099 | B116: ='DF raw data'!G121 -> 6.936076e-07 | C116: ='DF raw data'!H121 -> 3.5126116e-06 | D116: ='DF raw data'!I121 -> -8.0956361e-06 | F116: 6.946618836e-07 | G116: 3.52587634e-06 | H116: -8.107941467e-06 | J116: -6.242108146e-06 | K116: 1.160298744e-05 | L116: 6.322136061e-05 | M116: 0.002909519487 | N116: 1.776430481e-07
A117: 56.01009 | B117: ='DF raw data'!G122 -> -3.6220104e-06 | C117: ='DF raw data'!H122 -> 8.9871282e-06 | D117: ='DF raw data'!I122 -> -2.354614e-06 | F117: -3.627515856e-06 | G117: 9.021066458e-06 | H117: -2.358193013e-06 | J117: -8.056555302e-06 | K117: 7.573179041e-06 | L117: 6.773360784e-05 | M117: 0.002943399161 | N117: 1.799703069e-07
A118: 56.51028 | B118: ='DF raw data'!G123 -> -3.4893114e-06 | C118: ='DF raw data'!H123 -> -6.8478744e-06 | D118: ='DF raw data'!I123 -> -1.343256e-06 | F118: -3.494615153e-06 | G118: -6.873734154e-06 | H118: -1.345297749e-06 | J118: -9.804526855e-06 | K118: 2.669052753e-06 | L118: 6.429543475e-05 | M118: 0.002975559094 | N118: 1.820861265e-07
A119: 57.01047 | B119: ='DF raw data'!G124 -> -4.9852338e-06 | C119: ='DF raw data'!H124 -> -8.2561974e-06 | D119: ='DF raw data'!I124 -> -4.2785664e-06 | F119: -4.992811355e-06 | G119: -8.28737543e-06 | H119: -4.285069821e-06 | J119: -1.230188117e-05 | K119: -3.484225188e-06 | L119: 6.015017244e-05 | M119: 0.003005645609 | N119: 1.839715324e-07
A120: 57.51066 | B120: ='DF raw data'!G125 -> -8.2897986e-06 | C120: ='DF raw data'!H125 -> -3.6158683e-06 | D120: ='DF raw data'!I125 -> -1.1663402e-05 | F120: -8.302399094e-06 | G120: -3.62952297e-06 | H120: -1.168113037e-05 | J120: -1.645465817e-05 | K120: -1.171468066e-05 | L120: 5.833472134e-05 | M120: 0.003034824053 | N120: 1.858090782e-07
A121: 58.01085 | B121: ='DF raw data'!G126 -> -8.8958277e-06 | C121: ='DF raw data'!H126 -> -1.3656193e-06 | D121: ='DF raw data'!I126 -> -1.4194053e-05 | F121: -8.909349358e-06 | G121: -1.370776313e-06 | H121: -1.421562796e-05 | J121: -2.091102563e-05 | K121: -2.217416657e-05 | L121: 5.764907274e-05 | M121: 0.003063659543 | N121: 1.87690136e-07
A122: 58.51104 | B122: ='DF raw data'!G127 -> -7.4266086e-06 | C122: ='DF raw data'!H127 -> -5.9412373e-06 | D122: ='DF raw data'!I127 -> -1.203158e-05 | F122: -7.437897045e-06 | G122: -5.963673304e-06 | H122: -1.2049868e-05 | J122: -2.463138735e-05 | K122: -3.44945402e-05 | L122: 5.466610299e-05 | M122: 0.003091002981 | N122: 1.894883631e-07
A123: 59.01123 | B123: ='DF raw data'!G128 -> -2.8728923e-06 | C123: ='DF raw data'!H128 -> -2.3807327e-06 | D123: ='DF raw data'!I128 -> -1.1308597e-05 | F123: -2.877259096e-06 | G123: -2.389723105e-06 | H123: -1.132578607e-05 | J123: -2.607056358e-05 | K123: -4.75347754e-05 | L123: 5.347078739e-05 | M123: 0.003117748534 | N123: 1.912584352e-07
A124: 59.51142 | B124: ='DF raw data'!G129 -> -7.8389201e-07 | C124: ='DF raw data'!H129 -> 1.5973981e-06 | D124: ='DF raw data'!I129 -> -1.0601869e-05 | F124: -7.850835259e-07 | G124: 1.603430384e-06 | H124: -1.061798384e-05 | J124: -2.64632545e-05 | K124: -6.077143067e-05 | L124: 5.427280723e-05 | M124: 0.00314489525 | N124: 1.930820486e-07
A125: 60.01161 | B125: ='DF raw data'!G130 -> -8.429415e-08 | C125: ='DF raw data'!H130 -> -1.0863899e-05 | D125: ='DF raw data'!I130 -> -7.8359426e-06 | F125: -8.442227711e-08 | G125: -1.090492454e-05 | H125: -7.847853233e-06 | J125: -2.650548168e-05 | K125: -7.402920755e-05 | L125: 4.881827303e-05 | M125: 0.003169313662 | N125: 1.946255171e-07
A126: 60.5118 | B126: ='DF raw data'!G131 -> 1.6501195e-06 | C126: ='DF raw data'!H131 -> -1.0595711e-05 | D126: ='DF raw data'!I131 -> -9.8133296e-06 | F126: 1.652627682e-06 | G126: -1.063572378e-05 | H126: -9.828245861e-06 | J126: -2.567885384e-05 | K126: -8.687351346e-05 | L126: 4.349839035e-05 | M126: 0.003191071121 | N126: 1.959017586e-07
A127: 61.01199 | B127: ='DF raw data'!G132 -> 2.9725684e-06 | C127: ='DF raw data'!H132 -> -5.9827954e-07 | D127: ='DF raw data'!I132 -> -1.2265778e-05 | F127: 2.977086704e-06 | G127: -6.005388341e-07 | H127: -1.228442198e-05 | J127: -2.418974484e-05 | K127: -9.897298193e-05 | L127: 4.319800683e-05 | M127: 0.003212678332 | N127: 1.971278301e-07
A128: 61.51218 | B128: ='DF raw data'!G133 -> 6.7978328e-07 | C128: ='DF raw data'!H133 -> 6.9767812e-06 | D128: ='DF raw data'!I133 -> -1.1461218e-05 | F128: 6.808165506e-07 | G128: 7.003127747e-06 | H128: -1.147863905e-05 | J128: -2.384920721e-05 | K128: -0.0001109021169 | L128: 4.67009013e-05 | M128: 0.003236037656 | N128: 1.98503232e-07
A129: 62.01237 | B129: ='DF raw data'!G134 -> 9.8617386e-07 | C129: ='DF raw data'!H134 -> 1.9387761e-07 | D129: ='DF raw data'!I134 -> -7.2199159e-06 | F129: 9.876728443e-07 | G129: 1.946097536e-07 | H129: -7.230890172e-06 | J129: -2.335518313e-05 | K129: -0.0001225841459 | L129: 4.679824315e-05 | M129: 0.00325944567 | N129: 1.998715218e-07
A130: 62.51256 | B130: ='DF raw data'!G135 -> 3.7297045e-06 | C130: ='DF raw data'!H135 -> 2.0854748e-06 | D130: ='DF raw data'!I135 -> -6.3935854e-06 | F130: 3.735373651e-06 | G130: 2.093350217e-06 | H130: -6.40330365e-06 | J130: -2.148678659e-05 | K130: -0.0001333316217 | L130: 4.7845316e-05 | M130: 0.003283377418 | N130: 2.012474726e-07
A131: 63.01275 | B131: ='DF raw data'!G136 -> 4.5140819e-06 | C131: ='DF raw data'!H136 -> -2.1580429e-06 | D131: ='DF raw data'!I136 -> -2.7214678e-06 | F131: 4.520943304e-06 | G131: -2.166192357e-06 | H131: -2.725604431e-06 | J131: -1.922545596e-05 | K131: -0.0001429480025 | L131: 4.676180824e-05 | M131: 0.003306767207 | N131: 2.025261007e-07
A132: 63.51294 | B132: ='DF raw data'!G137 -> 4.0899517e-06 | C132: ='DF raw data'!H137 -> -6.8684235e-06 | D132: ='DF raw data'!I137 -> 4.8264942e-06 | F132: 4.096168427e-06 | G132: -6.894360854e-06 | H132: 4.833830471e-06 | J132: -1.717659347e-05 | K132: -0.0001515395628 | L132: 4.331331788e-05 | M132: 0.003328432095 | N132: 2.036120527e-07
A133: 64.01313 | B133: ='DF raw data'!G138 -> 4.8868753e-07 | C133: ='DF raw data'!H138 -> -1.1520026e-06 | D133: ='DF raw data'!I138 -> 6.4145447e-06 | F133: 4.89430335e-07 | G133: -1.156352929e-06 | H133: 6.424294808e-06 | J133: -1.693178531e-05 | K133: -0.0001600086725 | L133: 4.273492171e-05 | M133: 0.003349807676 | N133: 2.046689336e-07
A134: 64.51332 | B134: ='DF raw data'!G139 -> -6.4318954e-07 | C134: ='DF raw data'!H139 -> -9.8337068e-06 | D134: ='DF raw data'!I139 -> 4.1824555e-06 | F134: -6.441671881e-07 | G134: -9.870842008e-06 | H134: 4.188812832e-06 | J134: -1.72539913e-05 | K134: -0.0001686389464 | L134: 3.779762525e-05 | M134: 0.00336871367 | N134: 2.055324419e-07
A135: 65.01351 | B135: ='DF raw data'!G140 -> -7.8487936e-08 | C135: ='DF raw data'!H140 -> -8.3443929e-06 | D135: ='DF raw data'!I140 -> 1.4132696e-06 | F135: -7.860723766e-08 | G135: =(1-$G$1*($B$2-$G$2))*C135*$M$2/$M$1 -> -8.375903985e-06 | H135: 1.41541777e-06 | J135: -1.729330985e-05 | K135: -0.0001772888871 | L135: 3.360808183e-05 | M135: 0.003385524097 | N135: 2.062469942e-07
A136: =A135+$B$1 -> 65.5137 | B136: ='DF raw data'!G141 -> -4.2636771e-06 | C136: ='DF raw data'!H141 -> -5.8669179e-06 | D136: ='DF raw data'!I141 -> -1.5141049e-07 | F136: -4.270157889e-06 | G136: -5.88907325e-06 | H136: -1.516406339e-07 | J136: =F136*$B$1+J135 -> -1.942920013e-05 | K136: =J136*$B$1+K135 -> -0.0001870071787 | L136: =G136*$B$1+L135 -> 3.066242629e-05 | M136: =L136*$B$1+M135 -> 0.003400861136 | N136: =(J136^2+L136^2)*$B$1+N135 -> 2.069060837e-07
A137: 66.01389 | B137: ='DF raw data'!G142 -> -3.769203e-06 | C137: ='DF raw data'!H142 -> -8.4425965e-06 | D137: ='DF raw data'!I142 -> -7.0181245e-06 | F137: -3.774932189e-06 | G137: -8.474478433e-06 | H137: -7.028792049e-06 | J137: -2.131738346e-05 | K137: -0.0001976699207 | L137: 2.642357692e-05 | M137: 0.003414077945 | N137: 2.074826208e-07
A138: 66.51408 | B138: ='DF raw data'!G143 -> -2.6873845e-06 | C138: ='DF raw data'!H143 -> -3.5615633e-06 | D138: ='DF raw data'!I143 -> -9.430978e-06 | F138: -2.691469324e-06 | G138: -3.575012897e-06 | H138: -9.445313087e-06 | J138: -2.26636295e-05 | K138: -0.0002090060416 | L138: 2.463539122e-05 | M138: 0.003426400321 | N138: 2.08043105e-07
A139: 67.01427 | B139: ='DF raw data'!G144 -> -5.1712072e-06 | C139: ='DF raw data'!H144 -> 5.8409159e-06 | D139: ='DF raw data'!I144 -> -4.2462902e-06 | F139: -5.179067435e-06 | G139: 5.862973058e-06 | H139: -4.252744561e-06 | J139: -2.525414724e-05 | K139: -0.0002216379135 | L139: 2.756799171e-05 | M139: 0.003440189555 | N139: 2.087422536e-07
A140: 67.51446 | B140: ='DF raw data'!G145 -> -8.5925803e-06 | C140: ='DF raw data'!H145 -> 3.0832432e-06 | D140: ='DF raw data'!I145 -> -7.8713474e-06 | F140: -8.605641022e-06 | G140: 3.094886508e-06 | H140: -7.883311848e-06 | J140: -2.955860282e-05 | K140: -0.000236422831 | L140: 2.911602299e-05 | M140: 0.003454753098 | N140: 2.096033076e-07
A141: 68.01465 | B141: ='DF raw data'!G146 -> -7.4585064e-06 | C141: ='DF raw data'!H146 -> -4.030756e-07 | D141: ='DF raw data'!I146 -> -1.0302972e-05 | F141: -7.46984333e-06 | G141: -4.045977418e-07 | H141: -1.031863252e-05 | J141: -3.329494376e-05 | K141: -0.0002530766289 | L141: 2.891364725e-05 | M141: 0.003469215415 | N141: 2.105759532e-07
A142: 68.51484 | B142: ='DF raw data'!G147 -> -8.6653233e-07 | C142: ='DF raw data'!H147 -> 4.0420505e-06 | D142: ='DF raw data'!I147 -> -4.9048372e-06 | F142: -8.678494591e-07 | G142: 4.05731457e-06 | H142: -4.912292553e-06 | J142: -3.372903338e-05 | K142: -0.0002699475541 | L142: 3.094307542e-05 | M142: 0.003484692832 | N142: 2.116239121e-07
A143: 69.01503 | B143: ='DF raw data'!G148 -> 1.5125603e-06 | C143: ='DF raw data'!H148 -> -3.806402e-06 | D143: ='DF raw data'!I148 -> -4.7987537e-06 | F143: 1.514859392e-06 | G143: -3.820776186e-06 | H143: -4.806047806e-06 | J143: -3.297131586e-05 | K143: -0.0002864394766 | L143: 2.903196138e-05 | M143: 0.003499214329 | N143: 2.1258926e-07
A144: 69.51522 | B144: ='DF raw data'!G149 -> -4.5878792e-06 | C144: ='DF raw data'!H149 -> 8.938161e-06 | D144: ='DF raw data'!I149 -> -1.1951515e-05 | F144: -4.594852776e-06 | G144: 8.971914342e-06 | H144: -1.19696813e-05 | J144: -3.526961527e-05 | K144: -0.0003040809855 | L144: 3.351962322e-05 | M144: 0.003515980509 | N144: 2.137734653e-07
A145: 70.01541 | B145: ='DF raw data'!G150 -> -8.916244e-06 | C145: ='DF raw data'!H150 -> 1.3276946e-05 | D145: ='DF raw data'!I150 -> -1.0494185e-05 | F145: -8.929796691e-06 | G145: 1.332708398e-05 | H145: -1.051013616e-05 | J145: -3.973621028e-05 | K145: -0.0003239566405 | L145: 4.018569735e-05 | M145: 0.003536080993 | N145: 2.153710005e-07
A146: 70.5156 | B146: ='DF raw data'!G151 -> -7.3775395e-06 | C146: ='DF raw data'!H151 -> 1.7192172e-06 | D146: ='DF raw data'!I151 -> -4.9207424e-06 | F146: -7.38875336e-06 | G146: 1.725709512e-06 | H146: -4.928221928e-06 | J146: -4.343199082e-05 | K146: -0.000345680888 | L146: 4.104887999e-05 | M146: 0.003556613233 | N146: 2.171573532e-07
A147: 71.01579 | B147: ='DF raw data'!G152 -> -2.960262e-06 | C147: ='DF raw data'!H152 -> -8.1554599e-06 | D147: ='DF raw data'!I152 -> -2.2031431e-06 | F147: -2.964761598e-06 | G147: -8.186257514e-06 | H147: -2.206491878e-06 | J147: -4.491493492e-05 | K147: -0.0003681468893 | L147: 3.695419585e-05 | M147: 0.003575097352 | N147: 2.18849478e-07
A148: 71.51598 | B148: ='DF raw data'!G153 -> -1.2233744e-06 | C148: ='DF raw data'!H153 -> -1.1278858e-05 | D148: ='DF raw data'!I153 -> -6.628919e-06 | F148: -1.225233929e-06 | G148: -1.132145056e-05 | H148: -6.638994957e-06 | J148: -4.552778468e-05 | K148: -0.0003909194319 | L148: 3.129131949e-05 | M148: 0.003590748957 | N148: 2.203760208e-07
A149: 72.01617 | B149: ='DF raw data'!G154 -> -2.6646253e-06 | C149: ='DF raw data'!H154 -> -1.1411751e-05 | D149: ='DF raw data'!I154 -> -6.4453611e-06 | F149: -2.66867553e-06 | G149: -1.145484541e-05 | H149: -6.455158049e-06 | J149: -4.68626295e-05 | K149: -0.0004143596506 | L149: 2.556172037e-05 | M149: 0.003603534674 | N149: 2.21801316e-07
A150: 72.51636 | B150: ='DF raw data'!G155 -> -1.6169309e-06 | C150: ='DF raw data'!H155 -> -4.4420499e-06 | D150: ='DF raw data'!I155 -> -9.2402315e-06 | F150: -1.619388635e-06 | G150: -4.458824495e-06 | H150: -9.254276652e-06 | J150: -4.76726315e-05 | K150: -0.0004382050241 | L150: 2.333146094e-05 | M150: 0.003615204837 | N150: 2.232103696e-07
A151: 73.01655 | B151: ='DF raw data'!G156 -> -2.6839793e-06 | C151: ='DF raw data'!H156 -> -4.7897606e-06 | D151: ='DF raw data'!I156 -> -6.937405e-06 | F151: =(1-$G$1*($B$2-$G$2))*B151 -> -2.688058949e-06 | G151: -4.807848261e-06 | H151: -6.947949856e-06 | J151: -4.90171717e-05 | K151: -0.0004627229232 | L151: 2.092662332e-05 | M151: 0.003625672125 | N151: 2.246312127e-07
A152: 73.51674 | B152: ='DF raw data'!G157 -> -7.9614638e-06 | C152: ='DF raw data'!H157 -> -6.9638222e-06 | D152: ='DF raw data'!I157 -> 1.3019911e-06 | F152: -7.973565225e-06 | G152: -6.99011981e-06 | H152: 1.303970126e-06 | J152: -5.300546929e-05 | K152: -0.0004892357289 | L152: 1.743023529e-05 | M152: 0.003634390554 | N152: 2.261885007e-07
A153: 74.01693 | B153: ='DF raw data'!G158 -> -8.5706215e-06 | C153: ='DF raw data'!H158 -> 4.5634838e-06 | D153: ='DF raw data'!I158 -> -1.1294884e-06 | F153: -8.583648845e-06 | G153: 4.580716968e-06 | H153: -1.131205222e-06 | J153: -5.729892461e-05 | K153: -0.000517896078 | L153: 1.972146412e-05 | M153: 0.003644255034 | N153: 2.280252498e-07
A154: 74.51712 | B154: ='DF raw data'!G159 -> -7.0915798e-06 | C154: ='DF raw data'!H159 -> 6.4891051e-06 | D154: ='DF raw data'!I159 -> 3.8296589e-06 | F154: -7.102359001e-06 | G154: 6.513610027e-06 | H154: 3.835479982e-06 | J154: -6.085145356e-05 | K154: -0.0005483333666 | L154: 2.297950671e-05 | M154: 0.003655749153 | N154: 2.301415323e-07
A155: 75.01731 | B155: ='DF raw data'!G160 -> -5.6797676e-06 | C155: ='DF raw data'!H160 -> -5.2169949e-06 | D155: ='DF raw data'!I160 -> 1.9249442e-06 | F155: -5.688400847e-06 | G155: -5.236695934e-06 | H155: 1.927870115e-06 | J155: -6.369673478e-05 | K155: -0.0005801938363 | L155: 2.036016378e-05 | M155: 0.003665933103 | N155: 2.323782871e-07
A156: 75.5175 | B156: ='DF raw data'!G161 -> -1.998264e-06 | C156: ='DF raw data'!H161 -> -5.6685126e-06 | D156: ='DF raw data'!I161 -> -6.2200102e-06 | F156: -2.001301361e-06 | G156: -5.689918709e-06 | H156: -6.229464616e-06 | J156: -6.46977657e-05 | K156: -0.0006125550118 | L156: 1.751412334e-05 | M156: 0.003674693493 | N156: 2.346254133e-07
A157: 76.01769 | B157: ='DF raw data'!G162 -> -4.3447167e-06 | C157: ='DF raw data'!H162 -> -6.0296993e-06 | D157: ='DF raw data'!I162 -> -9.7666179e-06 | F157: -4.351320669e-06 | G157: -6.052469365e-06 | H157: -9.781463159e-06 | J157: -6.687425279e-05 | K157: -0.0006460048443 | L157: 1.448673868e-05 | M157: 0.003681939615 | N157: 2.369673186e-07
A158: 76.51788 | B158: ='DF raw data'!G163 -> -9.9157569e-06 | C158: ='DF raw data'!H163 -> -3.0225176e-06 | D158: ='DF raw data'!I163 -> -1.1273003e-05 | F158: -9.93082885e-06 | G158: -3.033931589e-06 | H158: -1.129013796e-05 | J158: -7.184155407e-05 | K158: -0.0006819392712 | L158: 1.296919644e-05 | M158: 0.003688426677 | N158: 2.396330356e-07
A159: 77.01807 | B159: ='DF raw data'!G164 -> -9.9947883e-06 | C159: ='DF raw data'!H164 -> 8.1124534e-07 | D159: ='DF raw data'!I164 -> -9.036854e-06 | F159: -1.000998038e-05 | G159: 8.143088607e-07 | H159: -9.050590018e-06 | J159: -7.684844616e-05 | K159: -0.0007203780955 | L159: 1.337650559e-05 | M159: 0.003695117471 | N159: 2.42676499e-07
A160: 77.51826 | B160: ='DF raw data'!G165 -> -4.9014002e-06 | C160: ='DF raw data'!H165 -> -2.4860067e-06 | D160: ='DF raw data'!I165 -> -4.6323671e-06 | F160: -4.908850328e-06 | G160: -2.495394653e-06 | H160: -4.639408298e-06 | J160: -7.9303804e-05 | K160: -0.0007600450652 | L160: 1.212833414e-05 | M160: 0.003701183943 | N160: 2.458958168e-07
A161: 78.01845 | B161: ='DF raw data'!G166 -> 1.0310229e-06 | C161: ='DF raw data'!H166 -> -5.6522344e-06 | D161: ='DF raw data'!I166 -> 1.2172699e-06 | F161: 1.032590055e-06 | G161: -5.673579037e-06 | H161: 1.21912015e-06 | J161: -7.878731278e-05 | K161: -0.0007994536912 | L161: 9.290466643e-06 | M161: 0.003705830941 | N161: 2.490438893e-07
A162: 78.51864 | B162: ='DF raw data'!G167 -> 4.0680511e-06 | C162: ='DF raw data'!H167 -> -1.0565956e-05 | D162: ='DF raw data'!I167 -> 5.1006134e-07 | F162: 4.074234538e-06 | G162: -1.060585641e-05 | H162: 5.108366332e-07 | J162: -7.674942141e-05 | K162: -0.0008378429843 | L162: 3.985523323e-06 | M162: 0.00370782446 | N162: 2.519981906e-07
A163: 79.01883 | B163: ='DF raw data'!G168 -> 9.0420292e-07 | C163: ='DF raw data'!H168 -> -1.479699e-06 | D163: ='DF raw data'!I168 -> -5.5260682e-07 | F163: 9.055773084e-07 | G163: -1.485286815e-06 | H163: -5.534467824e-07 | J163: -7.62964607e-05 | K163: -0.000876005711 | L163: 3.242597711e-06 | M163: 0.003709446375 | N163: 2.549151308e-07
A164: 79.51902 | B164: ='DF raw data'!G169 -> -6.3118155e-06 | C164: ='DF raw data'!H169 -> -5.5833857e-06 | D164: ='DF raw data'!I169 -> 4.966731e-06 | F164: -6.32140946e-06 | G164: -5.604470342e-06 | H164: 4.974280431e-06 | J164: -7.945836649e-05 | K164: -0.0009157499913 | L164: 4.392976903e-07 | M164: 0.003709666107 | N164: 2.580732429e-07
A165: 80.01921 | B165: ='DF raw data'!G170 -> -1.0596263e-05 | C165: ='DF raw data'!H170 -> -5.8542423e-06 | D165: ='DF raw data'!I170 -> 7.5821031e-06 | F165: -1.061236932e-05 | G165: -5.876349783e-06 | H165: 7.593627897e-06 | J165: -8.47665675e-05 | K165: -0.0009581493807 | L165: -2.499993708e-06 | M165: 0.003708415636 | N165: 2.616704197e-07
A166: 80.5194 | B166: ='DF raw data'!G171 -> -7.4919467e-06 | C166: ='DF raw data'!H171 -> -1.0157936e-05 | D166: ='DF raw data'!I171 -> 7.1714044e-06 | F166: -7.503334459e-06 | G166: -1.01962956e-05 | H166: 7.182304935e-06 | J166: -8.851966037e-05 | K166: -0.00100242603 | L166: -7.600078804e-06 | M166: 0.003704614152 | N166: 2.656186652e-07
A167: 81.01959 | B167: ='DF raw data'!G172 -> -1.3250923e-06 | C167: ='DF raw data'!H172 -> -1.7777562e-05 | D167: ='DF raw data'!I172 -> 9.2435947e-08 | F167: -1.32710644e-06 | G167: -1.784469574e-05 | H167: 9.257644964e-08 | J167: -8.918346574e-05 | K167: -0.001047034707 | L167: -1.652581716e-05 | M167: 0.003696348104 | N167: 2.697336249e-07
A168: 81.51978 | B168: ='DF raw data'!G173 -> 9.6460792e-07 | C168: ='DF raw data'!H173 -> -1.2833952e-05 | D168: ='DF raw data'!I173 -> -1.8149273e-06 | F168: 9.66074124e-07 | G168: -1.288241709e-05 | H168: -1.817685989e-06 | J168: -8.870024512e-05 | K168: -0.001091401683 | L168: -2.296947337e-05 | M168: 0.003684859003 | N168: 2.739328851e-07
A169: 82.01997 | B169: ='DF raw data'!G174 -> -5.6219674e-06 | C169: ='DF raw data'!H174 -> -1.4190772e-05 | D169: ='DF raw data'!I174 -> 1.0887961e-07 | F169: -5.63051279e-06 | G169: -1.424436087e-05 | H169: 1.09045107e-07 | J169: -9.151657131e-05 | K169: -0.001137177357 | L169: -3.009436023e-05 | M169: 0.003669806105 | N169: 2.785751252e-07
A170: 82.52016 | B170: ='DF raw data'!G175 -> -1.1312159e-05 | C170: ='DF raw data'!H175 -> -1.1127017e-05 | D170: ='DF raw data'!I175 -> -3.6498946e-06 | F170: -1.132935348e-05 | G170: -1.116903616e-05 | H170: -3.65544244e-06 | J170: -9.718340063e-05 | K170: -0.001185787522 | L170: -3.568100043e-05 | M170: 0.003651958825 | N170: 2.839360351e-07
A171: 83.02035 | B171: ='DF raw data'!G176 -> -1.0098311e-05 | C171: ='DF raw data'!H176 -> -6.0275647e-06 | D171: ='DF raw data'!I176 -> -2.5052263e-06 | F171: -1.011366043e-05 | G171: -6.050326704e-06 | H171: -2.509034244e-06 | J171: -0.0001022421524 | K171: -0.001236928024 | L171: -3.870731334e-05 | M171: 0.003632597814 | N171: 2.899141629e-07
A172: 83.52054 | B172: ='DF raw data'!G177 -> -7.6539527e-06 | C172: ='DF raw data'!H177 -> -2.5323063e-06 | D172: ='DF raw data'!I177 -> -4.0851569e-06 | F172: -7.665586708e-06 | G172: -2.541869095e-06 | H172: -4.091366338e-06 | J172: -0.0001060764023 | K172: -0.00128998638 | L172: -3.997873085e-05 | M172: 0.003612600853 | N172: 2.963418555e-07
A173: 84.02073 | B173: ='DF raw data'!G178 -> -5.2735945e-06 | C173: ='DF raw data'!H178 -> -1.8007252e-06 | D173: ='DF raw data'!I178 -> -1.1318895e-06 | F173: -5.281610364e-06 | G173: -1.807525312e-06 | H173: -1.133609972e-06 | J173: -0.0001087182109 | K173: -0.001344366142 | L173: -4.088283693e-05 | M173: 0.003592151666 | N173: 3.030899467e-07
A174: 84.52092 | B174: ='DF raw data'!G179 -> -2.5631693e-06 | C174: ='DF raw data'!H179 -> 4.1349875e-07 | D174: ='DF raw data'!I179 -> 3.8020976e-06 | F174: -2.567065317e-06 | G174: 4.15060253e-07 | H174: 3.807876788e-06 | J174: -0.0001100022313 | K174: -0.001399388158 | L174: -4.067522794e-05 | M174: 0.003571806324 | N174: 3.099700427e-07
A175: 85.02111 | B175: ='DF raw data'!G180 -> -7.9725066e-07 | C175: ='DF raw data'!H180 -> 2.2342458e-06 | D175: ='DF raw data'!I180 -> -4.4376334e-06 | F175: -7.98462481e-07 | G175: 2.242683024e-06 | H175: -4.444378603e-06 | J175: -0.0001104016143 | K175: -0.001454609941 | L175: -3.955346032e-05 | M175: 0.003552022079 | N175: 3.168491521e-07
A176: 85.5213 | B176: ='DF raw data'!G181 -> -3.2829216e-06 | C176: ='DF raw data'!H181 -> -9.1164029e-06 | D176: ='DF raw data'!I181 -> -6.035521e-06 | F176: -3.287911641e-06 | G176: -9.15082934e-06 | H176: -6.044694992e-06 | J176: -0.0001120461948 | K176: -0.001510654327 | L176: -4.413061365e-05 | M176: 0.003529948387 | N176: 3.241028378e-07
A177: 86.02149 | B177: ='DF raw data'!G182 -> -7.6315282e-06 | C177: ='DF raw data'!H182 -> -4.0310938e-06 | D177: ='DF raw data'!I182 -> 7.3069748e-07 | F177: -7.643128123e-06 | G177: -4.046316494e-06 | H177: 7.318081402e-07 | J177: -0.0001158692111 | K177: -0.001568610948 | L177: -4.61545407e-05 | M177: 0.003506862347 | N177: 3.318837513e-07
A178: 86.52168 | B178: ='DF raw data'!G183 -> -5.396209e-06 | C178: ='DF raw data'!H183 -> -4.0668524e-06 | D178: ='DF raw data'!I183 -> -4.5672764e-06 | F178: -5.404411238e-06 | G178: -4.08221013e-06 | H178: -4.57421866e-06 | J178: -0.0001185724435 | K178: -0.001627919699 | L178: -4.819642138e-05 | M178: 0.003482754979 | N178: 3.400780236e-07
A179: 87.02187 | B179: ='DF raw data'!G184 -> 3.1282302e-06 | C179: ='DF raw data'!H184 -> -1.1388135e-05 | D179: ='DF raw data'!I184 -> -8.8069046e-06 | F179: 3.13298511e-06 | G179: -1.143114022e-05 | H179: -8.820291095e-06 | J179: -0.0001170053557 | K179: -0.001686444608 | L179: -5.391416341e-05 | M179: 0.003455787654 | N179: 3.483796722e-07
A180: 87.52206 | B180: ='DF raw data'!G185 -> 8.1977832e-06 | C180: ='DF raw data'!H185 -> -2.0641103e-06 | D180: ='DF raw data'!I185 -> -9.3373365e-06 | F180: 8.21024383e-06 | G180: -2.071905038e-06 | H180: -9.351529251e-06 | J180: -0.0001128986739 | K180: -0.001742915395 | L180: -5.495050959e-05 | M180: 0.003428301959 | N180: 3.562655022e-07
A181: 88.02225 | B181: ='DF raw data'!G186 -> 4.3809173e-06 | C181: ='DF raw data'!H186 -> -8.0359105e-06 | D181: ='DF raw data'!I186 -> -9.6528074e-06 | F181: 4.387576294e-06 | G181: -8.066256657e-06 | H181: -9.667479667e-06 | J181: -0.0001107040521 | K181: -0.001798288455 | L181: -5.898517051e-05 | M181: 0.003398798166 | N181: 3.641358105e-07
A182: 88.52244 | B182: ='DF raw data'!G187 -> -2.2485715e-06 | C182: ='DF raw data'!H187 -> -6.4978954e-06 | D182: ='DF raw data'!I187 -> -5.9676363e-06 | F182: -2.251989329e-06 | G182: -6.522433522e-06 | H182: -5.976707107e-06 | J182: -0.0001118304746 | K182: -0.00185422494 | L182: -6.224762653e-05 | M182: 0.003367662526 | N182: 3.723293339e-07
A183: 89.02263 | B183: ='DF raw data'!G188 -> -2.4929418e-06 | C183: ='DF raw data'!H188 -> -2.0290192e-06 | D183: ='DF raw data'!I188 -> -7.3470997e-06 | F183: -2.496731072e-06 | G183: -2.036681423e-06 | H183: -7.358267292e-06 | J183: -0.0001130793145 | K183: -0.001910786082 | L183: -6.326635421e-05 | M183: 0.003336017328 | N183: 3.807273054e-07
A184: 89.52282 | B184: ='DF raw data'!G189 -> 3.1800809e-07 | C184: ='DF raw data'!H189 -> -6.3356479e-06 | D184: ='DF raw data'!I189 -> -5.5711112e-06 | F184: 3.184914623e-07 | G184: -6.359573324e-06 | H184: -5.579579289e-06 | J184: -0.0001129200083 | K184: -0.001967267541 | L184: -6.644734919e-05 | M184: 0.003302781029 | N184: 3.893136562e-07
A185: 90.02301 | B185: ='DF raw data'!G190 -> -3.5669459e-06 | C185: ='DF raw data'!H190 -> -1.6148608e-06 | D185: ='DF raw data'!I190 -> -3.8622652e-06 | F185: -3.572367658e-06 | G185: -1.620959029e-06 | H185: -3.868135843e-06 | J185: -0.0001147068709 | K185: -0.002024642771 | L185: -6.725813669e-05 | M185: 0.003269139181 | N185: 3.981576773e-07
A186: 90.5232 | B186: ='DF raw data'!G191 -> -1.045703e-05 | C186: ='DF raw data'!H191 -> -8.8527513e-06 | D186: ='DF raw data'!I191 -> -5.100313e-06 | F186: -1.047292469e-05 | G186: -8.886182108e-06 | H186: -5.108065476e-06 | J186: -0.0001199453231 | K186: -0.002084638222 | L186: -7.170291612e-05 | M186: 0.0032332741 | N186: 4.07925482e-07
A187: 91.02339 | B187: ='DF raw data'!G192 -> -1.1102567e-05 | C187: ='DF raw data'!H192 -> -1.69798e-05 | D187: ='DF raw data'!I192 -> -8.5185293e-06 | F187: -1.11194429e-05 | G187: -1.704392113e-05 | H187: -8.531477465e-06 | J187: -0.0001255071572 | K187: -0.002147415647 | L187: -8.022811503e-05 | M187: 0.003193144799 | N187: 4.190239963e-07
A188: 91.52358 | B188: ='DF raw data'!G193 -> -9.2881037e-06 | C188: ='DF raw data'!H193 -> -3.1024404e-06 | D188: ='DF raw data'!I193 -> -1.4450487e-05 | F188: -9.302221618e-06 | G188: -3.114156203e-06 | H188: -1.447245174e-05 | J188: -0.0001301600354 | K188: -0.002212520395 | L188: -8.178578482e-05 | M188: 0.003152236367 | N188: 4.308437608e-07
A189: 92.02377 | B189: ='DF raw data'!G194 -> -1.0241167e-05 | C189: ='DF raw data'!H194 -> -1.2528728e-06 | D189: ='DF raw data'!I194 -> -1.1491034e-05 | F189: -1.025673357e-05 | G189: -1.257604047e-06 | H189: -1.150850037e-05 | J189: -0.000135290351 | K189: -0.002280191276 | L189: -8.241482579e-05 | M189: 0.003111013295 | N189: 4.433963703e-07
A190: 92.52396 | B190: ='DF raw data'!G195 -> -9.6541717e-06 | C190: ='DF raw data'!H195 -> -1.1039222e-05 | D190: ='DF raw data'!I195 -> 1.7214792e-06 | F190: -9.668846041e-06 | G190: -1.108090962e-05 | H190: 1.724095848e-06 | J190: -0.0001401266111 | K190: -0.002350281206 | L190: -8.795738597e-05 | M190: 0.00306701789 | N190: 4.570875554e-07
A191: 93.02415 | B191: ='DF raw data'!G196 -> -5.8933606e-06 | C191: ='DF raw data'!H196 -> -1.2943762e-05 | D191: ='DF raw data'!I196 -> 1.8382198e-07 | F191: -5.902318508e-06 | G191: -1.299264177e-05 | H191: 1.841013894e-07 | J191: -0.0001430788918 | K191: -0.002421847837 | L191: -9.445617546e-05 | M191: 0.003019771856 | N191: 4.717899093e-07
A192: 93.52434 | B192: ='DF raw data'!G197 -> -4.5950824e-06 | C192: ='DF raw data'!H197 -> -1.4279501e-05 | D192: ='DF raw data'!I197 -> -8.0637528e-06 | F192: -4.602066925e-06 | G192: -1.433342494e-05 | H192: -8.076009704e-06 | J192: -0.0001453807996 | K192: -0.002494565859 | L192: -0.0001016256113 | M192: 0.002968939742 | N192: 4.875275583e-07
A193: 94.02453 | B193: ='DF raw data'!G198 -> -3.6603255e-06 | C193: ='DF raw data'!H198 -> -9.0508902e-06 | D193: ='DF raw data'!I198 -> -1.8430852e-06 | F193: -3.665889195e-06 | G193: -9.085069243e-06 | H193: -1.84588669e-06 | J193: -0.0001472144408 | K193: -0.00256820105 | L193: -0.0001061698721 | M193: 0.002915834633 | N193: 5.040058843e-07
A194: 94.52472 | B194: ='DF raw data'!G199 -> -3.7950326e-06 | C194: ='DF raw data'!H199 -> -1.2342139e-05 | D194: ='DF raw data'!I199 -> -6.2556502e-08 | F194: -3.80080105e-06 | G194: -1.238874685e-05 | H194: -6.265158788e-08 | J194: -0.0001491155634 | K194: -0.002642787163 | L194: -0.0001123665993 | M194: 0.002859629984 | N194: 5.2144336e-07
A195: 95.02491 | B195: ='DF raw data'!G200 -> -1.0926009e-05 | C195: ='DF raw data'!H200 -> -1.2090762e-05 | D195: ='DF raw data'!I200 -> -7.2312955e-06 | F195: -1.094261653e-05 | G195: -1.213642057e-05 | H195: -7.242287069e-06 | J195: -0.0001545889508 | K195: -0.002720111011 | L195: -0.0001184371156 | M195: 0.002800388923 | N195: 5.404131128e-07
A196: 95.5251 | B196: ='DF raw data'!G201 -> -1.3363571e-05 | C196: ='DF raw data'!H201 -> -1.2118114e-05 | D196: ='DF raw data'!I201 -> -1.2153845e-05 | F196: -1.338388363e-05 | G196: -1.216387586e-05 | H196: -1.217231884e-05 | J196: -0.0001612834356 | K196: -0.002800783372 | L196: -0.0001245213646 | M196: 0.002738104582 | N196: 5.611799596e-07
A197: 96.02529 | B197: ='DF raw data'!G202 -> -7.2603966e-06 | C197: ='DF raw data'!H202 -> -8.2875531e-06 | D197: ='DF raw data'!I202 -> -1.3024704e-05 | F197: -7.271432403e-06 | G197: -8.31884954e-06 | H197: -1.304450155e-05 | J197: -0.0001649205333 | K197: -0.002883274974 | L197: -0.00012868237 | M197: 0.002673738947 | N197: 5.830672409e-07
A198: 96.52548 | B198: ='DF raw data'!G203 -> -4.7863964e-06 | C198: ='DF raw data'!H203 -> 1.8958747e-06 | D198: ='DF raw data'!I203 -> -1.4705858e-05 | F198: -4.793671723e-06 | G198: 1.903034127e-06 | H198: -1.47282109e-05 | J198: -0.00016731828 | K198: -0.002966965904 | L198: -0.0001277304913 | M198: 0.002609849433 | N198: 6.052309025e-07
A199: 97.02567 | B199: ='DF raw data'!G204 -> -6.2841232e-06 | C199: ='DF raw data'!H204 -> 1.2836489e-07 | D199: ='DF raw data'!I204 -> -9.7586872e-06 | F199: -6.293675067e-06 | G199: =(1-$G$1*($B$2-$G$2))*C199*$M$2/$M$1 -> 1.288496367e-07 | H199: -9.773520405e-06 | J199: -0.0001704663133 | K199: -0.00305223145 | L199: -0.000127666042 | M199: 0.002545992155 | N199: 6.279182116e-07
A200: =A199+$B$1 -> 97.52586 | B200: ='DF raw data'!G205 -> -8.9679761e-06 | C200: ='DF raw data'!H205 -> -6.141378e-06 | D200: ='DF raw data'!I205 -> 1.5647551e-06 | F200: -8.981607424e-06 | G200: -6.164569799e-06 | H200: 1.567133528e-06 | J200: =F200*$B$1+J199 -> -0.0001749588235 | K200: =J200*$B$1+K199 -> -0.003139744104 | L200: =G200*$B$1+L199 -> -0.0001307494982 | M200: =L200*$B$1+M199 -> 0.002480592564 | N200: =(J200^2+L200^2)*$B$1+N199 -> 6.517802863e-07
A201: 98.02605 | B201: ='DF raw data'!G206 -> -7.4569057e-06 | C201: ='DF raw data'!H206 -> -7.5617095e-06 | D201: ='DF raw data'!I206 -> 4.8782845e-06 | F201: -7.468240197e-06 | G201: -7.590264923e-06 | H201: 4.885699492e-06 | J201: -0.0001786943626 | K201: -0.003229125237 | L201: -0.0001345460728 | M201: 0.002413293963 | N201: 6.768069533e-07
... 1002 more rows

Sheet 10 y=0.1
A1: dz | B1: ='DF raw data'!K7 -> 0.50019 | C1: mm | F1: T_coeff | G1: -0.0008 | H1: /degC | L1: Hallref | M1: ='PI vs y'!B44 -> 0.50535 | N1: T | P1: IBy total | Q1: =L1203*1000 -> 6.129152083 | R1: muTm | X1: DF ref | Y1: 20
A2: Tref | B2: ='DF raw data'!K8 -> 21.97 | C2: degC | F2: Tcorr | G2: 20 | H2: degC | L2: NMRref | M2: ='PI vs y'!B45 -> 0.5064885 | N2: T | P2: JBy total | Q2: =M1203 -> 2.67310494 | R2: muTm^2
A3: Encoder | B3: ='DF raw data'!K9 -> 17889675 | P3: PI total | Q3: =N1203 -> 690.0598782 | R3: T^2mm^3
A5: z [mm] | B5: Bx | C5: By | D5: Bz | F5: Bx_corr | G5: By_corr | H5: Bz_corr | J5: Ix | K5: Jx | L5: Iy | M5: Jy | N5: PI
A6: ='PI vs y'!B53 -> 0.489 | B6: ='DF raw data'!J11 -> -3.5355429e-06 | C6: ='DF raw data'!K11 -> -9.5244189e-07 | D6: ='DF raw data'!L11 -> -6.7126261e-06 | F6: =(1-$G$1*($B$2-$G$2))*B6 -> -3.541114916e-06 | G6: =(1-$G$1*($B$2-$G$2))*C6*$M$2/$M$1 -> -9.560920708e-07 | H6: =(1-$G$1*($B$2-$G$2))*D6 -> -6.723205199e-06 | J6: =F6*$B$1 -> -1.77123027e-06 | K6: =J6*$B$1 -> -8.859516686e-07 | L6: =G6*$B$1 -> -4.782276929e-07 | M6: =L6*$B$1 -> -2.392047097e-07 | N6: =(J6^2+L6^2)*$B$1 -> 1.683618729e-12
A7: =A6+$B$1 -> 0.98919 | B7: ='DF raw data'!J12 -> -3.7231753e-06 | C7: ='DF raw data'!K12 -> 5.4169709e-06 | D7: ='DF raw data'!L12 -> 1.0938944e-06 | F7: =(1-$G$1*($B$2-$G$2))*B7 -> -3.729043024e-06 | G7: =(1-$G$1*($B$2-$G$2))*C7*$M$2/$M$1 -> 5.437731141e-06 | H7: 1.095618378e-06 | J7: =F7*$B$1+J6 -> -3.6364603e-06 | K7: =J7*$B$1+K6 -> -2.704872746e-06 | L7: =G7*$B$1+L6 -> 2.241671046e-06 | M7: =L7*$B$1+M6 -> 8.82056731e-07 | N7: =(J7^2+L7^2)*$B$1+N6 -> 1.081155232e-11
A8: =A7+$B$1 -> 1.48938 | B8: ='DF raw data'!J13 -> -3.8070089e-06 | C8: ='DF raw data'!K13 -> 8.1398193e-06 | D8: ='DF raw data'!L13 -> 4.3336745e-06 | F8: -3.813008746e-06 | G8: 8.171014706e-06 | H8: 4.340504371e-06 | J8: =F8*$B$1+J7 -> -5.543689145e-06 | K8: =J8*$B$1+K7 -> -5.477770619e-06 | L8: =G8*$B$1+L7 -> 6.328730892e-06 | M8: =L8*$B$1+M7 -> 4.047624636e-06 | N8: =(J8^2+L8^2)*$B$1+N7 -> 4.621766356e-11
A9: 1.98957 | B9: ='DF raw data'!J14 -> -3.4907521e-06 | C9: ='DF raw data'!K14 -> -1.6588905e-07 | D9: ='DF raw data'!L14 -> 6.6483603e-06 | F9: -3.496253525e-06 | G9: -1.665248106e-07 | H9: 6.658838116e-06 | J9: -7.292480195e-06 | K9: -9.125396288e-06 | L9: 6.245436847e-06 | M9: 7.171529693e-06 | N9: 9.232805326e-11
A10: 2.48976 | B10: ='DF raw data'!J15 -> -3.653879e-06 | C10: ='DF raw data'!K15 -> 4.0009081e-06 | D10: ='DF raw data'!L15 -> 5.0573849e-06 | F10: -3.659637513e-06 | G10: 4.016241359e-06 | H10: 5.065355339e-06 | J10: -9.122994283e-06 | K10: -1.36886268e-05 | L10: 8.254320613e-06 | M10: 1.130025832e-05 | N10: 1.680382289e-10
A11: 2.98995 | B11: ='DF raw data'!J16 -> -3.4172504e-06 | C11: ='DF raw data'!K16 -> -3.9741672e-06 | D11: ='DF raw data'!L16 -> -4.1572225e-06 | F11: -3.422635987e-06 | G11: -3.989397976e-06 | H11: -4.163774283e-06 | J11: -1.083496258e-05 | K11: -1.910816673e-05 | L11: 6.258863639e-06 | M11: 1.443087932e-05 | N11: 2.463528712e-10
A12: 3.49014 | B12: ='DF raw data'!J17 -> -3.3680649e-06 | C12: ='DF raw data'!K17 -> -4.7701933e-06 | D12: ='DF raw data'!L17 -> -1.2856057e-06 | F12: -3.37337297e-06 | G12: -4.788474802e-06 | H12: -1.287631815e-06 | J12: -1.252229e-05 | K12: -2.537169097e-05 | L12: 3.863716428e-06 | M12: 1.636347164e-05 | N12: 3.322535269e-10
A13: 3.99033 | B13: ='DF raw data'!J18 -> -3.4549689e-06 | C13: ='DF raw data'!K18 -> -1.6874918e-06 | D13: ='DF raw data'!L18 -> 2.4981832e-06 | F13: -3.460413931e-06 | G13: -1.693959019e-06 | H13: 2.502120337e-06 | J13: -1.425315445e-05 | K13: -3.250097629e-05 | L13: 3.016415067e-06 | M13: 1.78722523e-05 | N13: 4.384194404e-10
A14: 4.49052 | B14: ='DF raw data'!J19 -> -3.5129146e-06 | C14: ='DF raw data'!K19 -> -1.2075542e-06 | D14: ='DF raw data'!L19 -> -4.3606146e-06 | F14: -3.518450953e-06 | G14: -1.212182085e-06 | H14: -4.367486929e-06 | J14: -1.601304843e-05 | K14: -4.051054298e-05 | L14: 2.41009371e-06 | M14: 1.907775707e-05 | N14: 5.695823992e-10
A15: 4.99071 | B15: ='DF raw data'!J20 -> -3.852731e-06 | C15: ='DF raw data'!K20 -> 7.5879643e-06 | D15: ='DF raw data'!L20 -> -7.0518604e-06 | F15: -3.858802904e-06 | G15: 7.617044753e-06 | H15: -7.062974132e-06 | J15: -1.794318305e-05 | K15: -4.948554372e-05 | L15: 6.220063325e-06 | M15: 2.218897054e-05 | N15: 7.499744251e-10
A16: 5.4909 | B16: ='DF raw data'!J21 -> -3.8049425e-06 | C16: ='DF raw data'!K21 -> 6.992746e-06 | D16: ='DF raw data'!L21 -> -2.1271867e-06 | F16: -3.810939089e-06 | G16: 7.019545312e-06 | H16: -2.130539146e-06 | J16: -1.984937668e-05 | K16: -5.941400344e-05 | L16: 9.731169694e-06 | M16: 2.705640431e-05 | N16: 9.944139859e-10
A17: 5.99109 | B17: ='DF raw data'!J22 -> -3.9224783e-06 | C17: ='DF raw data'!K22 -> 1.0593545e-05 | D17: ='DF raw data'!L22 -> 9.5706275e-07 | F17: -3.928660126e-06 | G17: 1.063414417e-05 | H17: 9.585710809e-07 | J17: -2.181445319e-05 | K17: -7.032537478e-05 | L17: 1.505026227e-05 | M17: 3.4584395e-05 | N17: 1.345737819e-09
A18: 6.49128 | B18: ='DF raw data'!J23 -> -3.288495e-06 | C18: ='DF raw data'!K23 -> -7.7185332e-06 | D18: ='DF raw data'!L23 -> -5.1785632e-06 | F18: -3.293677668e-06 | G18: -7.748114051e-06 | H18: -5.186724616e-06 | J18: -2.346191782e-05 | K18: -8.206079145e-05 | L18: 1.11747331e-05 | M18: 4.017388475e-05 | N18: 1.683534257e-09
A19: 6.99147 | B19: ='DF raw data'!J24 -> -3.4166537e-06 | C19: ='DF raw data'!K24 -> -4.0905152e-06 | D19: ='DF raw data'!L24 -> -5.1746342e-06 | F19: -3.422038346e-06 | G19: -4.106191873e-06 | H19: -5.182789423e-06 | J19: -2.517358718e-05 | K19: -9.465236802e-05 | L19: 9.120856989e-06 | M19: 4.47360462e-05 | N19: 2.04212023e-09
A20: 7.49166 | B20: ='DF raw data'!J25 -> -3.490883e-06 | C20: ='DF raw data'!K25 -> -1.0848015e-06 | D20: ='DF raw data'!L25 -> 1.3982207e-08 | F20: -3.496384632e-06 | G20: -1.088958942e-06 | H20: 1.400424296e-08 | J20: -2.692244381e-05 | K20: -0.0001081187052 | L20: 8.576170616e-06 | M20: 4.902576098e-05 | N20: 2.441456261e-09
A21: 7.99185 | B21: ='DF raw data'!J26 -> -3.6263759e-06 | C21: ='DF raw data'!K26 -> 2.1231881e-06 | D21: ='DF raw data'!L26 -> -3.0753167e-06 | F21: -3.632091068e-06 | G21: 2.131325101e-06 | H21: -3.080163399e-06 | J21: -2.873917944e-05 | K21: -0.0001224937554 | L21: 9.642238118e-06 | M21: 5.384871207e-05 | N21: 2.90108745e-09
A22: 8.49204 | B22: ='DF raw data'!J27 -> -3.5089711e-06 | C22: ='DF raw data'!K27 -> 1.0243833e-05 | D22: ='DF raw data'!L27 -> -4.5361107e-06 | F22: -3.514501238e-06 | G22: 1.028309192e-05 | H22: -4.54325961e-06 | J22: -3.049709781e-05 | K22: -0.0001377480987 | L22: 1.478573787e-05 | M22: 6.124439029e-05 | N22: 3.475651211e-09
A23: 8.99223 | B23: ='DF raw data'!J28 -> -3.5689832e-06 | C23: ='DF raw data'!K28 -> 9.2461978e-06 | D23: ='DF raw data'!L28 -> -4.6378723e-06 | F23: =(1-$G$1*($B$2-$G$2))*B23 -> -3.574607918e-06 | G23: 9.281633341e-06 | H23: -4.645181587e-06 | J23: -3.228508095e-05 | K23: -0.0001538967733 | L23: 1.942831805e-05 | M23: 7.09622407e-05 | N23: 4.185813968e-09
A24: 9.49242 | B24: ='DF raw data'!J29 -> -4.5511938e-06 | C24: ='DF raw data'!K29 -> 7.6464057e-06 | D24: ='DF raw data'!L29 -> -1.4095409e-05 | F24: -4.558366481e-06 | G24: 7.675710126e-06 | H24: -1.411762336e-05 | J24: -3.456513028e-05 | K24: -0.0001711859059 | L24: 2.32676315e-05 | M24: 8.260047729e-05 | N24: 5.054209286e-09
A25: 9.99261 | B25: ='DF raw data'!J30 -> -2.2466652e-06 | C25: ='DF raw data'!K30 -> 5.2072237e-06 | D25: ='DF raw data'!L30 -> -3.2705889e-06 | F25: -2.250205944e-06 | G25: 5.227180096e-06 | H25: -3.275743348e-06 | J25: -3.569066079e-05 | K25: -0.0001890380175 | L25: 2.588221471e-05 | M25: 9.554650227e-05 | N25: 6.026434744e-09
A26: 10.4928 | B26: ='DF raw data'!J31 -> -7.7774892e-08 | C26: ='DF raw data'!K31 -> 2.8878594e-06 | D26: ='DF raw data'!L31 -> 1.1964976e-05 | F26: -7.789746523e-08 | G26: 2.898926961e-06 | H26: 1.19838328e-05 | J26: -3.572962432e-05 | K26: -0.0002069096183 | L26: 2.733222898e-05 | M26: 0.0001092178099 | N26: 7.038647636e-09
A27: 10.99299 | B27: ='DF raw data'!J32 -> -2.5115974e-06 | C27: ='DF raw data'!K32 -> 5.3275749e-06 | D27: ='DF raw data'!L32 -> 9.5739506e-06 | F27: -2.515555678e-06 | G27: 5.347992536e-06 | H27: 9.589039146e-06 | J27: -3.698788012e-05 | K27: -0.000225410586 | L27: 3.000724137e-05 | M27: 0.0001242271319 | N27: 8.173347564e-09
A28: 11.49318 | B28: ='DF raw data'!J33 -> -2.4798305e-06 | C28: ='DF raw data'!K33 -> -4.1608318e-06 | D28: ='DF raw data'!L33 -> 3.0513888e-06 | F28: -2.483738713e-06 | G28: -4.176777957e-06 | H28: 3.056197789e-06 | J28: -3.823022138e-05 | K28: -0.0002445329605 | L28: 2.79180588e-05 | M28: 0.0001381914658 | N28: 9.294257265e-09
A29: 11.99337 | B29: ='DF raw data'!J34 -> 4.2881634e-06 | C29: ='DF raw data'!K34 -> 1.4638377e-08 | D29: ='DF raw data'!L34 -> -2.7545925e-06 | F29: 4.294921546e-06 | G29: 1.469447777e-08 | H29: -2.758933738e-06 | J29: -3.608194458e-05 | K29: -0.0002625807883 | L29: 2.792540883e-05 | M29: 0.000152159476 | N29: 1.033552039e-08
A30: 12.49356 | B30: ='DF raw data'!J35 -> 9.5781343e-06 | C30: ='DF raw data'!K35 -> 2.8236809e-06 | D30: ='DF raw data'!L35 -> -7.7981258e-06 | F30: 9.59322944e-06 | G30: 2.834502501e-06 | H30: -7.810415646e-06 | J30: -3.128350714e-05 | K30: -0.0002782284858 | L30: 2.934319864e-05 | M30: 0.0001668366506 | N30: 1.125571049e-08
A31: 12.99375 | B31: ='DF raw data'!J36 -> 1.2617898e-05 | C31: ='DF raw data'!K36 -> 1.7378499e-06 | D31: ='DF raw data'!L36 -> 1.7330145e-06 | F31: 1.263778381e-05 | G31: 1.744510113e-06 | H31: 1.735745731e-06 | J31: -2.496221406e-05 | K31: -0.0002907143356 | L31: 3.021578515e-05 | M31: 0.0001819502841 | N31: 1.202405525e-08
A32: 13.49394 | B32: ='DF raw data'!J37 -> 1.5288349e-05 | C32: ='DF raw data'!K37 -> -7.492642e-06 | D32: ='DF raw data'!L37 -> 3.8667326e-06 | F32: 1.531244344e-05 | G32: -7.521357135e-06 | H32: 3.872826571e-06 | J32: -1.730308298e-05 | K32: -0.0002993691647 | L32: 2.645367753e-05 | M32: 0.0001951821491 | N32: 1.252384196e-08
A33: 13.99413 | B33: ='DF raw data'!J38 -> 1.2502356e-05 | C33: ='DF raw data'!K38 -> 4.3895816e-06 | D33: ='DF raw data'!L38 -> 2.7412439e-06 | F33: 1.252205971e-05 | G33: 4.406404428e-06 | H33: 2.7455641e-06 | J33: -1.103967393e-05 | K33: -0.0003048910992 | L33: 2.865771696e-05 | M33: 0.0002095164525 | N33: 1.299559073e-08
A34: 14.49432 | B34: ='DF raw data'!J39 -> 7.2889575e-06 | C34: ='DF raw data'!K39 -> 1.2242891e-06 | D34: ='DF raw data'!L39 -> 2.8647605e-06 | F34: 7.300444897e-06 | G34: 1.22898112e-06 | H34: 2.869275363e-06 | J34: -7.388064396e-06 | K34: -0.0003085865351 | L34: 2.927244103e-05 | M34: 0.0002241582348 | N34: 1.345149356e-08
A35: 14.99451 | B35: ='DF raw data'!J40 -> 4.9337009e-06 | C35: ='DF raw data'!K40 -> -8.9010982e-06 | D35: ='DF raw data'!L40 -> -1.2673721e-06 | F35: 4.941476413e-06 | G35: -8.935211166e-06 | H35: -1.269369478e-06 | J35: -4.916387309e-06 | K35: -0.0003110456629 | L35: 2.480313775e-05 | M35: 0.0002365645163 | N35: 1.377129829e-08
A36: 15.4947 | B36: ='DF raw data'!J41 -> 4.0279751e-06 | C36: ='DF raw data'!K41 -> -2.1878441e-06 | D36: ='DF raw data'!L41 -> 2.0653802e-06 | F36: 4.034323189e-06 | G36: -2.196228891e-06 | H36: 2.068635239e-06 | J36: -2.898459194e-06 | K36: -0.0003124954432 | L36: 2.370460602e-05 | M36: 0.0002484213232 | N36: 1.405656136e-08
A37: 15.99489 | B37: ='DF raw data'!J42 -> 1.8537445e-06 | C37: ='DF raw data'!K42 -> 2.4874444e-06 | D37: ='DF raw data'!L42 -> 6.1589212e-06 | F37: 1.856666001e-06 | G37: 2.496977393e-06 | H37: 6.16862766e-06 | J37: -1.969773426e-06 | K37: -0.0003134807042 | L37: 2.495356915e-05 | M37: 0.0002609028489 | N37: 1.436996071e-08
A38: 16.49508 | B38: ='DF raw data'!J43 -> -2.5941191e-07 | C38: ='DF raw data'!K43 -> -9.2188742e-07 | D38: ='DF raw data'!L43 -> 1.5072561e-06 | F38: -2.598207432e-07 | G38: -9.254205025e-07 | H38: 1.509631536e-06 | J38: -2.099733164e-06 | K38: -0.0003145309697 | L38: 2.449068307e-05 | M38: 0.0002731528437 | N38: 1.467217673e-08
A39: 16.99527 | B39: ='DF raw data'!J44 -> -2.1052933e-06 | C39: ='DF raw data'!K44 -> 2.3022467e-06 | D39: ='DF raw data'!L44 -> 6.5802137e-06 | F39: -2.108611242e-06 | G39: 2.311069933e-06 | H39: 6.590584117e-06 | J39: -3.154439421e-06 | K39: -0.0003161087887 | L39: 2.564665713e-05 | M39: 0.0002859810451 | N39: 1.500615435e-08
A40: 17.49546 | B40: ='DF raw data'!J45 -> -1.2916229e-06 | C40: ='DF raw data'!K45 -> 6.7158844e-06 | D40: ='DF raw data'!L45 -> 1.5604352e-05 | F40: -1.293658498e-06 | G40: 6.741622655e-06 | H40: 1.562894446e-05 | J40: -3.801514465e-06 | K40: -0.0003180102683 | L40: 2.901874937e-05 | M40: 0.0003004959334 | N40: 1.543458675e-08
A41: 17.99565 | B41: ='DF raw data'!J46 -> -1.2343465e-06 | C41: ='DF raw data'!K46 -> 7.0550564e-06 | D41: ='DF raw data'!L46 -> 8.8224897e-06 | F41: -1.23629183e-06 | G41: 7.082094513e-06 | H41: 8.836393944e-06 | J41: -4.419895276e-06 | K41: -0.0003202210557 | L41: 3.256114223e-05 | M41: 0.0003167826911 | N41: 1.597467364e-08
A42: 18.49584 | B42: ='DF raw data'!J47 -> -1.3490302e-06 | C42: ='DF raw data'!K47 -> 4.6452283e-06 | D42: ='DF raw data'!L47 -> -2.7305673e-06 | F42: -1.351156272e-06 | G42: 4.66303088e-06 | H42: -2.734870674e-06 | J42: -5.095730131e-06 | K42: -0.0003227698889 | L42: 3.489354364e-05 | M42: 0.0003342360927 | N42: 1.659667283e-08
A43: 18.99603 | B43: ='DF raw data'!J48 -> 2.3613902e-07 | C43: ='DF raw data'!K48 -> -5.2222449e-06 | D43: ='DF raw data'!L48 -> -6.3353968e-06 | F43: 2.365111751e-07 | G43: -5.242258864e-06 | H43: -6.345381385e-06 | J43: -4.977429606e-06 | K43: -0.0003252595495 | L43: 3.227141818e-05 | M43: 0.0003503779334 | N43: 1.712998503e-08
A44: 19.49622 | B44: ='DF raw data'!J49 -> 9.3000347e-07 | C44: ='DF raw data'!K49 -> -3.3956267e-06 | D44: ='DF raw data'!L49 -> -7.4274162e-06 | F44: 9.314691555e-07 | G44: -3.408640251e-06 | H44: -7.439121808e-06 | J44: -4.51151805e-06 | K44: -0.0003275161657 | L44: 3.056645041e-05 | M44: 0.0003656669662 | N44: 1.760749726e-08
A45: 19.99641 | B45: ='DF raw data'!J50 -> 2.1825595e-06 | C45: ='DF raw data'!K50 -> -6.4923379e-06 | D45: ='DF raw data'!L50 -> -6.5710069e-06 | F45: 2.185999214e-06 | G45: -6.517219425e-06 | H45: -6.581362807e-06 | J45: -3.418103103e-06 | K45: -0.0003292258667 | L45: 2.730660243e-05 | M45: 0.0003793254557 | N45: 1.798630814e-08
A46: 20.4966 | B46: ='DF raw data'!J51 -> 4.8632114e-06 | C46: ='DF raw data'!K51 -> -1.1473793e-06 | D46: ='DF raw data'!L51 -> -6.2078784e-06 | F46: 4.870875821e-06 | G46: -1.151776568e-06 | H46: -6.217662016e-06 | J46: -9.817397258e-07 | K46: -0.000329716923 | L46: 2.673049531e-05 | M46: 0.0003926957821 | N46: 1.834418568e-08
A47: 20.99679 | B47: ='DF raw data'!J52 -> 8.1870003e-06 | C47: ='DF raw data'!K52 -> -1.2307094e-05 | D47: ='DF raw data'!L52 -> -4.7640665e-06 | F47: 8.199903012e-06 | G47: -1.235426026e-05 | H47: -4.771574669e-06 | J47: 3.119769762e-06 | K47: -0.0003281564454 | L47: 2.055101787e-05 | M47: 0.0004029751957 | N47: 1.856030642e-08
A48: 21.49698 | B48: ='DF raw data'!J53 -> 6.3953244e-06 | C48: ='DF raw data'!K53 -> -8.4670601e-06 | D48: ='DF raw data'!L53 -> 2.7532928e-06 | F48: 6.405403431e-06 | G48: -8.499509639e-06 | H48: 2.757631989e-06 | J48: 6.323688504e-06 | K48: -0.0003249933997 | L48: 1.629964814e-05 | M48: 0.0004111281167 | N48: 1.871319828e-08
A49: 21.99717 | B49: ='DF raw data'!J54 -> 3.3290466e-06 | C49: ='DF raw data'!K54 -> 2.1144302e-07 | D49: ='DF raw data'!L54 -> -2.6210182e-08 | F49: 3.334293177e-06 | G49: 2.122533637e-07 | H49: -2.625148925e-08 | J49: 7.991468609e-06 | K49: -0.000320996147 | L49: 1.640581515e-05 | M49: 0.0004193341414 | N49: 1.887976872e-08
A50: 22.49736 | B50: ='DF raw data'!J55 -> 1.0651056e-07 | C50: ='DF raw data'!K55 -> 1.0233825e-05 | D50: ='DF raw data'!L55 -> -5.9073959e-06 | F50: 1.066784206e-07 | G50: 1.027304557e-05 | H50: -5.916705956e-06 | J50: 8.044828088e-06 | K50: -0.0003169722044 | L50: 2.154428982e-05 | M50: 0.0004301103797 | N50: 1.914430705e-08
A51: 22.99755 | B51: ='DF raw data'!J56 -> -5.0669719e-06 | C51: ='DF raw data'!K56 -> -1.0511775e-06 | D51: ='DF raw data'!L56 -> -4.3473724e-06 | F51: -5.074957448e-06 | G51: -1.05520608e-06 | H51: -4.354223859e-06 | J51: 5.506385122e-06 | K51: -0.0003142179656 | L51: 2.101648629e-05 | M51: 0.000440622616 | N51: 1.938040322e-08
A52: 23.49774 | B52: ='DF raw data'!J57 -> -6.669356e-06 | C52: ='DF raw data'!K57 -> -1.4867686e-07 | D52: ='DF raw data'!L57 -> -5.131837e-06 | F52: -6.679866905e-06 | G52: -1.492466558e-07 | H52: -5.139924775e-06 | J52: 2.165182495e-06 | K52: -0.000313134963 | L52: 2.09418346e-05 | M52: 0.0004510975123 | N52: 1.960211166e-08
A53: 23.99793 | B53: ='DF raw data'!J58 -> -1.4105702e-06 | C53: ='DF raw data'!K58 -> -6.865211e-07 | D53: ='DF raw data'!L58 -> -5.4954894e-06 | F53: -1.412793259e-06 | G53: -6.891521541e-07 | H53: -5.504150291e-06 | J53: 1.458517435e-06 | K53: -0.0003124054272 | L53: 2.059712759e-05 | M53: 0.0004613999895 | N53: 1.981537714e-08
A54: 24.49812 | B54: ='DF raw data'!J59 -> 1.3704172e-06 | C54: ='DF raw data'!K59 -> 9.7616266e-06 | D54: ='DF raw data'!L59 -> -4.0602486e-06 | F54: 1.372576978e-06 | G54: 9.799037493e-06 | H54: -4.066647552e-06 | J54: 2.145066713e-06 | K54: -0.0003113324863 | L54: 2.549850815e-05 | M54: 0.0004741540883 | N54: 2.014288917e-08
A55: 24.99831 | B55: ='DF raw data'!J60 -> 6.2741069e-06 | C55: ='DF raw data'!K60 -> -1.3401813e-06 | D55: ='DF raw data'!L60 -> -6.7888345e-06 | F55: 6.283994892e-06 | G55: -1.345317471e-06 | H55: -6.799533703e-06 | J55: 5.288258119e-06 | K55: -0.0003086873524 | L55: 2.48255938e-05 | M55: 0.0004865716021 | N55: 2.046514947e-08
A56: 25.4985 | B56: ='DF raw data'!J61 -> 1.1597242e-05 | C56: ='DF raw data'!K61 -> 7.8046505e-06 | D56: ='DF raw data'!L61 -> -8.4635412e-06 | F56: 1.161551925e-05 | G56: 7.834561391e-06 | H56: -8.476879741e-06 | J56: 1.109822469e-05 | K56: -0.0003031361314 | L56: 2.874436307e-05 | M56: 0.000500949245 | N56: 2.094003436e-08
A57: 25.99869 | B57: ='DF raw data'!J62 -> 1.0400623e-05 | C57: ='DF raw data'!K62 -> -3.4612731e-06 | D57: ='DF raw data'!L62 -> -1.5680001e-06 | F57: 1.041701438e-05 | G57: -3.474538237e-06 | H57: -1.570471268e-06 | J57: 1.630871112e-05 | K57: -0.0002949786772 | L57: 2.700643378e-05 | M57: 0.0005144575931 | N57: 2.143788423e-08
A58: 26.49888 | B58: ='DF raw data'!J63 -> 4.0072823e-06 | C58: ='DF raw data'!K63 -> -8.415157e-06 | D58: ='DF raw data'!L63 -> 4.5147003e-06 | F58: 4.013597777e-06 | G58: -8.447407623e-06 | H58: 4.521815468e-06 | J58: 1.831627259e-05 | K58: -0.0002858170608 | L58: 2.278112497e-05 | M58: 0.000525852484 | N58: 2.186527933e-08
A59: 26.99907 | B59: ='DF raw data'!J64 -> -2.9572789e-06 | C59: ='DF raw data'!K64 -> 1.734381e-06 | D59: ='DF raw data'!L64 -> -4.6672235e-06 | F59: -2.961939572e-06 | G59: 1.741027919e-06 | H59: -4.674579044e-06 | J59: 1.683474004e-05 | K59: -0.0002773964922 | L59: 2.365196972e-05 | M59: 0.0005376829628 | N59: 2.228685153e-08
A60: 27.49926 | B60: ='DF raw data'!J65 -> -5.6546364e-06 | C60: ='DF raw data'!K65 -> -3.6669638e-07 | D60: ='DF raw data'!L65 -> -9.915153e-06 | F60: -5.663548107e-06 | G60: -3.681017236e-07 | H60: -9.930779281e-06 | J60: 1.400188991e-05 | K60: -0.0002703928869 | L60: 2.346784892e-05 | M60: 0.0005494213461 | N60: 2.266038985e-08
A61: 27.99945 | B61: ='DF raw data'!J66 -> -5.628603e-06 | C61: ='DF raw data'!K66 -> -4.8281008e-06 | D61: ='DF raw data'!L66 -> -3.1119876e-06 | F61: -5.637473678e-06 | G61: -4.846604229e-06 | H61: -3.116892092e-06 | J61: 1.118208195e-05 | K61: -0.0002647997213 | L61: 2.104362595e-05 | M61: 0.0005599471574 | N61: 2.294443432e-08
A62: 28.49964 | B62: ='DF raw data'!J67 -> -6.0704137e-06 | C62: ='DF raw data'!K67 -> 7.400366e-06 | D62: ='DF raw data'!L67 -> 1.0505006e-06 | F62: -6.079980672e-06 | G62: 7.428727493e-06 | H62: 1.052156189e-06 | J62: 8.140936416e-06 | K62: -0.0002607277063 | L62: 2.475940116e-05 | M62: 0.0005723315623 | N62: 2.328421479e-08
A63: 28.99983 | B63: ='DF raw data'!J68 -> -2.1466062e-06 | C63: ='DF raw data'!K68 -> 9.3947019e-06 | D63: ='DF raw data'!L68 -> 6.0365978e-06 | F63: -2.149989251e-06 | G63: 9.430706575e-06 | H63: 6.046111478e-06 | J63: 7.065533293e-06 | K63: -0.0002571935972 | L63: 2.947654628e-05 | M63: 0.0005870754359 | N63: 2.374378363e-08
A64: 29.50002 | B64: ='DF raw data'!J69 -> 3.6611941e-06 | C64: ='DF raw data'!K69 -> 5.1190282e-06 | D64: ='DF raw data'!L69 -> 8.224566e-06 | F64: 3.666964142e-06 | G64: 5.138646592e-06 | H64: 8.237527916e-06 | J64: 8.899712087e-06 | K64: -0.0002527420502 | L64: 3.204684592e-05 | M64: 0.0006031049478 | N64: 2.429709641e-08
A65: 30.00021 | B65: ='DF raw data'!J70 -> 6.6145926e-06 | C65: ='DF raw data'!K70 -> 1.3139469e-05 | D65: ='DF raw data'!L70 -> 4.4984022e-06 | F65: 6.625017198e-06 | G65: 1.318982529e-05 | H65: 4.505491682e-06 | J65: 1.221347944e-05 | K65: -0.00024663299 | L65: 3.864426463e-05 | M65: 0.0006224344225 | N65: 2.511868263e-08
A66: 30.5004 | B66: ='DF raw data'!J71 -> 8.3006798e-06 | C66: ='DF raw data'!K71 -> 2.417928e-06 | D66: ='DF raw data'!L71 -> -1.8008017e-06 | F66: 8.313761671e-06 | G66: 2.427194575e-06 | H66: -1.803639763e-06 | J66: 1.637193989e-05 | K66: -0.0002384439093 | L66: 3.985832308e-05 | M66: 0.0006423711571 | N66: 2.604739857e-08
A67: 31.00059 | B67: ='DF raw data'!J72 -> 9.0681624e-06 | C67: ='DF raw data'!K72 -> -5.9726399e-06 | D67: ='DF raw data'!L72 -> -3.2206758e-06 | F67: 9.082453824e-06 | G67: -5.995529712e-06 | H67: -3.225751585e-06 | J67: 2.091489247e-05 | K67: -0.0002279824893 | L67: 3.685941907e-05 | M67: 0.00066080787 | N67: 2.694576457e-08
A68: 31.50078 | B68: ='DF raw data'!J73 -> 9.4925545e-06 | C68: ='DF raw data'!K73 -> -3.3387869e-06 | D68: ='DF raw data'!L73 -> -3.1576515e-06 | F68: 9.507514766e-06 | G68: -3.351582616e-06 | H68: -3.162627959e-06 | J68: 2.567045628e-05 | K68: -0.0002151423838 | L68: 3.518299097e-05 | M68: 0.0006784060502 | N68: 2.789453256e-08
A69: 32.00097 | B69: ='DF raw data'!J74 -> 5.7632619e-06 | C69: ='DF raw data'!K74 -> 1.0884606e-06 | D69: ='DF raw data'!L74 -> 1.0494383e-06 | F69: 5.772344801e-06 | G69: 1.092632065e-06 | H69: 1.051092215e-06 | J69: 2.855772542e-05 | K69: -0.0002008580951 | L69: 3.57295146e-05 | M69: 0.0006962775961 | N69: 2.894100101e-08
A70: 32.50116 | B70: ='DF raw data'!J75 -> -2.0239336e-06 | C70: ='DF raw data'!K75 -> -6.4649333e-07 | D70: ='DF raw data'!L75 -> 5.3949555e-07 | F70: -2.027123319e-06 | G70: -6.489709799e-07 | H70: 5.40345795e-07 | J70: 2.754377861e-05 | K70: -0.0001870809725 | L70: 3.54049058e-05 | M70: 0.000713986776 | N70: 2.994746687e-08
A71: 33.00135 | B71: ='DF raw data'!J76 -> -6.3808061e-06 | C71: ='DF raw data'!K76 -> 2.2591503e-06 | D71: ='DF raw data'!L76 -> -3.6705774e-06 | F71: -6.39086225e-06 | G71: =(1-$G$1*($B$2-$G$2))*C71*$M$2/$M$1 -> 2.267808368e-06 | H71: -3.67636223e-06 | J71: 2.434713322e-05 | K71: -0.0001749027799 | L71: 3.653924087e-05 | M71: 0.0007322633388 | N71: 3.091178268e-08
A72: =A71+$B$1 -> 33.50154 | B72: ='DF raw data'!J77 -> -5.2983182e-06 | C72: ='DF raw data'!K77 -> 8.3668334e-07 | D72: ='DF raw data'!L77 -> -5.817014e-06 | F72: -5.306668349e-06 | G72: 8.398898825e-07 | H72: -5.826181614e-06 | J72: =F72*$B$1+J71 -> 2.169279078e-05 | K72: =J72*$B$1+K71 -> -0.0001640522629 | L72: =G72*$B$1+L71 -> 3.695934539e-05 | M72: =L72*$B$1+M71 -> 0.0007507500338 | N72: =(J72^2+L72^2)*$B$1+N71 -> 3.183041682e-08
A73: 34.00173 | B73: ='DF raw data'!J78 -> -6.1166015e-06 | C73: ='DF raw data'!K78 -> -3.633927e-06 | D73: ='DF raw data'!L78 -> -4.6217633e-06 | F73: -6.126241264e-06 | G73: -3.647853824e-06 | H73: -4.629047199e-06 | J73: 1.862850616e-05 | K73: -0.0001547344704 | L73: 3.513472539e-05 | M73: 0.0007683240721 | N73: 3.262145239e-08
A74: 34.50192 | B74: ='DF raw data'!J79 -> -4.6765585e-06 | C74: ='DF raw data'!K79 -> 1.0771003e-05 | D74: ='DF raw data'!L79 -> -2.9326206e-06 | F74: -4.683928756e-06 | G74: 1.081228227e-05 | H74: -2.93724241e-06 | J74: 1.628565184e-05 | K74: -0.0001465885502 | L74: 4.054292086e-05 | M74: 0.0007886032357 | N74: 3.357629053e-08
A75: 35.00211 | B75: ='DF raw data'!J80 -> 1.9114282e-06 | C75: ='DF raw data'!K80 -> 2.3652246e-06 | D75: ='DF raw data'!L80 -> -1.4561978e-06 | F75: 1.914440611e-06 | G75: 2.374289192e-06 | H75: -1.458492768e-06 | J75: 1.724323589e-05 | K75: -0.000137963656 | L75: 4.173051657e-05 | M75: 0.0008094764228 | N75: 3.459606049e-08
A76: 35.5023 | B76: ='DF raw data'!J81 -> 2.4121159e-06 | C76: ='DF raw data'!K81 -> 3.9147144e-06 | D76: ='DF raw data'!L81 -> 2.4433902e-07 | F76: 2.415917395e-06 | G76: 3.929717326e-06 | H76: 2.447240983e-07 | J76: 1.845165361e-05 | K76: -0.0001287343234 | L76: 4.369612188e-05 | M76: 0.000831332786 | N76: 3.572139525e-08
A77: 36.00249 | B77: ='DF raw data'!J82 -> -3.6903898e-06 | C77: ='DF raw data'!K82 -> 8.7367725e-06 | D77: ='DF raw data'!L82 -> 3.521925e-06 | F77: -3.696205854e-06 | G77: 8.770255697e-06 | H77: 3.527475554e-06 | J77: 1.66028484e-05 | K77: -0.0001204297447 | L77: 4.808291607e-05 | M77: 0.0008553833798 | N77: 3.70156976e-08
A78: 36.50268 | B78: ='DF raw data'!J83 -> -7.62434e-06 | C78: ='DF raw data'!K83 -> 4.071625e-06 | D78: ='DF raw data'!L83 -> 6.5817417e-06 | F78: -7.63635596e-06 | G78: 4.087229277e-06 | H78: 6.592114525e-06 | J78: 1.278321951e-05 | K78: -0.0001140357061 | L78: 5.012730729e-05 | M78: 0.0008804565576 | N78: 3.835428489e-08
A79: 37.00287 | B79: ='DF raw data'!J84 -> -9.4368534e-06 | C79: ='DF raw data'!K84 -> -6.4160186e-06 | D79: ='DF raw data'!L84 -> 9.8454893e-06 | F79: -9.451725881e-06 | G79: -6.440607636e-06 | H79: 9.861005791e-06 | J79: 8.055560746e-06 | K79: -0.0001100063952 | L79: 4.690577975e-05 | M79: 0.0009039183596 | N79: 3.948723736e-08
A80: 37.50306 | B80: ='DF raw data'!J85 -> -6.9385519e-06 | C80: ='DF raw data'!K85 -> -5.8218657e-06 | D80: ='DF raw data'!L85 -> 6.9569046e-06 | F80: -6.949487058e-06 | G80: -5.844177678e-06 | H80: 6.967868682e-06 | J80: 4.579496815e-06 | K80: -0.0001077157766 | L80: 4.398258052e-05 | M80: 0.0009259180065 | N80: 4.046532848e-08
A81: 38.00325 | B81: ='DF raw data'!J86 -> -2.9714961e-06 | C81: ='DF raw data'!K86 -> -9.3709781e-07 | D81: ='DF raw data'!L86 -> 6.5746258e-06 | F81: -2.976179178e-06 | G81: -9.406891854e-07 | H81: 6.58498741e-06 | J81: 3.090841752e-06 | K81: -0.0001061697685 | L81: 4.35120572e-05 | M81: 0.0009476823024 | N81: 4.141711624e-08
A82: 38.50344 | B82: ='DF raw data'!J87 -> -4.2044944e-06 | C82: ='DF raw data'!K87 -> 1.6392479e-06 | D82: ='DF raw data'!L87 -> 1.1508892e-07 | F82: -4.211120683e-06 | G82: 1.645530227e-06 | H82: 1.152703001e-07 | J82: 9.844812975e-07 | K82: -0.0001056773408 | L82: 4.433513496e-05 | M82: 0.0009698582936 | N82: 4.240077659e-08
A83: 39.00363 | B83: ='DF raw data'!J88 -> -5.5486403e-06 | C83: ='DF raw data'!K88 -> 2.122254e-06 | D83: ='DF raw data'!L88 -> -7.9711626e-06 | F83: -5.557384957e-06 | G83: 2.130387421e-06 | H83: -7.983725152e-06 | J83: -1.795267084e-06 | K83: -0.0001065753155 | L83: 4.540073344e-05 | M83: 0.0009925672864 | N83: 4.343339362e-08
A84: 39.50382 | B84: ='DF raw data'!J89 -> -1.482253e-06 | C84: ='DF raw data'!K89 -> -1.3156304e-06 | D84: ='DF raw data'!L89 -> -1.1941032e-06 | F84: -1.484589031e-06 | G84: -1.320672481e-06 | H84: -1.195985107e-06 | J84: -2.537843671e-06 | K84: -0.0001078447195 | L84: 4.474014628e-05 | M84: 0.00101494586 | N84: 4.443783583e-08
A85: 40.00401 | B85: ='DF raw data'!J90 -> 1.8414502e-07 | C85: ='DF raw data'!K90 -> -1.4841488e-06 | D85: ='DF raw data'!L90 -> 5.3819799e-06 | F85: 1.844352326e-07 | G85: -1.489836718e-06 | H85: 5.3904619e-06 | J85: -2.445591013e-06 | K85: -0.0001090679796 | L85: 4.399494485e-05 | M85: 0.001036951692 | N85: 4.540897277e-08
A86: 40.5042 | B86: ='DF raw data'!J91 -> -1.8589875e-06 | C86: ='DF raw data'!K91 -> -3.0859419e-06 | D86: ='DF raw data'!L91 -> 4.6666514e-06 | F86: -1.861917264e-06 | G86: -3.097768601e-06 | H86: 4.674006043e-06 | J86: -3.376903409e-06 | K86: -0.000110757073 | L86: 4.244547197e-05 | M86: 0.001058182492 | N86: 4.631582803e-08
A87: 41.00439 | B87: ='DF raw data'!J92 -> -3.4295322e-06 | C87: ='DF raw data'!K92 -> -4.0335426e-06 | D87: ='DF raw data'!L92 -> -2.8377858e-06 | F87: =(1-$G$1*($B$2-$G$2))*B87 -> -3.434937143e-06 | G87: -4.049000929e-06 | H87: -2.84225815e-06 | J87: -5.095024618e-06 | K87: -0.0001133055533 | L87: 4.04202022e-05 | M87: 0.001078400273 | N87: 4.714601939e-08
A88: 41.50458 | B88: ='DF raw data'!J93 -> -4.447395e-06 | C88: ='DF raw data'!K93 -> 7.921181e-07 | D88: ='DF raw data'!L93 -> -8.0468471e-06 | F88: -4.454404095e-06 | G88: 7.951538487e-07 | H88: -8.059528931e-06 | J88: -7.323073002e-06 | K88: -0.0001169684812 | L88: 4.08179302e-05 | M88: 0.001098816994 | N88: 4.800621155e-08
A89: 42.00477 | B89: ='DF raw data'!J94 -> -4.5055444e-06 | C89: ='DF raw data'!K94 -> 6.7967412e-06 | D89: ='DF raw data'!L94 -> -5.9450563e-06 | F89: -4.512645138e-06 | G89: 6.822789334e-06 | H89: -5.954425709e-06 | J89: -9.580252974e-06 | K89: -0.0001217604279 | L89: 4.42306212e-05 | M89: 0.001120940708 | N89: 4.903066525e-08
A90: 42.50496 | B90: ='DF raw data'!J95 -> -3.9307583e-06 | C90: ='DF raw data'!K95 -> 2.0579768e-05 | D90: ='DF raw data'!L95 -> -5.3400167e-06 | F90: -3.936953175e-06 | G90: 2.065863882e-05 | H90: -5.348432566e-06 | J90: -1.154947758e-05 | K90: -0.0001275373611 | L90: 5.456386575e-05 | M90: 0.001148233008 | N90: 5.05865592e-08
A91: 43.00515 | B91: ='DF raw data'!J96 -> -3.8797684e-06 | C91: ='DF raw data'!K96 -> 1.0039956e-05 | D91: ='DF raw data'!L96 -> -3.2546836e-06 | F91: -3.885882915e-06 | G91: 1.007843358e-05 | H91: -3.259812981e-06 | J91: -1.349315736e-05 | K91: -0.0001342865035 | L91: 5.960499744e-05 | M91: 0.001178046832 | N91: 5.245467932e-08
A92: 43.50534 | B92: ='DF raw data'!J97 -> -8.3352879e-06 | C92: ='DF raw data'!K97 -> 5.6141762e-06 | D92: ='DF raw data'!L97 -> 3.1528739e-06 | F92: -8.348424314e-06 | G92: 5.635692219e-06 | H92: 3.157842829e-06 | J92: -1.766895572e-05 | K92: -0.0001431243385 | L92: 6.242391433e-05 | M92: 0.00120927065 | N92: 5.455994756e-08
A93: 44.00553 | B93: ='DF raw data'!J98 -> -1.0035461e-05 | C93: ='DF raw data'!K98 -> -1.517239e-06 | D93: ='DF raw data'!L98 -> 2.4575834e-06 | F93: -1.005127689e-05 | G93: -1.523053734e-06 | H93: 2.461456551e-06 | J93: -2.26965039e-05 | K93: -0.0001544769028 | L93: 6.166209808e-05 | M93: 0.001240113414 | N93: 5.671944067e-08
A94: 44.50572 | B94: ='DF raw data'!J99 -> -5.3955105e-06 | C94: ='DF raw data'!K99 -> 4.1183243e-06 | D94: ='DF raw data'!L99 -> -3.0100855e-07 | F94: -5.404013825e-06 | G94: 4.13410755e-06 | H94: -3.014829395e-07 | J94: -2.539953758e-05 | K94: -0.0001671814975 | L94: 6.372993734e-05 | M94: 0.001271990492 | N94: 5.907365564e-08
A95: 45.00591 | B95: ='DF raw data'!J100 -> 1.9706981e-06 | C95: ='DF raw data'!K100 -> -2.5471636e-06 | D95: ='DF raw data'!L100 -> -7.11861e-06 | F95: 1.97380392e-06 | G95: -2.556925463e-06 | H95: -7.129828929e-06 | J95: -2.441226059e-05 | K95: -0.0001793922661 | L95: 6.245098879e-05 | M95: 0.001303227852 | N95: 6.132255213e-08
A96: 45.5061 | B96: ='DF raw data'!J101 -> 5.1487054e-06 | C96: ='DF raw data'!K101 -> -1.1611405e-05 | D96: ='DF raw data'!L101 -> -7.6360611e-06 | F96: 5.15681976e-06 | G96: -1.165590507e-05 | H96: -7.648095532e-06 | J96: -2.183287092e-05 | K96: -0.0001903128498 | L96: 5.662082164e-05 | M96: 0.001331549021 | N96: 6.316454767e-08
A97: 46.00629 | B97: ='DF raw data'!J102 -> 7.7154766e-07 | C97: ='DF raw data'!K102 -> 9.1784168e-06 | D97: ='DF raw data'!L102 -> 4.0086284e-06 | F97: 7.727636191e-07 | G97: 9.213592574e-06 | H97: 4.014945998e-06 | J97: -2.144634228e-05 | K97: -0.0002010400957 | L97: 6.122936851e-05 | M97: 0.001362175338 | N97: 6.526983796e-08
A98: 46.50648 | B98: ='DF raw data'!J103 -> -2.7826704e-06 | C98: ='DF raw data'!K103 -> 4.3076575e-06 | D98: ='DF raw data'!L103 -> 6.29536e-06 | F98: -2.787055889e-06 | G98: 4.324166359e-06 | H98: 6.305281487e-06 | J98: -2.284039977e-05 | K98: -0.0002124646353 | L98: 6.339227328e-05 | M98: 0.00139388352 | N98: 6.75408327e-08
A99: 47.00667 | B99: ='DF raw data'!J104 -> -2.5199356e-06 | C99: ='DF raw data'!K104 -> -1.5289805e-06 | D99: ='DF raw data'!L104 -> 6.1765581e-06 | F99: -2.523907019e-06 | G99: -1.534840233e-06 | H99: 6.186292356e-06 | J99: -2.410283282e-05 | K99: -0.0002245206313 | L99: 6.262456154e-05 | M99: 0.001425207699 | N99: 6.979307936e-08
A100: 47.50686 | B100: ='DF raw data'!J105 -> 1.1555436e-06 | C100: ='DF raw data'!K105 -> 2.6134518e-07 | D100: ='DF raw data'!L105 -> 4.8412162e-06 | F100: 1.157364737e-06 | G100: 2.623467709e-07 | H100: 4.848845957e-06 | J100: -2.352393055e-05 | K100: -0.0002362870661 | L100: 6.275578477e-05 | M100: 0.001456597515 | N100: 7.203976469e-08
A101: 48.00705 | B101: ='DF raw data'!J106 -> 4.7623521e-06 | C101: ='DF raw data'!K106 -> 3.5564626e-06 | D101: ='DF raw data'!L106 -> -5.576461e-07 | F101: 4.769857567e-06 | G101: 3.570092546e-06 | H101: -5.585249503e-07 | J101: -2.11380955e-05 | K101: -0.0002468601301 | L101: 6.454150936e-05 | M101: 0.001488880533 | N101: 7.434685381e-08
A102: 48.50724 | B102: ='DF raw data'!J107 -> 3.2480798e-06 | C102: ='DF raw data'!K107 -> -5.5179198e-06 | D102: ='DF raw data'!L107 -> -5.5761507e-06 | F102: 3.253198774e-06 | G102: -5.539066922e-06 | H102: -5.584938714e-06 | J102: -1.9510878e-05 | K102: -0.0002566192761 | L102: 6.177092348e-05 | M102: 0.001519777731 | N102: 7.644581178e-08
A103: 49.00743 | B103: ='DF raw data'!J108 -> 8.9635944e-07 | C103: ='DF raw data'!K108 -> -5.7386087e-06 | D103: ='DF raw data'!L108 -> -5.8426981e-06 | F103: 8.977721025e-07 | G103: -5.7606016e-06 | H103: -5.851906192e-06 | J103: -1.906182137e-05 | K103: -0.0002661538086 | L103: 5.888952816e-05 | M103: 0.001549233684 | N103: 7.836220451e-08
A104: 49.50762 | B104: ='DF raw data'!J109 -> -7.2111504e-07 | C104: ='DF raw data'!K109 -> -4.3402915e-06 | D104: ='DF raw data'!L109 -> 2.8420741e-06 | F104: -7.222515173e-07 | G104: -4.356925427e-06 | H104: 2.846553209e-06 | J104: -1.942308436e-05 | K104: -0.0002758690411 | L104: 5.671023764e-05 | M104: 0.001577599578 | N104: 8.015954087e-08
A105: 50.00781 | B105: ='DF raw data'!J110 -> -2.7316078e-06 | C105: ='DF raw data'!K110 -> -3.3830847e-06 | D105: ='DF raw data'!L110 -> 7.0754445e-06 | F105: -2.735912814e-06 | G105: -3.396050185e-06 | H105: 7.086595401e-06 | J105: -2.079156059e-05 | K105: -0.0002862687718 | L105: 5.501156729e-05 | M105: 0.001605115814 | N105: 8.188947876e-08
A106: 50.508 | B106: ='DF raw data'!J111 -> -4.451089e-07 | C106: ='DF raw data'!K111 -> -9.7499624e-06 | D106: ='DF raw data'!L111 -> 1.1177834e-05 | F106: -4.458103916e-07 | G106: -9.787328591e-06 | H106: 1.119545027e-05 | J106: -2.101455049e-05 | K106: -0.0002967800398 | L106: 5.011604341e-05 | M106: 0.001630183357 | N106: 8.336665445e-08
A107: 51.00819 | B107: ='DF raw data'!J112 -> -7.6129288e-07 | C107: ='DF raw data'!K112 -> -1.1013118e-05 | D107: ='DF raw data'!L112 -> 1.0582515e-05 | F107: -7.624926776e-07 | G107: -1.105532516e-05 | H107: 1.059919304e-05 | J107: -2.13959417e-05 | K107: -0.0003074820759 | L107: 4.458628031e-05 | M107: 0.001652484969 | N107: 8.458998049e-08
A108: 51.50838 | B108: ='DF raw data'!J113 -> -7.2915959e-06 | C108: ='DF raw data'!K113 -> -2.3655693e-06 | D108: ='DF raw data'!L113 -> 3.8717239e-06 | F108: -7.303087455e-06 | G108: -2.374635213e-06 | H108: 3.877825737e-06 | J108: -2.504887302e-05 | K108: -0.0003200112717 | L108: 4.339851152e-05 | M108: 0.00167419247 | N108: 8.584589598e-08
A109: 52.00857 | B109: ='DF raw data'!J114 -> -9.2077044e-06 | C109: ='DF raw data'!K114 -> -1.0060793e-06 | D109: ='DF raw data'!L114 -> -1.8793384e-06 | F109: -9.222215742e-06 | G109: -1.009935043e-06 | H109: -1.882300237e-06 | J109: -2.966173311e-05 | K109: -0.000334847774 | L109: 4.289335212e-05 | M109: 0.001695647296 | N109: 8.720624175e-08
A110: 52.50876 | B110: ='DF raw data'!J115 -> -6.9740731e-06 | C110: ='DF raw data'!K115 -> -6.0349494e-06 | D110: ='DF raw data'!L115 -> -6.2512722e-06 | F110: -6.985064239e-06 | G110: -6.058078009e-06 | H110: -6.261124205e-06 | J110: -3.315559239e-05 | K110: -0.0003514318697 | L110: 3.986316208e-05 | M110: 0.001715586451 | N110: 8.855093503e-08
A111: 53.00895 | B111: ='DF raw data'!J116 -> -8.2990391e-06 | C111: ='DF raw data'!K116 -> 5.3646677e-06 | D111: ='DF raw data'!L116 -> -4.4851354e-06 | F111: -8.312118386e-06 | G111: 5.385227492e-06 | H111: -4.492203973e-06 | J111: -3.731323089e-05 | K111: -0.0003700955747 | L111: 4.255679901e-05 | M111: 0.001736872936 | N111: 9.015322284e-08
A112: 53.50914 | B112: ='DF raw data'!J117 -> -7.7169916e-06 | C112: ='DF raw data'!K117 -> 6.6883986e-06 | D112: ='DF raw data'!L117 -> -1.2132151e-07 | F112: -7.729153579e-06 | G112: 6.714031517e-06 | H112: -1.215127127e-07 | J112: -4.117927621e-05 | K112: -0.0003906930369 | L112: 4.591509044e-05 | M112: 0.001759839205 | N112: 9.205590975e-08
A113: 54.00933 | B113: ='DF raw data'!J118 -> -7.8460816e-06 | C113: ='DF raw data'!K118 -> 2.8918621e-06 | D113: ='DF raw data'!L118 -> -3.8513318e-07 | F113: -7.858447025e-06 | G113: 2.902945001e-06 | H113: -3.857401499e-07 | J113: -4.510999283e-05 | K113: -0.0004132566042 | L113: 4.73671145e-05 | M113: 0.001783531763 | N113: 9.419600017e-08
A114: 54.50952 | B114: ='DF raw data'!J119 -> -8.3188006e-06 | C114: ='DF raw data'!K119 -> -1.244647e-06 | D114: ='DF raw data'!L119 -> -2.7482042e-06 | F114: -8.33191103e-06 | G114: -1.249417041e-06 | H114: -2.75253537e-06 | J114: -4.927753141e-05 | K114: -0.0004379047326 | L114: 4.674216859e-05 | M114: 0.001806911728 | N114: 9.650342937e-08
A115: 55.00971 | B115: ='DF raw data'!J120 -> -4.3698333e-06 | C115: ='DF raw data'!K120 -> -8.2425022e-06 | D115: ='DF raw data'!L120 -> -6.1969063e-06 | F115: -4.376720157e-06 | G115: -8.274091133e-06 | H115: -6.206672624e-06 | J115: -5.146672306e-05 | K115: -0.0004636478728 | L115: 4.260355095e-05 | M115: 0.001828221598 | N115: 9.873622058e-08
A116: 55.5099 | B116: ='DF raw data'!J121 -> 3.9046208e-07 | C116: ='DF raw data'!K121 -> -8.8745464e-06 | D116: ='DF raw data'!L121 -> -5.4212164e-06 | F116: 3.910774482e-07 | G116: -8.908557607e-06 | H116: -5.429760237e-06 | J116: -5.127111004e-05 | K116: -0.0004892931694 | L116: 3.814757952e-05 | M116: 0.001847302636 | N116: 1.007789788e-07
A117: 56.01009 | B117: ='DF raw data'!J122 -> 3.1522991e-06 | C117: ='DF raw data'!K122 -> -5.3036356e-06 | D117: ='DF raw data'!L122 -> -2.7209194e-06 | F117: 3.157267123e-06 | G117: -5.32396149e-06 | H117: -2.725207569e-06 | J117: -4.969187659e-05 | K117: -0.0005141485491 | L117: 3.548458722e-05 | M117: 0.001865051671 | N117: 1.026439065e-07
A118: 56.51028 | B118: ='DF raw data'!J123 -> 4.9610003e-06 | C118: ='DF raw data'!K123 -> -6.6413768e-06 | D118: ='DF raw data'!L123 -> 7.647883e-07 | F118: 4.968818836e-06 | G118: -6.666829509e-06 | H118: 7.659936064e-07 | J118: -4.72065231e-05 | K118: -0.0005377607799 | L118: 3.214990577e-05 | M118: 0.001881132733 | N118: 1.042755624e-07
A119: 57.01047 | B119: ='DF raw data'!J124 -> 7.2122689e-06 | C119: ='DF raw data'!K124 -> -1.8238732e-05 | D119: ='DF raw data'!L124 -> 2.3914304e-06 | F119: 7.223635436e-06 | G119: -1.830863093e-05 | H119: 2.395199294e-06 | J119: -4.359333289e-05 | K119: -0.0005595657291 | L119: 2.299211166e-05 | M119: 0.001892633157 | N119: 1.054905318e-07
A120: 57.51066 | B120: ='DF raw data'!J125 -> 6.1805235e-06 | C120: ='DF raw data'!K125 -> -1.4267752e-06 | D120: ='DF raw data'!L125 -> 1.2359939e-06 | F120: 6.190264005e-06 | G120: -1.432243237e-06 | H120: 1.237941826e-06 | J120: -4.049702474e-05 | K120: -0.0005798219359 | L120: 2.227571792e-05 | M120: 0.001903775248 | N120: 1.06559046e-07
A121: 58.01085 | B121: ='DF raw data'!J126 -> 3.1608411e-06 | C121: ='DF raw data'!K126 -> 5.0974131e-06 | D121: ='DF raw data'!L126 -> 3.6840479e-06 | F121: 3.165822586e-06 | G121: 5.116948653e-06 | H121: 3.689853959e-06 | J121: -3.891351194e-05 | K121: -0.0005992860854 | L121: 2.483516446e-05 | M121: 0.001916197549 | N121: 1.076249743e-07
A122: 58.51104 | B122: ='DF raw data'!J127 -> 3.1621798e-06 | C122: ='DF raw data'!K127 -> -2.5907939e-06 | D122: ='DF raw data'!L127 -> 7.629043e-06 | F122: 3.167163395e-06 | G122: -2.600722974e-06 | H122: 7.641066372e-06 | J122: -3.732932848e-05 | K122: -0.0006179578422 | L122: 2.353430884e-05 | M122: 0.001927969175 | N122: 1.085990156e-07
A123: 59.01123 | B123: ='DF raw data'!J128 -> 9.5095822e-07 | C123: ='DF raw data'!K128 -> 1.7976255e-06 | D123: ='DF raw data'!L128 -> 5.0702342e-06 | F123: 9.524569302e-07 | G123: 1.8045148e-06 | H123: 5.078224889e-06 | J123: -3.685291905e-05 | K123: -0.0006363913038 | L123: 2.44369091e-05 | M123: 0.001940192273 | N123: 1.095770372e-07
A124: 59.51142 | B124: ='DF raw data'!J129 -> 1.2741708e-06 | C124: ='DF raw data'!K129 -> 1.009471e-06 | D124: ='DF raw data'!L129 -> -5.298956e-07 | F124: 1.276178893e-06 | G124: 1.013339742e-06 | H124: -5.307307155e-07 | J124: -3.621458713e-05 | K124: -0.0006545054781 | L124: 2.49437715e-05 | M124: 0.001952668898 | N124: 1.105442486e-07
A125: 60.01161 | B125: ='DF raw data'!J130 -> 1.0458076e-06 | C125: ='DF raw data'!K130 -> 1.869009e-06 | D125: ='DF raw data'!L130 -> -7.9695765e-06 | F125: 1.047455793e-06 | G125: 1.876171873e-06 | H125: -7.982136553e-06 | J125: -3.569066021e-05 | K125: -0.0006723575895 | L125: 2.588221391e-05 | M125: 0.001965614923 | N125: 1.11516474e-07
A126: 60.5118 | B126: ='DF raw data'!J131 -> -2.1956025e-06 | C126: ='DF raw data'!K131 -> 9.4204534e-06 | D126: ='DF raw data'!L131 -> 2.6002795e-06 | F126: -2.19906277e-06 | G126: 9.456556766e-06 | H126: 2.60437754e-06 | J126: -3.679060942e-05 | K126: -0.0006907598844 | L126: 3.061228904e-05 | M126: 0.001980926883 | N126: 1.126622398e-07
A127: 61.01199 | B127: ='DF raw data'!J132 -> -1.456627e-06 | C127: ='DF raw data'!K132 -> 8.1826493e-06 | D127: ='DF raw data'!L132 -> 6.6224143e-06 | F127: -1.458922644e-06 | G127: 8.21400885e-06 | H127: 6.632851225e-06 | J127: -3.752034794e-05 | K127: -0.0007095271872 | L127: 3.472085413e-05 | M127: 0.001998293907 | N127: 1.139693935e-07
A128: 61.51218 | B128: ='DF raw data'!J133 -> 1.7381441e-06 | C128: ='DF raw data'!K133 -> -2.3961238e-06 | D128: ='DF raw data'!L133 -> 6.779735e-06 | F128: 1.740883415e-06 | G128: -2.405306812e-06 | H128: 6.790419862e-06 | J128: -3.664957546e-05 | K128: -0.0007278589384 | L128: 3.351774371e-05 | M128: 0.002015059148 | N128: 1.152031774e-07
A129: 62.01237 | B129: ='DF raw data'!J134 -> 3.9806523e-06 | C129: ='DF raw data'!K134 -> -8.4917438e-06 | D129: ='DF raw data'!L134 -> 4.2632723e-06 | F129: 3.986925808e-06 | G129: -8.524287938e-06 | H129: 4.269991217e-06 | J129: -3.465535504e-05 | K129: -0.0007451932004 | L129: 2.925398013e-05 | M129: 0.002029691696 | N129: 1.162319627e-07
A130: 62.51256 | B130: ='DF raw data'!J135 -> 1.5591119e-06 | C130: ='DF raw data'!K135 -> -2.8707245e-06 | D130: ='DF raw data'!L135 -> 3.8923586e-06 | F130: 1.56156906e-06 | G130: -2.881726393e-06 | H130: 3.898492957e-06 | J130: -3.387427382e-05 | K130: -0.0007621367734 | L130: 2.781256941e-05 | M130: 0.002043603265 | N130: 1.171928304e-07
A131: 63.01275 | B131: ='DF raw data'!J136 -> -1.3547636e-06 | C131: ='DF raw data'!K136 -> -2.0522604e-05 | D131: ='DF raw data'!L136 -> 5.2600494e-06 | F131: -1.356898707e-06 | G131: -2.060125574e-05 | H131: 5.268339238e-06 | J131: -3.455298098e-05 | K131: -0.000779419829 | L131: 1.75080273e-05 | M131: 0.002052360605 | N131: 1.179433352e-07
A132: 63.51294 | B132: ='DF raw data'!J137 -> -3.4645877e-06 | C132: ='DF raw data'!K137 -> -1.3670987e-05 | D132: ='DF raw data'!L137 -> -2.3126123e-07 | F132: -3.47004789e-06 | G132: -1.37233803e-05 | H132: -2.316256977e-07 | J132: -3.628866423e-05 | K132: -0.000797571056 | L132: 1.06437297e-05 | M132: 0.002057684492 | N132: 1.18658685e-07
A133: 64.01313 | B133: ='DF raw data'!J138 -> -3.7062077e-06 | C133: ='DF raw data'!K138 -> -8.4155572e-06 | D133: ='DF raw data'!L138 -> -6.4748963e-07 | F133: -3.712048683e-06 | G133: -8.447809357e-06 | H133: -6.485100737e-07 | J133: -3.814539386e-05 | K133: -0.0008166510005 | L133: 6.418219942e-06 | M133: 0.002060894822 | N133: 1.194071016e-07
A134: 64.51332 | B134: ='DF raw data'!J139 -> -4.1487024e-06 | C134: ='DF raw data'!K139 -> -5.4133134e-06 | D134: ='DF raw data'!L139 -> 6.8299198e-07 | F134: -4.155240755e-06 | G134: -5.434059624e-06 | H134: 6.840683754e-07 | J134: -4.022380374e-05 | K134: -0.0008367705449 | L134: 3.700157658e-06 | M134: 0.002062745604 | N134: 1.202232344e-07
A135: 65.01351 | B135: ='DF raw data'!J140 -> -3.028103e-06 | C135: ='DF raw data'!K140 -> -4.8530519e-06 | D135: ='DF raw data'!L140 -> 1.168764e-06 | F135: -3.03287529e-06 | G135: =(1-$G$1*($B$2-$G$2))*C135*$M$2/$M$1 -> -4.871650953e-06 | H135: 1.170605972e-06 | J135: -4.174081763e-05 | K135: -0.0008576488845 | L135: 1.263406568e-06 | M135: 0.002063377547 | N135: 1.210955118e-07
A136: =A135+$B$1 -> 65.5137 | B136: ='DF raw data'!J141 -> 1.1183052e-06 | C136: ='DF raw data'!K141 -> -5.3610083e-06 | D136: ='DF raw data'!L141 -> -3.1316181e-06 | F136: 1.120067649e-06 | G136: -5.381554067e-06 | H136: -3.13655353e-06 | J136: =F136*$B$1+J135 -> -4.118057099e-05 | K136: =J136*$B$1+K135 -> -0.0008782469943 | L136: =G136*$B$1+L135 -> -1.42839296e-06 | M136: =L136*$B$1+M135 -> 0.002062663079 | N136: =(J136^2+L136^2)*$B$1+N135 -> 1.219447742e-07
A137: 66.01389 | B137: ='DF raw data'!J142 -> 3.0182636e-07 | C137: ='DF raw data'!K142 -> -8.0614418e-06 | D137: ='DF raw data'!L142 -> -7.7062159e-06 | F137: 3.023020383e-07 | G137: -8.092336829e-06 | H137: -7.718360896e-06 | J137: -4.102936254e-05 | K137: -0.0008987694711 | L137: -5.476098919e-06 | M137: 0.002059923989 | N137: 1.228017979e-07
A138: 66.51408 | B138: ='DF raw data'!J143 -> -4.3234418e-06 | C138: ='DF raw data'!K143 -> -1.4647408e-05 | D138: ='DF raw data'!L143 -> -7.8456655e-09 | F138: -4.330255544e-06 | G138: -1.470354338e-05 | H138: -7.858030269e-09 | J138: -4.319531306e-05 | K138: -0.0009203753348 | L138: -1.283066428e-05 | M138: 0.002053506219 | N138: 1.238174142e-07
A139: 67.01427 | B139: ='DF raw data'!J144 -> -6.5540758e-06 | C139: ='DF raw data'!K144 -> -1.2371006e-05 | D139: ='DF raw data'!L144 -> 4.911109e-06 | F139: -6.564405023e-06 | G139: -1.24184172e-05 | H139: 4.918848908e-06 | J139: -4.647876281e-05 | K139: -0.0009436235471 | L139: -1.904223238e-05 | M139: 0.002043981485 | N139: 1.250793346e-07
A140: 67.51446 | B140: ='DF raw data'!J145 -> -7.1092313e-06 | C140: ='DF raw data'!K145 -> -6.7417141e-06 | D140: ='DF raw data'!L145 -> 4.6364416e-06 | F140: -7.120435449e-06 | G140: -6.767551346e-06 | H140: 4.643748632e-06 | J140: -5.004033341e-05 | K140: -0.0009686532215 | L140: -2.242729389e-05 | M140: 0.002032763577 | N140: 1.265834151e-07
A141: 68.01465 | B141: ='DF raw data'!J146 -> -5.3513163e-06 | C141: ='DF raw data'!K146 -> 3.3712658e-06 | D141: ='DF raw data'!L146 -> 3.4617528e-06 | F141: -5.359749974e-06 | G141: 3.384185989e-06 | H141: 3.467208522e-06 | J141: -5.272122675e-05 | K141: -0.0009950238519 | L141: -2.07345579e-05 | M141: 0.002022392358 | N141: 1.281887497e-07
A142: 68.51484 | B142: ='DF raw data'!J147 -> -8.6542639e-07 | C142: ='DF raw data'!K147 -> -9.2692235e-06 | D142: ='DF raw data'!L147 -> 2.9198199e-07 | F142: -8.66790302e-07 | G142: -9.304747286e-06 | H142: 2.924421536e-07 | J142: -5.315478659e-05 | K142: -0.001021611345 | L142: -2.538869944e-05 | M142: 0.002009693185 | N142: 1.299244177e-07
A143: 69.01503 | B143: ='DF raw data'!J148 -> -2.0109096e-06 | C143: ='DF raw data'!K148 -> -2.7761243e-06 | D143: ='DF raw data'!L148 -> -3.2848934e-06 | F143: -2.014078794e-06 | G143: -2.786763643e-06 | H143: -3.290070392e-06 | J143: -5.416220866e-05 | K143: -0.00104870274 | L143: -2.678261075e-05 | M143: 0.001996296791 | N143: 1.317505379e-07
A144: 69.51522 | B144: ='DF raw data'!J149 -> -3.8082021e-06 | C144: ='DF raw data'!K149 -> -8.1294902e-06 | D144: ='DF raw data'!L149 -> -7.738148e-07 | F144: -3.814203827e-06 | G144: -8.160646021e-06 | H144: -7.750343321e-07 | J144: -5.607003528e-05 | K144: -0.001076748411 | L144: -3.086448428e-05 | M144: 0.001980858684 | N144: 1.337995489e-07
A145: 70.01541 | B145: ='DF raw data'!J150 -> -2.8385352e-06 | C145: ='DF raw data'!K150 -> -1.2122565e-05 | D145: ='DF raw data'!L150 -> 3.168459e-06 | F145: -2.843008731e-06 | G145: -1.216902406e-05 | H145: 3.173452491e-06 | J145: -5.749207981e-05 | K145: -0.001105505374 | L145: -3.695130842e-05 | M145: 0.001962376009 | N145: 1.361358056e-07
A146: 70.5156 | B146: ='DF raw data'!J151 -> -1.4896599e-06 | C146: ='DF raw data'!K151 -> -2.2083914e-06 | D146: ='DF raw data'!L151 -> 3.6948891e-06 | F146: -1.492007604e-06 | G146: -2.216854938e-06 | H146: 3.700712245e-06 | J146: -5.82383671e-05 | K146: -0.001134635623 | L146: -3.80601571e-05 | M146: 0.001943338699 | N146: 1.385568667e-07
A147: 71.01579 | B147: ='DF raw data'!J152 -> 1.2048164e-06 | C147: ='DF raw data'!K152 -> -2.6461666e-06 | D147: ='DF raw data'!L152 -> 1.7408726e-06 | F147: 1.206715191e-06 | G147: -2.656307887e-06 | H147: 1.743616215e-06 | J147: -5.763478023e-05 | K147: -0.001163463964 | L147: -3.938881574e-05 | M147: 0.001923636808 | N147: 1.40994416e-07
A148: 71.51598 | B148: ='DF raw data'!J153 -> 2.0637431e-06 | C148: ='DF raw data'!K153 -> -1.4449667e-05 | D148: ='DF raw data'!L153 -> 4.3987311e-07 | F148: 2.066995559e-06 | G148: -1.450504455e-05 | H148: 4.4056635e-07 | J148: -5.660088972e-05 | K148: -0.001191775163 | L148: -4.664409397e-05 | M148: 0.001900305898 | N148: 1.436851041e-07
A149: 72.01617 | B149: ='DF raw data'!J154 -> -4.2400862e-07 | C149: ='DF raw data'!K154 -> -1.9582609e-05 | D149: ='DF raw data'!L154 -> 4.348818e-07 | F149: -4.246768576e-07 | G149: -1.965765826e-05 | H149: 4.355671737e-07 | J149: -5.681330883e-05 | K149: -0.001220192612 | L149: -5.647665806e-05 | M149: 0.001872056839 | N149: 1.468950059e-07
A150: 72.51636 | B150: ='DF raw data'!J155 -> -2.7223964e-06 | C150: ='DF raw data'!K155 -> -9.5342102e-06 | D150: ='DF raw data'!L155 -> 4.0959544e-06 | F150: -2.726686897e-06 | G150: -9.570749532e-06 | H150: 4.102409624e-06 | J150: -5.817717035e-05 | K150: -0.00124929225 | L150: -6.126385127e-05 | M150: 0.001841413273 | N150: 1.504652834e-07
A151: 73.01655 | B151: ='DF raw data'!J156 -> -5.9863037e-06 | C151: ='DF raw data'!K156 -> -1.9678228e-06 | D151: ='DF raw data'!L156 -> -4.2246391e-08 | F151: =(1-$G$1*($B$2-$G$2))*B151 -> -5.995738115e-06 | G151: -1.975364372e-06 | H151: -4.231297131e-08 | J151: -6.11761786e-05 | K151: -0.001279891963 | L151: -6.225190877e-05 | M151: 0.001810275491 | N151: 1.542756433e-07
A152: 73.51674 | B152: ='DF raw data'!J157 -> -6.8261529e-06 | C152: ='DF raw data'!K157 -> -4.3980644e-06 | D152: ='DF raw data'!L157 -> -2.0188331e-06 | F152: -6.836910917e-06 | G152: -4.414919738e-06 | H152: -2.022014781e-06 | J152: -6.459593307e-05 | K152: -0.001312202203 | L152: -6.446020748e-05 | M152: 0.00177803314 | N152: 1.58441102e-07
A153: 74.01693 | B153: ='DF raw data'!J158 -> -4.7613235e-06 | C153: ='DF raw data'!K158 -> -1.1071291e-05 | D153: ='DF raw data'!L158 -> 8.7640149e-07 | F153: -4.768827346e-06 | G153: -1.111372111e-05 | H153: 8.777826987e-07 | J153: -6.698125282e-05 | K153: -0.001345705556 | L153: -7.001917964e-05 | M153: 0.001743010246 | N153: 1.631374728e-07
A154: 74.51712 | B154: ='DF raw data'!J159 -> -3.3568454e-06 | C154: ='DF raw data'!K159 -> -7.9783158e-06 | D154: ='DF raw data'!L159 -> -1.7915082e-07 | F154: -3.362135788e-06 | G154: -8.008892253e-06 | H154: -1.794331617e-07 | J154: -6.866295952e-05 | K154: -0.001380050082 | L154: -7.402514745e-05 | M154: 0.001705983608 | N154: 1.68236572e-07
A155: 75.01731 | B155: ='DF raw data'!J160 -> 5.2369944e-07 | C155: ='DF raw data'!K160 -> -1.4202377e-06 | D155: ='DF raw data'!L160 -> -5.4330617e-06 | F155: 5.245247903e-07 | G155: -1.425680682e-06 | H155: -5.441624205e-06 | J155: -6.840059747e-05 | K155: -0.001414263376 | L155: -7.473825867e-05 | M155: 0.001668600278 | N155: 1.733707468e-07
A156: 75.5175 | B156: ='DF raw data'!J161 -> 4.7210392e-06 | C156: ='DF raw data'!K161 -> -8.3924742e-06 | D156: ='DF raw data'!L161 -> -4.7162052e-06 | F156: 4.728479558e-06 | G156: -8.424637892e-06 | H156: -4.723637939e-06 | J156: -6.603545928e-05 | K156: -0.001447293653 | L156: -7.89521783e-05 | M156: 0.001629109188 | N156: 1.786698238e-07
A157: 76.01769 | B157: ='DF raw data'!J162 -> 4.6137043e-06 | C157: ='DF raw data'!K162 -> -9.560762e-06 | D157: ='DF raw data'!L162 -> 1.2459037e-06 | F157: 4.620975498e-06 | G157: -9.597403091e-06 | H157: 1.247867244e-06 | J157: -6.372409354e-05 | K157: -0.001479167807 | L157: -8.375270335e-05 | M157: 0.001587216923 | N157: 1.842095658e-07
A158: 76.51788 | B158: ='DF raw data'!J163 -> 2.743594e-06 | C158: ='DF raw data'!K163 -> -9.7371531e-06 | D158: ='DF raw data'!L163 -> 2.047947e-06 | F158: 2.747917904e-06 | G158: -9.7744702e-06 | H158: 2.051174564e-06 | J158: -6.234961249e-05 | K158: -0.00151035446 | L158: -8.86417956e-05 | M158: 0.001542879183 | N158: 1.900842184e-07
A159: 77.01807 | B159: ='DF raw data'!J164 -> 2.770093e-06 | C159: ='DF raw data'!K164 -> -1.254833e-05 | D159: ='DF raw data'!L164 -> 1.5429177e-07 | F159: 2.774458667e-06 | G159: -1.259642078e-05 | H159: 1.545349338e-07 | J159: -6.096185601e-05 | K159: -0.001540846971 | L159: -9.494239931e-05 | M159: 0.001495389945 | N159: 1.964518407e-07
A160: 77.51826 | B160: ='DF raw data'!J165 -> 4.8291042e-07 | C160: ='DF raw data'!K165 -> -1.3149153e-05 | D160: ='DF raw data'!L165 -> -2.6580842e-06 | F160: 4.836714868e-07 | G160: -1.31995464e-05 | H160: -2.662273341e-06 | J160: -6.071992837e-05 | K160: -0.001571218472 | L160: -0.0001015446804 | M160: 0.001444598311 | N160: 2.034536163e-07
A161: 78.01845 | B161: ='DF raw data'!J166 -> -3.5408689e-06 | C161: ='DF raw data'!K166 -> -4.0451496e-06 | D161: ='DF raw data'!L166 -> -3.3737474e-06 | F161: -3.546449309e-06 | G161: -4.060652412e-06 | H161: -3.379064426e-06 | J161: -6.249382685e-05 | K161: -0.001602477259 | L161: -0.0001035757782 | M161: 0.001392790743 | N161: 2.107731068e-07
A162: 78.51864 | B162: ='DF raw data'!J167 -> -2.3968555e-06 | C162: ='DF raw data'!K167 -> 2.5173819e-07 | D162: ='DF raw data'!L167 -> -4.2513639e-07 | F162: -2.400632944e-06 | G162: 2.527029627e-07 | H162: -4.25806405e-07 | J162: -6.369459944e-05 | K162: -0.001634336661 | L162: -0.0001034493787 | M162: 0.001341046398 | N162: 2.181552989e-07
A163: 79.01883 | B163: ='DF raw data'!J168 -> 1.5013844e-06 | C163: ='DF raw data'!K168 -> -1.7886294e-06 | D163: ='DF raw data'!L168 -> 1.265607e-06 | F163: 1.503750582e-06 | G163: -1.795484223e-06 | H163: 1.267601597e-06 | J163: -6.294243843e-05 | K163: -0.001665819839 | L163: -0.0001043474619 | M163: 0.001288852841 | N163: 2.255831921e-07
A164: 79.51902 | B164: ='DF raw data'!J169 -> 1.7951439e-06 | C164: ='DF raw data'!K169 -> -8.880018e-06 | D164: ='DF raw data'!L169 -> -1.6306316e-06 | F164: 1.797973047e-06 | G164: -8.914050177e-06 | H164: -1.633201475e-06 | J164: -6.20431103e-05 | K164: -0.001696853182 | L164: -0.0001088061807 | M164: 0.001234429077 | N164: 2.334302391e-07
A165: 80.01921 | B165: ='DF raw data'!J170 -> 6.4532435e-07 | C165: ='DF raw data'!K170 -> -3.1527898e-06 | D165: ='DF raw data'!L170 -> -1.7204751e-06 | F165: 6.463413812e-07 | G165: -3.164872692e-06 | H165: -1.723186569e-06 | J165: -6.17198168e-05 | K165: -0.001727724817 | L165: -0.0001103892183 | M165: 0.001179213494 | N165: 2.414308358e-07
A166: 80.5194 | B166: ='DF raw data'!J171 -> -4.8629079e-07 | C166: ='DF raw data'!K171 -> -3.7586824e-06 | D166: ='DF raw data'!L171 -> 9.9590234e-06 | F166: -4.870571843e-07 | G166: -3.773087342e-06 | H166: 9.974718821e-06 | J166: -6.196343793e-05 | K166: -0.001758718309 | L166: -0.0001122764789 | M166: 0.001123053922 | N166: 2.496566981e-07
A167: 81.01959 | B167: ='DF raw data'!J172 -> -5.0714393e-06 | C167: ='DF raw data'!K172 -> -1.9097815e-06 | D167: ='DF raw data'!L172 -> 9.6874846e-06 | F167: -5.079431888e-06 | G167: -1.917100632e-06 | H167: 9.702752076e-06 | J167: -6.450411897e-05 | K167: -0.001790982625 | L167: -0.0001132353935 | M167: 0.001066414711 | N167: 2.581514428e-07
A168: 81.51978 | B168: ='DF raw data'!J173 -> -9.4596853e-06 | C168: ='DF raw data'!K173 -> -1.4970918e-06 | D168: ='DF raw data'!L173 -> -8.8219986e-06 | F168: -9.474593764e-06 | G168: -1.502829321e-06 | H168: -8.83590207e-06 | J168: -6.924321603e-05 | K168: -0.001825617389 | L168: -0.0001139870937 | M168: 0.001009399506 | N168: 2.670486627e-07
A169: 82.01997 | B169: ='DF raw data'!J174 -> -8.9488549e-06 | C169: ='DF raw data'!K174 -> -2.174902e-06 | D169: ='DF raw data'!L174 -> -9.845071e-06 | F169: -8.962958295e-06 | G169: -2.183237191e-06 | H169: -9.860586832e-06 | J169: -7.372639813e-05 | K169: -0.001862494596 | L169: -0.0001150791271 | M169: 0.0009518380779 | N169: 2.763916053e-07
A170: 82.52016 | B170: ='DF raw data'!J175 -> -3.927295e-06 | C170: ='DF raw data'!K175 -> -1.1503142e-06 | D170: ='DF raw data'!L175 -> -3.6513397e-06 | F170: -3.933484417e-06 | G170: -1.154722715e-06 | H170: -3.657094211e-06 | J170: -7.569388771e-05 | K170: -0.001900355922 | L170: -0.0001156567078 | M170: 0.0008939877492 | N170: 2.859482548e-07
A171: 83.02035 | B171: ='DF raw data'!J176 -> -1.1149335e-06 | C171: ='DF raw data'!K176 -> -2.1424785e-06 | D171: ='DF raw data'!L176 -> -8.6060243e-07 | F171: -1.116690635e-06 | G171: -2.15068943e-06 | H171: -8.619587394e-07 | J171: -7.625244519e-05 | K171: -0.001938496632 | L171: -0.0001167324612 | M171: 0.0008355993394 | N171: 2.956724e-07
A172: 83.52054 | B172: ='DF raw data'!J177 -> -4.8874789e-08 | C172: ='DF raw data'!K177 -> 5.2099409e-07 | D172: ='DF raw data'!L177 -> -3.8639919e-07 | F172: -4.895181567e-08 | G172: 5.22990771e-07 | H172: -3.870081551e-07 | J172: -7.62769304e-05 | K172: -0.00197664959 | L172: -0.0001164708664 | M172: 0.0007773417767 | N172: 3.053678993e-07
A173: 84.02073 | B173: ='DF raw data'!J178 -> 2.2029903e-06 | C173: ='DF raw data'!K178 -> -3.3565329e-06 | D173: ='DF raw data'!L178 -> -5.8240716e-06 | F173: 2.206462213e-06 | G173: -3.369396626e-06 | H173: -5.833250337e-06 | J173: -7.517328007e-05 | K173: -0.002014250513 | L173: -0.0001181562049 | M173: 0.0007182412246 | N173: 3.15177581e-07
A174: 84.52092 | B174: ='DF raw data'!J179 -> 1.1124263e-06 | C174: ='DF raw data'!K179 -> 3.4414479e-06 | D174: ='DF raw data'!L179 -> -9.0303092e-06 | F174: 1.114179484e-06 | G174: 3.454637058e-06 | H174: -9.044540967e-06 | J174: -7.461597863e-05 | K174: -0.002051572679 | L174: -0.00011642823 | M174: 0.0006600049882 | N174: 3.247427528e-07
A175: 85.02111 | B175: ='DF raw data'!J180 -> -1.5164354e-06 | C175: ='DF raw data'!K180 -> 1.1890644e-06 | D175: ='DF raw data'!L180 -> -7.1693962e-06 | F175: -1.518825302e-06 | G175: 1.193621423e-06 | H175: -7.180695168e-06 | J175: -7.537567986e-05 | K175: -0.002089274841 | L175: -0.0001158311925 | M175: 0.0006020673841 | N175: 3.342955607e-07
A176: 85.5213 | B176: ='DF raw data'!J181 -> -2.9705066e-06 | C176: ='DF raw data'!K181 -> -9.290573e-06 | D176: ='DF raw data'!L181 -> -6.7642127e-06 | F176: -2.975188118e-06 | G176: -9.326178606e-06 | H176: -6.774873099e-06 | J176: -7.686383921e-05 | K176: -0.002127721364 | L176: -0.0001204960538 | M176: 0.0005417964629 | N176: 3.445131162e-07
A177: 86.02149 | B177: ='DF raw data'!J182 -> -2.1139663e-06 | C177: ='DF raw data'!K182 -> -9.7440477e-08 | D177: ='DF raw data'!L182 -> -2.8989089e-07 | F177: -2.117297911e-06 | G177: -9.781391223e-08 | H177: -2.90347758e-07 | J177: -7.792289045e-05 | K177: -0.002166697615 | L177: -0.0001205449793 | M177: 0.0004815010697 | N177: 3.548185653e-07
A178: 86.52168 | B178: ='DF raw data'!J183 -> -3.4771293e-07 | C178: ='DF raw data'!K183 -> -7.5817201e-07 | D178: ='DF raw data'!L183 -> 2.9731141e-06 | F178: -3.482609256e-07 | G178: -7.610776622e-07 | H178: 2.977799728e-06 | J178: -7.809708708e-05 | K178: -0.002205760997 | L178: -0.0001209256628 | M178: 0.0004210152624 | N178: 3.651835879e-07
A179: 87.02187 | B179: ='DF raw data'!J184 -> -2.9040916e-06 | C179: ='DF raw data'!K184 -> -3.1082245e-06 | D179: ='DF raw data'!L184 -> 1.3760852e-06 | F179: -2.908668448e-06 | G179: -3.120136598e-06 | H179: 1.37825391e-06 | J179: -7.955197395e-05 | K179: -0.002245552099 | L179: -0.0001224863239 | M179: 0.0003597488281 | N179: 3.75853349e-07
A180: 87.52206 | B180: ='DF raw data'!J185 -> -6.1587293e-06 | C180: ='DF raw data'!K185 -> -5.4299917e-06 | D180: ='DF raw data'!L185 -> 2.5467721e-06 | F180: -6.168435457e-06 | G180: -5.450801842e-06 | H180: 2.550785813e-06 | J180: -8.263736368e-05 | K180: -0.002286886482 | L180: -0.0001252127605 | M180: 0.0002971186574 | N180: 3.8711121e-07
A181: 88.02225 | B181: ='DF raw data'!J186 -> -3.6679071e-06 | C181: ='DF raw data'!K186 -> -1.073994e-06 | D181: ='DF raw data'!L186 -> 1.1137287e-06 | F181: -3.673687722e-06 | G181: -1.078110023e-06 | H181: 1.115483936e-06 | J181: -8.447490554e-05 | K181: -0.002329139985 | L181: -0.0001257520203 | M181: 0.0002342187544 | N181: 3.985903605e-07
A182: 88.52244 | B182: ='DF raw data'!J187 -> -4.5130801e-07 | C182: ='DF raw data'!K187 -> -1.2173267e-05 | D182: ='DF raw data'!L187 -> -1.8961749e-06 | F182: -4.520192714e-07 | G182: -1.221992037e-05 | H182: -1.899163272e-06 | J182: -8.470100106e-05 | K182: -0.002371506578 | L182: -0.0001318643023 | M182: 0.000168261549 | N182: 4.108762543e-07
A183: 89.02263 | B183: ='DF raw data'!J188 -> -5.3843637e-06 | C183: ='DF raw data'!K188 -> -1.2480684e-05 | D183: ='DF raw data'!L188 -> -5.2696e-06 | F183: -5.392849457e-06 | G183: -1.252851553e-05 | H183: -5.27790489e-06 | J183: -8.739845043e-05 | K183: -0.002415222409 | L183: -0.0001381309405 | M183: 9.916983392e-05 | N183: 4.242406538e-07
A184: 89.52282 | B184: ='DF raw data'!J189 -> -1.2435581e-05 | C184: ='DF raw data'!K189 -> -9.090781e-07 | D184: ='DF raw data'!L189 -> -1.1567086e-05 | F184: -1.245517948e-05 | G184: -9.125620915e-07 | H184: -1.158531573e-05 | J184: -9.362840666e-05 | K184: -0.002462054402 | L184: -0.0001385873949 | M184: 2.984980486e-05 | N184: 4.382323409e-07
A185: 90.02301 | B185: ='DF raw data'!J190 -> -1.0132057e-05 | C185: ='DF raw data'!K190 -> 3.1912723e-06 | D185: ='DF raw data'!L190 -> -1.4984036e-05 | F185: -1.014802512e-05 | G185: 3.203502674e-06 | H185: -1.500765084e-05 | J185: -9.870434734e-05 | K185: -0.00251142533 | L185: -0.0001369850349 | M185: -3.866873974e-05 | N185: 4.524914813e-07
A186: 90.5232 | B186: ='DF raw data'!J191 -> -4.022741e-06 | C186: ='DF raw data'!K191 -> -1.1837164e-05 | D186: ='DF raw data'!L191 -> -1.1892802e-05 | F186: -4.02908084e-06 | G186: -1.188252928e-05 | H186: -1.191154506e-05 | J186: -0.0001007196533 | K186: -0.002561804293 | L186: -0.0001429285572 | M186: -0.0001101601748 | N186: 4.677838006e-07
A187: 91.02339 | B187: ='DF raw data'!J192 -> -4.7420276e-06 | C187: ='DF raw data'!K192 -> -2.6704502e-06 | D187: ='DF raw data'!L192 -> -4.3434434e-06 | F187: -4.749501035e-06 | G187: -2.680684552e-06 | H187: -4.350288667e-06 | J187: -0.0001030953062 | K187: -0.002613371534 | L187: -0.0001442694088 | M187: -0.0001823222904 | N187: 4.835109269e-07
A188: 91.52358 | B188: ='DF raw data'!J193 -> -6.9935581e-06 | C188: ='DF raw data'!K193 -> -3.8200587e-06 | D188: ='DF raw data'!L193 -> -3.5079888e-06 | F188: -7.004579948e-06 | G188: -3.834698863e-06 | H188: -3.51351739e-06 | J188: -0.0001065989271 | K188: -0.002666691251 | L188: -0.0001461874868 | M188: -0.0002554438094 | N188: 4.998842027e-07
A189: 92.02377 | B189: ='DF raw data'!J194 -> -5.1947959e-06 | C189: ='DF raw data'!K194 -> -8.8612882e-07 | D189: ='DF raw data'!L194 -> -4.773176e-06 | F189: -5.202982898e-06 | G189: -8.895248596e-07 | H189: -4.780698525e-06 | J189: -0.0001092014071 | K189: -0.002721312703 | L189: -0.0001466324183 | M189: -0.0003287878787 | N189: 5.166035603e-07
A190: 92.52396 | B190: ='DF raw data'!J195 -> -2.9792523e-06 | C190: ='DF raw data'!K195 -> -4.8466472e-06 | D190: ='DF raw data'!L195 -> -9.1348647e-06 | F190: -2.983947602e-06 | G190: -4.865221707e-06 | H190: -9.149261247e-06 | J190: -0.0001106939478 | K190: -0.002776680709 | L190: -0.0001490659535 | M190: -0.000403349178 | N190: 5.338470146e-07
A191: 93.02415 | B191: ='DF raw data'!J196 -> -3.2782214e-06 | C191: ='DF raw data'!K196 -> 8.1426703e-07 | D191: ='DF raw data'!L196 -> -5.7284365e-06 | F191: -3.283387877e-06 | G191: 8.173876633e-07 | H191: -5.737464516e-06 | J191: -0.0001123362656 | K191: -0.002832870186 | L191: -0.0001486571044 | M191: -0.0004777059751 | N191: 5.512127968e-07
A192: 93.52434 | B192: ='DF raw data'!J197 -> -5.2332541e-07 | C192: ='DF raw data'!K197 -> -7.9927258e-06 | D192: ='DF raw data'!L197 -> 1.8693223e-06 | F192: -5.241501708e-07 | G192: -8.023357479e-06 | H192: 1.872268352e-06 | J192: -0.0001125984403 | K192: -0.0028891908 | L192: -0.0001526703076 | M192: -0.0005540701362 | N192: 5.6921295e-07
A193: 94.02453 | B193: ='DF raw data'!J198 -> 2.8485133e-06 | C193: ='DF raw data'!K198 -> -7.8881194e-06 | D193: ='DF raw data'!L198 -> 6.0966972e-06 | F193: 2.853002557e-06 | G193: -7.918350181e-06 | H193: 6.106305595e-06 | J193: -0.0001111713969 | K193: -0.002944797621 | L193: -0.0001566309872 | M193: -0.0006324153897 | N193: 5.876661324e-07
A194: 94.52472 | B194: ='DF raw data'!J199 -> 3.4969903e-06 | C194: ='DF raw data'!K199 -> -4.4729177e-06 | D194: ='DF raw data'!L199 -> -1.2425465e-06 | F194: 3.502501557e-06 | G194: -4.490059909e-06 | H194: -1.244504753e-06 | J194: -0.0001094194807 | K194: -0.002999528151 | L194: -0.0001588768702 | M194: -0.0007118840114 | N194: 6.062804444e-07
A195: 95.02491 | B195: ='DF raw data'!J200 -> 3.3819138e-06 | C195: ='DF raw data'!K200 -> -5.7404768e-06 | D195: ='DF raw data'!L200 -> -9.6875319e-06 | F195: 3.387243696e-06 | G195: -5.762476859e-06 | H195: -9.70279945e-06 | J195: -0.0001077252152 | K195: -0.003053411226 | L195: -0.0001617592035 | M195: -0.0007927943474 | N195: 6.251730018e-07
A196: 95.5251 | B196: ='DF raw data'!J201 -> 5.7573247e-06 | C196: ='DF raw data'!K201 -> 5.1326379e-06 | D196: ='DF raw data'!L201 -> -1.3782936e-05 | F196: 5.766398244e-06 | G196: 5.15230845e-06 | H196: -1.380465791e-05 | J196: -0.0001048409205 | K196: -0.003105851606 | L196: -0.0001591820704 | M196: -0.0008724156272 | N196: 6.433451797e-07
A197: 96.02529 | B197: ='DF raw data'!J202 -> 7.1771551e-06 | C197: ='DF raw data'!K202 -> 5.7199841e-06 | D197: ='DF raw data'!L202 -> -1.183749e-05 | F197: 7.188466296e-06 | G197: 5.741905622e-06 | H197: -1.185614588e-05 | J197: -0.0001012453216 | K197: -0.003156493503 | L197: -0.0001563100266 | M197: -0.0009506003394 | N197: 6.606934893e-07
A198: 96.52548 | B198: ='DF raw data'!J203 -> 3.6397009e-06 | C198: ='DF raw data'!K203 -> 1.4927447e-06 | D198: ='DF raw data'!L203 -> -5.1442789e-06 | F198: 3.645437069e-06 | G198: 1.498465561e-06 | H198: -5.152386284e-06 | J198: -9.942191039e-05 | K198: -0.003206223349 | L198: -0.0001555605091 | M198: -0.00102841015 | N198: 6.777418594e-07
A199: 97.02567 | B199: ='DF raw data'!J204 -> -3.1383775e-06 | C199: ='DF raw data'!K204 -> -8.3417717e-06 | D199: ='DF raw data'!L204 -> -5.0990225e-06 | F199: -3.143323583e-06 | G199: =(1-$G$1*($B$2-$G$2))*C199*$M$2/$M$1 -> -8.373741078e-06 | H199: -5.107058559e-06 | J199: -0.0001009941694 | K199: -0.003256739622 | L199: -0.0001597489706 | M199: -0.001108314988 | N199: 6.95608424e-07
A200: =A199+$B$1 -> 97.52586 | B200: ='DF raw data'!J205 -> -8.9210171e-06 | C200: ='DF raw data'!K205 -> -7.325857e-06 | D200: ='DF raw data'!L205 -> -9.2489279e-07 | F200: -8.935076623e-06 | G200: -7.353932941e-06 | H200: -9.26350421e-07 | J200: =F200*$B$1+J199 -> -0.0001054634054 | K200: =J200*$B$1+K199 -> -0.003309491363 | L200: =G200*$B$1+L199 -> -0.0001634273344 | M200: =L200*$B$1+M199 -> -0.001190059706 | N200: =(J200^2+L200^2)*$B$1+N199 -> 7.145311237e-07
A201: 98.02605 | B201: ='DF raw data'!J206 -> -6.8710747e-06 | C201: ='DF raw data'!K206 -> -3.9841734e-06 | D201: ='DF raw data'!L206 -> -6.0154148e-06 | F201: -6.881903514e-06 | G201: -3.999442524e-06 | H201: -6.024895094e-06 | J201: -0.0001089056647 | K201: -0.003363964888 | L201: -0.0001654278155 | M201: -0.001272805045 | N201: 7.341519798e-07
... 1002 more rows

Sheet 10 y=0.2
A1: dz | B1: ='DF raw data'!N7 -> 0.50018 | C1: mm | F1: T_coeff | G1: -0.0008 | H1: /degC | L1: Hallref | M1: ='PI vs y'!B44 -> 0.50535 | N1: T | P1: IBy total | Q1: =L1203*1000 -> 7.562846801 | R1: muTm | X1: DF ref | Y1: 21
A2: Tref | B2: ='DF raw data'!N8 -> 21.92 | C2: degC | F2: Tcorr | G2: 20 | H2: degC | L2: NMRref | M2: ='PI vs y'!B45 -> 0.5064885 | N2: T | P2: JBy total | Q2: =M1203 -> 3.184811244 | R2: muTm^2
A3: Encoder | B3: ='DF raw data'!N9 -> 17889676 | P3: PI total | Q3: =N1203 -> 690.3546275 | R3: T^2mm^3
A5: z [mm] | B5: Bx | C5: By | D5: Bz | F5: Bx_corr | G5: By_corr | H5: Bz_corr | J5: Ix | K5: Jx | L5: Iy | M5: Jy | N5: PI
A6: ='PI vs y'!B53 -> 0.489 | B6: ='DF raw data'!M11 -> -4.0714117e-06 | C6: ='DF raw data'!N11 -> -2.423478e-06 | D6: ='DF raw data'!O11 -> 6.5314784e-06 | F6: =(1-$G$1*($B$2-$G$2))*B6 -> -4.077665388e-06 | G6: =(1-$G$1*($B$2-$G$2))*C6*$M$2/$M$1 -> -2.432668688e-06 | H6: =(1-$G$1*($B$2-$G$2))*D6 -> 6.541510751e-06 | J6: =F6*$B$1 -> -2.039566674e-06 | K6: =J6*$B$1 -> -1.020150459e-06 | L6: =G6*$B$1 -> -1.216772224e-06 | M6: =L6*$B$1 -> -6.086051311e-07 | N6: =(J6^2+L6^2)*$B$1 -> 2.821198698e-12
A7: =A6+$B$1 -> 0.98918 | B7: ='DF raw data'!M12 -> -4.3878722e-06 | C7: ='DF raw data'!N12 -> 5.7067732e-06 | D7: ='DF raw data'!O12 -> 3.5465898e-06 | F7: =(1-$G$1*($B$2-$G$2))*B7 -> -4.394611972e-06 | G7: =(1-$G$1*($B$2-$G$2))*C7*$M$2/$M$1 -> 5.728415307e-06 | H7: 3.552037362e-06 | J7: =F7*$B$1+J6 -> -4.23766369e-06 | K7: =J7*$B$1+K6 -> -3.139745083e-06 | L7: =G7*$B$1+L6 -> 1.648466544e-06 | M7: =L7*$B$1+M6 -> 2.159248649e-07 | N7: =(J7^2+L7^2)*$B$1+N6 -> 1.316253799e-11
A8: =A7+$B$1 -> 1.48936 | B8: ='DF raw data'!M13 -> -3.7941393e-06 | C8: ='DF raw data'!N13 -> -1.1236742e-05 | D8: ='DF raw data'!O13 -> -1.120908e-06 | F8: -3.799967098e-06 | G8: -1.127935571e-05 | H8: -1.122629715e-06 | J8: =F8*$B$1+J7 -> -6.138331233e-06 | K8: =J8*$B$1+K7 -> -6.2100156e-06 | L8: =G8*$B$1+L7 -> -3.993241594e-06 | M8: =L8*$B$1+M7 -> -1.781414716e-06 | N8: =(J8^2+L8^2)*$B$1+N7 -> 3.998473488e-11
A9: 1.98954 | B9: ='DF raw data'!M14 -> -4.4774538e-06 | C9: ='DF raw data'!N14 -> 7.863624e-06 | D9: ='DF raw data'!O14 -> 1.4573276e-06 | F9: -4.484331169e-06 | G9: 7.89344565e-06 | H9: 1.459566055e-06 | J9: -8.381303997e-06 | K9: -1.040217623e-05 | L9: -4.509794937e-08 | M9: -1.803971808e-06 | N9: 7.512152483e-11
A10: 2.48972 | B10: ='DF raw data'!M15 -> -4.3992954e-06 | C10: ='DF raw data'!N15 -> 5.3132967e-06 | D10: ='DF raw data'!O15 -> -4.9316748e-07 | F10: -4.406052718e-06 | G10: 5.333446605e-06 | H10: -4.939249852e-07 | J10: -1.058512345e-05 | K10: -1.569664328e-05 | L10: 2.622585373e-06 | M10: -4.922070561e-07 | N10: 1.346043271e-10
A11: 2.9899 | B11: ='DF raw data'!M16 -> -4.4946687e-06 | C11: ='DF raw data'!N16 -> 7.0334399e-06 | D11: ='DF raw data'!O16 -> -5.0799458e-06 | F11: -4.501572511e-06 | G11: 7.060113197e-06 | H11: -5.087748597e-06 | J11: -1.283671998e-05 | K11: -2.211731388e-05 | L11: 6.153912792e-06 | M11: 2.585857044e-06 | N11: 2.359668158e-10
A12: 3.49008 | B12: ='DF raw data'!M17 -> -4.0269556e-06 | C12: ='DF raw data'!N17 -> -6.3311586e-06 | D12: ='DF raw data'!O17 -> -8.9281702e-06 | F12: -4.033141004e-06 | G12: -6.355168598e-06 | H12: -8.941883869e-06 | J12: -1.485401645e-05 | K12: -2.954699583e-05 | L12: 2.975184563e-06 | M12: 4.073984859e-06 | N12: 3.507548886e-10
A13: 3.99026 | B13: ='DF raw data'!M18 -> -4.0150812e-06 | C13: ='DF raw data'!N18 -> -5.9144663e-06 | D13: ='DF raw data'!O18 -> -5.2798746e-06 | F13: -4.021248365e-06 | G13: -5.936896053e-06 | H13: -5.287984487e-06 | J13: -1.686536446e-05 | K13: -3.798271382e-05 | L13: 5.667895463e-09 | M13: 4.076819827e-06 | N13: 4.930263631e-10
A14: 4.49044 | B14: ='DF raw data'!M19 -> -4.433798e-06 | C14: ='DF raw data'!N19 -> 5.9433396e-06 | D14: ='DF raw data'!O19 -> -2.7425006e-06 | F14: -4.440608314e-06 | G14: 5.965878851e-06 | H14: -2.746713081e-06 | J14: -1.908646792e-05 | K14: -4.752938335e-05 | L14: 2.989681179e-06 | M14: 5.572198559e-06 | N14: 6.797092705e-10
A15: 4.99062 | B15: ='DF raw data'!M20 -> -4.4987432e-06 | C15: ='DF raw data'!N20 -> 7.6227875e-06 | D15: ='DF raw data'!O20 -> -2.713615e-06 | F15: -4.50565327e-06 | G15: 7.651695812e-06 | H15: -2.717783113e-06 | J15: -2.134010558e-05 | K15: -5.820327736e-05 | L15: 6.81690639e-06 | M15: 8.981878797e-06 | N15: 9.307347665e-10
A16: 5.4908 | B16: ='DF raw data'!M21 -> -3.9536721e-06 | C16: ='DF raw data'!N21 -> -6.7667993e-06 | D16: ='DF raw data'!O21 -> 2.5056636e-07 | F16: -3.95974494e-06 | G16: -6.792461402e-06 | H16: 2.509512299e-07 | J16: -2.33206908e-05 | K16: -6.986782048e-05 | L16: 3.419453046e-06 | M16: 1.069222082e-05 | N16: 1.208608404e-09
A17: 5.99098 | B17: ='DF raw data'!M22 -> -4.2875513e-06 | C17: ='DF raw data'!N22 -> 2.3956447e-06 | D17: ='DF raw data'!O22 -> 1.9545827e-07 | F17: -4.294136979e-06 | G17: 2.404729834e-06 | H17: 1.957584939e-07 | J17: -2.546853224e-05 | K17: -8.260667094e-05 | L17: 4.622250815e-06 | M17: 1.300417823e-05 | N17: 1.543734675e-09
A18: 6.49116 | B18: ='DF raw data'!M23 -> -4.2597135e-06 | C18: ='DF raw data'!N23 -> 6.074539e-07 | D18: ='DF raw data'!O23 -> -6.0152265e-06 | F18: -4.26625642e-06 | G18: 6.097575805e-07 | H18: -6.024465888e-06 | J18: -2.760242837e-05 | K18: -9.641285356e-05 | L18: 4.927239361e-06 | M18: 1.546868482e-05 | N18: 1.936962056e-09
A19: 6.99134 | B19: ='DF raw data'!M24 -> -4.355436e-06 | C19: ='DF raw data'!N24 -> 4.2422766e-06 | D19: ='DF raw data'!O24 -> 3.5307005e-07 | F19: -4.36212595e-06 | G19: 4.258364817e-06 | H19: 3.536123656e-07 | J19: -2.978427653e-05 | K19: -0.000111310353 | L19: 7.057188275e-06 | M19: 1.899854925e-05 | N19: 2.405584216e-09
A20: 7.49152 | B20: ='DF raw data'!M25 -> -4.1788776e-06 | C20: ='DF raw data'!N25 -> -2.4994949e-07 | D20: ='DF raw data'!O25 -> 2.4664157e-06 | F20: -4.185296356e-06 | G20: -2.508973871e-07 | H20: 2.470204115e-06 | J20: -3.187767806e-05 | K20: -0.00012725493 | L20: 6.93169442e-06 | M20: 2.246564417e-05 | N20: 2.937893151e-09
A21: 7.9917 | B21: ='DF raw data'!M26 -> -4.2159995e-06 | C21: ='DF raw data'!N26 -> -3.1519482e-07 | D21: ='DF raw data'!O26 -> -3.9836627e-06 | F21: -4.222475275e-06 | G21: -3.163901505e-07 | H21: -3.989781606e-06 | J21: -3.398967574e-05 | K21: -0.000144255886 | L21: 6.773442395e-06 | M21: 2.585358458e-05 | N21: 3.538698153e-09
A22: 8.49188 | B22: ='DF raw data'!M27 -> -2.428442e-06 | C22: ='DF raw data'!N27 -> -1.3783423e-06 | D22: ='DF raw data'!O27 -> 1.9023834e-06 | F22: -2.432172087e-06 | G22: -1.383569463e-06 | H22: 1.905305461e-06 | J22: -3.520619958e-05 | K22: -0.0001618653229 | L22: 6.081408621e-06 | M22: 2.889538355e-05 | N22: 4.177157926e-09
A23: 8.99206 | B23: ='DF raw data'!M28 -> 7.2332813e-07 | C23: ='DF raw data'!N28 -> -2.0817708e-06 | D23: ='DF raw data'!O28 -> 6.6686755e-07 | F23: =(1-$G$1*($B$2-$G$2))*B23 -> 7.24439162e-07 | G23: -2.089665613e-06 | H23: 6.678918586e-07 | J23: -3.48438496e-05 | K23: -0.0001792935196 | L23: 5.036199675e-06 | M23: 3.14143899e-05 | N23: 4.797109609e-09
A24: 9.49224 | B24: ='DF raw data'!M29 -> 1.7704984e-06 | C24: ='DF raw data'!N29 -> -2.3993273e-06 | D24: ='DF raw data'!O29 -> -8.6257378e-06 | F24: 1.773217886e-06 | G24: -2.4084264e-06 | H24: -8.638986933e-06 | J24: -3.395692148e-05 | K24: -0.0001962780926 | L24: 3.831552958e-06 | M24: 3.333085606e-05 | N24: 5.381196462e-09
A25: 9.99242 | B25: ='DF raw data'!M30 -> 4.4316653e-06 | C25: ='DF raw data'!N30 -> 1.3113316e-05 | D25: ='DF raw data'!O30 -> -2.5527581e-06 | F25: 4.438472338e-06 | G25: 1.316304634e-05 | H25: -2.556679136e-06 | J25: -3.173688638e-05 | K25: -0.0002121522484 | L25: 1.041544548e-05 | M25: 3.854045358e-05 | N25: 5.93925302e-09
A26: 10.4926 | B26: ='DF raw data'!M31 -> 9.4777315e-06 | C26: ='DF raw data'!N31 -> 9.0820804e-06 | D26: ='DF raw data'!O31 -> 4.3735895e-06 | F26: 9.492289296e-06 | G26: 9.116522868e-06 | H26: 4.380307333e-06 | J26: -2.698903312e-05 | K26: -0.000225651623 | L26: 1.497534789e-05 | M26: 4.603082308e-05 | N26: 6.415758977e-09
A27: 10.99278 | B27: ='DF raw data'!M32 -> 1.1208274e-05 | C27: ='DF raw data'!N32 -> 3.9201836e-06 | D27: ='DF raw data'!O32 -> 3.0367926e-06 | F27: 1.122548991e-05 | G27: 3.935050326e-06 | H27: 3.041457113e-06 | J27: -2.137426758e-05 | K27: -0.0002363426042 | L27: 1.694358136e-05 | M27: 5.450566361e-05 | N27: 6.787865019e-09
A28: 11.49296 | B28: ='DF raw data'!M33 -> 7.4048835e-06 | C28: ='DF raw data'!N33 -> -3.450333e-06 | D28: ='DF raw data'!O33 -> 8.3511959e-06 | F28: 7.416257401e-06 | G28: -3.463417886e-06 | H28: 8.364023337e-06 | J28: -1.766480395e-05 | K28: -0.0002451781858 | L28: 1.5211249e-05 | M28: 6.211402613e-05 | N28: 7.059676534e-09
A29: 11.99314 | B29: ='DF raw data'!M34 -> 3.6083763e-06 | C29: ='DF raw data'!N34 -> -5.7559541e-06 | D29: ='DF raw data'!O34 -> 5.0475905e-06 | F29: 3.613918766e-06 | G29: -5.777782718e-06 | H29: 5.055343599e-06 | J29: -1.585719406e-05 | K29: -0.0002531096371 | L29: 1.232131764e-05 | M29: 6.827690279e-05 | N29: 7.261381857e-09
A30: 12.49332 | B30: ='DF raw data'!M35 -> 1.8620154e-06 | C30: ='DF raw data'!N35 -> -5.2770852e-06 | D30: ='DF raw data'!O35 -> -2.8938246e-07 | F30: 1.864875456e-06 | G30: -5.297097778e-06 | H30: -2.898269515e-07 | J30: -1.492442066e-05 | K30: -0.0002605745339 | L30: 9.671815274e-06 | M30: 7.311455135e-05 | N30: 7.41957996e-09
A31: 12.9935 | B31: ='DF raw data'!M36 -> -4.0427068e-07 | C31: ='DF raw data'!N36 -> 1.8609047e-07 | D31: ='DF raw data'!O36 -> 3.7197722e-06 | F31: -4.048916398e-07 | G31: 1.86796191e-07 | H31: 3.72548577e-06 | J31: -1.512693936e-05 | K31: -0.0002681407264 | L31: 9.765246992e-06 | M31: 7.799893259e-05 | N31: 7.581730484e-09
A32: 13.49368 | B32: ='DF raw data'!M37 -> -2.1019116e-06 | C32: ='DF raw data'!N37 -> 5.8043088e-06 | D32: ='DF raw data'!O37 -> 5.1323846e-06 | F32: -2.105140136e-06 | G32: 5.826320796e-06 | H32: 5.140267943e-06 | J32: -1.617988835e-05 | K32: -0.000276233583 | L32: 1.267945613e-05 | M32: 8.434094296e-05 | N32: 7.793085242e-09
A33: 13.99386 | B33: ='DF raw data'!M38 -> -2.420162e-06 | C33: ='DF raw data'!N38 -> 1.4020754e-05 | D33: ='DF raw data'!O38 -> -5.2864505e-07 | F33: -2.423879369e-06 | G33: 1.407392567e-05 | H33: -5.294570488e-07 | J33: -1.739226434e-05 | K33: -0.0002849328457 | L33: 1.971895227e-05 | M33: 9.420396851e-05 | N33: 8.13887365e-09
A34: 14.49404 | B34: ='DF raw data'!M39 -> -3.541358e-06 | C34: ='DF raw data'!N39 -> 8.0796426e-06 | D34: ='DF raw data'!O39 -> -1.2515232e-05 | F34: -3.546797526e-06 | G34: 8.110283469e-06 | H34: -1.25344554e-05 | J34: -1.916630152e-05 | K34: -0.0002945194464 | L34: 2.377555386e-05 | M34: 0.000106096025 | N34: 8.60535356e-09
A35: 14.99422 | B35: ='DF raw data'!M40 -> -7.0989086e-06 | C35: ='DF raw data'!N40 -> 1.3738596e-06 | D35: ='DF raw data'!O40 -> -7.8598414e-06 | F35: -7.109812524e-06 | G35: 1.379069763e-06 | H35: -7.871914116e-06 | J35: -2.272248755e-05 | K35: -0.0003058847802 | L35: 2.446533697e-05 | M35: 0.0001183330973 | N35: 9.162986312e-09
A36: 15.4944 | B36: ='DF raw data'!M41 -> -7.536441e-06 | C36: ='DF raw data'!N41 -> 7.9259344e-06 | D36: ='DF raw data'!O41 -> -5.8082821e-07 | F36: -7.548016973e-06 | G36: 7.955992353e-06 | H36: -5.817203621e-07 | J36: -2.649785468e-05 | K36: -0.0003191384772 | L36: 2.844476522e-05 | M36: 0.0001325605999 | N36: 9.918878821e-09
A37: 15.99458 | B37: ='DF raw data'!M42 -> -5.022132e-06 | C37: ='DF raw data'!N42 -> -5.3486015e-06 | D37: ='DF raw data'!O42 -> -4.2064235e-06 | F37: -5.029845995e-06 | G37: -5.368885293e-06 | H37: -4.212884566e-06 | J37: -2.901368305e-05 | K37: -0.0003336505412 | L37: 2.575935618e-05 | M37: 0.0001454449147 | N37: 1.06718189e-08
A38: 16.49476 | B38: ='DF raw data'!M43 -> -5.8535556e-06 | C38: ='DF raw data'!N43 -> 5.473009e-06 | D38: ='DF raw data'!O43 -> -4.2460192e-06 | F38: -5.862546661e-06 | G38: 5.49376459e-06 | H38: -4.252541085e-06 | J38: -3.194601164e-05 | K38: -0.0003496292973 | L38: 2.850722735e-05 | M38: 0.0001597036597 | N38: 1.158875371e-08
A39: 16.99494 | B39: ='DF raw data'!M44 -> -6.9979765e-06 | C39: ='DF raw data'!N44 -> 1.4923522e-05 | D39: ='DF raw data'!O44 -> -3.8596804e-06 | F39: -7.008725392e-06 | G39: 1.498011729e-05 | H39: -3.865608869e-06 | J39: -3.54516359e-05 | K39: -0.0003673614965 | L39: 3.599998241e-05 | M39: 0.0001777101309 | N39: 1.286562183e-08
A40: 17.49512 | B40: ='DF raw data'!M45 -> -2.0456976e-06 | C40: ='DF raw data'!N45 -> 9.4335282e-06 | D40: ='DF raw data'!O45 -> -1.6124717e-06 | F40: -2.048839792e-06 | G40: 9.469303483e-06 | H40: -1.614948457e-06 | J40: -3.647642459e-05 | K40: -0.0003856062746 | L40: 4.073633863e-05 | M40: 0.0001980856328 | N40: 1.436114944e-08
A41: 17.9953 | B41: ='DF raw data'!M46 -> 5.5651952e-07 | C41: ='DF raw data'!N46 -> 2.7220078e-06 | D41: ='DF raw data'!O46 -> 1.0543414e-06 | F41: 5.57374334e-07 | G41: 2.732330618e-06 | H41: 1.055960868e-06 | J41: -3.61976371e-05 | K41: -0.0004037116087 | L41: 4.210299576e-05 | M41: 0.0002191447092 | N41: 1.590316996e-08
A42: 18.49548 | B42: ='DF raw data'!M47 -> -1.3820346e-07 | C42: ='DF raw data'!N47 -> -1.7859624e-06 | D42: ='DF raw data'!O47 -> 6.6560719e-06 | F42: -1.384157405e-07 | G42: -1.792735403e-06 | H42: 6.666295626e-06 | J42: -3.626686988e-05 | K42: -0.0004218515717 | L42: 4.120630537e-05 | M42: 0.000239755279 | N42: 1.741033507e-08
A43: 18.99566 | B43: ='DF raw data'!M48 -> 2.578028e-06 | C43: ='DF raw data'!N48 -> 3.663514e-07 | D43: ='DF raw data'!O48 -> 5.2284854e-06 | F43: 2.581987851e-06 | G43: 3.677407344e-07 | H43: 5.236516354e-06 | J43: -3.49754112e-05 | K43: -0.0004393455729 | L43: 4.139024193e-05 | M43: 0.0002604578502 | N43: 1.887907939e-08
A44: 19.49584 | B44: ='DF raw data'!M49 -> 2.1009143e-06 | C44: ='DF raw data'!N49 -> -6.7170299e-06 | D44: ='DF raw data'!O49 -> -2.3291243e-06 | F44: 2.104141304e-06 | G44: -6.742503258e-06 | H44: -2.332701835e-06 | J44: -3.39229618e-05 | K44: -0.0004563131599 | L44: 3.801777665e-05 | M44: 0.0002794735817 | N44: 2.017760603e-08
A45: 19.99602 | B45: ='DF raw data'!M50 -> -8.9474298e-07 | C45: ='DF raw data'!N50 -> 9.5810983e-06 | D45: ='DF raw data'!O50 -> -4.5015217e-06 | F45: -8.961173052e-07 | G45: 9.617433221e-06 | H45: -4.508436037e-06 | J45: -3.437118176e-05 | K45: -0.0004735049376 | L45: 4.28282244e-05 | M45: 0.000300895403 | N45: 2.168596632e-08
A46: 20.4962 | B46: ='DF raw data'!M51 -> -2.0869294e-07 | C46: ='DF raw data'!N51 -> 1.2420338e-06 | D46: ='DF raw data'!O51 -> 2.4415319e-06 | F46: -2.090134924e-07 | G46: 1.246744032e-06 | H46: 2.445282093e-06 | J46: -3.447572612e-05 | K46: -0.0004907490063 | L46: 4.345182083e-05 | M46: 0.0003226291347 | N46: 2.322483832e-08
A47: 20.99638 | B47: ='DF raw data'!M52 -> 2.5504667e-06 | C47: ='DF raw data'!N52 -> 8.4777894e-06 | D47: ='DF raw data'!O52 -> 1.8057441e-06 | F47: 2.554384217e-06 | G47: 8.509940183e-06 | H47: 1.808517723e-06 | J47: -3.319807423e-05 | K47: -0.000507354019 | L47: 4.770832271e-05 | M47: 0.0003464918836 | N47: 2.491454449e-08
A48: 21.49656 | B48: ='DF raw data'!M53 -> 4.0882401e-06 | C48: ='DF raw data'!N53 -> 7.1287068e-06 | D48: ='DF raw data'!O53 -> 6.3006705e-06 | F48: 4.094519637e-06 | G48: 7.155741383e-06 | H48: 6.31034833e-06 | J48: -3.115007739e-05 | K48: -0.0005229346648 | L48: 5.128748143e-05 | M48: 0.0003721448561 | N48: 2.671555916e-08
A49: 21.99674 | B49: ='DF raw data'!M54 -> 2.3695136e-06 | C49: ='DF raw data'!N54 -> 2.7409544e-06 | D49: ='DF raw data'!O54 -> 4.8912593e-06 | F49: 2.373153173e-06 | G49: 2.751349071e-06 | H49: 4.898772274e-06 | J49: -2.996307364e-05 | K49: -0.0005379215949 | L49: 5.266365121e-05 | M49: 0.0003984861611 | N49: 2.855184295e-08
A50: 22.49692 | B50: ='DF raw data'!M55 -> 1.7450035e-06 | C50: ='DF raw data'!N55 -> -5.5764945e-06 | D50: ='DF raw data'!O55 -> 4.6997125e-06 | F50: 1.747683825e-06 | G50: -5.597642544e-06 | H50: 4.706931258e-06 | J50: -2.908891714e-05 | K50: -0.0005524712895 | L50: 4.986382236e-05 | M50: 0.0004234270478 | N50: 3.021872576e-08
A51: 22.9971 | B51: ='DF raw data'!M56 -> -4.0242926e-06 | C51: ='DF raw data'!N56 -> 6.165496e-06 | D51: ='DF raw data'!O56 -> 1.9321858e-06 | F51: -4.030473913e-06 | G51: 6.188877746e-06 | H51: 1.935153637e-06 | J51: -3.110487959e-05 | K51: -0.0005680293282 | L51: 5.295937523e-05 | M51: 0.0004499162681 | N51: 3.210550923e-08
A52: 23.49728 | B52: ='DF raw data'!M57 -> -1.0475156e-05 | C52: ='DF raw data'!N57 -> 3.4423813e-06 | D52: ='DF raw data'!O57 -> -5.4092557e-06 | F52: -1.049124584e-05 | G52: 3.45543603e-06 | H52: -5.417564317e-06 | J52: -3.635239093e-05 | K52: -0.0005862120671 | L52: 5.468771523e-05 | M52: 0.0004772699695 | N52: 3.42624067e-08
A53: 23.99746 | B53: ='DF raw data'!M58 -> -1.0516484e-05 | C53: ='DF raw data'!N58 -> 2.6846481e-06 | D53: ='DF raw data'!O58 -> 6.96146e-07 | F53: -1.053263732e-05 | G53: 2.694829237e-06 | H53: 6.972152803e-07 | J53: -4.162060547e-05 | K53: -0.0006070298615 | L53: 5.603561491e-05 | M53: 0.0005052978634 | N53: 3.669941618e-08
A54: 24.49764 | B54: ='DF raw data'!M59 -> -1.0155291e-05 | C54: ='DF raw data'!N59 -> 5.4247505e-07 | D54: ='DF raw data'!O59 -> 8.1618464e-06 | F54: -1.017088953e-05 | G54: 5.445323077e-07 | H54: 8.174382996e-06 | J54: -4.670788099e-05 | K54: -0.0006303922094 | L54: 5.630797908e-05 | M54: 0.0005334619883 | N54: 3.93764869e-08
A55: 24.99782 | B55: ='DF raw data'!M60 -> -1.0713327e-05 | C55: ='DF raw data'!N60 -> -3.8055161e-06 | D55: ='DF raw data'!O60 -> 9.2033561e-06 | F55: -1.072978267e-05 | G55: -3.819947966e-06 | H55: 9.217492455e-06 | J55: -5.207470368e-05 | K55: -0.0006564389347 | L55: 5.439731751e-05 | M55: 0.0005606704386 | N55: 4.221292911e-08
A56: 25.498 | B56: ='DF raw data'!M61 -> -7.6401084e-06 | C56: ='DF raw data'!N61 -> 1.3215787e-05 | D56: ='DF raw data'!O61 -> -2.2138586e-06 | F56: -7.651843607e-06 | G56: 1.326590595e-05 | H56: -2.217259087e-06 | J56: -5.590200282e-05 | K56: -0.0006843999985 | L56: 6.103265835e-05 | M56: 0.0005911977537 | N56: 4.563917177e-08
A57: 25.99818 | B57: ='DF raw data'!M62 -> -5.7236612e-08 | C57: ='DF raw data'!N62 -> 4.7154094e-06 | D57: ='DF raw data'!O62 -> -1.5312866e-06 | F57: -5.732452744e-08 | G57: 4.733291904e-06 | H57: -1.533638656e-06 | J57: -5.59306754e-05 | K57: -0.0007123754037 | L57: 6.340015629e-05 | M57: 0.0006229092438 | N57: 4.921436851e-08
A58: 26.49836 | B58: ='DF raw data'!M63 -> 2.5292354e-06 | C58: ='DF raw data'!N63 -> 1.0971276e-05 | D58: ='DF raw data'!O63 -> 1.1102499e-06 | F58: 2.533120306e-06 | G58: 1.101288297e-05 | H58: 1.111955244e-06 | J58: -5.466365929e-05 | K58: -0.0007397170728 | L58: 6.890858009e-05 | M58: 0.0006573759374 | N58: 5.308401511e-08
A59: 26.99854 | B59: ='DF raw data'!M64 -> 4.1288254e-06 | C59: ='DF raw data'!N64 -> 1.2453252e-05 | D59: ='DF raw data'!O64 -> -4.7219542e-06 | F59: 4.135167276e-06 | G59: 1.250047915e-05 | H59: -4.729207122e-06 | J59: -5.259533132e-05 | K59: -0.0007660242056 | L59: 7.516106975e-05 | M59: 0.0006949700013 | N59: 5.729325753e-08
A60: 27.49872 | B60: ='DF raw data'!M65 -> 7.2034413e-06 | C60: ='DF raw data'!N65 -> 2.2830325e-06 | D60: ='DF raw data'!O65 -> -1.5979634e-06 | F60: 7.214505786e-06 | G60: 2.291690569e-06 | H60: -1.600417872e-06 | J60: -4.898677982e-05 | K60: -0.0007905264132 | L60: 7.630732754e-05 | M60: 0.0007331374004 | N60: 6.1405994e-08
A61: 27.9989 | B61: ='DF raw data'!M66 -> 5.8898108e-06 | C61: ='DF raw data'!N66 -> -3.1719662e-07 | D61: ='DF raw data'!O66 -> 5.6324336e-07 | F61: 5.898857549e-06 | G61: -3.18399542e-07 | H61: 5.641085018e-07 | J61: -4.603628925e-05 | K61: -0.0008135528443 | L61: 7.614807046e-05 | M61: 0.0007712251423 | N61: 6.53663535e-08
A62: 28.49908 | B62: ='DF raw data'!M67 -> 5.7998946e-06 | C62: ='DF raw data'!N67 -> 4.6063997e-06 | D62: ='DF raw data'!O67 -> -3.2344717e-06 | F62: 5.808803238e-06 | G62: 4.623868801e-06 | H62: -3.239439849e-06 | J62: -4.313084204e-05 | K62: -0.0008351260289 | L62: 7.846083716e-05 | M62: 0.0008104696838 | N62: 6.93759827e-08
A63: 28.99926 | B63: ='DF raw data'!M68 -> 6.5231975e-06 | C63: ='DF raw data'!N68 -> -2.7449034e-06 | D63: ='DF raw data'!O68 -> -6.7465896e-07 | F63: 6.533217131e-06 | G63: -2.755313047e-06 | H63: -6.756952362e-07 | J63: -3.98630575e-05 | K63: -0.000855064733 | L63: 7.708268468e-05 | M63: 0.000849024901 | N63: 7.314274006e-08
A64: 29.49944 | B64: ='DF raw data'!M69 -> 5.5824889e-06 | C64: ='DF raw data'!N69 -> -2.8804654e-06 | D64: ='DF raw data'!O69 -> -6.6534153e-06 | F64: 5.591063603e-06 | G64: -2.891389146e-06 | H64: -6.663634946e-06 | J64: -3.706651931e-05 | K64: -0.0008736046646 | L64: 7.563646965e-05 | M64: 0.0008868567504 | N64: 7.669141832e-08
A65: 29.99962 | B65: ='DF raw data'!M70 -> 4.9726036e-06 | C65: ='DF raw data'!N70 -> 1.6595274e-06 | D65: ='DF raw data'!O70 -> -9.1325519e-06 | F65: 4.980241519e-06 | G65: 1.665820916e-06 | H65: -9.1465795e-06 | J65: -3.45755021e-05 | K65: -0.0008908986393 | L65: 7.646967996e-05 | M65: 0.0009251053549 | N65: 8.021422472e-08
A66: 30.4998 | B66: ='DF raw data'!M71 -> 5.5449159e-06 | C66: ='DF raw data'!N71 -> 5.7488028e-06 | D66: ='DF raw data'!O71 -> -8.0183117e-06 | F66: 5.553432891e-06 | G66: 5.770604298e-06 | H66: -8.030627827e-06 | J66: -3.179778604e-05 | K66: -0.0009068032559 | L66: 7.935602082e-05 | M66: 0.0009647976494 | N66: 8.386977887e-08
A67: 30.99998 | B67: ='DF raw data'!M72 -> 7.0782803e-06 | C67: ='DF raw data'!N72 -> -1.2182303e-06 | D67: ='DF raw data'!O72 -> 6.129527e-07 | F67: 7.089152539e-06 | G67: -1.222850261e-06 | H67: 6.138941953e-07 | J67: -2.825193372e-05 | K67: -0.0009209343081 | L67: 7.874437557e-05 | M67: 0.001004184011 | N67: 8.737046288e-08
A68: 31.50016 | B68: ='DF raw data'!M73 -> 3.5784722e-06 | C68: ='DF raw data'!N73 -> 4.0303944e-06 | D68: ='DF raw data'!O73 -> 1.9365805e-06 | F68: 3.583968733e-06 | G68: 4.045679084e-06 | H68: 1.939555088e-06 | J68: -2.645930424e-05 | K68: -0.0009341687229 | L68: 8.076794334e-05 | M68: 0.001044582521 | N68: 9.098354085e-08
A69: 32.00034 | B69: ='DF raw data'!M74 -> 1.2047927e-06 | C69: ='DF raw data'!N74 -> -6.300605e-06 | D69: ='DF raw data'!O74 -> -7.6219035e-06 | F69: 1.206643262e-06 | G69: -6.324499128e-06 | H69: -7.633610744e-06 | J69: -2.585576541e-05 | K69: -0.0009471012596 | L69: 7.760455536e-05 | M69: 0.001083398768 | N69: 9.433023904e-08
A70: 32.50052 | B70: ='DF raw data'!M75 -> 1.632332e-08 | C70: ='DF raw data'!N75 -> 3.28591e-07 | D70: ='DF raw data'!O75 -> -9.7141046e-06 | F70: 1.634839262e-08 | G70: 3.298371336e-07 | H70: -9.729025465e-06 | J70: -2.584758828e-05 | K70: -0.0009600297063 | L70: 7.77695333e-05 | M70: 0.001122297533 | N70: 9.768954702e-08
A71: 33.0007 | B71: ='DF raw data'!M76 -> -2.5500669e-06 | C71: ='DF raw data'!N76 -> 1.7499912e-06 | D71: ='DF raw data'!O76 -> -7.5604071e-06 | F71: -2.553983803e-06 | G71: =(1-$G$1*($B$2-$G$2))*C71*$M$2/$M$1 -> 1.756627787e-06 | H71: -7.572019885e-06 | J71: -2.712503989e-05 | K71: -0.0009735971088 | L71: 7.864816339e-05 | M71: 0.001161635771 | N71: 1.011514435e-07
A72: =A71+$B$1 -> 33.50088 | B72: ='DF raw data'!M77 -> -6.3050579e-06 | C72: ='DF raw data'!N77 -> -9.7879893e-06 | D72: ='DF raw data'!O77 -> -8.4933736e-06 | F72: -6.314742469e-06 | G72: -9.825108825e-06 | H72: -8.506419422e-06 | J72: =F72*$B$1+J71 -> -3.028354778e-05 | K72: =J72*$B$1+K71 -> -0.0009887443337 | L72: =G72*$B$1+L71 -> 7.373384046e-05 | M72: =L72*$B$1+M71 -> 0.001198515963 | N72: =(J72^2+L72^2)*$B$1+N71 -> 1.043294735e-07
A73: 34.00106 | B73: ='DF raw data'!M78 -> -8.0251812e-06 | C73: ='DF raw data'!N78 -> -5.1888896e-06 | D73: ='DF raw data'!O78 -> -1.1095284e-06 | F73: -8.037507878e-06 | G73: -5.208567709e-06 | H73: -1.111232636e-06 | J73: -3.430374847e-05 | K73: -0.001005902383 | L73: 7.112861906e-05 | M73: 0.001234093076 | N73: 1.074486098e-07
A74: 34.50124 | B74: ='DF raw data'!M79 -> -5.7180628e-06 | C74: ='DF raw data'!N79 -> -7.6871802e-06 | D74: ='DF raw data'!O79 -> 9.1275551e-06 | F74: -5.726845744e-06 | G74: -7.716332712e-06 | H74: 9.141575025e-06 | J74: -3.716820218e-05 | K74: -0.001024493174 | L74: 6.726906376e-05 | M74: 0.001267739716 | N74: 1.10402974e-07
A75: 35.00142 | B75: ='DF raw data'!M80 -> -1.3976281e-06 | C75: ='DF raw data'!N80 -> -5.4721554e-06 | D75: ='DF raw data'!O80 -> 6.3381417e-06 | F75: -1.399774857e-06 | G75: -5.492907753e-06 | H75: 6.347877086e-06 | J75: -3.786834156e-05 | K75: -0.001043434161 | L75: 6.452162116e-05 | M75: 0.001300012141 | N75: 1.13202507e-07
A76: 35.5016 | B76: ='DF raw data'!M81 -> 3.8244951e-07 | C76: ='DF raw data'!N81 -> 3.4630623e-06 | D76: ='DF raw data'!O81 -> 5.3048248e-06 | F76: 3.830369524e-07 | G76: 3.47619546e-06 | H76: 5.312973011e-06 | J76: -3.767675414e-05 | K76: -0.00106227932 | L76: 6.626034461e-05 | M76: 0.00133315424 | N76: 1.161085383e-07
A77: 36.00178 | B77: ='DF raw data'!M82 -> 3.9949914e-06 | C77: ='DF raw data'!N82 -> -9.6948588e-06 | D77: ='DF raw data'!O82 -> 3.2564246e-06 | F77: 4.001127707e-06 | G77: -9.731625141e-06 | H77: 3.261426468e-06 | J77: -3.567547009e-05 | K77: -0.001080123477 | L77: 6.139278035e-05 | M77: 0.001363861681 | N77: 1.186303521e-07
A78: 36.50196 | B78: ='DF raw data'!M83 -> 5.8747205e-06 | C78: ='DF raw data'!N83 -> -7.9005295e-06 | D78: ='DF raw data'!O83 -> 2.2116553e-06 | F78: 5.883744071e-06 | G78: -7.930491108e-06 | H78: 2.215052403e-06 | J78: -3.273253898e-05 | K78: -0.001096495638 | L78: 5.74261073e-05 | M78: 0.001392585071 | N78: 1.20815727e-07
A79: 37.00214 | B79: ='DF raw data'!M84 -> 3.150544e-06 | C79: ='DF raw data'!N84 -> -1.6956322e-06 | D79: ='DF raw data'!O84 -> 2.5495508e-06 | F79: 3.155383236e-06 | G79: -1.702062638e-06 | H79: 2.55346691e-06 | J79: -3.115427939e-05 | K79: -0.001112078385 | L79: 5.657476961e-05 | M79: 0.00142088264 | N79: 1.229021247e-07
A80: 37.50232 | B80: ='DF raw data'!M85 -> 2.5582083e-06 | C80: ='DF raw data'!N85 -> -6.3326265e-06 | D80: ='DF raw data'!O85 -> -8.3512293e-07 | F80: 2.562137708e-06 | G80: -6.356642064e-06 | H80: -8.364056788e-07 | J80: -2.987274935e-05 | K80: -0.001127020137 | L80: 5.339530439e-05 | M80: 0.001447589903 | N80: 1.247745184e-07
A81: 38.0025 | B81: ='DF raw data'!M86 -> 2.5211009e-06 | C81: ='DF raw data'!N86 -> 3.0144804e-06 | D81: ='DF raw data'!O86 -> -4.0817717e-06 | F81: 2.524973311e-06 | G81: 3.025912378e-06 | H81: -4.088041301e-06 | J81: -2.86098082e-05 | K81: -0.001141330191 | L81: 5.490880524e-05 | M81: 0.001475054189 | N81: 1.266919574e-07
A82: 38.50268 | B82: ='DF raw data'!M87 -> 3.4500515e-06 | C82: ='DF raw data'!N87 -> 1.0087321e-05 | D82: ='DF raw data'!O87 -> -4.5569645e-06 | F82: 3.455350779e-06 | G82: 1.01255757e-05 | H82: -4.563963997e-06 | J82: -2.688151085e-05 | K82: -0.001154775785 | L82: 5.997341569e-05 | M82: 0.001505051692 | N82: 1.28852448e-07
A83: 39.00286 | B83: ='DF raw data'!M88 -> 3.3313661e-06 | C83: ='DF raw data'!N88 -> 6.4893238e-06 | D83: ='DF raw data'!O88 -> -2.1079788e-06 | F83: 3.336483078e-06 | G83: 6.513933616e-06 | H83: -2.111216655e-06 | J83: -2.521266874e-05 | K83: -0.001167386658 | L83: 6.323155501e-05 | M83: 0.001536678851 | N83: 1.311702362e-07
A84: 39.50304 | B84: ='DF raw data'!M89 -> 1.4087317e-07 | C84: ='DF raw data'!N89 -> 5.7452003e-06 | D84: ='DF raw data'!O89 -> -5.6042513e-06 | F84: 1.410895512e-07 | G84: 5.766988136e-06 | H84: -5.61285943e-06 | J84: -2.514209857e-05 | K84: -0.001179962233 | L84: 6.611608713e-05 | M84: 0.001569748796 | N84: 1.336728679e-07
A85: 40.00322 | B85: ='DF raw data'!M90 -> -2.5100991e-07 | C85: ='DF raw data'!N90 -> 8.9211671e-06 | D85: ='DF raw data'!O90 -> -4.3106443e-06 | F85: -2.513954612e-07 | G85: 8.954999328e-06 | H85: -4.31726545e-06 | J85: -2.526784155e-05 | K85: -0.001192600702 | L85: 7.05951987e-05 | M85: 0.001605059102 | N85: 1.364849528e-07
A86: 40.5034 | B86: ='DF raw data'!M91 -> 2.0587865e-06 | C86: ='DF raw data'!N91 -> -5.4909692e-06 | D86: ='DF raw data'!O91 -> 1.9605475e-06 | F86: 2.061948796e-06 | G86: -5.511792902e-06 | H86: 1.963558901e-06 | J86: -2.4236496e-05 | K86: -0.001204723312 | L86: 6.783831012e-05 | M86: 0.001638990468 | N86: 1.39080609e-07
